Workbook

Sheet Notes
A1: Date | B1: Tab | C1: Note | D1: Finalized?
A2: 2012-04-28 | B2: Building Inputs | C2: Calculated redev rate | D2: Y
A3: 2012-04-28 | B3: Dev Type Urban Character | C3: added Street sq ft per acre and street miles per sq mile | D3: Y
A4: 2012-04-28 | B4: Spatial Outputs | C4: need to link via Arc push | D4: Y
A5: 2012-05-02 | B5: Building Inputs | C5: added Civic and Hospitality land use categories | D5: Y
A6: 2012-05-02 | B6: Building Inputs | C6: need to update Mixed Use? column to include hospitality and civic | D6: Y
A7: 2012-09-02 | B7: Building outputs tabs | C7: need to account for redev, as in Scenario outputs tabs | D7: Y
A8: 2012-09-02 | B8: Summary Total and MXD Inputs | C8: calculating weighted median income difficult to impossible with simple Excel functions | D8: Y
A9: 2012-09-02 | B9: Summary Total and MXD Inputs | C9: how do we account for redevelopment's impact to income distribution of existing households? | D9: N
A10: 2012-09-02 | B10: Summary Total | C10: housing units by type: currently accounts for redev… can result in negatives… | D10: Y
A11: 2012-09-02 | B11: Existing Land Use | C11: need to link via Arc push | D11: Y
A12: 2012-09-02 | B12: Existing Developed Area | C12: need to link via Arc push | D12: Y
A13: 2012-09-02 | B13: Dev Type Open Space | C13: need Ecosystem Services parameters from Univ of Utah to include here - assign value to public and private open spaces, and parameters for Landscape dev types | D13: N
A14: 2012-09-02 | B14: Building Inputs | C14: rewrite Macro to align with ROI Model Scenario Spreadsheet tab | D14: Y
A15: 2012-09-02 | B15: Spatial Outputs | C15: need to link via Arc push; incorporate increase in intersection density from newly painted Vacant land via Dev Type street characteristics | D15: N
A16: 2012-11-14 | B16: Summary (new and total) | C16: add hotel rooms in as an output | D16: Y
A17: 2012-11-14 | B17: Dev Type Building Mix | C17: Add hotels to housing unit mix or own category? | D17: Y
A18: 2012-12-14 | B18: Existing Housing and Income tab | C18: Possibly track: sum of EX_SF and EX_MH based on EX_INCOME field? | D18: N

Sheet Quick Start Guide
A11: The Spreadsheet Tabs | B11: Description
A12: Project Info | B12: Inputs required for a range of indicators
A13: Building Inputs | B13: Inputs for the building prototypes that form the building blocks for the Dev Types
A14: Dev Type Streets | B14: Inputs for the street and block characteristics of each Dev Type
A15: Dev Type Inputs | B15: Combine building types to create Dev Types
A16: Dev Type Attributes | B16: Detailed characteristics about each Dev Type
A17: Summary New | B17: New Growth Summary outputs for all 5 Scenarios
A18: Summary Total | B18: Total Development Summary outputs for all 5 Scenarios
A19: SCENARIO1 | B19: Detailed Development Type outputs of Scenario 1
A20: SCENARIO2 | B20: Detailed Development Type outputs of Scenario 2
A21: SCENARIO3 | B21: Detailed Development Type outputs of Scenario 3
A22: SCENARIO4 | B22: Detailed Development Type outputs of Scenario 4
A23: SCENARIO5 | B23: Detailed Development Type outputs of Scenario 5
A24: BUILDING1 | B24: Detailed Building-level outputs of Scenario 1
A25: BUILDING2 | B25: Detailed Building-level outputs of Scenario 2
A26: BUILDING3 | B26: Detailed Building-level outputs of Scenario 3
A27: BUILDING4 | B27: Detailed Building-level outputs of Scenario 4
A28: BUILDING5 | B28: Detailed Building-level outputs of Scenario 5
A30: Tab Color Definition
A31: Input Tab
A32: Output Tab
A33: Reference Tab
A35: Cell Color Definition
A36: Input Cell
A37: Header Cell
A38: Subheader Cell
A39: Output Cell | B39: [white]
A41: Available Indicators | B41: Location
A42: Developed Acres | B42: Summary New Tab, Summary Total Tab
A43: Infill Development | B43: Summary New Tab, Summary Total Tab
A44: Building Square Footage Mix | B44: Summary New Tab
A45: Land Area Mix | B45: Summary New Tab, Summary Total Tab
A46: Population | B46: Summary New Tab, Summary Total Tab
A47: Net New Growth | B47: Summary Total Tab
A48: Displacement From Redevelopment | B48: Summary Total Tab
A49: Housing Mix | B49: Summary New Tab, Summary Total Tab
A50: Affordability | B50: Summary New Tab, Summary Total Tab
A51: Housing Distribution By Income | B51: Summary New Tab
A52: Housing By Building Type | B52: Summary New Tab
A53: Employment Mix | B53: Summary New Tab, Summary Total Tab
A54: Jobs/Housing Balance | B54: Summary New Tab, Summary Total Tab
A55: Affordability (H+T+E) | B55: Summary Total Tab, MXD Travel App, HH Travel App
A56: Density | B56: Summary New Tab, Summary Total Tab
A57: Income | B57: Summary New Tab
A58: Walk and Transit Friendliness | B58: Summary New Tab
A59: Parking | B59: Summary New Tab
A60: Financial | B60: Summary New Tab
A61: Subsidy | B61: Summary New Tab
A62: New Infrastructure | B62: Summary New Tab
A63: Tax Revenue | B63: Summary New Tab, Summary Total Tab
A64: Sustainability | B64: Summary New Tab, Summary Total Tab
A65: Bike Trips | B65: MXD Travel App, HH Travel App
A66: Walk Trips | B66: MXD Travel App, HH Travel App
A67: Transit Trips | B67: MXD Travel App, HH Travel App
A68: Vehicle Trips | B68: MXD Travel App, HH Travel App
A69: Internal Trips | B69: MXD Travel App
A70: External Trips | B70: MXD Travel App, HH Travel App
A71: Vehicle Miles Traveled (VMT) | B71: MXD Travel App, HH Travel App
A72: Traffic Accidents | B72: MXD Travel App, HH Travel App
A73: ULI Shared Parking Savings | B73: MXD Travel App
A74: Transportation Affordability | B74: MXD Travel App
A75: Daily Emissions | B75: MXD Travel App, HH Travel App
A76: Tax Revenue Per New Housing Unit | B76: Fiscal Impact Tool (FIT) App
A77: Operations and Maintenance Costs | B77: Fiscal Impact Tool (FIT) App
A78: Capital Outlays | B78: Fiscal Impact Tool (FIT) App
A79: Cost to Revenue Ratio | B79: Fiscal Impact Tool (FIT) App

Sheet Project Info
A2: Select Project Location (or nearest location)
A3: Metro | B3: Salt Lake City, UT Metropolitan Statistical Area
A6: Household / Population Assumptions | B6: Existing Households | D6: New Development Population Generation Rates | G6: Avg. Household Size (New Development)
B7: Avg. Unit Size | C7: Avg. HH Size | D7: Gross Sq Ft per Resident | E7: Max Household Size | F7: Vacancy Rate | G7: Scenario 1 | H7: Scenario 2 | I7: Scenario 2 | J7: Scenario 4 | K7: Scenario 5
A8: Multifamily | B8: 800 | C8: 2.5 | D8: 399 | E8: 2.5 | F8: 0.06 | G8: ='Summary New'!B166 -> 0 | H8: ='Summary New'!D166 -> 0 | I8: ='Summary New'!F166 -> 0 | J8: ='Summary New'!H166 -> 0 | K8: ='Summary New'!J166 -> 0
A9: Townhome | B9: 1200 | C9: 2.85 | D9: 499 | E9: 2.75 | F9: 0.06
A10: Single Family Small Lot | B10: 1800 | C10: 3.25
A11: Single Family Conventional Lot | B11: 2500 | C11: 3.5 | D11: 599 | E11: 3 | F11: 0.08
A12: Single Family Large Lot | B12: 3000 | C12: 3.6
A13: Mobile Home | B13: 500 | C13: 3.25 | D13: 499 | E13: 2.8 | F13: 0.1
A16: Existing Average Household Incomes | B16: $ / Year
A18: Multifamily | B18: 50000
A19: Townhome | B19: 55000
A20: Single Family Small Lot | B20: 60000
A21: Single Family Conventional Lot | B21: 65000
A22: Single Family Large Lot | B22: 70000
A23: Mobile Home | B23: 45000
A26: Wage Estimator | F26: Envision Wage Estimates
A27: Industry description | B27: Annual payroll ($1,000) | C27: Number of paid employees for pay period | D27: Average Wage | F27: Envision Employment Categories | G27: Adjusted Income ($/yr)
A28: Forestry, fishing, and related activities | D28: =IF(C28=0,0,B28*1000/C28) -> 0 | F28: Retail | G28: =IFERROR(((C34*D34)+(C46*D46))/SUM(C34,C46),0) -> 0
A29: Mining | D29: 0 | F29: Office/Public | G29: =IFERROR(((C30*D30)+(C36*D36)+(C37*D37)+(C39*D39)+(C40*D40)+(C43*D43))/SUM(C30,C36,C37,C39,C40,C43),0) -> 0
A30: Utilities | D30: 0 | F30: Industrial | G30: =IFERROR(((C29*D29)+(C32*D32)+(C35*D35))/SUM(C29,C32,C35),0) -> 0
A31: Construction | D31: 0 | F31: Education | G31: =IFERROR(((C42*D42))/SUM(C42),0) -> 0
A32: Manufacturing | D32: 0 | F32: Hotel | G32: =IFERROR(((C46*D46))/SUM(C46),0) -> 0
A33: Wholesale trade | D33: 0
A34: Retail trade | D34: 0
A35: Transportation and warehousing | D35: 0
A36: Information | D36: 0
A37: Finance and insurance | D37: 0
A38: Real estate and rental and leasing | D38: 0
A39: Professional, scientific, and technical services | D39: 0
A40: Management of companies and enterprises | D40: 0
A41: Administrative and waste services | D41: 0
A42: Educational services | D42: 0
A43: Health care and social assistance | D43: 0
A44: Arts, entertainment, and recreation | D44: 0
A45: Accommodation and food services | D45: 0
A46: Accommodation | D46: 0
A47: Food Services | D47: 0
A48: Other services, except public administration | D48: 0
A49: Government and government enterprises | D49: 0
A50: Total | D50: =IFERROR((SUM(D28:D49*C28:C49)/SUM(C28:C49)),0) -> 0
A53: Existing Average Monthly Housing Costs (Rent or Mortgage) | B53: $ / Month
A55: Multifamily | B55: 550
A56: Townhome | B56: 650
A57: Single Family Small Lot | B57: 950
A58: Single Family Conventional Lot | B58: 1150
A59: Single Family Large Lot | B59: 1250
A60: Mobile Home | B60: 550
A61: Weighted Average | B61: =IFERROR(IF(B62=0,SUMPRODUCT(B55:B60,EX_Res_by_Type)/SUM(EX_Res_by_Type),B62),0) -> 1250
A62: Manual Overide Average
A65: Affordability Standards | B65: Maxiumum Housing Expenditures
B66: Owner | C66: Renter
A67: % of Income for Housing | B67: 0.26 | C67: 0.3
A68: Maximum LTV | B68: 0.8
A69: Mortgage Years | B69: 30
A70: Mortgage Interest Rate | B70: 0.06
A73: Single Family Lot Size Assumptions | B73: Sq Ft
A74: Small Lot Single Family | B74: 5000 | C74: or below
A75: Conventional Lot Single Family | B75: =B74 & " - " & B76 -> 5000 - 7001
A76: Large Lot Single Family | B76: 7001 | C76: or above
A79: Student Generation Rates | B79: Units | C79: Public School | G79: Private School
A80: Residential Housing Type | C80: Public School Generation Rate | D80: K-5 | E80: ="6 - 8" -> 6 - 8 | F80: ="9 - 12" -> 9 - 12
A81: Fewer than 8 Units per Acre | B81: 8 | C81: 0.45 | D81: 0.157 | E81: 0.135 | F81: 0.1575 | G81: 0.0582
A82: 9-14 Units per Acre | B82: 14 | C82: 0.21 | D82: 0.0735 | E82: 0.063 | F82: 0.0735 | G82: 0.0482
A83: 15+ Unis per Acre | B83: 15 | C83: 0.15 | D83: 0.0525 | E83: 0.045 | F83: 0.0525 | G83: 0.0451
A84: Table 7-6. Planner's Estimating Guide. Projecting Land-Use and Facility Needs. Arthur C. Nelson. 2004.
A87: Property Tax | B87: Annual Property Tax Rate | C87: Assessment Ratio
A88: Residential | B88: 0.0039 | C88: 1
A89: Commercial | B89: 0.0054 | C89: 1
A91: Sales Tax | B91: Annual Sales Tax Revenue per Retail Sq Ft
A92: Sales Tax Rate | B92: 0.0685
A93: Sales per Sq Ft | B93: 250
A96: New Infrastructure Costs (Capital Costs only) | B96: Unit | C96: Cost
A97: New Roadway | B97: Lane Mile | C97: 5000000
A98: Streetscape | B98: Lane Mile
A99: Sewerage | B99: Lineal Foot | C99: 100
A100: Utilities - above-ground | B100: Mile | C100: 600000
A101: Water Lines | B101: Lineal Foot | C101: 227
A104: Electrical Energy Fuel Mix | B104: Fuel Mix (%) | C104: CO2 per Million BTU
C105: kg | D105: Pounds | E105: Tons
A106: Coal (anthracite) | C106: 103.69 | D106: =C106*2.20462 -> 228.5970478 | E106: =D106*0.00045359237 -> 0.1036898767
A107: Coal (bituminous) | B107: 1 | C107: 93.28 | D107: 205.6469536 | E107: 0.09327988907
A108: Coal (subbituminous) | C108: 97.17 | D108: 214.2229254 | E108: 0.09716988444
A109: Coal (lignite) | C109: 97.72 | D109: 215.4354664 | E109: 0.09771988379
A110: Diesel fuel & heating oil | C110: 73.15 | D110: 161.267953 | E110: 0.07314991301
A111: Propane | C111: 63.07 | D111: 139.0453834 | E111: 0.06306992499
A112: Natural gas | C112: 53.06 | D112: 116.9771372 | E112: 0.0530599369
A113: http://www.eia.doe.gov/oiaf/1605/coefficients.html
A116: Energy Costs | B116: $ / 1000 BTU
A117: Residential | B117: 12
A118: Commercial | B118: 12
A121: Landscaping Water Consumption
A122: Water per Sq Foot of Lawn Area | B122: 0.05 | C122: Gallons/Sq Ft
A123: Maximum Watered Lawn Area | B123: 0.25 | C123: Acres
A126: Internal Water Consumption
A127: Building Type/Use | B127: Water Use (G/Day)
B128: Resident | C128: Employee
A129: Multifamily Residential | B129: 35
A130: Townhome | B130: 50
A131: Typical Single Family | B131: 70
A132: Large Single Family | B132: 90
A133: Retail | C133: 68
A134: Office | C134: 106
A135: Industrial | C135: 133
A136: Vickers, Amy. Handbook of Water Use and Conservation. (2001)
A138: Waste Water Production
A139: Building Type/Use | B139: Water Waste (G/Day)
B140: Resident | C140: Employee
A141: Multifamily Residential | B141: 60
A142: Townhome | B142: 80
A143: Typical Single Family | B143: 100
A144: Large Single Family | B144: 120
A145: Retail | C145: 38
A146: Office | C146: 49
A147: Industrial | C147: 49
A148: Adapted from Metcalf and Eddy (1991) Wastewater Engineering. Treatment Disposal Reuse, G. Tchobanoglous and F.L. Burton (Eds.), 1820 pp. New York: McGraw-Hill.
A149: http://www.eolss.net/EolssSampleChapters/C06/E6-13-04-05/E6-13-04-05-T14.htm
A151: Solid Waste Production
A152: Building Type/Use | B152: Solid Waste (lbs/Day)
B153: Resident | C153: Employee
A154: Multifamily Residential | B154: 1.5
A155: Townhome | B155: 2
A156: Typical Single Family | B156: 3
A157: Large Single Family | B157: 4
A158: Retail | C158: 5
A159: Office | C159: 3.5
A160: Industrial | C160: 9
A161: http://www.calrecycle.ca.gov/wastechar/wastegenrates/default.htm
A164: Abandoned Structure Value | B164: Units (Jobs)/Acre Avg | C164: Value/Acre Avg | D164: Value/Unit (Job)
A165: MF | D165: =C165/B165 -> 
A166: TH | D166: =C166/B166 -> 
A167: SF
A168: MH
A169: RET
A170: OFF
A171: IND
A172: PUB
A173: EDU
A174: HOTEL

Sheet Building Inputs
C1: 1. Load your Prototype buildings
D2: Building and Site Characteristics | K2: Building Square Footage Mix (%) | AA2: Residential | AF2: Housing Type | AI2: Residential Rent | AK2: Residential Sales Price | AN2: Household Characteristics | AU2: Employment | AX2: Retail | BA2: Office | BD2: Industrial | BG2: Public / Civic | BJ2: Educational | BM2: Hotel / Hospitality | BT2: Commercial Parking | BW2: Parking | CA2: Residential Energy Use (Million BTU / Yr) | CE2: Commercial Energy Use (Million BTU / Yr) | CK2: Total Building Energy Use | CL2: Energy Cost | CM2: Carbon Emissions (Tons / Yr) | CP2: Landscaping Water Consumption | CR2: Internal Water Consumption | CV2: Waste Water | CZ2: Solid Waste | DD2: Land Cost | DG2: Project Value | DI2: Subsidy | DL2: Property Tax Revenue | DO2: Sales Tax Revenue | DQ2: Redevelopment Rate
B3: # | C3: Building Name | D3: Lot Size (Sq Ft) | E3: Building Lot Coverage | F3: Landscaping Lot Coverage | G3: Parking Lot Coverage | H3: Height (Stories) | I3: Floor Area Ratio (FAR) | J3: Bldg Sq Ft | K3: Residential | L3: Multifamily | M3: Townhome | N3: Single Family | O3: Small Lot Single Family | P3: Medium Lot Single Family | Q3: Large Lot Single Family | R3: Mobile Home | S3: Employment | T3: Retail | U3: Office | V3: Industrial | W3: Public / Civic | X3: Educational | Y3: Hotel / Hospitality | Z3: Commercial Parking | AA3: Residential Sq Ft | AB3: Net Sq Ft per Unit | AC3: Gross Sq Ft per Unit | AD3: Dwelling Units / Building | AE3: Dwelling Units / Acre | AF3: Type of Housing | AG3: Percent Renter | AH3: Percent Owner | AI3: Rent ($/SqFt) | AJ3: Avg Rent ($/Mo.) | AK3: Sales Price ($/SqFt) | AL3: Avg Sales Price ($) | AM3: Avg Monthly Mortgage Payment ($) | AN3: Vacancy Rate | AO3: Households per Acre | AP3: Average Household Size | AQ3: Average Number of Workers in HH | AR3: Average School Age Children per Household | AS3: Estimated Household Income Based on Housing Costs | AT3: Estimated Individual Income Based on Employment | AU3: Total Employment Sq Ft | AV3: Total Jobs / Building | AW3: Total Jobs / Acre | AX3: Retail Gross Sq Ft | AY3: Space per Employee | AZ3: Retail Employees / Acre | BA3: Office Gross Sq Ft | BB3: Space per Employee | BC3: Office Employees / Acre | BD3: Industrial Gross Sq Ft | BE3: Space per Employee | BF3: Industrial Employees / Acre | BG3: Public / Civic Gross Sq Ft | BH3: Space per Employee | BI3: Public / Civic Employees / Acre | BJ3: Educational Gross Sq Ft | BK3: Space per Employee | BL3: Educational Employees / Acre | BM3: Hospitality Gross Sq Ft | BN3: Space per Employee | BO3: Hospitality Employees / Acre | BP3: Net Space per Hotel Room | BQ3: Gross Space per Hotel Room | BR3: Hotel Rooms per Building | BS3: Hotel Rooms / Acre | BT3: Commercial Parking Gross Sq Ft | BU3: Space per Employee | BV3: Commercial Parking Employees / Acre | BW3: Parking Spaces | BX3: Parking SqFt | BY3: Parking Cost ($) | BZ3: % Parking Costs | CA3: Space Heating (per unit) | CB3: Space Cooling (per unit) | CC3: Other Energy (per unit) | CD3: Total per Unit | CE3: Space Heating (per building) | CF3: Space Cooling (per building) | CG3: Other Energy (per building) | CH3: Total per Commercial Area | CI3: per Employee | CJ3: per Sq Ft | CK3: Total Energy Use | CL3: Residential Energy Cost ($ / Mo) | CM3: Per Unit | CN3: Per Employee | CO3: Total CO2 Emissions per Building | CP3: Landscaping Water Use (G/Unit/Day) | CQ3: Landscaping Water Use (G/Building/Day) | CR3: Per Resident (G/Resident/Day) | CS3: Per Unit (G/Day) | CT3: Per Employee (G/Employee/Day) | CU3: Total Per Building (G/Day/Building) | CV3: Waste Water (G/Resident/Day) | CW3: Per Unit (G/Day) | CX3: Waste Water (G/Employee/Day) | CY3: Waste Water (G/Day/Building) | CZ3: Solid Waste (lbs/Resident/Day) | DA3: Per Unit (lbs/Day) | DB3: Solid Waste (lbs/Employee/Day) | DC3: Solid Waste (lbs/Day/Building) | DD3: Land Cost ($/SqFt) | DE3: Total Site Cost ($) | DF3: Site Cost ($/Acre) | DG3: Project Value ($) | DH3: Project Value per Acre ($/Acre) | DI3: Project Subsidy ($) | DJ3: Subsidy per Unit | DK3: Project Subsidy per Acre ($/Acre) | DL3: Property Tax Revenue ($/yr) | DM3: Property Tax Revenue ($/yr/Unit) | DN3: Property Tax Revenue ($/yr/Acre) | DO3: Sales Tax Revenue ($/yr) | DP3: Sales Tax Revenue ($/yr/Acre) | DQ3: Relative Value (0-1 scale)
B4: 1 | C4: =[1]!name -> Mixed Use Res 15 Owner | D4: =[1]!lot_size -> 30000 | E4: =[1]!Building_Lot_Coverage -> 1 | F4: =[1]!Landscaping_Coverage -> 0 | G4: =[1]!Parking_Coverage -> 0 | H4: =[1]!Height -> 15 | I4: =[1]!FAR -> 8.4 | J4: =B_Lot_Size*B_FAR -> 252000 | K4: =[1]!ResPct -> 0.95 | L4: =IF(B_Housing_Type="MF",B_Res_per,0) -> 0.95 | M4: =IF(B_Housing_Type="TH",B_Res_per,0) -> 0 | N4: =IF(B_Housing_Type="SF",B_Res_per,0) -> 0 | O4: =IF(B_SF_per=1,IF(B_Lot_Size<=SF_Small_Lot_Size,1,0),0) -> 0 | P4: =IF(B_SF_per=1,IF(AND(B_Lot_Size>SF_Small_Lot_Size,B_Lot_Size<SF_Large_Lot_Size),1,0),0) -> 0 | Q4: =IF(B_SF_per=1,IF(B_Lot_Size>=SF_Large_Lot_Size,1,0),0) -> 0 | R4: =IF(B_Housing_Type="MH",B_Res_per,0) -> 0 | S4: =SUM(T4:Z4) -> 0.05 | T4: =[1]!RetPct -> 0.05 | U4: =[1]!OffPct -> 0 | V4: =[1]!IndPct -> 0 | W4: =[1]!PubPct -> 0 | X4: =[1]!EduPct -> 0 | Y4: =[1]!HotelPct -> 0 | Z4: =[1]!ParkingPct -> 0 | AA4: =B_Gross_Bldg_Sq_Ft*B_Res_per -> 239400 | AB4: =[1]!NetUnitSize -> 900 | AC4: =[1]!UnitSize -> 1058.823529 | AD4: =IF(B_Gross_Sq_Ft_per_Unit=0,0,(B_Residential_Sq_Ft/B_Gross_Sq_Ft_per_Unit)) -> 226.1 | AE4: =IF(B_Gross_Sq_Ft_per_Unit=0,0,(B_Residential_Sq_Ft/B_Gross_Sq_Ft_per_Unit)*(43560/B_Lot_Size)) -> 328.2972 | AF4: =[1]!HousingType -> MF | AG4: =[1]!RentalPct -> 0 | AH4: =IF(B_Pct_Renter="",0,IF(B_HU_Acre=0,0,IF(B_Pct_Renter=1,0,IF(B_Pct_Renter=0,1,1-B_Pct_Renter)))) -> 1 | AI4: =[1]!Rent -> 0 | AJ4: =IF(B_Pct_Renter=0,0,B_Net_Sq_Ft_per_Unit*B_Rent_SqFt) -> 0 | AK4: =[1]!Sales_Price -> 300 | AL4: =IF(B_Pct_Owner=0,0,B_Sales_Price_SqFt*B_Net_Sq_Ft_per_Unit) -> 270000 | AM4: =IF(B_Avg_Sales_Price>0,(B_HH_Income*HCost_Max_per_Income_Owner)/12,0) -> 1618.786418 | AN4: =IF(B_Housing_Type="",0,IF(B_Housing_Type="MF",Info_Vac_Rate_MF,IF(B_Housing_Type="TH",Info_Vac_Rate_TH,IF(B_Housing_Type="SF",Info_Vac_Rate_SF,IF(B_Housing_Type="MH",Info_Vac_Rate_MH,0))))) -> 0.06 | AO4: =B_HU_Acre*(1-B_Vacancy_Rate) -> 308.599368 | AP4: =IF(B_Housing_Type="MF",IF((B_Net_Sq_Ft_per_Unit/Info_Sq_Ft_Res_MF)>Info_Max_HH_Size_MF,Info_Max_HH_Size_MF,B_Net_Sq_Ft_per_Unit/Info_Sq_Ft_Res_MF),IF(B_Housing_Type="TH",IF((B_Net_Sq_Ft_per_Unit/Info_Sq_Ft_Res_TH)>Info_Max_HH_Size_TH,Info_Max_HH_Size_TH,B_Net_Sq_Ft_per_Unit/Info_Sq_Ft_Res_TH),IF(B_Housing_Type="SF",IF((B_Net_Sq_Ft_per_Unit/Info_Sq_Ft_Res_SF)>Info_Max_HH_Size_SF,Info_Max_HH_Size_SF,B_Net_Sq_Ft_per_Unit/Info_Sq_Ft_Res_SF),IF(B_Housing_Type="MH",IF((B_Net_Sq_Ft_per_Unit/Info_Sq_Ft_Res_MH)>Info_Max_HH_Size_MH,Info_Max_HH_Size_MH,B_Net_Sq_Ft_per_Unit/Info_Sq_Ft_Res_MH),0)))) -> 2.255639098 | AQ4: =B_HH_Size*0.6 -> 1.353383459 | AR4: =IF(B_HU_Acre=0,0,IF(B_HU_Acre<School_Children_SF_Den,SUM(School_Children_Pub_SF,School_Children_Priv_SF),IF(B_HU_Acre<School_Children_TH_Den,SUM(School_Children_Pub_TH,School_Children_Priv_TH),IF(B_HU_Acre>=School_Children_TH_Den,SUM(School_Children_Pub_MF,School_Children_Priv_MF),0)))) -> 0.1951 | AS4: =IF(B_Pct_Renter=1,B_Avg_Rent*12/HCost_Max_per_Income_Renter,IF(B_Pct_Renter=0,(12/HCost_Max_per_Income_Owner)*(B_Avg_Sales_Price*((HCost_Interest_Rate/12*POWER(1+HCost_Interest_Rate/12,12*HCost_Mortgage_Yrs))/(POWER(1+HCost_Interest_Rate/12,12*HCost_Mortgage_Yrs)-1))),IF(OR(B_Pct_Renter>0,B_Pct_Renter<1),(B_Pct_Renter*B_Avg_Rent*(12/HCost_Max_per_Income_Renter))+(B_Pct_Owner*(12/HCost_Max_per_Income_Owner)*(B_Avg_Sales_Price*((HCost_Interest_Rate/12*POWER(1+HCost_Interest_Rate/12,12*HCost_Mortgage_Yrs))/(POWER(1+HCost_Interest_Rate/12,12*HCost_Mortgage_Yrs)-1))))))) -> 74713.21929 | AT4: =IF(B_EMP_Acre=0,0,B_HH_Size*((B_Ret_Emp_Acre/B_EMP_Acre*Wage_RET)+(B_OFF_Emp_Acre/B_EMP_Acre*Wage_OFF)+(B_IND_Emp_Acre/B_EMP_Acre*Wage_IND)+(B_Pub_Emp_Acre/B_EMP_Acre*Wage_OFF)+(B_Edu_Emp_Acre/B_EMP_Acre*Wage_EDU)+(B_Hotel_Emp_Acre/B_EMP_Acre*Wage_HOTEL))) -> 0 | AU4: =B_RET_Gross_Sq_Ft+B_OFF_Gross_Sq_Ft+B_IND_Gross_Sq_Ft+B_PUB_Gross_Sq_Ft+B_EDU_Gross_Sq_Ft+B_Hotel_Gross_Sq_Ft+B_PRKG_Gross_Sq_Ft -> 12600 | AV4: =B_EMP_Acre*(B_Lot_Size/43560) -> 19.38461538 | AW4: =B_Ret_Emp_Acre+B_OFF_Emp_Acre+B_IND_Emp_Acre+B_Pub_Emp_Acre+B_Edu_Emp_Acre+B_Hotel_Emp_Acre+B_PRKG_Emp_Acre -> 28.14646154 | AX4: =B_Ret_per*B_Gross_Bldg_Sq_Ft -> 12600 | AY4: =[1]!RetSpace -> 650 | AZ4: =IF(B_Ret_SqFt_per_EMP=0,0,(B_RET_Gross_Sq_Ft/B_Ret_SqFt_per_EMP)*(43560/B_Lot_Size)) -> 28.14646154 | BA4: =B_OFF_per*B_Gross_Bldg_Sq_Ft -> 0 | BB4: =[1]!OffSpace -> 350 | BC4: =IF(B_Off_SqFt_per_EMP=0,0,(B_OFF_Gross_Sq_Ft/B_Off_SqFt_per_EMP)*(43560/B_Lot_Size)) -> 0 | BD4: =B_IND_per*B_Gross_Bldg_Sq_Ft -> 0 | BE4: =[1]!IndSpace -> 700 | BF4: =IF(B_IND_SqFt_per_EMP=0,0,(B_IND_Gross_Sq_Ft/B_IND_SqFt_per_EMP)*(43560/B_Lot_Size)) -> 0 | BG4: =B_Pub_Per*B_Gross_Bldg_Sq_Ft -> 0 | BH4: =[1]!PubSpace -> 350 | BI4: =IF(B_Pub_SqFt_per_EMP=0,0,(B_PUB_Gross_Sq_Ft/B_Pub_SqFt_per_EMP)*(43560/B_Lot_Size)) -> 0 | BJ4: =B_Edu_Per*B_Gross_Bldg_Sq_Ft -> 0 | BK4: =[1]!EduSpace -> 800 | BL4: =IF(B_Edu_SqFt_per_EMP=0,0,(B_EDU_Gross_Sq_Ft/B_Edu_SqFt_per_EMP)*(43560/B_Lot_Size)) -> 0 | BM4: =B_Hotel_Per*B_Gross_Bldg_Sq_Ft -> 0 | BN4: =[1]!HotelSpaceEmp -> 1000 | BO4: =IF(B_Hotel_SqFt_per_EMP=0,0,(B_Hotel_Gross_Sq_Ft/B_Hotel_SqFt_per_EMP)*(43560/B_Lot_Size)) -> 0 | BP4: =[1]!HotelRoomNet -> 0 | BQ4: =[1]!HotelRoomGross -> 0 | BR4: =IF(B_Hotel_Room_Gross=0,0,(B_Hotel_Gross_Sq_Ft/B_Hotel_Room_Gross)) -> 0 | BS4: =IF(B_Hotel_Room_Gross=0,0,(B_Hotel_Gross_Sq_Ft/B_Hotel_Room_Gross)*(43560/B_Lot_Size)) -> 0 | BT4: =B_PRKG_per*B_Gross_Bldg_Sq_Ft -> 0 | BU4: =[1]!ParkingSpace -> 20000 | BV4: =IF(B_PRKG_SqFt_per_EMP=0,0,(B_PRKG_Gross_Sq_Ft/B_PRKG_SqFt_per_EMP)*(43560/B_Lot_Size)) -> 0 | BW4: =[1]!ParkingSpaces -> 364.35 | BX4: =[1]!ParkingArea -> 118413.75 | BY4: =[1]!ParkingCost -> 13254634.62 | BZ4: =IF(B_Project_Value=0,0,B_Parking_Cost/B_Project_Value) -> 0.171684569 | CA4: =IFERROR(IF(B_Housing_Type="SF",EXP('Residential Energy Coefficients'!$B$3+'Residential Energy Coefficients'!$B$4*LN(B_Net_Sq_Ft_per_Unit)+'Residential Energy Coefficients'!$B$9+'Residential Energy Coefficients'!$B$10*LN(B_HH_Income)+'Residential Energy Coefficients'!$B$16*LN(Residential_Energy_Cost)+'Residential Energy Coefficients'!$B$20+'Residential Energy Coefficients'!$B$24*IFERROR(LOOKUP(Metro_Select,Energy_Metro_Lookup,HDD),0)),IF(B_Housing_Type="TH",EXP('Residential Energy Coefficients'!$E$3+'Residential Energy Coefficients'!$E$4*LN(B_Net_Sq_Ft_per_Unit)+'Residential Energy Coefficients'!$E$9+'Residential Energy Coefficients'!$E$16*LN(Residential_Energy_Cost)+'Residential Energy Coefficients'!$E$19+'Residential Energy Coefficients'!$E$20+'Residential Energy Coefficients'!$E$24*IFERROR(LOOKUP(Metro_Select,Energy_Metro_Lookup,HDD),0)),IF(B_Housing_Type="MF",EXP('Residential Energy Coefficients'!$H$3+'Residential Energy Coefficients'!$H$4*LN(B_Net_Sq_Ft_per_Unit)+'Residential Energy Coefficients'!$H$9+IF(B_Pct_Owner=1,'Residential Energy Coefficients'!$H$12,0)+'Residential Energy Coefficients'!$H$16*LN(Residential_Energy_Cost)+'Residential Energy Coefficients'!$H$20+'Residential Energy Coefficients'!$H$24*IFERROR(LOOKUP(Metro_Select,Energy_Metro_Lookup,HDD),0)),IF(B_Hotel_Room_Acre>0,EXP('Residential Energy Coefficients'!$H$3+'Residential Energy Coefficients'!$H$4*LN(B_Hotel_Room_Net)+'Residential Energy Coefficients'!$H$9+'Residential Energy Coefficients'!$H$16*LN(Residential_Energy_Cost)+'Residential Energy Coefficients'!$H$20+'Residential Energy Coefficients'!$H$24*IFERROR(LOOKUP(Metro_Select,Energy_Metro_Lookup,HDD),0)),IF(B_Housing_Type="MH",EXP('Residential Energy Coefficients'!$K$3+'Residential Energy Coefficients'!$K$16*LN(Residential_Energy_Cost)+'Residential Energy Coefficients'!$K$24*IFERROR(LOOKUP(Metro_Select,Energy_Metro_Lookup,HDD),0)),0)))))/1000,0) -> 23.82252243 | CB4: =IFERROR(IF(B_Housing_Type="SF",EXP('Residential Energy Coefficients'!$C$3+'Residential Energy Coefficients'!$C$4*LN(B_Net_Sq_Ft_per_Unit)+'Residential Energy Coefficients'!$C$10*LN(B_HH_Income)+'Residential Energy Coefficients'!$C$11*B_HH_Size+'Residential Energy Coefficients'!$C$16*LN(Residential_Energy_Cost)+'Residential Energy Coefficients'!$C$19+'Residential Energy Coefficients'!$C$22+'Residential Energy Coefficients'!$C$25*IFERROR(LOOKUP(Metro_Select,Energy_Metro_Lookup,CDD),0)),IF(B_Housing_Type="TH",EXP('Residential Energy Coefficients'!$F$3+'Residential Energy Coefficients'!$F$4*LN(B_Net_Sq_Ft_per_Unit)+'Residential Energy Coefficients'!$F$10*LN(B_HH_Income)+'Residential Energy Coefficients'!$F$11*B_HH_Size+IF(B_Pct_Owner=1,'Residential Energy Coefficients'!$F$12,0)+'Residential Energy Coefficients'!$F$16*LN(Residential_Energy_Cost)+'Residential Energy Coefficients'!$F$22+'Residential Energy Coefficients'!$F$25*IFERROR(LOOKUP(Metro_Select,Energy_Metro_Lookup,CDD),0)),IF(B_Housing_Type="MF",EXP('Residential Energy Coefficients'!$I$3+'Residential Energy Coefficients'!$I$4*LN(B_Net_Sq_Ft_per_Unit)+'Residential Energy Coefficients'!$I$9+'Residential Energy Coefficients'!$I$11*B_HH_Size+'Residential Energy Coefficients'!$I$16*LN(Residential_Energy_Cost)+'Residential Energy Coefficients'!$I$22+'Residential Energy Coefficients'!$I$25*IFERROR(LOOKUP(Metro_Select,Energy_Metro_Lookup,CDD),0)),IF(B_Hotel_Room_Acre>0,EXP('Residential Energy Coefficients'!$I$3+'Residential Energy Coefficients'!$I$4*LN(B_Hotel_Room_Net)+'Residential Energy Coefficients'!$I$9+'Residential Energy Coefficients'!$I$11*1.25+'Residential Energy Coefficients'!$I$16*LN(Residential_Energy_Cost)+'Residential Energy Coefficients'!$I$22+'Residential Energy Coefficients'!$I$25*IFERROR(LOOKUP(Metro_Select,Energy_Metro_Lookup,CDD),0)),IF(B_Housing_Type="MH",EXP('Residential Energy Coefficients'!$L$3+'Residential Energy Coefficients'!$L$11*B_HH_Size+'Residential Energy Coefficients'!$L$16*LN(Residential_Energy_Cost)+'Residential Energy Coefficients'!$L$22+'Residential Energy Coefficients'!$L$25*IFERROR(LOOKUP(Metro_Select,Energy_Metro_Lookup,CDD),0)),0)))))/1000,0) -> 10.15771029 | CC4: =IFERROR(IF(B_Housing_Type="SF",EXP('Residential Energy Coefficients'!$D$3+'Residential Energy Coefficients'!$D$4*LN(B_Net_Sq_Ft_per_Unit)+'Residential Energy Coefficients'!$D$9+'Residential Energy Coefficients'!$D$10*LN(B_HH_Income)+'Residential Energy Coefficients'!$D$11*B_HH_Size+IF(B_Pct_Owner=1,'Residential Energy Coefficients'!$D$12,0)+'Residential Energy Coefficients'!$D$16*LN(Residential_Energy_Cost)),IF(B_Housing_Type="TH",EXP('Residential Energy Coefficients'!$G$3+'Residential Energy Coefficients'!$G$4*LN(B_Net_Sq_Ft_per_Unit)+'Residential Energy Coefficients'!$G$10*LN(B_HH_Income)+'Residential Energy Coefficients'!$G$11*B_HH_Size+'Residential Energy Coefficients'!$G$16*LN(Residential_Energy_Cost)),IF(B_Housing_Type="MF",EXP('Residential Energy Coefficients'!$J$3+'Residential Energy Coefficients'!$J$4*LN(B_Net_Sq_Ft_per_Unit)+'Residential Energy Coefficients'!$J$10*LN(B_HH_Income)+'Residential Energy Coefficients'!$J$11*B_HH_Size+IF(B_Pct_Owner=1,'Residential Energy Coefficients'!$J$12,0)+'Residential Energy Coefficients'!$J$16*LN(Residential_Energy_Cost)+'Residential Energy Coefficients'!$J$19),IF(B_Hotel_Room_Acre>0,EXP('Residential Energy Coefficients'!$J$3+'Residential Energy Coefficients'!$J$4*LN(B_Hotel_Room_Net)+'Residential Energy Coefficients'!$J$16*LN(Residential_Energy_Cost)+'Residential Energy Coefficients'!$J$19),IF(B_Housing_Type="MH",EXP('Residential Energy Coefficients'!$M$3+'Residential Energy Coefficients'!$M$4*LN(B_Net_Sq_Ft_per_Unit)+'Residential Energy Coefficients'!$M$11*B_HH_Size+'Residential Energy Coefficients'!$M$16*LN(Residential_Energy_Cost)+'Residential Energy Coefficients'!$M$19),0)))))/1000,0) -> 34.91921004 | CD4: =SUM(CA4:CC4) -> 68.89944275 | CE4: =(IFERROR(EXP('Commercial Energy Coefficients'!$B$3+LN(B_RET_Gross_Sq_Ft)*'Commercial Energy Coefficients'!$B$4+'Commercial Energy Coefficients'!$B$11+'Commercial Energy Coefficients'!$B$14+'Commercial Energy Coefficients'!$B$18*LN((B_Ret_Emp_Acre)*(B_Lot_Size/43560))+'Commercial Energy Coefficients'!$B$19*LN(40)+'Commercial Energy Coefficients'!$B$21+'Commercial Energy Coefficients'!$B$22*LN(Commercial_Energy_Cost)+'Commercial Energy Coefficients'!$B$23*IFERROR(LOOKUP(Metro_Select,Energy_Metro_Lookup,HDD),0)),0)+IFERROR(EXP('Commercial Energy Coefficients'!$E$3+LN(B_OFF_Gross_Sq_Ft)*'Commercial Energy Coefficients'!$E$4+'Commercial Energy Coefficients'!$E$11+'Commercial Energy Coefficients'!$E$14+'Commercial Energy Coefficients'!$E$18*LN((B_OFF_Emp_Acre)*(B_Lot_Size/43560))+'Commercial Energy Coefficients'!$E$19*LN(40)+'Commercial Energy Coefficients'!$E$21+'Commercial Energy Coefficients'!$E$22*LN(Commercial_Energy_Cost)+'Commercial Energy Coefficients'!$E$23*IFERROR(LOOKUP(Metro_Select,Energy_Metro_Lookup,HDD),0)),0)+IFERROR(EXP('Commercial Energy Coefficients'!$H$3+LN(B_PUB_Gross_Sq_Ft)*'Commercial Energy Coefficients'!$H$4+'Commercial Energy Coefficients'!$H$11+'Commercial Energy Coefficients'!$H$14+'Commercial Energy Coefficients'!$H$18*LN((B_Pub_Emp_Acre)*(B_Lot_Size/43560))+'Commercial Energy Coefficients'!$H$19*LN(40)+'Commercial Energy Coefficients'!$H$21+'Commercial Energy Coefficients'!$H$22*LN(Commercial_Energy_Cost)+'Commercial Energy Coefficients'!$H$23*IFERROR(LOOKUP(Metro_Select,Energy_Metro_Lookup,HDD),0)),0))/1000 -> 7.670850499 | CF4: =(IFERROR(EXP('Commercial Energy Coefficients'!$C$3+LN((B_RET_Gross_Sq_Ft))*'Commercial Energy Coefficients'!$C$4+'Commercial Energy Coefficients'!$C$11+'Commercial Energy Coefficients'!$C$14+'Commercial Energy Coefficients'!$C$18*LN((B_Ret_Emp_Acre)*(B_Lot_Size/43560))+'Commercial Energy Coefficients'!$C$19*LN(40)+'Commercial Energy Coefficients'!$C$21+'Commercial Energy Coefficients'!$C$22*LN(Commercial_Energy_Cost)+'Commercial Energy Coefficients'!$C$24*IFERROR(LOOKUP(Metro_Select,Energy_Metro_Lookup,CDD),0)),0)+IFERROR(EXP('Commercial Energy Coefficients'!$F$3+LN((B_OFF_Gross_Sq_Ft))*'Commercial Energy Coefficients'!$F$4+'Commercial Energy Coefficients'!$F$11+'Commercial Energy Coefficients'!$F$14+'Commercial Energy Coefficients'!$F$18*LN((B_OFF_Emp_Acre)*(B_Lot_Size/43560))+'Commercial Energy Coefficients'!$F$19*LN(40)+'Commercial Energy Coefficients'!$F$21+'Commercial Energy Coefficients'!$F$22*LN(Commercial_Energy_Cost)+'Commercial Energy Coefficients'!$F$24*IFERROR(LOOKUP(Metro_Select,Energy_Metro_Lookup,CDD),0)),0)+IFERROR(EXP('Commercial Energy Coefficients'!$I$3+LN((B_PUB_Gross_Sq_Ft))*'Commercial Energy Coefficients'!$I$4+'Commercial Energy Coefficients'!$I$11+'Commercial Energy Coefficients'!$I$14+'Commercial Energy Coefficients'!$I$18*LN((B_Pub_Emp_Acre)*(B_Lot_Size/43560))+'Commercial Energy Coefficients'!$I$19*LN(40)+'Commercial Energy Coefficients'!$I$21+'Commercial Energy Coefficients'!$I$22*LN(Commercial_Energy_Cost)+'Commercial Energy Coefficients'!$I$24*IFERROR(LOOKUP(Metro_Select,Energy_Metro_Lookup,CDD),0)),0))/1000 -> 161.2420838 | CG4: =(IFERROR(EXP('Commercial Energy Coefficients'!$D$3+LN((B_RET_Gross_Sq_Ft))*'Commercial Energy Coefficients'!$D$4+'Commercial Energy Coefficients'!$D$14+'Commercial Energy Coefficients'!$D$18*LN((B_Ret_Emp_Acre)*(B_Lot_Size/43560))+'Commercial Energy Coefficients'!$D$19*LN(40)+'Commercial Energy Coefficients'!$D$21+'Commercial Energy Coefficients'!$D$22*LN(Commercial_Energy_Cost)),0)+IFERROR(EXP('Commercial Energy Coefficients'!$G$3+LN((B_OFF_Gross_Sq_Ft))*'Commercial Energy Coefficients'!$G$4+'Commercial Energy Coefficients'!$G$14+'Commercial Energy Coefficients'!$G$18*LN((B_OFF_Emp_Acre)*(B_Lot_Size/43560))+'Commercial Energy Coefficients'!$G$19*LN(40)+'Commercial Energy Coefficients'!$G$21+'Commercial Energy Coefficients'!$G$22*LN(Commercial_Energy_Cost)),0)+IFERROR(EXP('Commercial Energy Coefficients'!$J$3+LN((B_PUB_Gross_Sq_Ft))*'Commercial Energy Coefficients'!$J$4+'Commercial Energy Coefficients'!$J$14+'Commercial Energy Coefficients'!$J$18*LN((B_Pub_Emp_Acre)*(B_Lot_Size/43560))+'Commercial Energy Coefficients'!$J$19*LN(40)+'Commercial Energy Coefficients'!$J$21+'Commercial Energy Coefficients'!$J$22*LN(Commercial_Energy_Cost)),0))/1000 -> 528.9871487 | CH4: =SUM(CE4:CG4) -> 697.900083 | CI4: =IFERROR(B_Com_Energy_Use/B_EMP_Building,0) -> 36.00278206 | CJ4: =IFERROR(B_Com_Energy_Use/B_Tot_EMP_SqFt,0) -> 0.05538889547 | CK4: =(B_res_energy_use*(B_Hotel_Rooms_per_Building+B_HU_Building))+B_Com_Energy_Use -> 16276.06409 | CL4: =(B_res_energy_use*Residential_Energy_Cost)/12 -> 68.89944275 | CM4: =IFERROR((B_res_energy_use*SUMPRODUCT(Energy_Carbon_perMMBTU,Energy_Fuel_Mix)),0) -> 6.426932377 | CN4: =IFERROR((B_Com_Energy_Use_per_Emp*SUMPRODUCT(Energy_Carbon_perMMBTU,Energy_Fuel_Mix)),0) -> 3.358335516 | CO4: =B_Total_Bldg_Energy_Use*SUMPRODUCT(Energy_Carbon_perMMBTU,Energy_Fuel_Mix) -> 1518.229453 | CP4: =IFERROR(B_LW_Bldg/B_HU_Building,0) -> 0 | CQ4: =IF((B_Lot_Size*B_Landscaping_Lot_Coverage)>Maximum_Watered_Lawn_Area*43560,Maximum_Watered_Lawn_Area*43560*Water_per_Sq_Foot_of_Lawn_Area,B_Lot_Size*B_Landscaping_Lot_Coverage*Water_per_Sq_Foot_of_Lawn_Area) -> 0 | CR4: =IF(OR(B_Housing_Type="MF",B_Hotel_Room_Acre>0),Info_IW_MF,IF(B_Housing_Type="TH",Info_IW_TH,IF(AND(OR(B_Housing_Type="SF",B_Housing_Type="MH"),B_Net_Sq_Ft_per_Unit>0,B_Net_Sq_Ft_per_Unit<3000),Info_IW_MD_SF,IF(AND(OR(B_Housing_Type="SF",B_Housing_Type="MH"),B_Net_Sq_Ft_per_Unit>=3000),Info_IW_LRG_SF,0)))) -> 35 | CS4: =(B_IW_Res*B_HH_Size) -> 78.94736842 | CT4: =IF(B_EMP_Acre=0,0,(B_Ret_Emp_Acre/B_EMP_Acre*Info_IW_RET)+(B_OFF_Emp_Acre/B_EMP_Acre*Info_IW_OFF)+(B_IND_Emp_Acre/B_EMP_Acre*Info_IW_IND)) -> 68 | CU4: =(B_HU_Building*B_IW_Res)+(B_EMP_Building*B_IW_Emp) -> 9231.653846 | CV4: =IF(B_Housing_Type="",0,IF(B_Housing_Type="MF",Info_WW_MF,IF(B_Housing_Type="TH",Info_WW_TH,IF(AND(B_Housing_Type="SF",B_Net_Sq_Ft_per_Unit>0,B_Net_Sq_Ft_per_Unit<3000),Info_WW_MD_SF,IF(AND(B_Housing_Type="SF",B_Net_Sq_Ft_per_Unit>=3000),Info_WW_LRG_SF))))) -> 60 | CW4: =(B_WW_Res*B_HH_Size) -> 135.3383459 | CX4: =IF(B_EMP_Acre=0,0,(B_Ret_Emp_Acre/B_EMP_Acre*Info_WW_RET)+(B_OFF_Emp_Acre/B_EMP_Acre*Info_WW_OFF)+(B_IND_Emp_Acre/B_EMP_Acre*Info_WW_IND)) -> 38 | CY4: =(B_HU_Building*B_WW_Res)+(B_EMP_Building*B_WW_Emp) -> 14302.61538 | CZ4: =IF(B_Housing_Type="",0,IF(B_Housing_Type="MF",'Project Info'!$B$154,IF(B_Housing_Type="TH",'Project Info'!$B$155,IF(AND(B_Housing_Type="SF",B_Net_Sq_Ft_per_Unit>0,B_Net_Sq_Ft_per_Unit<3000),'Project Info'!$B$156,IF(AND(B_Housing_Type="SF",B_Net_Sq_Ft_per_Unit>=3000),'Project Info'!$B$157))))) -> 1.5 | DA4: =(B_SW_Res*B_HH_Size) -> 3.383458647 | DB4: =IF(B_EMP_Acre=0,0,(B_Ret_Emp_Acre/B_EMP_Acre*Info_SW_RET)+(B_OFF_Emp_Acre/B_EMP_Acre*Info_SW_OFF)+(B_IND_Emp_Acre/B_EMP_Acre*Info_SW_IND)) -> 5 | DC4: =(B_HU_Building*B_SW_Res)+(B_EMP_Building*B_SW_Emp) -> 436.0730769 | DD4: =[1]!LandCost -> 33.33333333 | DE4: =B_Land_Cost_SqFt*B_Lot_Size -> 1000000 | DF4: =IF(B_Lot_Size=0,0,B_Land_Cost_Lot*(43560/B_Lot_Size)) -> 1452000 | DG4: =[1]!ProjectValue -> 77203412.6 | DH4: =IF(B_Lot_Size=0,0,B_Project_Value*(43560/B_Lot_Size)) -> 112099355.1 | DI4: =[1]!Subsidy -> 26000000 | DJ4: =IF(B_HU_Building=0,0,(B_Res_per*B_Subsidy)/B_HU_Building) -> 109243.6975 | DK4: =IF(B_Lot_Size=0,0,B_Project_Subsidy*(43560/B_Lot_Size)) -> 37752000 | DL4: =IFERROR((Prop_Tax_Rate_Res*Prop_Tax_Assess_Ratio_Res*B_Res_per*B_Project_Value)+(Prop_Tax_Rate_Com*Prop_Tax_Assess_Ratio_Com*(B_Ret_per+B_OFF_per+B_IND_per+B_Hotel_Per)*B_Project_Value),0) -> 306883.5651 | DM4: =IFERROR((Prop_Tax_Rate_Res*Prop_Tax_Assess_Ratio_Res*B_Res_per*B_Project_Value)/B_HU_Building,0) -> 1265.097938 | DN4: =IFERROR(B_Property_Tax_Revenue*(43560/B_Lot_Size),0) -> 445594.9365 | DO4: =Sales_Tax_Rate*Sales_per_SqFt*B_RET_Gross_Sq_Ft -> 215775 | DP4: =IFERROR(B_Sales_Tax_Revenue*(43560/B_Lot_Size),0) -> 313305.3 | DQ4: =IFERROR(B_FAR/MAX(B_FAR),0) -> 1
B5: 2 | C5: =[2]!name -> Mixed Use Res 15 Renter | D5: =[2]!lot_size -> 30000 | E5: =[2]!Building_Lot_Coverage -> 1 | F5: =[2]!Landscaping_Coverage -> 0 | G5: =[2]!Parking_Coverage -> 0 | H5: =[2]!Height -> 15 | I5: =[2]!FAR -> 7.7 | J5: 231000 | K5: =[2]!ResPct -> 0.95 | L5: 0.95 | M5: 0 | N5: 0 | O5: 0 | P5: 0 | Q5: 0 | R5: 0 | S5: =SUM(T5:Z5) -> 0.05 | T5: =[2]!RetPct -> 0.05 | U5: =[2]!OffPct -> 0 | V5: =[2]!IndPct -> 0 | W5: =[2]!PubPct -> 0 | X5: =[2]!EduPct -> 0 | Y5: =[2]!HotelPct -> 0 | Z5: =[2]!ParkingPct -> 0 | AA5: 219450 | AB5: =[2]!NetUnitSize -> 900 | AC5: =[2]!UnitSize -> 1058.823529 | AD5: 207.2583333 | AE5: 300.9391 | AF5: =[2]!HousingType -> MF | AG5: =[2]!RentalPct -> 1 | AH5: 0 | AI5: =[2]!Rent -> 1.75 | AJ5: 1575 | AK5: =[2]!Sales_Price -> 0 | AL5: 0 | AM5: 0 | AN5: 0.06 | AO5: 282.882754 | AP5: 2.255639098 | AQ5: 1.353383459 | AR5: 0.1951 | AS5: 63000 | AT5: 0 | AU5: 11550 | AV5: 17.76923077 | AW5: 25.80092308 | AX5: 11550 | AY5: =[2]!RetSpace -> 650 | AZ5: 25.80092308 | BA5: 0 | BB5: =[2]!OffSpace -> 350 | BC5: 0 | BD5: 0 | BE5: =[2]!IndSpace -> 700 | BF5: 0 | BG5: 0 | BH5: =[2]!PubSpace -> 350 | BI5: 0 | BJ5: 0 | BK5: =[2]!EduSpace -> 800 | BL5: 0 | BM5: 0 | BN5: =[2]!HotelSpaceEmp -> 1000 | BO5: 0 | BP5: =[2]!HotelRoomNet -> 0 | BQ5: =[2]!HotelRoomGross -> 0 | BR5: 0 | BS5: 0 | BT5: 0 | BU5: =[2]!ParkingSpace -> 20000 | BV5: 0 | BW5: =[2]!ParkingSpaces -> 333.9875 | BX5: =[2]!ParkingArea -> 108545.9375 | BY5: =[2]!ParkingCost -> 9323158.654 | BZ5: 0.1381899016 | CA5: =IFERROR(IF(B_Housing_Type="SF",EXP('Residential Energy Coefficients'!$B$3+'Residential Energy Coefficients'!$B$4*LN(B_Net_Sq_Ft_per_Unit)+'Residential Energy Coefficients'!$B$9+'Residential Energy Coefficients'!$B$10*LN(B_HH_Income)+'Residential Energy Coefficients'!$B$16*LN(Residential_Energy_Cost)+'Residential Energy Coefficients'!$B$20+'Residential Energy Coefficients'!$B$24*IFERROR(LOOKUP(Metro_Select,Energy_Metro_Lookup,HDD),0)),IF(B_Housing_Type="TH",EXP('Residential Energy Coefficients'!$E$3+'Residential Energy Coefficients'!$E$4*LN(B_Net_Sq_Ft_per_Unit)+'Residential Energy Coefficients'!$E$9+'Residential Energy Coefficients'!$E$16*LN(Residential_Energy_Cost)+'Residential Energy Coefficients'!$E$19+'Residential Energy Coefficients'!$E$20+'Residential Energy Coefficients'!$E$24*IFERROR(LOOKUP(Metro_Select,Energy_Metro_Lookup,HDD),0)),IF(B_Housing_Type="MF",EXP('Residential Energy Coefficients'!$H$3+'Residential Energy Coefficients'!$H$4*LN(B_Net_Sq_Ft_per_Unit)+'Residential Energy Coefficients'!$H$9+IF(B_Pct_Owner=1,'Residential Energy Coefficients'!$H$12,0)+'Residential Energy Coefficients'!$H$16*LN(Residential_Energy_Cost)+'Residential Energy Coefficients'!$H$20+'Residential Energy Coefficients'!$H$24*IFERROR(LOOKUP(Metro_Select,Energy_Metro_Lookup,HDD),0)),IF(B_Hotel_Room_Acre>0,EXP('Residential Energy Coefficients'!$H$3+'Residential Energy Coefficients'!$H$4*LN(B_Hotel_Room_Net)+'Residential Energy Coefficients'!$H$9+'Residential Energy Coefficients'!$H$16*LN(Residential_Energy_Cost)+'Residential Energy Coefficients'!$H$20+'Residential Energy Coefficients'!$H$24*IFERROR(LOOKUP(Metro_Select,Energy_Metro_Lookup,HDD),0)),IF(B_Housing_Type="MH",EXP('Residential Energy Coefficients'!$K$3+'Residential Energy Coefficients'!$K$16*LN(Residential_Energy_Cost)+'Residential Energy Coefficients'!$K$24*IFERROR(LOOKUP(Metro_Select,Energy_Metro_Lookup,HDD),0)),0)))))/1000,0) -> 21.08646686 | CB5: =IFERROR(IF(B_Housing_Type="SF",EXP('Residential Energy Coefficients'!$C$3+'Residential Energy Coefficients'!$C$4*LN(B_Net_Sq_Ft_per_Unit)+'Residential Energy Coefficients'!$C$10*LN(B_HH_Income)+'Residential Energy Coefficients'!$C$11*B_HH_Size+'Residential Energy Coefficients'!$C$16*LN(Residential_Energy_Cost)+'Residential Energy Coefficients'!$C$19+'Residential Energy Coefficients'!$C$22+'Residential Energy Coefficients'!$C$25*IFERROR(LOOKUP(Metro_Select,Energy_Metro_Lookup,CDD),0)),IF(B_Housing_Type="TH",EXP('Residential Energy Coefficients'!$F$3+'Residential Energy Coefficients'!$F$4*LN(B_Net_Sq_Ft_per_Unit)+'Residential Energy Coefficients'!$F$10*LN(B_HH_Income)+'Residential Energy Coefficients'!$F$11*B_HH_Size+IF(B_Pct_Owner=1,'Residential Energy Coefficients'!$F$12,0)+'Residential Energy Coefficients'!$F$16*LN(Residential_Energy_Cost)+'Residential Energy Coefficients'!$F$22+'Residential Energy Coefficients'!$F$25*IFERROR(LOOKUP(Metro_Select,Energy_Metro_Lookup,CDD),0)),IF(B_Housing_Type="MF",EXP('Residential Energy Coefficients'!$I$3+'Residential Energy Coefficients'!$I$4*LN(B_Net_Sq_Ft_per_Unit)+'Residential Energy Coefficients'!$I$9+'Residential Energy Coefficients'!$I$11*B_HH_Size+'Residential Energy Coefficients'!$I$16*LN(Residential_Energy_Cost)+'Residential Energy Coefficients'!$I$22+'Residential Energy Coefficients'!$I$25*IFERROR(LOOKUP(Metro_Select,Energy_Metro_Lookup,CDD),0)),IF(B_Hotel_Room_Acre>0,EXP('Residential Energy Coefficients'!$I$3+'Residential Energy Coefficients'!$I$4*LN(B_Hotel_Room_Net)+'Residential Energy Coefficients'!$I$9+'Residential Energy Coefficients'!$I$11*1.25+'Residential Energy Coefficients'!$I$16*LN(Residential_Energy_Cost)+'Residential Energy Coefficients'!$I$22+'Residential Energy Coefficients'!$I$25*IFERROR(LOOKUP(Metro_Select,Energy_Metro_Lookup,CDD),0)),IF(B_Housing_Type="MH",EXP('Residential Energy Coefficients'!$L$3+'Residential Energy Coefficients'!$L$11*B_HH_Size+'Residential Energy Coefficients'!$L$16*LN(Residential_Energy_Cost)+'Residential Energy Coefficients'!$L$22+'Residential Energy Coefficients'!$L$25*IFERROR(LOOKUP(Metro_Select,Energy_Metro_Lookup,CDD),0)),0)))))/1000,0) -> 10.15771029 | CC5: =IFERROR(IF(B_Housing_Type="SF",EXP('Residential Energy Coefficients'!$D$3+'Residential Energy Coefficients'!$D$4*LN(B_Net_Sq_Ft_per_Unit)+'Residential Energy Coefficients'!$D$9+'Residential Energy Coefficients'!$D$10*LN(B_HH_Income)+'Residential Energy Coefficients'!$D$11*B_HH_Size+IF(B_Pct_Owner=1,'Residential Energy Coefficients'!$D$12,0)+'Residential Energy Coefficients'!$D$16*LN(Residential_Energy_Cost)),IF(B_Housing_Type="TH",EXP('Residential Energy Coefficients'!$G$3+'Residential Energy Coefficients'!$G$4*LN(B_Net_Sq_Ft_per_Unit)+'Residential Energy Coefficients'!$G$10*LN(B_HH_Income)+'Residential Energy Coefficients'!$G$11*B_HH_Size+'Residential Energy Coefficients'!$G$16*LN(Residential_Energy_Cost)),IF(B_Housing_Type="MF",EXP('Residential Energy Coefficients'!$J$3+'Residential Energy Coefficients'!$J$4*LN(B_Net_Sq_Ft_per_Unit)+'Residential Energy Coefficients'!$J$10*LN(B_HH_Income)+'Residential Energy Coefficients'!$J$11*B_HH_Size+IF(B_Pct_Owner=1,'Residential Energy Coefficients'!$J$12,0)+'Residential Energy Coefficients'!$J$16*LN(Residential_Energy_Cost)+'Residential Energy Coefficients'!$J$19),IF(B_Hotel_Room_Acre>0,EXP('Residential Energy Coefficients'!$J$3+'Residential Energy Coefficients'!$J$4*LN(B_Hotel_Room_Net)+'Residential Energy Coefficients'!$J$16*LN(Residential_Energy_Cost)+'Residential Energy Coefficients'!$J$19),IF(B_Housing_Type="MH",EXP('Residential Energy Coefficients'!$M$3+'Residential Energy Coefficients'!$M$4*LN(B_Net_Sq_Ft_per_Unit)+'Residential Energy Coefficients'!$M$11*B_HH_Size+'Residential Energy Coefficients'!$M$16*LN(Residential_Energy_Cost)+'Residential Energy Coefficients'!$M$19),0)))))/1000,0) -> 29.51387886 | CD5: =SUM(CA5:CC5) -> 60.75805601 | CE5: =(IFERROR(EXP('Commercial Energy Coefficients'!$B$3+LN(B_RET_Gross_Sq_Ft)*'Commercial Energy Coefficients'!$B$4+'Commercial Energy Coefficients'!$B$11+'Commercial Energy Coefficients'!$B$14+'Commercial Energy Coefficients'!$B$18*LN((B_Ret_Emp_Acre)*(B_Lot_Size/43560))+'Commercial Energy Coefficients'!$B$19*LN(40)+'Commercial Energy Coefficients'!$B$21+'Commercial Energy Coefficients'!$B$22*LN(Commercial_Energy_Cost)+'Commercial Energy Coefficients'!$B$23*IFERROR(LOOKUP(Metro_Select,Energy_Metro_Lookup,HDD),0)),0)+IFERROR(EXP('Commercial Energy Coefficients'!$E$3+LN(B_OFF_Gross_Sq_Ft)*'Commercial Energy Coefficients'!$E$4+'Commercial Energy Coefficients'!$E$11+'Commercial Energy Coefficients'!$E$14+'Commercial Energy Coefficients'!$E$18*LN((B_OFF_Emp_Acre)*(B_Lot_Size/43560))+'Commercial Energy Coefficients'!$E$19*LN(40)+'Commercial Energy Coefficients'!$E$21+'Commercial Energy Coefficients'!$E$22*LN(Commercial_Energy_Cost)+'Commercial Energy Coefficients'!$E$23*IFERROR(LOOKUP(Metro_Select,Energy_Metro_Lookup,HDD),0)),0)+IFERROR(EXP('Commercial Energy Coefficients'!$H$3+LN(B_PUB_Gross_Sq_Ft)*'Commercial Energy Coefficients'!$H$4+'Commercial Energy Coefficients'!$H$11+'Commercial Energy Coefficients'!$H$14+'Commercial Energy Coefficients'!$H$18*LN((B_Pub_Emp_Acre)*(B_Lot_Size/43560))+'Commercial Energy Coefficients'!$H$19*LN(40)+'Commercial Energy Coefficients'!$H$21+'Commercial Energy Coefficients'!$H$22*LN(Commercial_Energy_Cost)+'Commercial Energy Coefficients'!$H$23*IFERROR(LOOKUP(Metro_Select,Energy_Metro_Lookup,HDD),0)),0))/1000 -> 7.193127729 | CF5: =(IFERROR(EXP('Commercial Energy Coefficients'!$C$3+LN((B_RET_Gross_Sq_Ft))*'Commercial Energy Coefficients'!$C$4+'Commercial Energy Coefficients'!$C$11+'Commercial Energy Coefficients'!$C$14+'Commercial Energy Coefficients'!$C$18*LN((B_Ret_Emp_Acre)*(B_Lot_Size/43560))+'Commercial Energy Coefficients'!$C$19*LN(40)+'Commercial Energy Coefficients'!$C$21+'Commercial Energy Coefficients'!$C$22*LN(Commercial_Energy_Cost)+'Commercial Energy Coefficients'!$C$24*IFERROR(LOOKUP(Metro_Select,Energy_Metro_Lookup,CDD),0)),0)+IFERROR(EXP('Commercial Energy Coefficients'!$F$3+LN((B_OFF_Gross_Sq_Ft))*'Commercial Energy Coefficients'!$F$4+'Commercial Energy Coefficients'!$F$11+'Commercial Energy Coefficients'!$F$14+'Commercial Energy Coefficients'!$F$18*LN((B_OFF_Emp_Acre)*(B_Lot_Size/43560))+'Commercial Energy Coefficients'!$F$19*LN(40)+'Commercial Energy Coefficients'!$F$21+'Commercial Energy Coefficients'!$F$22*LN(Commercial_Energy_Cost)+'Commercial Energy Coefficients'!$F$24*IFERROR(LOOKUP(Metro_Select,Energy_Metro_Lookup,CDD),0)),0)+IFERROR(EXP('Commercial Energy Coefficients'!$I$3+LN((B_PUB_Gross_Sq_Ft))*'Commercial Energy Coefficients'!$I$4+'Commercial Energy Coefficients'!$I$11+'Commercial Energy Coefficients'!$I$14+'Commercial Energy Coefficients'!$I$18*LN((B_Pub_Emp_Acre)*(B_Lot_Size/43560))+'Commercial Energy Coefficients'!$I$19*LN(40)+'Commercial Energy Coefficients'!$I$21+'Commercial Energy Coefficients'!$I$22*LN(Commercial_Energy_Cost)+'Commercial Energy Coefficients'!$I$24*IFERROR(LOOKUP(Metro_Select,Energy_Metro_Lookup,CDD),0)),0))/1000 -> 149.799126 | CG5: =(IFERROR(EXP('Commercial Energy Coefficients'!$D$3+LN((B_RET_Gross_Sq_Ft))*'Commercial Energy Coefficients'!$D$4+'Commercial Energy Coefficients'!$D$14+'Commercial Energy Coefficients'!$D$18*LN((B_Ret_Emp_Acre)*(B_Lot_Size/43560))+'Commercial Energy Coefficients'!$D$19*LN(40)+'Commercial Energy Coefficients'!$D$21+'Commercial Energy Coefficients'!$D$22*LN(Commercial_Energy_Cost)),0)+IFERROR(EXP('Commercial Energy Coefficients'!$G$3+LN((B_OFF_Gross_Sq_Ft))*'Commercial Energy Coefficients'!$G$4+'Commercial Energy Coefficients'!$G$14+'Commercial Energy Coefficients'!$G$18*LN((B_OFF_Emp_Acre)*(B_Lot_Size/43560))+'Commercial Energy Coefficients'!$G$19*LN(40)+'Commercial Energy Coefficients'!$G$21+'Commercial Energy Coefficients'!$G$22*LN(Commercial_Energy_Cost)),0)+IFERROR(EXP('Commercial Energy Coefficients'!$J$3+LN((B_PUB_Gross_Sq_Ft))*'Commercial Energy Coefficients'!$J$4+'Commercial Energy Coefficients'!$J$14+'Commercial Energy Coefficients'!$J$18*LN((B_Pub_Emp_Acre)*(B_Lot_Size/43560))+'Commercial Energy Coefficients'!$J$19*LN(40)+'Commercial Energy Coefficients'!$J$21+'Commercial Energy Coefficients'!$J$22*LN(Commercial_Energy_Cost)),0))/1000 -> 496.6909 | CH5: =SUM(CE5:CG5) -> 653.6831537 | CI5: 36.78736363 | CJ5: 0.05659594405 | CK5: 13246.29658 | CL5: 60.75805601 | CM5: 5.667504725 | CN5: 3.431521198 | CO5: 1235.613075 | CP5: 0 | CQ5: 0 | CR5: 35 | CS5: 78.94736842 | CT5: 68 | CU5: 8462.349359 | CV5: 60 | CW5: 135.3383459 | CX5: 38 | CY5: 13110.73077 | CZ5: =IF(B_Housing_Type="",0,IF(B_Housing_Type="MF",'Project Info'!$B$154,IF(B_Housing_Type="TH",'Project Info'!$B$155,IF(AND(B_Housing_Type="SF",B_Net_Sq_Ft_per_Unit>0,B_Net_Sq_Ft_per_Unit<3000),'Project Info'!$B$156,IF(AND(B_Housing_Type="SF",B_Net_Sq_Ft_per_Unit>=3000),'Project Info'!$B$157))))) -> 1.5 | DA5: 3.383458647 | DB5: 5 | DC5: 399.7336538 | DD5: =[2]!LandCost -> 33.33333333 | DE5: 1000000 | DF5: 1452000 | DG5: =[2]!ProjectValue -> 67466280.42 | DH5: 97961039.18 | DI5: =[2]!Subsidy -> 29222160.85 | DJ5: 133944.2056 | DK5: 42430577.55 | DL5: 268178.4647 | DM5: 1206.043516 | DN5: 389395.1307 | DO5: 197793.75 | DP5: 287196.525 | DQ5: =IFERROR(B_FAR/MAX(B_FAR),0) -> 0.9166666667
B6: 3 | C6: =[3]!name -> Mixed Use Res 5 Owner | D6: =[3]!lot_size -> 30000 | E6: =[3]!Building_Lot_Coverage -> 0.7716008038 | F6: =[3]!Landscaping_Coverage -> 0.09651975887 | G6: =[3]!Parking_Coverage -> 0.1318794374 | H6: =[3]!Height -> 5 | I6: =[3]!FAR -> 1.890421969 | J6: 56712.65908 | K6: =[3]!ResPct -> 0.8 | L6: 0.8 | M6: 0 | N6: 0 | O6: 0 | P6: 0 | Q6: 0 | R6: 0 | S6: 0.2 | T6: =[3]!RetPct -> 0.2 | U6: =[3]!OffPct -> 0 | V6: =[3]!IndPct -> 0 | W6: =[3]!PubPct -> 0 | X6: =[3]!EduPct -> 0 | Y6: =[3]!HotelPct -> 0 | Z6: =[3]!ParkingPct -> 0 | AA6: 45370.12726 | AB6: =[3]!NetUnitSize -> 900 | AC6: =[3]!UnitSize -> 1058.823529 | AD6: 42.84956463 | AE6: 62.21756785 | AF6: =[3]!HousingType -> MF | AG6: =[3]!RentalPct -> 0 | AH6: 1 | AI6: =[3]!Rent -> 0 | AJ6: 0 | AK6: =[3]!Sales_Price -> 250 | AL6: 225000 | AM6: 1348.988682 | AN6: 0.06 | AO6: 58.48451378 | AP6: 2.255639098 | AQ6: 1.353383459 | AR6: 0.1951 | AS6: 62261.01607 | AT6: 0 | AU6: 11342.53182 | AV6: 17.45004895 | AW6: 25.33747107 | AX6: 11342.53182 | AY6: =[3]!RetSpace -> 650 | AZ6: 25.33747107 | BA6: 0 | BB6: =[3]!OffSpace -> 350 | BC6: 0 | BD6: 0 | BE6: =[3]!IndSpace -> 700 | BF6: 0 | BG6: 0 | BH6: =[3]!PubSpace -> 350 | BI6: 0 | BJ6: 0 | BK6: =[3]!EduSpace -> 800 | BL6: 0 | BM6: 0 | BN6: =[3]!HotelSpaceEmp -> 1000 | BO6: 0 | BP6: =[3]!HotelRoomNet -> 0 | BQ6: =[3]!HotelRoomGross -> 0 | BR6: 0 | BS6: 0 | BT6: 0 | BU6: =[3]!ParkingSpace -> 20000 | BV6: 0 | BW6: =[3]!ParkingSpaces -> 86.95941058 | BX6: =[3]!ParkingArea -> 28261.80844 | BY6: =[3]!ParkingCost -> 1532238.941 | BZ6: 0.1139770237 | CA6: =IFERROR(IF(B_Housing_Type="SF",EXP('Residential Energy Coefficients'!$B$3+'Residential Energy Coefficients'!$B$4*LN(B_Net_Sq_Ft_per_Unit)+'Residential Energy Coefficients'!$B$9+'Residential Energy Coefficients'!$B$10*LN(B_HH_Income)+'Residential Energy Coefficients'!$B$16*LN(Residential_Energy_Cost)+'Residential Energy Coefficients'!$B$20+'Residential Energy Coefficients'!$B$24*IFERROR(LOOKUP(Metro_Select,Energy_Metro_Lookup,HDD),0)),IF(B_Housing_Type="TH",EXP('Residential Energy Coefficients'!$E$3+'Residential Energy Coefficients'!$E$4*LN(B_Net_Sq_Ft_per_Unit)+'Residential Energy Coefficients'!$E$9+'Residential Energy Coefficients'!$E$16*LN(Residential_Energy_Cost)+'Residential Energy Coefficients'!$E$19+'Residential Energy Coefficients'!$E$20+'Residential Energy Coefficients'!$E$24*IFERROR(LOOKUP(Metro_Select,Energy_Metro_Lookup,HDD),0)),IF(B_Housing_Type="MF",EXP('Residential Energy Coefficients'!$H$3+'Residential Energy Coefficients'!$H$4*LN(B_Net_Sq_Ft_per_Unit)+'Residential Energy Coefficients'!$H$9+IF(B_Pct_Owner=1,'Residential Energy Coefficients'!$H$12,0)+'Residential Energy Coefficients'!$H$16*LN(Residential_Energy_Cost)+'Residential Energy Coefficients'!$H$20+'Residential Energy Coefficients'!$H$24*IFERROR(LOOKUP(Metro_Select,Energy_Metro_Lookup,HDD),0)),IF(B_Hotel_Room_Acre>0,EXP('Residential Energy Coefficients'!$H$3+'Residential Energy Coefficients'!$H$4*LN(B_Hotel_Room_Net)+'Residential Energy Coefficients'!$H$9+'Residential Energy Coefficients'!$H$16*LN(Residential_Energy_Cost)+'Residential Energy Coefficients'!$H$20+'Residential Energy Coefficients'!$H$24*IFERROR(LOOKUP(Metro_Select,Energy_Metro_Lookup,HDD),0)),IF(B_Housing_Type="MH",EXP('Residential Energy Coefficients'!$K$3+'Residential Energy Coefficients'!$K$16*LN(Residential_Energy_Cost)+'Residential Energy Coefficients'!$K$24*IFERROR(LOOKUP(Metro_Select,Energy_Metro_Lookup,HDD),0)),0)))))/1000,0) -> 23.82252243 | CB6: =IFERROR(IF(B_Housing_Type="SF",EXP('Residential Energy Coefficients'!$C$3+'Residential Energy Coefficients'!$C$4*LN(B_Net_Sq_Ft_per_Unit)+'Residential Energy Coefficients'!$C$10*LN(B_HH_Income)+'Residential Energy Coefficients'!$C$11*B_HH_Size+'Residential Energy Coefficients'!$C$16*LN(Residential_Energy_Cost)+'Residential Energy Coefficients'!$C$19+'Residential Energy Coefficients'!$C$22+'Residential Energy Coefficients'!$C$25*IFERROR(LOOKUP(Metro_Select,Energy_Metro_Lookup,CDD),0)),IF(B_Housing_Type="TH",EXP('Residential Energy Coefficients'!$F$3+'Residential Energy Coefficients'!$F$4*LN(B_Net_Sq_Ft_per_Unit)+'Residential Energy Coefficients'!$F$10*LN(B_HH_Income)+'Residential Energy Coefficients'!$F$11*B_HH_Size+IF(B_Pct_Owner=1,'Residential Energy Coefficients'!$F$12,0)+'Residential Energy Coefficients'!$F$16*LN(Residential_Energy_Cost)+'Residential Energy Coefficients'!$F$22+'Residential Energy Coefficients'!$F$25*IFERROR(LOOKUP(Metro_Select,Energy_Metro_Lookup,CDD),0)),IF(B_Housing_Type="MF",EXP('Residential Energy Coefficients'!$I$3+'Residential Energy Coefficients'!$I$4*LN(B_Net_Sq_Ft_per_Unit)+'Residential Energy Coefficients'!$I$9+'Residential Energy Coefficients'!$I$11*B_HH_Size+'Residential Energy Coefficients'!$I$16*LN(Residential_Energy_Cost)+'Residential Energy Coefficients'!$I$22+'Residential Energy Coefficients'!$I$25*IFERROR(LOOKUP(Metro_Select,Energy_Metro_Lookup,CDD),0)),IF(B_Hotel_Room_Acre>0,EXP('Residential Energy Coefficients'!$I$3+'Residential Energy Coefficients'!$I$4*LN(B_Hotel_Room_Net)+'Residential Energy Coefficients'!$I$9+'Residential Energy Coefficients'!$I$11*1.25+'Residential Energy Coefficients'!$I$16*LN(Residential_Energy_Cost)+'Residential Energy Coefficients'!$I$22+'Residential Energy Coefficients'!$I$25*IFERROR(LOOKUP(Metro_Select,Energy_Metro_Lookup,CDD),0)),IF(B_Housing_Type="MH",EXP('Residential Energy Coefficients'!$L$3+'Residential Energy Coefficients'!$L$11*B_HH_Size+'Residential Energy Coefficients'!$L$16*LN(Residential_Energy_Cost)+'Residential Energy Coefficients'!$L$22+'Residential Energy Coefficients'!$L$25*IFERROR(LOOKUP(Metro_Select,Energy_Metro_Lookup,CDD),0)),0)))))/1000,0) -> 10.15771029 | CC6: =IFERROR(IF(B_Housing_Type="SF",EXP('Residential Energy Coefficients'!$D$3+'Residential Energy Coefficients'!$D$4*LN(B_Net_Sq_Ft_per_Unit)+'Residential Energy Coefficients'!$D$9+'Residential Energy Coefficients'!$D$10*LN(B_HH_Income)+'Residential Energy Coefficients'!$D$11*B_HH_Size+IF(B_Pct_Owner=1,'Residential Energy Coefficients'!$D$12,0)+'Residential Energy Coefficients'!$D$16*LN(Residential_Energy_Cost)),IF(B_Housing_Type="TH",EXP('Residential Energy Coefficients'!$G$3+'Residential Energy Coefficients'!$G$4*LN(B_Net_Sq_Ft_per_Unit)+'Residential Energy Coefficients'!$G$10*LN(B_HH_Income)+'Residential Energy Coefficients'!$G$11*B_HH_Size+'Residential Energy Coefficients'!$G$16*LN(Residential_Energy_Cost)),IF(B_Housing_Type="MF",EXP('Residential Energy Coefficients'!$J$3+'Residential Energy Coefficients'!$J$4*LN(B_Net_Sq_Ft_per_Unit)+'Residential Energy Coefficients'!$J$10*LN(B_HH_Income)+'Residential Energy Coefficients'!$J$11*B_HH_Size+IF(B_Pct_Owner=1,'Residential Energy Coefficients'!$J$12,0)+'Residential Energy Coefficients'!$J$16*LN(Residential_Energy_Cost)+'Residential Energy Coefficients'!$J$19),IF(B_Hotel_Room_Acre>0,EXP('Residential Energy Coefficients'!$J$3+'Residential Energy Coefficients'!$J$4*LN(B_Hotel_Room_Net)+'Residential Energy Coefficients'!$J$16*LN(Residential_Energy_Cost)+'Residential Energy Coefficients'!$J$19),IF(B_Housing_Type="MH",EXP('Residential Energy Coefficients'!$M$3+'Residential Energy Coefficients'!$M$4*LN(B_Net_Sq_Ft_per_Unit)+'Residential Energy Coefficients'!$M$11*B_HH_Size+'Residential Energy Coefficients'!$M$16*LN(Residential_Energy_Cost)+'Residential Energy Coefficients'!$M$19),0)))))/1000,0) -> 34.35716174 | CD6: 68.33739446 | CE6: =(IFERROR(EXP('Commercial Energy Coefficients'!$B$3+LN(B_RET_Gross_Sq_Ft)*'Commercial Energy Coefficients'!$B$4+'Commercial Energy Coefficients'!$B$11+'Commercial Energy Coefficients'!$B$14+'Commercial Energy Coefficients'!$B$18*LN((B_Ret_Emp_Acre)*(B_Lot_Size/43560))+'Commercial Energy Coefficients'!$B$19*LN(40)+'Commercial Energy Coefficients'!$B$21+'Commercial Energy Coefficients'!$B$22*LN(Commercial_Energy_Cost)+'Commercial Energy Coefficients'!$B$23*IFERROR(LOOKUP(Metro_Select,Energy_Metro_Lookup,HDD),0)),0)+IFERROR(EXP('Commercial Energy Coefficients'!$E$3+LN(B_OFF_Gross_Sq_Ft)*'Commercial Energy Coefficients'!$E$4+'Commercial Energy Coefficients'!$E$11+'Commercial Energy Coefficients'!$E$14+'Commercial Energy Coefficients'!$E$18*LN((B_OFF_Emp_Acre)*(B_Lot_Size/43560))+'Commercial Energy Coefficients'!$E$19*LN(40)+'Commercial Energy Coefficients'!$E$21+'Commercial Energy Coefficients'!$E$22*LN(Commercial_Energy_Cost)+'Commercial Energy Coefficients'!$E$23*IFERROR(LOOKUP(Metro_Select,Energy_Metro_Lookup,HDD),0)),0)+IFERROR(EXP('Commercial Energy Coefficients'!$H$3+LN(B_PUB_Gross_Sq_Ft)*'Commercial Energy Coefficients'!$H$4+'Commercial Energy Coefficients'!$H$11+'Commercial Energy Coefficients'!$H$14+'Commercial Energy Coefficients'!$H$18*LN((B_Pub_Emp_Acre)*(B_Lot_Size/43560))+'Commercial Energy Coefficients'!$H$19*LN(40)+'Commercial Energy Coefficients'!$H$21+'Commercial Energy Coefficients'!$H$22*LN(Commercial_Energy_Cost)+'Commercial Energy Coefficients'!$H$23*IFERROR(LOOKUP(Metro_Select,Energy_Metro_Lookup,HDD),0)),0))/1000 -> 7.097417947 | CF6: =(IFERROR(EXP('Commercial Energy Coefficients'!$C$3+LN((B_RET_Gross_Sq_Ft))*'Commercial Energy Coefficients'!$C$4+'Commercial Energy Coefficients'!$C$11+'Commercial Energy Coefficients'!$C$14+'Commercial Energy Coefficients'!$C$18*LN((B_Ret_Emp_Acre)*(B_Lot_Size/43560))+'Commercial Energy Coefficients'!$C$19*LN(40)+'Commercial Energy Coefficients'!$C$21+'Commercial Energy Coefficients'!$C$22*LN(Commercial_Energy_Cost)+'Commercial Energy Coefficients'!$C$24*IFERROR(LOOKUP(Metro_Select,Energy_Metro_Lookup,CDD),0)),0)+IFERROR(EXP('Commercial Energy Coefficients'!$F$3+LN((B_OFF_Gross_Sq_Ft))*'Commercial Energy Coefficients'!$F$4+'Commercial Energy Coefficients'!$F$11+'Commercial Energy Coefficients'!$F$14+'Commercial Energy Coefficients'!$F$18*LN((B_OFF_Emp_Acre)*(B_Lot_Size/43560))+'Commercial Energy Coefficients'!$F$19*LN(40)+'Commercial Energy Coefficients'!$F$21+'Commercial Energy Coefficients'!$F$22*LN(Commercial_Energy_Cost)+'Commercial Energy Coefficients'!$F$24*IFERROR(LOOKUP(Metro_Select,Energy_Metro_Lookup,CDD),0)),0)+IFERROR(EXP('Commercial Energy Coefficients'!$I$3+LN((B_PUB_Gross_Sq_Ft))*'Commercial Energy Coefficients'!$I$4+'Commercial Energy Coefficients'!$I$11+'Commercial Energy Coefficients'!$I$14+'Commercial Energy Coefficients'!$I$18*LN((B_Pub_Emp_Acre)*(B_Lot_Size/43560))+'Commercial Energy Coefficients'!$I$19*LN(40)+'Commercial Energy Coefficients'!$I$21+'Commercial Energy Coefficients'!$I$22*LN(Commercial_Energy_Cost)+'Commercial Energy Coefficients'!$I$24*IFERROR(LOOKUP(Metro_Select,Energy_Metro_Lookup,CDD),0)),0))/1000 -> 147.5195524 | CG6: =(IFERROR(EXP('Commercial Energy Coefficients'!$D$3+LN((B_RET_Gross_Sq_Ft))*'Commercial Energy Coefficients'!$D$4+'Commercial Energy Coefficients'!$D$14+'Commercial Energy Coefficients'!$D$18*LN((B_Ret_Emp_Acre)*(B_Lot_Size/43560))+'Commercial Energy Coefficients'!$D$19*LN(40)+'Commercial Energy Coefficients'!$D$21+'Commercial Energy Coefficients'!$D$22*LN(Commercial_Energy_Cost)),0)+IFERROR(EXP('Commercial Energy Coefficients'!$G$3+LN((B_OFF_Gross_Sq_Ft))*'Commercial Energy Coefficients'!$G$4+'Commercial Energy Coefficients'!$G$14+'Commercial Energy Coefficients'!$G$18*LN((B_OFF_Emp_Acre)*(B_Lot_Size/43560))+'Commercial Energy Coefficients'!$G$19*LN(40)+'Commercial Energy Coefficients'!$G$21+'Commercial Energy Coefficients'!$G$22*LN(Commercial_Energy_Cost)),0)+IFERROR(EXP('Commercial Energy Coefficients'!$J$3+LN((B_PUB_Gross_Sq_Ft))*'Commercial Energy Coefficients'!$J$4+'Commercial Energy Coefficients'!$J$14+'Commercial Energy Coefficients'!$J$18*LN((B_Pub_Emp_Acre)*(B_Lot_Size/43560))+'Commercial Energy Coefficients'!$J$19*LN(40)+'Commercial Energy Coefficients'!$J$21+'Commercial Energy Coefficients'!$J$22*LN(Commercial_Energy_Cost)),0))/1000 -> 490.2153331 | CH6: 644.8323034 | CI6: 36.95303695 | CJ6: 0.05685082607 | CK6: 3573.059904 | CL6: 68.33739446 | CM6: 6.374504574 | CN6: 3.446975187 | CO6: 333.2946315 | CP6: 3.378789016 | CQ6: 144.7796383 | CR6: 35 | CS6: 78.94736842 | CT6: 68 | CU6: 2686.338091 | CV6: 60 | CW6: 135.3383459 | CX6: 38 | CY6: 3234.075738 | CZ6: =IF(B_Housing_Type="",0,IF(B_Housing_Type="MF",'Project Info'!$B$154,IF(B_Housing_Type="TH",'Project Info'!$B$155,IF(AND(B_Housing_Type="SF",B_Net_Sq_Ft_per_Unit>0,B_Net_Sq_Ft_per_Unit<3000),'Project Info'!$B$156,IF(AND(B_Housing_Type="SF",B_Net_Sq_Ft_per_Unit>=3000),'Project Info'!$B$157))))) -> 1.5 | DA6: 3.383458647 | DB6: 5 | DC6: 151.5245917 | DD6: =[3]!LandCost -> 25 | DE6: 750000 | DF6: 1089000 | DG6: =[3]!ProjectValue -> 13443401.94 | DH6: 19519819.61 | DI6: =[3]!Subsidy -> 1988745.669 | DJ6: 37129.81797 | DK6: 2887658.711 | DL6: 56462.28814 | DM6: 978.8527469 | DN6: 81983.24238 | DO6: 194240.8573 | DP6: 282037.7248 | DQ6: 0.2250502344
B7: 4 | C7: =[4]!name -> Mixed Use Res 5 Renter | D7: =[4]!lot_size -> 30000 | E7: =[4]!Building_Lot_Coverage -> 0.5016722408 | F7: =[4]!Landscaping_Coverage -> 0.09966555184 | G7: =[4]!Parking_Coverage -> 0.3986622074 | H7: =[4]!Height -> 5 | I7: =[4]!FAR -> 1.605351171 | J7: 48160.53512 | K7: =[4]!ResPct -> 0.8 | L7: 0.8 | M7: 0 | N7: 0 | O7: 0 | P7: 0 | Q7: 0 | R7: 0 | S7: 0.2 | T7: =[4]!RetPct -> 0.2 | U7: =[4]!OffPct -> 0 | V7: =[4]!IndPct -> 0 | W7: =[4]!PubPct -> 0 | X7: =[4]!EduPct -> 0 | Y7: =[4]!HotelPct -> 0 | Z7: =[4]!ParkingPct -> 0 | AA7: 38528.42809 | AB7: =[4]!NetUnitSize -> 900 | AC7: =[4]!UnitSize -> 1058.823529 | AD7: 36.38795987 | AE7: 52.83531773 | AF7: =[4]!HousingType -> MF | AG7: =[4]!RentalPct -> 1 | AH7: 0 | AI7: =[4]!Rent -> 1.4 | AJ7: 1260 | AK7: =[4]!Sales_Price -> 0 | AL7: 0 | AM7: 0 | AN7: 0.06 | AO7: 49.66519866 | AP7: 2.255639098 | AQ7: 1.353383459 | AR7: 0.1951 | AS7: 50400 | AT7: 0 | AU7: 9632.107023 | AV7: 14.81862619 | AW7: 21.51664523 | AX7: 9632.107023 | AY7: =[4]!RetSpace -> 650 | AZ7: 21.51664523 | BA7: 0 | BB7: =[4]!OffSpace -> 350 | BC7: 0 | BD7: 0 | BE7: =[4]!IndSpace -> 700 | BF7: 0 | BG7: 0 | BH7: =[4]!PubSpace -> 350 | BI7: 0 | BJ7: 0 | BK7: =[4]!EduSpace -> 800 | BL7: 0 | BM7: 0 | BN7: =[4]!HotelSpaceEmp -> 1000 | BO7: 0 | BP7: =[4]!HotelRoomNet -> 0 | BQ7: =[4]!HotelRoomGross -> 0 | BR7: 0 | BS7: 0 | BT7: 0 | BU7: =[4]!ParkingSpace -> 20000 | BV7: 0 | BW7: =[4]!ParkingSpaces -> 73.84615385 | BX7: =[4]!ParkingArea -> 24000 | BY7: =[4]!ParkingCost -> 851330.0746 | BZ7: 0.07739244758 | CA7: =IFERROR(IF(B_Housing_Type="SF",EXP('Residential Energy Coefficients'!$B$3+'Residential Energy Coefficients'!$B$4*LN(B_Net_Sq_Ft_per_Unit)+'Residential Energy Coefficients'!$B$9+'Residential Energy Coefficients'!$B$10*LN(B_HH_Income)+'Residential Energy Coefficients'!$B$16*LN(Residential_Energy_Cost)+'Residential Energy Coefficients'!$B$20+'Residential Energy Coefficients'!$B$24*IFERROR(LOOKUP(Metro_Select,Energy_Metro_Lookup,HDD),0)),IF(B_Housing_Type="TH",EXP('Residential Energy Coefficients'!$E$3+'Residential Energy Coefficients'!$E$4*LN(B_Net_Sq_Ft_per_Unit)+'Residential Energy Coefficients'!$E$9+'Residential Energy Coefficients'!$E$16*LN(Residential_Energy_Cost)+'Residential Energy Coefficients'!$E$19+'Residential Energy Coefficients'!$E$20+'Residential Energy Coefficients'!$E$24*IFERROR(LOOKUP(Metro_Select,Energy_Metro_Lookup,HDD),0)),IF(B_Housing_Type="MF",EXP('Residential Energy Coefficients'!$H$3+'Residential Energy Coefficients'!$H$4*LN(B_Net_Sq_Ft_per_Unit)+'Residential Energy Coefficients'!$H$9+IF(B_Pct_Owner=1,'Residential Energy Coefficients'!$H$12,0)+'Residential Energy Coefficients'!$H$16*LN(Residential_Energy_Cost)+'Residential Energy Coefficients'!$H$20+'Residential Energy Coefficients'!$H$24*IFERROR(LOOKUP(Metro_Select,Energy_Metro_Lookup,HDD),0)),IF(B_Hotel_Room_Acre>0,EXP('Residential Energy Coefficients'!$H$3+'Residential Energy Coefficients'!$H$4*LN(B_Hotel_Room_Net)+'Residential Energy Coefficients'!$H$9+'Residential Energy Coefficients'!$H$16*LN(Residential_Energy_Cost)+'Residential Energy Coefficients'!$H$20+'Residential Energy Coefficients'!$H$24*IFERROR(LOOKUP(Metro_Select,Energy_Metro_Lookup,HDD),0)),IF(B_Housing_Type="MH",EXP('Residential Energy Coefficients'!$K$3+'Residential Energy Coefficients'!$K$16*LN(Residential_Energy_Cost)+'Residential Energy Coefficients'!$K$24*IFERROR(LOOKUP(Metro_Select,Energy_Metro_Lookup,HDD),0)),0)))))/1000,0) -> 21.08646686 | CB7: =IFERROR(IF(B_Housing_Type="SF",EXP('Residential Energy Coefficients'!$C$3+'Residential Energy Coefficients'!$C$4*LN(B_Net_Sq_Ft_per_Unit)+'Residential Energy Coefficients'!$C$10*LN(B_HH_Income)+'Residential Energy Coefficients'!$C$11*B_HH_Size+'Residential Energy Coefficients'!$C$16*LN(Residential_Energy_Cost)+'Residential Energy Coefficients'!$C$19+'Residential Energy Coefficients'!$C$22+'Residential Energy Coefficients'!$C$25*IFERROR(LOOKUP(Metro_Select,Energy_Metro_Lookup,CDD),0)),IF(B_Housing_Type="TH",EXP('Residential Energy Coefficients'!$F$3+'Residential Energy Coefficients'!$F$4*LN(B_Net_Sq_Ft_per_Unit)+'Residential Energy Coefficients'!$F$10*LN(B_HH_Income)+'Residential Energy Coefficients'!$F$11*B_HH_Size+IF(B_Pct_Owner=1,'Residential Energy Coefficients'!$F$12,0)+'Residential Energy Coefficients'!$F$16*LN(Residential_Energy_Cost)+'Residential Energy Coefficients'!$F$22+'Residential Energy Coefficients'!$F$25*IFERROR(LOOKUP(Metro_Select,Energy_Metro_Lookup,CDD),0)),IF(B_Housing_Type="MF",EXP('Residential Energy Coefficients'!$I$3+'Residential Energy Coefficients'!$I$4*LN(B_Net_Sq_Ft_per_Unit)+'Residential Energy Coefficients'!$I$9+'Residential Energy Coefficients'!$I$11*B_HH_Size+'Residential Energy Coefficients'!$I$16*LN(Residential_Energy_Cost)+'Residential Energy Coefficients'!$I$22+'Residential Energy Coefficients'!$I$25*IFERROR(LOOKUP(Metro_Select,Energy_Metro_Lookup,CDD),0)),IF(B_Hotel_Room_Acre>0,EXP('Residential Energy Coefficients'!$I$3+'Residential Energy Coefficients'!$I$4*LN(B_Hotel_Room_Net)+'Residential Energy Coefficients'!$I$9+'Residential Energy Coefficients'!$I$11*1.25+'Residential Energy Coefficients'!$I$16*LN(Residential_Energy_Cost)+'Residential Energy Coefficients'!$I$22+'Residential Energy Coefficients'!$I$25*IFERROR(LOOKUP(Metro_Select,Energy_Metro_Lookup,CDD),0)),IF(B_Housing_Type="MH",EXP('Residential Energy Coefficients'!$L$3+'Residential Energy Coefficients'!$L$11*B_HH_Size+'Residential Energy Coefficients'!$L$16*LN(Residential_Energy_Cost)+'Residential Energy Coefficients'!$L$22+'Residential Energy Coefficients'!$L$25*IFERROR(LOOKUP(Metro_Select,Energy_Metro_Lookup,CDD),0)),0)))))/1000,0) -> 10.15771029 | CC7: =IFERROR(IF(B_Housing_Type="SF",EXP('Residential Energy Coefficients'!$D$3+'Residential Energy Coefficients'!$D$4*LN(B_Net_Sq_Ft_per_Unit)+'Residential Energy Coefficients'!$D$9+'Residential Energy Coefficients'!$D$10*LN(B_HH_Income)+'Residential Energy Coefficients'!$D$11*B_HH_Size+IF(B_Pct_Owner=1,'Residential Energy Coefficients'!$D$12,0)+'Residential Energy Coefficients'!$D$16*LN(Residential_Energy_Cost)),IF(B_Housing_Type="TH",EXP('Residential Energy Coefficients'!$G$3+'Residential Energy Coefficients'!$G$4*LN(B_Net_Sq_Ft_per_Unit)+'Residential Energy Coefficients'!$G$10*LN(B_HH_Income)+'Residential Energy Coefficients'!$G$11*B_HH_Size+'Residential Energy Coefficients'!$G$16*LN(Residential_Energy_Cost)),IF(B_Housing_Type="MF",EXP('Residential Energy Coefficients'!$J$3+'Residential Energy Coefficients'!$J$4*LN(B_Net_Sq_Ft_per_Unit)+'Residential Energy Coefficients'!$J$10*LN(B_HH_Income)+'Residential Energy Coefficients'!$J$11*B_HH_Size+IF(B_Pct_Owner=1,'Residential Energy Coefficients'!$J$12,0)+'Residential Energy Coefficients'!$J$16*LN(Residential_Energy_Cost)+'Residential Energy Coefficients'!$J$19),IF(B_Hotel_Room_Acre>0,EXP('Residential Energy Coefficients'!$J$3+'Residential Energy Coefficients'!$J$4*LN(B_Hotel_Room_Net)+'Residential Energy Coefficients'!$J$16*LN(Residential_Energy_Cost)+'Residential Energy Coefficients'!$J$19),IF(B_Housing_Type="MH",EXP('Residential Energy Coefficients'!$M$3+'Residential Energy Coefficients'!$M$4*LN(B_Net_Sq_Ft_per_Unit)+'Residential Energy Coefficients'!$M$11*B_HH_Size+'Residential Energy Coefficients'!$M$16*LN(Residential_Energy_Cost)+'Residential Energy Coefficients'!$M$19),0)))))/1000,0) -> 28.93352179 | CD7: 60.17769894 | CE7: =(IFERROR(EXP('Commercial Energy Coefficients'!$B$3+LN(B_RET_Gross_Sq_Ft)*'Commercial Energy Coefficients'!$B$4+'Commercial Energy Coefficients'!$B$11+'Commercial Energy Coefficients'!$B$14+'Commercial Energy Coefficients'!$B$18*LN((B_Ret_Emp_Acre)*(B_Lot_Size/43560))+'Commercial Energy Coefficients'!$B$19*LN(40)+'Commercial Energy Coefficients'!$B$21+'Commercial Energy Coefficients'!$B$22*LN(Commercial_Energy_Cost)+'Commercial Energy Coefficients'!$B$23*IFERROR(LOOKUP(Metro_Select,Energy_Metro_Lookup,HDD),0)),0)+IFERROR(EXP('Commercial Energy Coefficients'!$E$3+LN(B_OFF_Gross_Sq_Ft)*'Commercial Energy Coefficients'!$E$4+'Commercial Energy Coefficients'!$E$11+'Commercial Energy Coefficients'!$E$14+'Commercial Energy Coefficients'!$E$18*LN((B_OFF_Emp_Acre)*(B_Lot_Size/43560))+'Commercial Energy Coefficients'!$E$19*LN(40)+'Commercial Energy Coefficients'!$E$21+'Commercial Energy Coefficients'!$E$22*LN(Commercial_Energy_Cost)+'Commercial Energy Coefficients'!$E$23*IFERROR(LOOKUP(Metro_Select,Energy_Metro_Lookup,HDD),0)),0)+IFERROR(EXP('Commercial Energy Coefficients'!$H$3+LN(B_PUB_Gross_Sq_Ft)*'Commercial Energy Coefficients'!$H$4+'Commercial Energy Coefficients'!$H$11+'Commercial Energy Coefficients'!$H$14+'Commercial Energy Coefficients'!$H$18*LN((B_Pub_Emp_Acre)*(B_Lot_Size/43560))+'Commercial Energy Coefficients'!$H$19*LN(40)+'Commercial Energy Coefficients'!$H$21+'Commercial Energy Coefficients'!$H$22*LN(Commercial_Energy_Cost)+'Commercial Energy Coefficients'!$H$23*IFERROR(LOOKUP(Metro_Select,Energy_Metro_Lookup,HDD),0)),0))/1000 -> 6.289841854 | CF7: =(IFERROR(EXP('Commercial Energy Coefficients'!$C$3+LN((B_RET_Gross_Sq_Ft))*'Commercial Energy Coefficients'!$C$4+'Commercial Energy Coefficients'!$C$11+'Commercial Energy Coefficients'!$C$14+'Commercial Energy Coefficients'!$C$18*LN((B_Ret_Emp_Acre)*(B_Lot_Size/43560))+'Commercial Energy Coefficients'!$C$19*LN(40)+'Commercial Energy Coefficients'!$C$21+'Commercial Energy Coefficients'!$C$22*LN(Commercial_Energy_Cost)+'Commercial Energy Coefficients'!$C$24*IFERROR(LOOKUP(Metro_Select,Energy_Metro_Lookup,CDD),0)),0)+IFERROR(EXP('Commercial Energy Coefficients'!$F$3+LN((B_OFF_Gross_Sq_Ft))*'Commercial Energy Coefficients'!$F$4+'Commercial Energy Coefficients'!$F$11+'Commercial Energy Coefficients'!$F$14+'Commercial Energy Coefficients'!$F$18*LN((B_OFF_Emp_Acre)*(B_Lot_Size/43560))+'Commercial Energy Coefficients'!$F$19*LN(40)+'Commercial Energy Coefficients'!$F$21+'Commercial Energy Coefficients'!$F$22*LN(Commercial_Energy_Cost)+'Commercial Energy Coefficients'!$F$24*IFERROR(LOOKUP(Metro_Select,Energy_Metro_Lookup,CDD),0)),0)+IFERROR(EXP('Commercial Energy Coefficients'!$I$3+LN((B_PUB_Gross_Sq_Ft))*'Commercial Energy Coefficients'!$I$4+'Commercial Energy Coefficients'!$I$11+'Commercial Energy Coefficients'!$I$14+'Commercial Energy Coefficients'!$I$18*LN((B_Pub_Emp_Acre)*(B_Lot_Size/43560))+'Commercial Energy Coefficients'!$I$19*LN(40)+'Commercial Energy Coefficients'!$I$21+'Commercial Energy Coefficients'!$I$22*LN(Commercial_Energy_Cost)+'Commercial Energy Coefficients'!$I$24*IFERROR(LOOKUP(Metro_Select,Energy_Metro_Lookup,CDD),0)),0))/1000 -> 128.4674608 | CG7: =(IFERROR(EXP('Commercial Energy Coefficients'!$D$3+LN((B_RET_Gross_Sq_Ft))*'Commercial Energy Coefficients'!$D$4+'Commercial Energy Coefficients'!$D$14+'Commercial Energy Coefficients'!$D$18*LN((B_Ret_Emp_Acre)*(B_Lot_Size/43560))+'Commercial Energy Coefficients'!$D$19*LN(40)+'Commercial Energy Coefficients'!$D$21+'Commercial Energy Coefficients'!$D$22*LN(Commercial_Energy_Cost)),0)+IFERROR(EXP('Commercial Energy Coefficients'!$G$3+LN((B_OFF_Gross_Sq_Ft))*'Commercial Energy Coefficients'!$G$4+'Commercial Energy Coefficients'!$G$14+'Commercial Energy Coefficients'!$G$18*LN((B_OFF_Emp_Acre)*(B_Lot_Size/43560))+'Commercial Energy Coefficients'!$G$19*LN(40)+'Commercial Energy Coefficients'!$G$21+'Commercial Energy Coefficients'!$G$22*LN(Commercial_Energy_Cost)),0)+IFERROR(EXP('Commercial Energy Coefficients'!$J$3+LN((B_PUB_Gross_Sq_Ft))*'Commercial Energy Coefficients'!$J$4+'Commercial Energy Coefficients'!$J$14+'Commercial Energy Coefficients'!$J$18*LN((B_Pub_Emp_Acre)*(B_Lot_Size/43560))+'Commercial Energy Coefficients'!$J$19*LN(40)+'Commercial Energy Coefficients'!$J$21+'Commercial Energy Coefficients'!$J$22*LN(Commercial_Energy_Cost)),0))/1000 -> 435.5029162 | CH7: 570.2602188 | CI7: 38.48266442 | CJ7: 0.05920409911 | CK7: 2760.003913 | CL7: 60.17769894 | CM7: 5.613369082 | CN7: 3.589658668 | CO7: 257.4528588 | CP7: 4.108455882 | CQ7: 149.4983278 | CR7: 35 | CS7: 78.94736842 | CT7: 68 | CU7: 2281.245176 | CV7: 60 | CW7: 135.3383459 | CX7: 38 | CY7: 2746.385387 | CZ7: =IF(B_Housing_Type="",0,IF(B_Housing_Type="MF",'Project Info'!$B$154,IF(B_Housing_Type="TH",'Project Info'!$B$155,IF(AND(B_Housing_Type="SF",B_Net_Sq_Ft_per_Unit>0,B_Net_Sq_Ft_per_Unit<3000),'Project Info'!$B$156,IF(AND(B_Housing_Type="SF",B_Net_Sq_Ft_per_Unit>=3000),'Project Info'!$B$157))))) -> 1.5 | DA7: 3.383458647 | DB7: 5 | DC7: 128.6750707 | DD7: =[4]!LandCost -> 25 | DE7: 750000 | DF7: 1089000 | DG7: =[4]!ProjectValue -> 11000169.93 | DH7: 15972246.74 | DI7: =[4]!Subsidy -> 4004402.475 | DJ7: 88037.96617 | DK7: 5814392.393 | DL7: 46200.7137 | DM7: 943.1836878 | DN7: 67083.43629 | DO7: 164949.8328 | DP7: 239507.1572 | DQ7: 0.1911132346
B8: 5 | C8: =[5]!name -> Mixed Use Res 3 Owner | D8: =[5]!lot_size -> 30000 | E8: =[5]!Building_Lot_Coverage -> 0.5074644206 | F8: =[5]!Landscaping_Coverage -> 0.1503803369 | G8: =[5]!Parking_Coverage -> 0.3421552425 | H8: =[5]!Height -> 3 | I8: =[5]!FAR -> 1.078361894 | J8: 32350.85681 | K8: =[5]!ResPct -> 0.7 | L8: 0.7 | M8: 0 | N8: 0 | O8: 0 | P8: 0 | Q8: 0 | R8: 0 | S8: 0.3 | T8: =[5]!RetPct -> 0.3 | U8: =[5]!OffPct -> 0 | V8: =[5]!IndPct -> 0 | W8: =[5]!PubPct -> 0 | X8: =[5]!EduPct -> 0 | Y8: =[5]!HotelPct -> 0 | Z8: =[5]!ParkingPct -> 0 | AA8: 22645.59977 | AB8: =[5]!NetUnitSize -> 900 | AC8: =[5]!UnitSize -> 1058.823529 | AD8: 21.38751089 | AE8: 31.05466581 | AF8: =[5]!HousingType -> MF | AG8: =[5]!RentalPct -> 0 | AH8: 1 | AI8: =[5]!Rent -> 0 | AJ8: 0 | AK8: =[5]!Sales_Price -> 220 | AL8: 198000 | AM8: 1187.11004 | AN8: 0.06 | AO8: 29.19138587 | AP8: 2.255639098 | AQ8: 1.353383459 | AR8: 0.1951 | AS8: 54789.69414 | AT8: 0 | AU8: 9705.257043 | AV8: 14.93116468 | AW8: 21.68005112 | AX8: 9705.257043 | AY8: =[5]!RetSpace -> 650 | AZ8: 21.68005112 | BA8: 0 | BB8: =[5]!OffSpace -> 350 | BC8: 0 | BD8: 0 | BE8: =[5]!IndSpace -> 700 | BF8: 0 | BG8: 0 | BH8: =[5]!PubSpace -> 350 | BI8: 0 | BJ8: 0 | BK8: =[5]!EduSpace -> 800 | BL8: 0 | BM8: 0 | BN8: =[5]!HotelSpaceEmp -> 1000 | BO8: 0 | BP8: =[5]!HotelRoomNet -> 0 | BQ8: =[5]!HotelRoomGross -> 0 | BR8: 0 | BS8: 0 | BT8: 0 | BU8: =[5]!ParkingSpace -> 20000 | BV8: 0 | BW8: =[5]!ParkingSpaces -> 51.49178042 | BX8: =[5]!ParkingArea -> 16734.82864 | BY8: =[5]!ParkingCost -> 492915.0741 | BZ8: 0.0996803808 | CA8: =IFERROR(IF(B_Housing_Type="SF",EXP('Residential Energy Coefficients'!$B$3+'Residential Energy Coefficients'!$B$4*LN(B_Net_Sq_Ft_per_Unit)+'Residential Energy Coefficients'!$B$9+'Residential Energy Coefficients'!$B$10*LN(B_HH_Income)+'Residential Energy Coefficients'!$B$16*LN(Residential_Energy_Cost)+'Residential Energy Coefficients'!$B$20+'Residential Energy Coefficients'!$B$24*IFERROR(LOOKUP(Metro_Select,Energy_Metro_Lookup,HDD),0)),IF(B_Housing_Type="TH",EXP('Residential Energy Coefficients'!$E$3+'Residential Energy Coefficients'!$E$4*LN(B_Net_Sq_Ft_per_Unit)+'Residential Energy Coefficients'!$E$9+'Residential Energy Coefficients'!$E$16*LN(Residential_Energy_Cost)+'Residential Energy Coefficients'!$E$19+'Residential Energy Coefficients'!$E$20+'Residential Energy Coefficients'!$E$24*IFERROR(LOOKUP(Metro_Select,Energy_Metro_Lookup,HDD),0)),IF(B_Housing_Type="MF",EXP('Residential Energy Coefficients'!$H$3+'Residential Energy Coefficients'!$H$4*LN(B_Net_Sq_Ft_per_Unit)+'Residential Energy Coefficients'!$H$9+IF(B_Pct_Owner=1,'Residential Energy Coefficients'!$H$12,0)+'Residential Energy Coefficients'!$H$16*LN(Residential_Energy_Cost)+'Residential Energy Coefficients'!$H$20+'Residential Energy Coefficients'!$H$24*IFERROR(LOOKUP(Metro_Select,Energy_Metro_Lookup,HDD),0)),IF(B_Hotel_Room_Acre>0,EXP('Residential Energy Coefficients'!$H$3+'Residential Energy Coefficients'!$H$4*LN(B_Hotel_Room_Net)+'Residential Energy Coefficients'!$H$9+'Residential Energy Coefficients'!$H$16*LN(Residential_Energy_Cost)+'Residential Energy Coefficients'!$H$20+'Residential Energy Coefficients'!$H$24*IFERROR(LOOKUP(Metro_Select,Energy_Metro_Lookup,HDD),0)),IF(B_Housing_Type="MH",EXP('Residential Energy Coefficients'!$K$3+'Residential Energy Coefficients'!$K$16*LN(Residential_Energy_Cost)+'Residential Energy Coefficients'!$K$24*IFERROR(LOOKUP(Metro_Select,Energy_Metro_Lookup,HDD),0)),0)))))/1000,0) -> 23.82252243 | CB8: =IFERROR(IF(B_Housing_Type="SF",EXP('Residential Energy Coefficients'!$C$3+'Residential Energy Coefficients'!$C$4*LN(B_Net_Sq_Ft_per_Unit)+'Residential Energy Coefficients'!$C$10*LN(B_HH_Income)+'Residential Energy Coefficients'!$C$11*B_HH_Size+'Residential Energy Coefficients'!$C$16*LN(Residential_Energy_Cost)+'Residential Energy Coefficients'!$C$19+'Residential Energy Coefficients'!$C$22+'Residential Energy Coefficients'!$C$25*IFERROR(LOOKUP(Metro_Select,Energy_Metro_Lookup,CDD),0)),IF(B_Housing_Type="TH",EXP('Residential Energy Coefficients'!$F$3+'Residential Energy Coefficients'!$F$4*LN(B_Net_Sq_Ft_per_Unit)+'Residential Energy Coefficients'!$F$10*LN(B_HH_Income)+'Residential Energy Coefficients'!$F$11*B_HH_Size+IF(B_Pct_Owner=1,'Residential Energy Coefficients'!$F$12,0)+'Residential Energy Coefficients'!$F$16*LN(Residential_Energy_Cost)+'Residential Energy Coefficients'!$F$22+'Residential Energy Coefficients'!$F$25*IFERROR(LOOKUP(Metro_Select,Energy_Metro_Lookup,CDD),0)),IF(B_Housing_Type="MF",EXP('Residential Energy Coefficients'!$I$3+'Residential Energy Coefficients'!$I$4*LN(B_Net_Sq_Ft_per_Unit)+'Residential Energy Coefficients'!$I$9+'Residential Energy Coefficients'!$I$11*B_HH_Size+'Residential Energy Coefficients'!$I$16*LN(Residential_Energy_Cost)+'Residential Energy Coefficients'!$I$22+'Residential Energy Coefficients'!$I$25*IFERROR(LOOKUP(Metro_Select,Energy_Metro_Lookup,CDD),0)),IF(B_Hotel_Room_Acre>0,EXP('Residential Energy Coefficients'!$I$3+'Residential Energy Coefficients'!$I$4*LN(B_Hotel_Room_Net)+'Residential Energy Coefficients'!$I$9+'Residential Energy Coefficients'!$I$11*1.25+'Residential Energy Coefficients'!$I$16*LN(Residential_Energy_Cost)+'Residential Energy Coefficients'!$I$22+'Residential Energy Coefficients'!$I$25*IFERROR(LOOKUP(Metro_Select,Energy_Metro_Lookup,CDD),0)),IF(B_Housing_Type="MH",EXP('Residential Energy Coefficients'!$L$3+'Residential Energy Coefficients'!$L$11*B_HH_Size+'Residential Energy Coefficients'!$L$16*LN(Residential_Energy_Cost)+'Residential Energy Coefficients'!$L$22+'Residential Energy Coefficients'!$L$25*IFERROR(LOOKUP(Metro_Select,Energy_Metro_Lookup,CDD),0)),0)))))/1000,0) -> 10.15771029 | CC8: =IFERROR(IF(B_Housing_Type="SF",EXP('Residential Energy Coefficients'!$D$3+'Residential Energy Coefficients'!$D$4*LN(B_Net_Sq_Ft_per_Unit)+'Residential Energy Coefficients'!$D$9+'Residential Energy Coefficients'!$D$10*LN(B_HH_Income)+'Residential Energy Coefficients'!$D$11*B_HH_Size+IF(B_Pct_Owner=1,'Residential Energy Coefficients'!$D$12,0)+'Residential Energy Coefficients'!$D$16*LN(Residential_Energy_Cost)),IF(B_Housing_Type="TH",EXP('Residential Energy Coefficients'!$G$3+'Residential Energy Coefficients'!$G$4*LN(B_Net_Sq_Ft_per_Unit)+'Residential Energy Coefficients'!$G$10*LN(B_HH_Income)+'Residential Energy Coefficients'!$G$11*B_HH_Size+'Residential Energy Coefficients'!$G$16*LN(Residential_Energy_Cost)),IF(B_Housing_Type="MF",EXP('Residential Energy Coefficients'!$J$3+'Residential Energy Coefficients'!$J$4*LN(B_Net_Sq_Ft_per_Unit)+'Residential Energy Coefficients'!$J$10*LN(B_HH_Income)+'Residential Energy Coefficients'!$J$11*B_HH_Size+IF(B_Pct_Owner=1,'Residential Energy Coefficients'!$J$12,0)+'Residential Energy Coefficients'!$J$16*LN(Residential_Energy_Cost)+'Residential Energy Coefficients'!$J$19),IF(B_Hotel_Room_Acre>0,EXP('Residential Energy Coefficients'!$J$3+'Residential Energy Coefficients'!$J$4*LN(B_Hotel_Room_Net)+'Residential Energy Coefficients'!$J$16*LN(Residential_Energy_Cost)+'Residential Energy Coefficients'!$J$19),IF(B_Housing_Type="MH",EXP('Residential Energy Coefficients'!$M$3+'Residential Energy Coefficients'!$M$4*LN(B_Net_Sq_Ft_per_Unit)+'Residential Energy Coefficients'!$M$11*B_HH_Size+'Residential Energy Coefficients'!$M$16*LN(Residential_Energy_Cost)+'Residential Energy Coefficients'!$M$19),0)))))/1000,0) -> 33.96848966 | CD8: 67.94872237 | CE8: =(IFERROR(EXP('Commercial Energy Coefficients'!$B$3+LN(B_RET_Gross_Sq_Ft)*'Commercial Energy Coefficients'!$B$4+'Commercial Energy Coefficients'!$B$11+'Commercial Energy Coefficients'!$B$14+'Commercial Energy Coefficients'!$B$18*LN((B_Ret_Emp_Acre)*(B_Lot_Size/43560))+'Commercial Energy Coefficients'!$B$19*LN(40)+'Commercial Energy Coefficients'!$B$21+'Commercial Energy Coefficients'!$B$22*LN(Commercial_Energy_Cost)+'Commercial Energy Coefficients'!$B$23*IFERROR(LOOKUP(Metro_Select,Energy_Metro_Lookup,HDD),0)),0)+IFERROR(EXP('Commercial Energy Coefficients'!$E$3+LN(B_OFF_Gross_Sq_Ft)*'Commercial Energy Coefficients'!$E$4+'Commercial Energy Coefficients'!$E$11+'Commercial Energy Coefficients'!$E$14+'Commercial Energy Coefficients'!$E$18*LN((B_OFF_Emp_Acre)*(B_Lot_Size/43560))+'Commercial Energy Coefficients'!$E$19*LN(40)+'Commercial Energy Coefficients'!$E$21+'Commercial Energy Coefficients'!$E$22*LN(Commercial_Energy_Cost)+'Commercial Energy Coefficients'!$E$23*IFERROR(LOOKUP(Metro_Select,Energy_Metro_Lookup,HDD),0)),0)+IFERROR(EXP('Commercial Energy Coefficients'!$H$3+LN(B_PUB_Gross_Sq_Ft)*'Commercial Energy Coefficients'!$H$4+'Commercial Energy Coefficients'!$H$11+'Commercial Energy Coefficients'!$H$14+'Commercial Energy Coefficients'!$H$18*LN((B_Pub_Emp_Acre)*(B_Lot_Size/43560))+'Commercial Energy Coefficients'!$H$19*LN(40)+'Commercial Energy Coefficients'!$H$21+'Commercial Energy Coefficients'!$H$22*LN(Commercial_Energy_Cost)+'Commercial Energy Coefficients'!$H$23*IFERROR(LOOKUP(Metro_Select,Energy_Metro_Lookup,HDD),0)),0))/1000 -> 6.325107193 | CF8: =(IFERROR(EXP('Commercial Energy Coefficients'!$C$3+LN((B_RET_Gross_Sq_Ft))*'Commercial Energy Coefficients'!$C$4+'Commercial Energy Coefficients'!$C$11+'Commercial Energy Coefficients'!$C$14+'Commercial Energy Coefficients'!$C$18*LN((B_Ret_Emp_Acre)*(B_Lot_Size/43560))+'Commercial Energy Coefficients'!$C$19*LN(40)+'Commercial Energy Coefficients'!$C$21+'Commercial Energy Coefficients'!$C$22*LN(Commercial_Energy_Cost)+'Commercial Energy Coefficients'!$C$24*IFERROR(LOOKUP(Metro_Select,Energy_Metro_Lookup,CDD),0)),0)+IFERROR(EXP('Commercial Energy Coefficients'!$F$3+LN((B_OFF_Gross_Sq_Ft))*'Commercial Energy Coefficients'!$F$4+'Commercial Energy Coefficients'!$F$11+'Commercial Energy Coefficients'!$F$14+'Commercial Energy Coefficients'!$F$18*LN((B_OFF_Emp_Acre)*(B_Lot_Size/43560))+'Commercial Energy Coefficients'!$F$19*LN(40)+'Commercial Energy Coefficients'!$F$21+'Commercial Energy Coefficients'!$F$22*LN(Commercial_Energy_Cost)+'Commercial Energy Coefficients'!$F$24*IFERROR(LOOKUP(Metro_Select,Energy_Metro_Lookup,CDD),0)),0)+IFERROR(EXP('Commercial Energy Coefficients'!$I$3+LN((B_PUB_Gross_Sq_Ft))*'Commercial Energy Coefficients'!$I$4+'Commercial Energy Coefficients'!$I$11+'Commercial Energy Coefficients'!$I$14+'Commercial Energy Coefficients'!$I$18*LN((B_Pub_Emp_Acre)*(B_Lot_Size/43560))+'Commercial Energy Coefficients'!$I$19*LN(40)+'Commercial Energy Coefficients'!$I$21+'Commercial Energy Coefficients'!$I$22*LN(Commercial_Energy_Cost)+'Commercial Energy Coefficients'!$I$24*IFERROR(LOOKUP(Metro_Select,Energy_Metro_Lookup,CDD),0)),0))/1000 -> 129.2923647 | CG8: =(IFERROR(EXP('Commercial Energy Coefficients'!$D$3+LN((B_RET_Gross_Sq_Ft))*'Commercial Energy Coefficients'!$D$4+'Commercial Energy Coefficients'!$D$14+'Commercial Energy Coefficients'!$D$18*LN((B_Ret_Emp_Acre)*(B_Lot_Size/43560))+'Commercial Energy Coefficients'!$D$19*LN(40)+'Commercial Energy Coefficients'!$D$21+'Commercial Energy Coefficients'!$D$22*LN(Commercial_Energy_Cost)),0)+IFERROR(EXP('Commercial Energy Coefficients'!$G$3+LN((B_OFF_Gross_Sq_Ft))*'Commercial Energy Coefficients'!$G$4+'Commercial Energy Coefficients'!$G$14+'Commercial Energy Coefficients'!$G$18*LN((B_OFF_Emp_Acre)*(B_Lot_Size/43560))+'Commercial Energy Coefficients'!$G$19*LN(40)+'Commercial Energy Coefficients'!$G$21+'Commercial Energy Coefficients'!$G$22*LN(Commercial_Energy_Cost)),0)+IFERROR(EXP('Commercial Energy Coefficients'!$J$3+LN((B_PUB_Gross_Sq_Ft))*'Commercial Energy Coefficients'!$J$4+'Commercial Energy Coefficients'!$J$14+'Commercial Energy Coefficients'!$J$18*LN((B_Pub_Emp_Acre)*(B_Lot_Size/43560))+'Commercial Energy Coefficients'!$J$19*LN(40)+'Commercial Energy Coefficients'!$J$21+'Commercial Energy Coefficients'!$J$22*LN(Commercial_Energy_Cost)),0))/1000 -> 437.8949585 | CH8: 573.5124304 | CI8: 38.4104283 | CJ8: 0.05909296661 | CK8: 2026.76647 | CL8: 67.94872237 | CM8: 6.338249285 | CN8: 3.58292049 | CO8: 189.0565515 | CP8: 10.54683299 | CQ8: 225.5705054 | CR8: 35 | CS8: 78.94736842 | CT8: 68 | CU8: 1763.88208 | CV8: 60 | CW8: 135.3383459 | CX8: 38 | CY8: 1850.634911 | CZ8: =IF(B_Housing_Type="",0,IF(B_Housing_Type="MF",'Project Info'!$B$154,IF(B_Housing_Type="TH",'Project Info'!$B$155,IF(AND(B_Housing_Type="SF",B_Net_Sq_Ft_per_Unit>0,B_Net_Sq_Ft_per_Unit<3000),'Project Info'!$B$156,IF(AND(B_Housing_Type="SF",B_Net_Sq_Ft_per_Unit>=3000),'Project Info'!$B$157))))) -> 1.5 | DA8: 3.383458647 | DB8: 5 | DC8: 106.7370897 | DD8: =[5]!LandCost -> 16.66666667 | DE8: 500000 | DF8: 726000 | DG8: =[5]!ProjectValue -> 4944955.769 | DH8: 7180075.776 | DI8: =[5]!Subsidy -> 0 | DJ8: 0 | DK8: 0 | DL8: 21510.55759 | DM8: 631.1968381 | DN8: 31233.32963 | DO8: 166202.5269 | DP8: 241326.069 | DQ8: 0.1283764159
B9: 6 | C9: =[6]!name -> Mixed Use Res 3 Renter | D9: =[6]!lot_size -> 30000 | E9: =[6]!Building_Lot_Coverage -> 0.5018878885 | F9: =[6]!Landscaping_Coverage -> 0.1597168167 | G9: =[6]!Parking_Coverage -> 0.3383952948 | H9: =[6]!Height -> 3 | I9: =[6]!FAR -> 1.066511763 | J9: 31995.35289 | K9: =[6]!ResPct -> 0.7 | L9: 0.7 | M9: 0 | N9: 0 | O9: 0 | P9: 0 | Q9: 0 | R9: 0 | S9: 0.3 | T9: =[6]!RetPct -> 0.3 | U9: =[6]!OffPct -> 0 | V9: =[6]!IndPct -> 0 | W9: =[6]!PubPct -> 0 | X9: =[6]!EduPct -> 0 | Y9: =[6]!HotelPct -> 0 | Z9: =[6]!ParkingPct -> 0 | AA9: 22396.74702 | AB9: =[6]!NetUnitSize -> 900 | AC9: =[6]!UnitSize -> 1058.823529 | AD9: 21.1524833 | AE9: 30.71340575 | AF9: =[6]!HousingType -> MF | AG9: =[6]!RentalPct -> 1 | AH9: 0 | AI9: =[6]!Rent -> 1.4 | AJ9: 1260 | AK9: =[6]!Sales_Price -> 0 | AL9: 0 | AM9: 0 | AN9: 0.06 | AO9: 28.87060141 | AP9: 2.255639098 | AQ9: 1.353383459 | AR9: 0.1951 | AS9: 50400 | AT9: 0 | AU9: 9598.605867 | AV9: 14.76708595 | AW9: 21.4418088 | AX9: 9598.605867 | AY9: =[6]!RetSpace -> 650 | AZ9: 21.4418088 | BA9: 0 | BB9: =[6]!OffSpace -> 350 | BC9: 0 | BD9: 0 | BE9: =[6]!IndSpace -> 700 | BF9: 0 | BG9: 0 | BH9: =[6]!PubSpace -> 350 | BI9: 0 | BJ9: 0 | BK9: =[6]!EduSpace -> 800 | BL9: 0 | BM9: 0 | BN9: =[6]!HotelSpaceEmp -> 1000 | BO9: 0 | BP9: =[6]!HotelRoomNet -> 0 | BQ9: =[6]!HotelRoomGross -> 0 | BR9: 0 | BS9: 0 | BT9: 0 | BU9: =[6]!ParkingSpace -> 20000 | BV9: 0 | BW9: =[6]!ParkingSpaces -> 50.92593668 | BX9: =[6]!ParkingArea -> 16550.92942 | BY9: =[6]!ParkingCost -> 487498.4249 | BZ9: 0.09955712974 | CA9: =IFERROR(IF(B_Housing_Type="SF",EXP('Residential Energy Coefficients'!$B$3+'Residential Energy Coefficients'!$B$4*LN(B_Net_Sq_Ft_per_Unit)+'Residential Energy Coefficients'!$B$9+'Residential Energy Coefficients'!$B$10*LN(B_HH_Income)+'Residential Energy Coefficients'!$B$16*LN(Residential_Energy_Cost)+'Residential Energy Coefficients'!$B$20+'Residential Energy Coefficients'!$B$24*IFERROR(LOOKUP(Metro_Select,Energy_Metro_Lookup,HDD),0)),IF(B_Housing_Type="TH",EXP('Residential Energy Coefficients'!$E$3+'Residential Energy Coefficients'!$E$4*LN(B_Net_Sq_Ft_per_Unit)+'Residential Energy Coefficients'!$E$9+'Residential Energy Coefficients'!$E$16*LN(Residential_Energy_Cost)+'Residential Energy Coefficients'!$E$19+'Residential Energy Coefficients'!$E$20+'Residential Energy Coefficients'!$E$24*IFERROR(LOOKUP(Metro_Select,Energy_Metro_Lookup,HDD),0)),IF(B_Housing_Type="MF",EXP('Residential Energy Coefficients'!$H$3+'Residential Energy Coefficients'!$H$4*LN(B_Net_Sq_Ft_per_Unit)+'Residential Energy Coefficients'!$H$9+IF(B_Pct_Owner=1,'Residential Energy Coefficients'!$H$12,0)+'Residential Energy Coefficients'!$H$16*LN(Residential_Energy_Cost)+'Residential Energy Coefficients'!$H$20+'Residential Energy Coefficients'!$H$24*IFERROR(LOOKUP(Metro_Select,Energy_Metro_Lookup,HDD),0)),IF(B_Hotel_Room_Acre>0,EXP('Residential Energy Coefficients'!$H$3+'Residential Energy Coefficients'!$H$4*LN(B_Hotel_Room_Net)+'Residential Energy Coefficients'!$H$9+'Residential Energy Coefficients'!$H$16*LN(Residential_Energy_Cost)+'Residential Energy Coefficients'!$H$20+'Residential Energy Coefficients'!$H$24*IFERROR(LOOKUP(Metro_Select,Energy_Metro_Lookup,HDD),0)),IF(B_Housing_Type="MH",EXP('Residential Energy Coefficients'!$K$3+'Residential Energy Coefficients'!$K$16*LN(Residential_Energy_Cost)+'Residential Energy Coefficients'!$K$24*IFERROR(LOOKUP(Metro_Select,Energy_Metro_Lookup,HDD),0)),0)))))/1000,0) -> 21.08646686 | CB9: =IFERROR(IF(B_Housing_Type="SF",EXP('Residential Energy Coefficients'!$C$3+'Residential Energy Coefficients'!$C$4*LN(B_Net_Sq_Ft_per_Unit)+'Residential Energy Coefficients'!$C$10*LN(B_HH_Income)+'Residential Energy Coefficients'!$C$11*B_HH_Size+'Residential Energy Coefficients'!$C$16*LN(Residential_Energy_Cost)+'Residential Energy Coefficients'!$C$19+'Residential Energy Coefficients'!$C$22+'Residential Energy Coefficients'!$C$25*IFERROR(LOOKUP(Metro_Select,Energy_Metro_Lookup,CDD),0)),IF(B_Housing_Type="TH",EXP('Residential Energy Coefficients'!$F$3+'Residential Energy Coefficients'!$F$4*LN(B_Net_Sq_Ft_per_Unit)+'Residential Energy Coefficients'!$F$10*LN(B_HH_Income)+'Residential Energy Coefficients'!$F$11*B_HH_Size+IF(B_Pct_Owner=1,'Residential Energy Coefficients'!$F$12,0)+'Residential Energy Coefficients'!$F$16*LN(Residential_Energy_Cost)+'Residential Energy Coefficients'!$F$22+'Residential Energy Coefficients'!$F$25*IFERROR(LOOKUP(Metro_Select,Energy_Metro_Lookup,CDD),0)),IF(B_Housing_Type="MF",EXP('Residential Energy Coefficients'!$I$3+'Residential Energy Coefficients'!$I$4*LN(B_Net_Sq_Ft_per_Unit)+'Residential Energy Coefficients'!$I$9+'Residential Energy Coefficients'!$I$11*B_HH_Size+'Residential Energy Coefficients'!$I$16*LN(Residential_Energy_Cost)+'Residential Energy Coefficients'!$I$22+'Residential Energy Coefficients'!$I$25*IFERROR(LOOKUP(Metro_Select,Energy_Metro_Lookup,CDD),0)),IF(B_Hotel_Room_Acre>0,EXP('Residential Energy Coefficients'!$I$3+'Residential Energy Coefficients'!$I$4*LN(B_Hotel_Room_Net)+'Residential Energy Coefficients'!$I$9+'Residential Energy Coefficients'!$I$11*1.25+'Residential Energy Coefficients'!$I$16*LN(Residential_Energy_Cost)+'Residential Energy Coefficients'!$I$22+'Residential Energy Coefficients'!$I$25*IFERROR(LOOKUP(Metro_Select,Energy_Metro_Lookup,CDD),0)),IF(B_Housing_Type="MH",EXP('Residential Energy Coefficients'!$L$3+'Residential Energy Coefficients'!$L$11*B_HH_Size+'Residential Energy Coefficients'!$L$16*LN(Residential_Energy_Cost)+'Residential Energy Coefficients'!$L$22+'Residential Energy Coefficients'!$L$25*IFERROR(LOOKUP(Metro_Select,Energy_Metro_Lookup,CDD),0)),0)))))/1000,0) -> 10.15771029 | CC9: =IFERROR(IF(B_Housing_Type="SF",EXP('Residential Energy Coefficients'!$D$3+'Residential Energy Coefficients'!$D$4*LN(B_Net_Sq_Ft_per_Unit)+'Residential Energy Coefficients'!$D$9+'Residential Energy Coefficients'!$D$10*LN(B_HH_Income)+'Residential Energy Coefficients'!$D$11*B_HH_Size+IF(B_Pct_Owner=1,'Residential Energy Coefficients'!$D$12,0)+'Residential Energy Coefficients'!$D$16*LN(Residential_Energy_Cost)),IF(B_Housing_Type="TH",EXP('Residential Energy Coefficients'!$G$3+'Residential Energy Coefficients'!$G$4*LN(B_Net_Sq_Ft_per_Unit)+'Residential Energy Coefficients'!$G$10*LN(B_HH_Income)+'Residential Energy Coefficients'!$G$11*B_HH_Size+'Residential Energy Coefficients'!$G$16*LN(Residential_Energy_Cost)),IF(B_Housing_Type="MF",EXP('Residential Energy Coefficients'!$J$3+'Residential Energy Coefficients'!$J$4*LN(B_Net_Sq_Ft_per_Unit)+'Residential Energy Coefficients'!$J$10*LN(B_HH_Income)+'Residential Energy Coefficients'!$J$11*B_HH_Size+IF(B_Pct_Owner=1,'Residential Energy Coefficients'!$J$12,0)+'Residential Energy Coefficients'!$J$16*LN(Residential_Energy_Cost)+'Residential Energy Coefficients'!$J$19),IF(B_Hotel_Room_Acre>0,EXP('Residential Energy Coefficients'!$J$3+'Residential Energy Coefficients'!$J$4*LN(B_Hotel_Room_Net)+'Residential Energy Coefficients'!$J$16*LN(Residential_Energy_Cost)+'Residential Energy Coefficients'!$J$19),IF(B_Housing_Type="MH",EXP('Residential Energy Coefficients'!$M$3+'Residential Energy Coefficients'!$M$4*LN(B_Net_Sq_Ft_per_Unit)+'Residential Energy Coefficients'!$M$11*B_HH_Size+'Residential Energy Coefficients'!$M$16*LN(Residential_Energy_Cost)+'Residential Energy Coefficients'!$M$19),0)))))/1000,0) -> 28.93352179 | CD9: 60.17769894 | CE9: =(IFERROR(EXP('Commercial Energy Coefficients'!$B$3+LN(B_RET_Gross_Sq_Ft)*'Commercial Energy Coefficients'!$B$4+'Commercial Energy Coefficients'!$B$11+'Commercial Energy Coefficients'!$B$14+'Commercial Energy Coefficients'!$B$18*LN((B_Ret_Emp_Acre)*(B_Lot_Size/43560))+'Commercial Energy Coefficients'!$B$19*LN(40)+'Commercial Energy Coefficients'!$B$21+'Commercial Energy Coefficients'!$B$22*LN(Commercial_Energy_Cost)+'Commercial Energy Coefficients'!$B$23*IFERROR(LOOKUP(Metro_Select,Energy_Metro_Lookup,HDD),0)),0)+IFERROR(EXP('Commercial Energy Coefficients'!$E$3+LN(B_OFF_Gross_Sq_Ft)*'Commercial Energy Coefficients'!$E$4+'Commercial Energy Coefficients'!$E$11+'Commercial Energy Coefficients'!$E$14+'Commercial Energy Coefficients'!$E$18*LN((B_OFF_Emp_Acre)*(B_Lot_Size/43560))+'Commercial Energy Coefficients'!$E$19*LN(40)+'Commercial Energy Coefficients'!$E$21+'Commercial Energy Coefficients'!$E$22*LN(Commercial_Energy_Cost)+'Commercial Energy Coefficients'!$E$23*IFERROR(LOOKUP(Metro_Select,Energy_Metro_Lookup,HDD),0)),0)+IFERROR(EXP('Commercial Energy Coefficients'!$H$3+LN(B_PUB_Gross_Sq_Ft)*'Commercial Energy Coefficients'!$H$4+'Commercial Energy Coefficients'!$H$11+'Commercial Energy Coefficients'!$H$14+'Commercial Energy Coefficients'!$H$18*LN((B_Pub_Emp_Acre)*(B_Lot_Size/43560))+'Commercial Energy Coefficients'!$H$19*LN(40)+'Commercial Energy Coefficients'!$H$21+'Commercial Energy Coefficients'!$H$22*LN(Commercial_Energy_Cost)+'Commercial Energy Coefficients'!$H$23*IFERROR(LOOKUP(Metro_Select,Energy_Metro_Lookup,HDD),0)),0))/1000 -> 6.273667758 | CF9: =(IFERROR(EXP('Commercial Energy Coefficients'!$C$3+LN((B_RET_Gross_Sq_Ft))*'Commercial Energy Coefficients'!$C$4+'Commercial Energy Coefficients'!$C$11+'Commercial Energy Coefficients'!$C$14+'Commercial Energy Coefficients'!$C$18*LN((B_Ret_Emp_Acre)*(B_Lot_Size/43560))+'Commercial Energy Coefficients'!$C$19*LN(40)+'Commercial Energy Coefficients'!$C$21+'Commercial Energy Coefficients'!$C$22*LN(Commercial_Energy_Cost)+'Commercial Energy Coefficients'!$C$24*IFERROR(LOOKUP(Metro_Select,Energy_Metro_Lookup,CDD),0)),0)+IFERROR(EXP('Commercial Energy Coefficients'!$F$3+LN((B_OFF_Gross_Sq_Ft))*'Commercial Energy Coefficients'!$F$4+'Commercial Energy Coefficients'!$F$11+'Commercial Energy Coefficients'!$F$14+'Commercial Energy Coefficients'!$F$18*LN((B_OFF_Emp_Acre)*(B_Lot_Size/43560))+'Commercial Energy Coefficients'!$F$19*LN(40)+'Commercial Energy Coefficients'!$F$21+'Commercial Energy Coefficients'!$F$22*LN(Commercial_Energy_Cost)+'Commercial Energy Coefficients'!$F$24*IFERROR(LOOKUP(Metro_Select,Energy_Metro_Lookup,CDD),0)),0)+IFERROR(EXP('Commercial Energy Coefficients'!$I$3+LN((B_PUB_Gross_Sq_Ft))*'Commercial Energy Coefficients'!$I$4+'Commercial Energy Coefficients'!$I$11+'Commercial Energy Coefficients'!$I$14+'Commercial Energy Coefficients'!$I$18*LN((B_Pub_Emp_Acre)*(B_Lot_Size/43560))+'Commercial Energy Coefficients'!$I$19*LN(40)+'Commercial Energy Coefficients'!$I$21+'Commercial Energy Coefficients'!$I$22*LN(Commercial_Energy_Cost)+'Commercial Energy Coefficients'!$I$24*IFERROR(LOOKUP(Metro_Select,Energy_Metro_Lookup,CDD),0)),0))/1000 -> 128.0893505 | CG9: =(IFERROR(EXP('Commercial Energy Coefficients'!$D$3+LN((B_RET_Gross_Sq_Ft))*'Commercial Energy Coefficients'!$D$4+'Commercial Energy Coefficients'!$D$14+'Commercial Energy Coefficients'!$D$18*LN((B_Ret_Emp_Acre)*(B_Lot_Size/43560))+'Commercial Energy Coefficients'!$D$19*LN(40)+'Commercial Energy Coefficients'!$D$21+'Commercial Energy Coefficients'!$D$22*LN(Commercial_Energy_Cost)),0)+IFERROR(EXP('Commercial Energy Coefficients'!$G$3+LN((B_OFF_Gross_Sq_Ft))*'Commercial Energy Coefficients'!$G$4+'Commercial Energy Coefficients'!$G$14+'Commercial Energy Coefficients'!$G$18*LN((B_OFF_Emp_Acre)*(B_Lot_Size/43560))+'Commercial Energy Coefficients'!$G$19*LN(40)+'Commercial Energy Coefficients'!$G$21+'Commercial Energy Coefficients'!$G$22*LN(Commercial_Energy_Cost)),0)+IFERROR(EXP('Commercial Energy Coefficients'!$J$3+LN((B_PUB_Gross_Sq_Ft))*'Commercial Energy Coefficients'!$J$4+'Commercial Energy Coefficients'!$J$14+'Commercial Energy Coefficients'!$J$18*LN((B_Pub_Emp_Acre)*(B_Lot_Size/43560))+'Commercial Energy Coefficients'!$J$19*LN(40)+'Commercial Energy Coefficients'!$J$21+'Commercial Energy Coefficients'!$J$22*LN(Commercial_Energy_Cost)),0))/1000 -> 434.4057388 | CH9: 568.7687571 | CI9: 38.51597797 | CJ9: 0.05925535072 | CK9: 1841.676529 | CL9: 60.17769894 | CM9: 5.613369082 | CN9: 3.592766152 | CO9: 171.7913823 | CP9: 11.32610397 | CQ9: 239.5752251 | CR9: 35 | CS9: 78.94736842 | CT9: 68 | CU9: 1744.49876 | CV9: 60 | CW9: 135.3383459 | CX9: 38 | CY9: 1830.298264 | CZ9: =IF(B_Housing_Type="",0,IF(B_Housing_Type="MF",'Project Info'!$B$154,IF(B_Housing_Type="TH",'Project Info'!$B$155,IF(AND(B_Housing_Type="SF",B_Net_Sq_Ft_per_Unit>0,B_Net_Sq_Ft_per_Unit<3000),'Project Info'!$B$156,IF(AND(B_Housing_Type="SF",B_Net_Sq_Ft_per_Unit>=3000),'Project Info'!$B$157))))) -> 1.5 | DA9: 3.383458647 | DB9: 5 | DC9: 105.5641547 | DD9: =[6]!LandCost -> 16.66666667 | DE9: 500000 | DF9: 726000 | DG9: =[6]!ProjectValue -> 4896670.145 | DH9: 7109965.05 | DI9: =[6]!Subsidy -> 0 | DJ9: 0 | DK9: 0 | DL9: 21300.51513 | DM9: 631.9782555 | DN9: 30928.34797 | DO9: 164376.1255 | DP9: 238674.1342 | DQ9: 0.1269656861
B10: 7 | C10: =[7]!name -> Res 5 Owner | D10: =[7]!lot_size -> 20000 | E10: =[7]!Building_Lot_Coverage -> 0.5158371041 | F10: =[7]!Landscaping_Coverage -> 0.1368325792 | G10: =[7]!Parking_Coverage -> 0.3473303167 | H10: =[7]!Height -> 5 | I10: =[7]!FAR -> 1.650678733 | J10: 33013.57466 | K10: =[7]!ResPct -> 1 | L10: 1 | M10: 0 | N10: 0 | O10: 0 | P10: 0 | Q10: 0 | R10: 0 | S10: 0 | T10: =[7]!RetPct -> 0 | U10: =[7]!OffPct -> 0 | V10: =[7]!IndPct -> 0 | W10: =[7]!PubPct -> 0 | X10: =[7]!EduPct -> 0 | Y10: =[7]!HotelPct -> 0 | Z10: =[7]!ParkingPct -> 0 | AA10: 33013.57466 | AB10: =[7]!NetUnitSize -> 900 | AC10: =[7]!UnitSize -> 1058.823529 | AD10: 31.17948718 | AE10: 67.90892308 | AF10: =[7]!HousingType -> MF | AG10: =[7]!RentalPct -> 0 | AH10: 1 | AI10: =[7]!Rent -> 0 | AJ10: 0 | AK10: =[7]!Sales_Price -> 240 | AL10: 216000 | AM10: 1295.029134 | AN10: 0.06 | AO10: 63.83438769 | AP10: 2.255639098 | AQ10: 1.353383459 | AR10: 0.1951 | AS10: 59770.57543 | AT10: 0 | AU10: 0 | AV10: 0 | AW10: 0 | AX10: 0 | AY10: =[7]!RetSpace -> 650 | AZ10: 0 | BA10: 0 | BB10: =[7]!OffSpace -> 350 | BC10: 0 | BD10: 0 | BE10: =[7]!IndSpace -> 700 | BF10: 0 | BG10: 0 | BH10: =[7]!PubSpace -> 350 | BI10: 0 | BJ10: 0 | BK10: =[7]!EduSpace -> 800 | BL10: 0 | BM10: 0 | BN10: =[7]!HotelSpaceEmp -> 1000 | BO10: 0 | BP10: =[7]!HotelRoomNet -> 0 | BQ10: =[7]!HotelRoomGross -> 0 | BR10: 0 | BS10: 0 | BT10: 0 | BU10: =[7]!ParkingSpace -> 20000 | BV10: 0 | BW10: =[7]!ParkingSpaces -> 46.76923077 | BX10: =[7]!ParkingArea -> 15200 | BY10: =[7]!ParkingCost -> 572023.6686 | BZ10: 0.08923284216 | CA10: =IFERROR(IF(B_Housing_Type="SF",EXP('Residential Energy Coefficients'!$B$3+'Residential Energy Coefficients'!$B$4*LN(B_Net_Sq_Ft_per_Unit)+'Residential Energy Coefficients'!$B$9+'Residential Energy Coefficients'!$B$10*LN(B_HH_Income)+'Residential Energy Coefficients'!$B$16*LN(Residential_Energy_Cost)+'Residential Energy Coefficients'!$B$20+'Residential Energy Coefficients'!$B$24*IFERROR(LOOKUP(Metro_Select,Energy_Metro_Lookup,HDD),0)),IF(B_Housing_Type="TH",EXP('Residential Energy Coefficients'!$E$3+'Residential Energy Coefficients'!$E$4*LN(B_Net_Sq_Ft_per_Unit)+'Residential Energy Coefficients'!$E$9+'Residential Energy Coefficients'!$E$16*LN(Residential_Energy_Cost)+'Residential Energy Coefficients'!$E$19+'Residential Energy Coefficients'!$E$20+'Residential Energy Coefficients'!$E$24*IFERROR(LOOKUP(Metro_Select,Energy_Metro_Lookup,HDD),0)),IF(B_Housing_Type="MF",EXP('Residential Energy Coefficients'!$H$3+'Residential Energy Coefficients'!$H$4*LN(B_Net_Sq_Ft_per_Unit)+'Residential Energy Coefficients'!$H$9+IF(B_Pct_Owner=1,'Residential Energy Coefficients'!$H$12,0)+'Residential Energy Coefficients'!$H$16*LN(Residential_Energy_Cost)+'Residential Energy Coefficients'!$H$20+'Residential Energy Coefficients'!$H$24*IFERROR(LOOKUP(Metro_Select,Energy_Metro_Lookup,HDD),0)),IF(B_Hotel_Room_Acre>0,EXP('Residential Energy Coefficients'!$H$3+'Residential Energy Coefficients'!$H$4*LN(B_Hotel_Room_Net)+'Residential Energy Coefficients'!$H$9+'Residential Energy Coefficients'!$H$16*LN(Residential_Energy_Cost)+'Residential Energy Coefficients'!$H$20+'Residential Energy Coefficients'!$H$24*IFERROR(LOOKUP(Metro_Select,Energy_Metro_Lookup,HDD),0)),IF(B_Housing_Type="MH",EXP('Residential Energy Coefficients'!$K$3+'Residential Energy Coefficients'!$K$16*LN(Residential_Energy_Cost)+'Residential Energy Coefficients'!$K$24*IFERROR(LOOKUP(Metro_Select,Energy_Metro_Lookup,HDD),0)),0)))))/1000,0) -> 23.82252243 | CB10: =IFERROR(IF(B_Housing_Type="SF",EXP('Residential Energy Coefficients'!$C$3+'Residential Energy Coefficients'!$C$4*LN(B_Net_Sq_Ft_per_Unit)+'Residential Energy Coefficients'!$C$10*LN(B_HH_Income)+'Residential Energy Coefficients'!$C$11*B_HH_Size+'Residential Energy Coefficients'!$C$16*LN(Residential_Energy_Cost)+'Residential Energy Coefficients'!$C$19+'Residential Energy Coefficients'!$C$22+'Residential Energy Coefficients'!$C$25*IFERROR(LOOKUP(Metro_Select,Energy_Metro_Lookup,CDD),0)),IF(B_Housing_Type="TH",EXP('Residential Energy Coefficients'!$F$3+'Residential Energy Coefficients'!$F$4*LN(B_Net_Sq_Ft_per_Unit)+'Residential Energy Coefficients'!$F$10*LN(B_HH_Income)+'Residential Energy Coefficients'!$F$11*B_HH_Size+IF(B_Pct_Owner=1,'Residential Energy Coefficients'!$F$12,0)+'Residential Energy Coefficients'!$F$16*LN(Residential_Energy_Cost)+'Residential Energy Coefficients'!$F$22+'Residential Energy Coefficients'!$F$25*IFERROR(LOOKUP(Metro_Select,Energy_Metro_Lookup,CDD),0)),IF(B_Housing_Type="MF",EXP('Residential Energy Coefficients'!$I$3+'Residential Energy Coefficients'!$I$4*LN(B_Net_Sq_Ft_per_Unit)+'Residential Energy Coefficients'!$I$9+'Residential Energy Coefficients'!$I$11*B_HH_Size+'Residential Energy Coefficients'!$I$16*LN(Residential_Energy_Cost)+'Residential Energy Coefficients'!$I$22+'Residential Energy Coefficients'!$I$25*IFERROR(LOOKUP(Metro_Select,Energy_Metro_Lookup,CDD),0)),IF(B_Hotel_Room_Acre>0,EXP('Residential Energy Coefficients'!$I$3+'Residential Energy Coefficients'!$I$4*LN(B_Hotel_Room_Net)+'Residential Energy Coefficients'!$I$9+'Residential Energy Coefficients'!$I$11*1.25+'Residential Energy Coefficients'!$I$16*LN(Residential_Energy_Cost)+'Residential Energy Coefficients'!$I$22+'Residential Energy Coefficients'!$I$25*IFERROR(LOOKUP(Metro_Select,Energy_Metro_Lookup,CDD),0)),IF(B_Housing_Type="MH",EXP('Residential Energy Coefficients'!$L$3+'Residential Energy Coefficients'!$L$11*B_HH_Size+'Residential Energy Coefficients'!$L$16*LN(Residential_Energy_Cost)+'Residential Energy Coefficients'!$L$22+'Residential Energy Coefficients'!$L$25*IFERROR(LOOKUP(Metro_Select,Energy_Metro_Lookup,CDD),0)),0)))))/1000,0) -> 10.15771029 | CC10: =IFERROR(IF(B_Housing_Type="SF",EXP('Residential Energy Coefficients'!$D$3+'Residential Energy Coefficients'!$D$4*LN(B_Net_Sq_Ft_per_Unit)+'Residential Energy Coefficients'!$D$9+'Residential Energy Coefficients'!$D$10*LN(B_HH_Income)+'Residential Energy Coefficients'!$D$11*B_HH_Size+IF(B_Pct_Owner=1,'Residential Energy Coefficients'!$D$12,0)+'Residential Energy Coefficients'!$D$16*LN(Residential_Energy_Cost)),IF(B_Housing_Type="TH",EXP('Residential Energy Coefficients'!$G$3+'Residential Energy Coefficients'!$G$4*LN(B_Net_Sq_Ft_per_Unit)+'Residential Energy Coefficients'!$G$10*LN(B_HH_Income)+'Residential Energy Coefficients'!$G$11*B_HH_Size+'Residential Energy Coefficients'!$G$16*LN(Residential_Energy_Cost)),IF(B_Housing_Type="MF",EXP('Residential Energy Coefficients'!$J$3+'Residential Energy Coefficients'!$J$4*LN(B_Net_Sq_Ft_per_Unit)+'Residential Energy Coefficients'!$J$10*LN(B_HH_Income)+'Residential Energy Coefficients'!$J$11*B_HH_Size+IF(B_Pct_Owner=1,'Residential Energy Coefficients'!$J$12,0)+'Residential Energy Coefficients'!$J$16*LN(Residential_Energy_Cost)+'Residential Energy Coefficients'!$J$19),IF(B_Hotel_Room_Acre>0,EXP('Residential Energy Coefficients'!$J$3+'Residential Energy Coefficients'!$J$4*LN(B_Hotel_Room_Net)+'Residential Energy Coefficients'!$J$16*LN(Residential_Energy_Cost)+'Residential Energy Coefficients'!$J$19),IF(B_Housing_Type="MH",EXP('Residential Energy Coefficients'!$M$3+'Residential Energy Coefficients'!$M$4*LN(B_Net_Sq_Ft_per_Unit)+'Residential Energy Coefficients'!$M$11*B_HH_Size+'Residential Energy Coefficients'!$M$16*LN(Residential_Energy_Cost)+'Residential Energy Coefficients'!$M$19),0)))))/1000,0) -> 34.23256324 | CD10: 68.21279596 | CE10: =(IFERROR(EXP('Commercial Energy Coefficients'!$B$3+LN(B_RET_Gross_Sq_Ft)*'Commercial Energy Coefficients'!$B$4+'Commercial Energy Coefficients'!$B$11+'Commercial Energy Coefficients'!$B$14+'Commercial Energy Coefficients'!$B$18*LN((B_Ret_Emp_Acre)*(B_Lot_Size/43560))+'Commercial Energy Coefficients'!$B$19*LN(40)+'Commercial Energy Coefficients'!$B$21+'Commercial Energy Coefficients'!$B$22*LN(Commercial_Energy_Cost)+'Commercial Energy Coefficients'!$B$23*IFERROR(LOOKUP(Metro_Select,Energy_Metro_Lookup,HDD),0)),0)+IFERROR(EXP('Commercial Energy Coefficients'!$E$3+LN(B_OFF_Gross_Sq_Ft)*'Commercial Energy Coefficients'!$E$4+'Commercial Energy Coefficients'!$E$11+'Commercial Energy Coefficients'!$E$14+'Commercial Energy Coefficients'!$E$18*LN((B_OFF_Emp_Acre)*(B_Lot_Size/43560))+'Commercial Energy Coefficients'!$E$19*LN(40)+'Commercial Energy Coefficients'!$E$21+'Commercial Energy Coefficients'!$E$22*LN(Commercial_Energy_Cost)+'Commercial Energy Coefficients'!$E$23*IFERROR(LOOKUP(Metro_Select,Energy_Metro_Lookup,HDD),0)),0)+IFERROR(EXP('Commercial Energy Coefficients'!$H$3+LN(B_PUB_Gross_Sq_Ft)*'Commercial Energy Coefficients'!$H$4+'Commercial Energy Coefficients'!$H$11+'Commercial Energy Coefficients'!$H$14+'Commercial Energy Coefficients'!$H$18*LN((B_Pub_Emp_Acre)*(B_Lot_Size/43560))+'Commercial Energy Coefficients'!$H$19*LN(40)+'Commercial Energy Coefficients'!$H$21+'Commercial Energy Coefficients'!$H$22*LN(Commercial_Energy_Cost)+'Commercial Energy Coefficients'!$H$23*IFERROR(LOOKUP(Metro_Select,Energy_Metro_Lookup,HDD),0)),0))/1000 -> 0 | CF10: =(IFERROR(EXP('Commercial Energy Coefficients'!$C$3+LN((B_RET_Gross_Sq_Ft))*'Commercial Energy Coefficients'!$C$4+'Commercial Energy Coefficients'!$C$11+'Commercial Energy Coefficients'!$C$14+'Commercial Energy Coefficients'!$C$18*LN((B_Ret_Emp_Acre)*(B_Lot_Size/43560))+'Commercial Energy Coefficients'!$C$19*LN(40)+'Commercial Energy Coefficients'!$C$21+'Commercial Energy Coefficients'!$C$22*LN(Commercial_Energy_Cost)+'Commercial Energy Coefficients'!$C$24*IFERROR(LOOKUP(Metro_Select,Energy_Metro_Lookup,CDD),0)),0)+IFERROR(EXP('Commercial Energy Coefficients'!$F$3+LN((B_OFF_Gross_Sq_Ft))*'Commercial Energy Coefficients'!$F$4+'Commercial Energy Coefficients'!$F$11+'Commercial Energy Coefficients'!$F$14+'Commercial Energy Coefficients'!$F$18*LN((B_OFF_Emp_Acre)*(B_Lot_Size/43560))+'Commercial Energy Coefficients'!$F$19*LN(40)+'Commercial Energy Coefficients'!$F$21+'Commercial Energy Coefficients'!$F$22*LN(Commercial_Energy_Cost)+'Commercial Energy Coefficients'!$F$24*IFERROR(LOOKUP(Metro_Select,Energy_Metro_Lookup,CDD),0)),0)+IFERROR(EXP('Commercial Energy Coefficients'!$I$3+LN((B_PUB_Gross_Sq_Ft))*'Commercial Energy Coefficients'!$I$4+'Commercial Energy Coefficients'!$I$11+'Commercial Energy Coefficients'!$I$14+'Commercial Energy Coefficients'!$I$18*LN((B_Pub_Emp_Acre)*(B_Lot_Size/43560))+'Commercial Energy Coefficients'!$I$19*LN(40)+'Commercial Energy Coefficients'!$I$21+'Commercial Energy Coefficients'!$I$22*LN(Commercial_Energy_Cost)+'Commercial Energy Coefficients'!$I$24*IFERROR(LOOKUP(Metro_Select,Energy_Metro_Lookup,CDD),0)),0))/1000 -> 0 | CG10: =(IFERROR(EXP('Commercial Energy Coefficients'!$D$3+LN((B_RET_Gross_Sq_Ft))*'Commercial Energy Coefficients'!$D$4+'Commercial Energy Coefficients'!$D$14+'Commercial Energy Coefficients'!$D$18*LN((B_Ret_Emp_Acre)*(B_Lot_Size/43560))+'Commercial Energy Coefficients'!$D$19*LN(40)+'Commercial Energy Coefficients'!$D$21+'Commercial Energy Coefficients'!$D$22*LN(Commercial_Energy_Cost)),0)+IFERROR(EXP('Commercial Energy Coefficients'!$G$3+LN((B_OFF_Gross_Sq_Ft))*'Commercial Energy Coefficients'!$G$4+'Commercial Energy Coefficients'!$G$14+'Commercial Energy Coefficients'!$G$18*LN((B_OFF_Emp_Acre)*(B_Lot_Size/43560))+'Commercial Energy Coefficients'!$G$19*LN(40)+'Commercial Energy Coefficients'!$G$21+'Commercial Energy Coefficients'!$G$22*LN(Commercial_Energy_Cost)),0)+IFERROR(EXP('Commercial Energy Coefficients'!$J$3+LN((B_PUB_Gross_Sq_Ft))*'Commercial Energy Coefficients'!$J$4+'Commercial Energy Coefficients'!$J$14+'Commercial Energy Coefficients'!$J$18*LN((B_Pub_Emp_Acre)*(B_Lot_Size/43560))+'Commercial Energy Coefficients'!$J$19*LN(40)+'Commercial Energy Coefficients'!$J$21+'Commercial Energy Coefficients'!$J$22*LN(Commercial_Energy_Cost)),0))/1000 -> 0 | CH10: 0 | CI10: 0 | CJ10: 0 | CK10: 2126.839997 | CL10: 68.21279596 | CM10: 6.36288204 | CN10: 0 | CO10: 198.391399 | CP10: 4.388544892 | CQ10: 136.8325792 | CR10: 35 | CS10: 78.94736842 | CT10: 0 | CU10: 1091.282051 | CV10: 60 | CW10: 135.3383459 | CX10: 0 | CY10: 1870.769231 | CZ10: =IF(B_Housing_Type="",0,IF(B_Housing_Type="MF",'Project Info'!$B$154,IF(B_Housing_Type="TH",'Project Info'!$B$155,IF(AND(B_Housing_Type="SF",B_Net_Sq_Ft_per_Unit>0,B_Net_Sq_Ft_per_Unit<3000),'Project Info'!$B$156,IF(AND(B_Housing_Type="SF",B_Net_Sq_Ft_per_Unit>=3000),'Project Info'!$B$157))))) -> 1.5 | DA10: 3.383458647 | DB10: 0 | DC10: 46.76923077 | DD10: =[7]!LandCost -> 27.5 | DE10: 550000 | DF10: 1197900 | DG10: =[7]!ProjectValue -> 6410461.158 | DH10: 13961984.4 | DI10: =[7]!Subsidy -> 1021943.886 | DJ10: 32776.1608 | DK10: 2225793.783 | DL10: 25000.79851 | DM10: 801.8348208 | DN10: 54451.73917 | DO10: 0 | DP10: 0 | DQ10: 0.196509373
B11: 8 | C11: =[8]!name -> Res 5 Renter | D11: =[8]!lot_size -> 20000 | E11: =[8]!Building_Lot_Coverage -> 0.5158371041 | F11: =[8]!Landscaping_Coverage -> 0.1368325792 | G11: =[8]!Parking_Coverage -> 0.3473303167 | H11: =[8]!Height -> 5 | I11: =[8]!FAR -> 1.650678733 | J11: 33013.57466 | K11: =[8]!ResPct -> 1 | L11: 1 | M11: 0 | N11: 0 | O11: 0 | P11: 0 | Q11: 0 | R11: 0 | S11: 0 | T11: =[8]!RetPct -> 0 | U11: =[8]!OffPct -> 0 | V11: =[8]!IndPct -> 0 | W11: =[8]!PubPct -> 0 | X11: =[8]!EduPct -> 0 | Y11: =[8]!HotelPct -> 0 | Z11: =[8]!ParkingPct -> 0 | AA11: 33013.57466 | AB11: =[8]!NetUnitSize -> 900 | AC11: =[8]!UnitSize -> 1058.823529 | AD11: 31.17948718 | AE11: 67.90892308 | AF11: =[8]!HousingType -> MF | AG11: =[8]!RentalPct -> 1 | AH11: 0 | AI11: =[8]!Rent -> 1.4 | AJ11: 1260 | AK11: =[8]!Sales_Price -> 0 | AL11: 0 | AM11: 0 | AN11: 0.06 | AO11: 63.83438769 | AP11: 2.255639098 | AQ11: 1.353383459 | AR11: 0.1951 | AS11: 50400 | AT11: 0 | AU11: 0 | AV11: 0 | AW11: 0 | AX11: 0 | AY11: =[8]!RetSpace -> 650 | AZ11: 0 | BA11: 0 | BB11: =[8]!OffSpace -> 350 | BC11: 0 | BD11: 0 | BE11: =[8]!IndSpace -> 700 | BF11: 0 | BG11: 0 | BH11: =[8]!PubSpace -> 350 | BI11: 0 | BJ11: 0 | BK11: =[8]!EduSpace -> 800 | BL11: 0 | BM11: 0 | BN11: =[8]!HotelSpaceEmp -> 1000 | BO11: 0 | BP11: =[8]!HotelRoomNet -> 0 | BQ11: =[8]!HotelRoomGross -> 0 | BR11: 0 | BS11: 0 | BT11: 0 | BU11: =[8]!ParkingSpace -> 20000 | BV11: 0 | BW11: =[8]!ParkingSpaces -> 46.76923077 | BX11: =[8]!ParkingArea -> 15200 | BY11: =[8]!ParkingCost -> 572023.6686 | BZ11: 0.08923284216 | CA11: =IFERROR(IF(B_Housing_Type="SF",EXP('Residential Energy Coefficients'!$B$3+'Residential Energy Coefficients'!$B$4*LN(B_Net_Sq_Ft_per_Unit)+'Residential Energy Coefficients'!$B$9+'Residential Energy Coefficients'!$B$10*LN(B_HH_Income)+'Residential Energy Coefficients'!$B$16*LN(Residential_Energy_Cost)+'Residential Energy Coefficients'!$B$20+'Residential Energy Coefficients'!$B$24*IFERROR(LOOKUP(Metro_Select,Energy_Metro_Lookup,HDD),0)),IF(B_Housing_Type="TH",EXP('Residential Energy Coefficients'!$E$3+'Residential Energy Coefficients'!$E$4*LN(B_Net_Sq_Ft_per_Unit)+'Residential Energy Coefficients'!$E$9+'Residential Energy Coefficients'!$E$16*LN(Residential_Energy_Cost)+'Residential Energy Coefficients'!$E$19+'Residential Energy Coefficients'!$E$20+'Residential Energy Coefficients'!$E$24*IFERROR(LOOKUP(Metro_Select,Energy_Metro_Lookup,HDD),0)),IF(B_Housing_Type="MF",EXP('Residential Energy Coefficients'!$H$3+'Residential Energy Coefficients'!$H$4*LN(B_Net_Sq_Ft_per_Unit)+'Residential Energy Coefficients'!$H$9+IF(B_Pct_Owner=1,'Residential Energy Coefficients'!$H$12,0)+'Residential Energy Coefficients'!$H$16*LN(Residential_Energy_Cost)+'Residential Energy Coefficients'!$H$20+'Residential Energy Coefficients'!$H$24*IFERROR(LOOKUP(Metro_Select,Energy_Metro_Lookup,HDD),0)),IF(B_Hotel_Room_Acre>0,EXP('Residential Energy Coefficients'!$H$3+'Residential Energy Coefficients'!$H$4*LN(B_Hotel_Room_Net)+'Residential Energy Coefficients'!$H$9+'Residential Energy Coefficients'!$H$16*LN(Residential_Energy_Cost)+'Residential Energy Coefficients'!$H$20+'Residential Energy Coefficients'!$H$24*IFERROR(LOOKUP(Metro_Select,Energy_Metro_Lookup,HDD),0)),IF(B_Housing_Type="MH",EXP('Residential Energy Coefficients'!$K$3+'Residential Energy Coefficients'!$K$16*LN(Residential_Energy_Cost)+'Residential Energy Coefficients'!$K$24*IFERROR(LOOKUP(Metro_Select,Energy_Metro_Lookup,HDD),0)),0)))))/1000,0) -> 21.08646686 | CB11: =IFERROR(IF(B_Housing_Type="SF",EXP('Residential Energy Coefficients'!$C$3+'Residential Energy Coefficients'!$C$4*LN(B_Net_Sq_Ft_per_Unit)+'Residential Energy Coefficients'!$C$10*LN(B_HH_Income)+'Residential Energy Coefficients'!$C$11*B_HH_Size+'Residential Energy Coefficients'!$C$16*LN(Residential_Energy_Cost)+'Residential Energy Coefficients'!$C$19+'Residential Energy Coefficients'!$C$22+'Residential Energy Coefficients'!$C$25*IFERROR(LOOKUP(Metro_Select,Energy_Metro_Lookup,CDD),0)),IF(B_Housing_Type="TH",EXP('Residential Energy Coefficients'!$F$3+'Residential Energy Coefficients'!$F$4*LN(B_Net_Sq_Ft_per_Unit)+'Residential Energy Coefficients'!$F$10*LN(B_HH_Income)+'Residential Energy Coefficients'!$F$11*B_HH_Size+IF(B_Pct_Owner=1,'Residential Energy Coefficients'!$F$12,0)+'Residential Energy Coefficients'!$F$16*LN(Residential_Energy_Cost)+'Residential Energy Coefficients'!$F$22+'Residential Energy Coefficients'!$F$25*IFERROR(LOOKUP(Metro_Select,Energy_Metro_Lookup,CDD),0)),IF(B_Housing_Type="MF",EXP('Residential Energy Coefficients'!$I$3+'Residential Energy Coefficients'!$I$4*LN(B_Net_Sq_Ft_per_Unit)+'Residential Energy Coefficients'!$I$9+'Residential Energy Coefficients'!$I$11*B_HH_Size+'Residential Energy Coefficients'!$I$16*LN(Residential_Energy_Cost)+'Residential Energy Coefficients'!$I$22+'Residential Energy Coefficients'!$I$25*IFERROR(LOOKUP(Metro_Select,Energy_Metro_Lookup,CDD),0)),IF(B_Hotel_Room_Acre>0,EXP('Residential Energy Coefficients'!$I$3+'Residential Energy Coefficients'!$I$4*LN(B_Hotel_Room_Net)+'Residential Energy Coefficients'!$I$9+'Residential Energy Coefficients'!$I$11*1.25+'Residential Energy Coefficients'!$I$16*LN(Residential_Energy_Cost)+'Residential Energy Coefficients'!$I$22+'Residential Energy Coefficients'!$I$25*IFERROR(LOOKUP(Metro_Select,Energy_Metro_Lookup,CDD),0)),IF(B_Housing_Type="MH",EXP('Residential Energy Coefficients'!$L$3+'Residential Energy Coefficients'!$L$11*B_HH_Size+'Residential Energy Coefficients'!$L$16*LN(Residential_Energy_Cost)+'Residential Energy Coefficients'!$L$22+'Residential Energy Coefficients'!$L$25*IFERROR(LOOKUP(Metro_Select,Energy_Metro_Lookup,CDD),0)),0)))))/1000,0) -> 10.15771029 | CC11: =IFERROR(IF(B_Housing_Type="SF",EXP('Residential Energy Coefficients'!$D$3+'Residential Energy Coefficients'!$D$4*LN(B_Net_Sq_Ft_per_Unit)+'Residential Energy Coefficients'!$D$9+'Residential Energy Coefficients'!$D$10*LN(B_HH_Income)+'Residential Energy Coefficients'!$D$11*B_HH_Size+IF(B_Pct_Owner=1,'Residential Energy Coefficients'!$D$12,0)+'Residential Energy Coefficients'!$D$16*LN(Residential_Energy_Cost)),IF(B_Housing_Type="TH",EXP('Residential Energy Coefficients'!$G$3+'Residential Energy Coefficients'!$G$4*LN(B_Net_Sq_Ft_per_Unit)+'Residential Energy Coefficients'!$G$10*LN(B_HH_Income)+'Residential Energy Coefficients'!$G$11*B_HH_Size+'Residential Energy Coefficients'!$G$16*LN(Residential_Energy_Cost)),IF(B_Housing_Type="MF",EXP('Residential Energy Coefficients'!$J$3+'Residential Energy Coefficients'!$J$4*LN(B_Net_Sq_Ft_per_Unit)+'Residential Energy Coefficients'!$J$10*LN(B_HH_Income)+'Residential Energy Coefficients'!$J$11*B_HH_Size+IF(B_Pct_Owner=1,'Residential Energy Coefficients'!$J$12,0)+'Residential Energy Coefficients'!$J$16*LN(Residential_Energy_Cost)+'Residential Energy Coefficients'!$J$19),IF(B_Hotel_Room_Acre>0,EXP('Residential Energy Coefficients'!$J$3+'Residential Energy Coefficients'!$J$4*LN(B_Hotel_Room_Net)+'Residential Energy Coefficients'!$J$16*LN(Residential_Energy_Cost)+'Residential Energy Coefficients'!$J$19),IF(B_Housing_Type="MH",EXP('Residential Energy Coefficients'!$M$3+'Residential Energy Coefficients'!$M$4*LN(B_Net_Sq_Ft_per_Unit)+'Residential Energy Coefficients'!$M$11*B_HH_Size+'Residential Energy Coefficients'!$M$16*LN(Residential_Energy_Cost)+'Residential Energy Coefficients'!$M$19),0)))))/1000,0) -> 28.93352179 | CD11: 60.17769894 | CE11: =(IFERROR(EXP('Commercial Energy Coefficients'!$B$3+LN(B_RET_Gross_Sq_Ft)*'Commercial Energy Coefficients'!$B$4+'Commercial Energy Coefficients'!$B$11+'Commercial Energy Coefficients'!$B$14+'Commercial Energy Coefficients'!$B$18*LN((B_Ret_Emp_Acre)*(B_Lot_Size/43560))+'Commercial Energy Coefficients'!$B$19*LN(40)+'Commercial Energy Coefficients'!$B$21+'Commercial Energy Coefficients'!$B$22*LN(Commercial_Energy_Cost)+'Commercial Energy Coefficients'!$B$23*IFERROR(LOOKUP(Metro_Select,Energy_Metro_Lookup,HDD),0)),0)+IFERROR(EXP('Commercial Energy Coefficients'!$E$3+LN(B_OFF_Gross_Sq_Ft)*'Commercial Energy Coefficients'!$E$4+'Commercial Energy Coefficients'!$E$11+'Commercial Energy Coefficients'!$E$14+'Commercial Energy Coefficients'!$E$18*LN((B_OFF_Emp_Acre)*(B_Lot_Size/43560))+'Commercial Energy Coefficients'!$E$19*LN(40)+'Commercial Energy Coefficients'!$E$21+'Commercial Energy Coefficients'!$E$22*LN(Commercial_Energy_Cost)+'Commercial Energy Coefficients'!$E$23*IFERROR(LOOKUP(Metro_Select,Energy_Metro_Lookup,HDD),0)),0)+IFERROR(EXP('Commercial Energy Coefficients'!$H$3+LN(B_PUB_Gross_Sq_Ft)*'Commercial Energy Coefficients'!$H$4+'Commercial Energy Coefficients'!$H$11+'Commercial Energy Coefficients'!$H$14+'Commercial Energy Coefficients'!$H$18*LN((B_Pub_Emp_Acre)*(B_Lot_Size/43560))+'Commercial Energy Coefficients'!$H$19*LN(40)+'Commercial Energy Coefficients'!$H$21+'Commercial Energy Coefficients'!$H$22*LN(Commercial_Energy_Cost)+'Commercial Energy Coefficients'!$H$23*IFERROR(LOOKUP(Metro_Select,Energy_Metro_Lookup,HDD),0)),0))/1000 -> 0 | CF11: =(IFERROR(EXP('Commercial Energy Coefficients'!$C$3+LN((B_RET_Gross_Sq_Ft))*'Commercial Energy Coefficients'!$C$4+'Commercial Energy Coefficients'!$C$11+'Commercial Energy Coefficients'!$C$14+'Commercial Energy Coefficients'!$C$18*LN((B_Ret_Emp_Acre)*(B_Lot_Size/43560))+'Commercial Energy Coefficients'!$C$19*LN(40)+'Commercial Energy Coefficients'!$C$21+'Commercial Energy Coefficients'!$C$22*LN(Commercial_Energy_Cost)+'Commercial Energy Coefficients'!$C$24*IFERROR(LOOKUP(Metro_Select,Energy_Metro_Lookup,CDD),0)),0)+IFERROR(EXP('Commercial Energy Coefficients'!$F$3+LN((B_OFF_Gross_Sq_Ft))*'Commercial Energy Coefficients'!$F$4+'Commercial Energy Coefficients'!$F$11+'Commercial Energy Coefficients'!$F$14+'Commercial Energy Coefficients'!$F$18*LN((B_OFF_Emp_Acre)*(B_Lot_Size/43560))+'Commercial Energy Coefficients'!$F$19*LN(40)+'Commercial Energy Coefficients'!$F$21+'Commercial Energy Coefficients'!$F$22*LN(Commercial_Energy_Cost)+'Commercial Energy Coefficients'!$F$24*IFERROR(LOOKUP(Metro_Select,Energy_Metro_Lookup,CDD),0)),0)+IFERROR(EXP('Commercial Energy Coefficients'!$I$3+LN((B_PUB_Gross_Sq_Ft))*'Commercial Energy Coefficients'!$I$4+'Commercial Energy Coefficients'!$I$11+'Commercial Energy Coefficients'!$I$14+'Commercial Energy Coefficients'!$I$18*LN((B_Pub_Emp_Acre)*(B_Lot_Size/43560))+'Commercial Energy Coefficients'!$I$19*LN(40)+'Commercial Energy Coefficients'!$I$21+'Commercial Energy Coefficients'!$I$22*LN(Commercial_Energy_Cost)+'Commercial Energy Coefficients'!$I$24*IFERROR(LOOKUP(Metro_Select,Energy_Metro_Lookup,CDD),0)),0))/1000 -> 0 | CG11: =(IFERROR(EXP('Commercial Energy Coefficients'!$D$3+LN((B_RET_Gross_Sq_Ft))*'Commercial Energy Coefficients'!$D$4+'Commercial Energy Coefficients'!$D$14+'Commercial Energy Coefficients'!$D$18*LN((B_Ret_Emp_Acre)*(B_Lot_Size/43560))+'Commercial Energy Coefficients'!$D$19*LN(40)+'Commercial Energy Coefficients'!$D$21+'Commercial Energy Coefficients'!$D$22*LN(Commercial_Energy_Cost)),0)+IFERROR(EXP('Commercial Energy Coefficients'!$G$3+LN((B_OFF_Gross_Sq_Ft))*'Commercial Energy Coefficients'!$G$4+'Commercial Energy Coefficients'!$G$14+'Commercial Energy Coefficients'!$G$18*LN((B_OFF_Emp_Acre)*(B_Lot_Size/43560))+'Commercial Energy Coefficients'!$G$19*LN(40)+'Commercial Energy Coefficients'!$G$21+'Commercial Energy Coefficients'!$G$22*LN(Commercial_Energy_Cost)),0)+IFERROR(EXP('Commercial Energy Coefficients'!$J$3+LN((B_PUB_Gross_Sq_Ft))*'Commercial Energy Coefficients'!$J$4+'Commercial Energy Coefficients'!$J$14+'Commercial Energy Coefficients'!$J$18*LN((B_Pub_Emp_Acre)*(B_Lot_Size/43560))+'Commercial Energy Coefficients'!$J$19*LN(40)+'Commercial Energy Coefficients'!$J$21+'Commercial Energy Coefficients'!$J$22*LN(Commercial_Energy_Cost)),0))/1000 -> 0 | CH11: 0 | CI11: 0 | CJ11: 0 | CK11: 1876.309793 | CL11: 60.17769894 | CM11: 5.613369082 | CN11: 0 | CO11: 175.0219693 | CP11: 4.388544892 | CQ11: 136.8325792 | CR11: 35 | CS11: 78.94736842 | CT11: 0 | CU11: 1091.282051 | CV11: 60 | CW11: 135.3383459 | CX11: 0 | CY11: 1870.769231 | CZ11: =IF(B_Housing_Type="",0,IF(B_Housing_Type="MF",'Project Info'!$B$154,IF(B_Housing_Type="TH",'Project Info'!$B$155,IF(AND(B_Housing_Type="SF",B_Net_Sq_Ft_per_Unit>0,B_Net_Sq_Ft_per_Unit<3000),'Project Info'!$B$156,IF(AND(B_Housing_Type="SF",B_Net_Sq_Ft_per_Unit>=3000),'Project Info'!$B$157))))) -> 1.5 | DA11: 3.383458647 | DB11: 0 | DC11: 46.76923077 | DD11: =[8]!LandCost -> 27.5 | DE11: 550000 | DF11: 1197900 | DG11: =[8]!ProjectValue -> 6410461.158 | DH11: 13961984.4 | DI11: =[8]!Subsidy -> 2152236.283 | DJ11: 69027.31499 | DK11: 4687570.624 | DL11: 25000.79851 | DM11: 801.8348208 | DN11: 54451.73917 | DO11: 0 | DP11: 0 | DQ11: 0.196509373
B12: 9 | C12: =[9]!name -> Apartment 3 story | D12: =[9]!lot_size -> 10000 | E12: =[9]!Building_Lot_Coverage -> 0.3695538058 | F12: =[9]!Landscaping_Coverage -> 0.1710446194 | G12: =[9]!Parking_Coverage -> 0.4594015748 | H12: =[9]!Height -> 3 | I12: =[9]!FAR -> 0.9977952756 | J12: 9977.952756 | K12: =[9]!ResPct -> 1 | L12: 1 | M12: 0 | N12: 0 | O12: 0 | P12: 0 | Q12: 0 | R12: 0 | S12: 0 | T12: =[9]!RetPct -> 0 | U12: =[9]!OffPct -> 0 | V12: =[9]!IndPct -> 0 | W12: =[9]!PubPct -> 0 | X12: =[9]!EduPct -> 0 | Y12: =[9]!HotelPct -> 0 | Z12: =[9]!ParkingPct -> 0 | AA12: 9977.952756 | AB12: =[9]!NetUnitSize -> 900 | AC12: =[9]!UnitSize -> 1058.823529 | AD12: 9.423622047 | AE12: 41.04929764 | AF12: =[9]!HousingType -> MF | AG12: =[9]!RentalPct -> 1 | AH12: 0 | AI12: =[9]!Rent -> 1.3 | AJ12: 1170 | AK12: =[9]!Sales_Price -> 0 | AL12: 0 | AM12: 0 | AN12: 0.06 | AO12: 38.58633978 | AP12: 2.255639098 | AQ12: 1.353383459 | AR12: 0.1951 | AS12: 46800 | AT12: 0 | AU12: 0 | AV12: 0 | AW12: 0 | AX12: 0 | AY12: =[9]!RetSpace -> 650 | AZ12: 0 | BA12: 0 | BB12: =[9]!OffSpace -> 350 | BC12: 0 | BD12: 0 | BE12: =[9]!IndSpace -> 700 | BF12: 0 | BG12: 0 | BH12: =[9]!PubSpace -> 350 | BI12: 0 | BJ12: 0 | BK12: =[9]!EduSpace -> 800 | BL12: 0 | BM12: 0 | BN12: =[9]!HotelSpaceEmp -> 1000 | BO12: 0 | BP12: =[9]!HotelRoomNet -> 0 | BQ12: =[9]!HotelRoomGross -> 0 | BR12: 0 | BS12: 0 | BT12: 0 | BU12: =[9]!ParkingSpace -> 20000 | BV12: 0 | BW12: =[9]!ParkingSpaces -> 14.13543307 | BX12: =[9]!ParkingArea -> 4594.015748 | BY12: =[9]!ParkingCost -> 42406.29921 | BZ12: 0.03013486216 | CA12: =IFERROR(IF(B_Housing_Type="SF",EXP('Residential Energy Coefficients'!$B$3+'Residential Energy Coefficients'!$B$4*LN(B_Net_Sq_Ft_per_Unit)+'Residential Energy Coefficients'!$B$9+'Residential Energy Coefficients'!$B$10*LN(B_HH_Income)+'Residential Energy Coefficients'!$B$16*LN(Residential_Energy_Cost)+'Residential Energy Coefficients'!$B$20+'Residential Energy Coefficients'!$B$24*IFERROR(LOOKUP(Metro_Select,Energy_Metro_Lookup,HDD),0)),IF(B_Housing_Type="TH",EXP('Residential Energy Coefficients'!$E$3+'Residential Energy Coefficients'!$E$4*LN(B_Net_Sq_Ft_per_Unit)+'Residential Energy Coefficients'!$E$9+'Residential Energy Coefficients'!$E$16*LN(Residential_Energy_Cost)+'Residential Energy Coefficients'!$E$19+'Residential Energy Coefficients'!$E$20+'Residential Energy Coefficients'!$E$24*IFERROR(LOOKUP(Metro_Select,Energy_Metro_Lookup,HDD),0)),IF(B_Housing_Type="MF",EXP('Residential Energy Coefficients'!$H$3+'Residential Energy Coefficients'!$H$4*LN(B_Net_Sq_Ft_per_Unit)+'Residential Energy Coefficients'!$H$9+IF(B_Pct_Owner=1,'Residential Energy Coefficients'!$H$12,0)+'Residential Energy Coefficients'!$H$16*LN(Residential_Energy_Cost)+'Residential Energy Coefficients'!$H$20+'Residential Energy Coefficients'!$H$24*IFERROR(LOOKUP(Metro_Select,Energy_Metro_Lookup,HDD),0)),IF(B_Hotel_Room_Acre>0,EXP('Residential Energy Coefficients'!$H$3+'Residential Energy Coefficients'!$H$4*LN(B_Hotel_Room_Net)+'Residential Energy Coefficients'!$H$9+'Residential Energy Coefficients'!$H$16*LN(Residential_Energy_Cost)+'Residential Energy Coefficients'!$H$20+'Residential Energy Coefficients'!$H$24*IFERROR(LOOKUP(Metro_Select,Energy_Metro_Lookup,HDD),0)),IF(B_Housing_Type="MH",EXP('Residential Energy Coefficients'!$K$3+'Residential Energy Coefficients'!$K$16*LN(Residential_Energy_Cost)+'Residential Energy Coefficients'!$K$24*IFERROR(LOOKUP(Metro_Select,Energy_Metro_Lookup,HDD),0)),0)))))/1000,0) -> 21.08646686 | CB12: =IFERROR(IF(B_Housing_Type="SF",EXP('Residential Energy Coefficients'!$C$3+'Residential Energy Coefficients'!$C$4*LN(B_Net_Sq_Ft_per_Unit)+'Residential Energy Coefficients'!$C$10*LN(B_HH_Income)+'Residential Energy Coefficients'!$C$11*B_HH_Size+'Residential Energy Coefficients'!$C$16*LN(Residential_Energy_Cost)+'Residential Energy Coefficients'!$C$19+'Residential Energy Coefficients'!$C$22+'Residential Energy Coefficients'!$C$25*IFERROR(LOOKUP(Metro_Select,Energy_Metro_Lookup,CDD),0)),IF(B_Housing_Type="TH",EXP('Residential Energy Coefficients'!$F$3+'Residential Energy Coefficients'!$F$4*LN(B_Net_Sq_Ft_per_Unit)+'Residential Energy Coefficients'!$F$10*LN(B_HH_Income)+'Residential Energy Coefficients'!$F$11*B_HH_Size+IF(B_Pct_Owner=1,'Residential Energy Coefficients'!$F$12,0)+'Residential Energy Coefficients'!$F$16*LN(Residential_Energy_Cost)+'Residential Energy Coefficients'!$F$22+'Residential Energy Coefficients'!$F$25*IFERROR(LOOKUP(Metro_Select,Energy_Metro_Lookup,CDD),0)),IF(B_Housing_Type="MF",EXP('Residential Energy Coefficients'!$I$3+'Residential Energy Coefficients'!$I$4*LN(B_Net_Sq_Ft_per_Unit)+'Residential Energy Coefficients'!$I$9+'Residential Energy Coefficients'!$I$11*B_HH_Size+'Residential Energy Coefficients'!$I$16*LN(Residential_Energy_Cost)+'Residential Energy Coefficients'!$I$22+'Residential Energy Coefficients'!$I$25*IFERROR(LOOKUP(Metro_Select,Energy_Metro_Lookup,CDD),0)),IF(B_Hotel_Room_Acre>0,EXP('Residential Energy Coefficients'!$I$3+'Residential Energy Coefficients'!$I$4*LN(B_Hotel_Room_Net)+'Residential Energy Coefficients'!$I$9+'Residential Energy Coefficients'!$I$11*1.25+'Residential Energy Coefficients'!$I$16*LN(Residential_Energy_Cost)+'Residential Energy Coefficients'!$I$22+'Residential Energy Coefficients'!$I$25*IFERROR(LOOKUP(Metro_Select,Energy_Metro_Lookup,CDD),0)),IF(B_Housing_Type="MH",EXP('Residential Energy Coefficients'!$L$3+'Residential Energy Coefficients'!$L$11*B_HH_Size+'Residential Energy Coefficients'!$L$16*LN(Residential_Energy_Cost)+'Residential Energy Coefficients'!$L$22+'Residential Energy Coefficients'!$L$25*IFERROR(LOOKUP(Metro_Select,Energy_Metro_Lookup,CDD),0)),0)))))/1000,0) -> 10.15771029 | CC12: =IFERROR(IF(B_Housing_Type="SF",EXP('Residential Energy Coefficients'!$D$3+'Residential Energy Coefficients'!$D$4*LN(B_Net_Sq_Ft_per_Unit)+'Residential Energy Coefficients'!$D$9+'Residential Energy Coefficients'!$D$10*LN(B_HH_Income)+'Residential Energy Coefficients'!$D$11*B_HH_Size+IF(B_Pct_Owner=1,'Residential Energy Coefficients'!$D$12,0)+'Residential Energy Coefficients'!$D$16*LN(Residential_Energy_Cost)),IF(B_Housing_Type="TH",EXP('Residential Energy Coefficients'!$G$3+'Residential Energy Coefficients'!$G$4*LN(B_Net_Sq_Ft_per_Unit)+'Residential Energy Coefficients'!$G$10*LN(B_HH_Income)+'Residential Energy Coefficients'!$G$11*B_HH_Size+'Residential Energy Coefficients'!$G$16*LN(Residential_Energy_Cost)),IF(B_Housing_Type="MF",EXP('Residential Energy Coefficients'!$J$3+'Residential Energy Coefficients'!$J$4*LN(B_Net_Sq_Ft_per_Unit)+'Residential Energy Coefficients'!$J$10*LN(B_HH_Income)+'Residential Energy Coefficients'!$J$11*B_HH_Size+IF(B_Pct_Owner=1,'Residential Energy Coefficients'!$J$12,0)+'Residential Energy Coefficients'!$J$16*LN(Residential_Energy_Cost)+'Residential Energy Coefficients'!$J$19),IF(B_Hotel_Room_Acre>0,EXP('Residential Energy Coefficients'!$J$3+'Residential Energy Coefficients'!$J$4*LN(B_Hotel_Room_Net)+'Residential Energy Coefficients'!$J$16*LN(Residential_Energy_Cost)+'Residential Energy Coefficients'!$J$19),IF(B_Housing_Type="MH",EXP('Residential Energy Coefficients'!$M$3+'Residential Energy Coefficients'!$M$4*LN(B_Net_Sq_Ft_per_Unit)+'Residential Energy Coefficients'!$M$11*B_HH_Size+'Residential Energy Coefficients'!$M$16*LN(Residential_Energy_Cost)+'Residential Energy Coefficients'!$M$19),0)))))/1000,0) -> 28.74331554 | CD12: 59.98749268 | CE12: =(IFERROR(EXP('Commercial Energy Coefficients'!$B$3+LN(B_RET_Gross_Sq_Ft)*'Commercial Energy Coefficients'!$B$4+'Commercial Energy Coefficients'!$B$11+'Commercial Energy Coefficients'!$B$14+'Commercial Energy Coefficients'!$B$18*LN((B_Ret_Emp_Acre)*(B_Lot_Size/43560))+'Commercial Energy Coefficients'!$B$19*LN(40)+'Commercial Energy Coefficients'!$B$21+'Commercial Energy Coefficients'!$B$22*LN(Commercial_Energy_Cost)+'Commercial Energy Coefficients'!$B$23*IFERROR(LOOKUP(Metro_Select,Energy_Metro_Lookup,HDD),0)),0)+IFERROR(EXP('Commercial Energy Coefficients'!$E$3+LN(B_OFF_Gross_Sq_Ft)*'Commercial Energy Coefficients'!$E$4+'Commercial Energy Coefficients'!$E$11+'Commercial Energy Coefficients'!$E$14+'Commercial Energy Coefficients'!$E$18*LN((B_OFF_Emp_Acre)*(B_Lot_Size/43560))+'Commercial Energy Coefficients'!$E$19*LN(40)+'Commercial Energy Coefficients'!$E$21+'Commercial Energy Coefficients'!$E$22*LN(Commercial_Energy_Cost)+'Commercial Energy Coefficients'!$E$23*IFERROR(LOOKUP(Metro_Select,Energy_Metro_Lookup,HDD),0)),0)+IFERROR(EXP('Commercial Energy Coefficients'!$H$3+LN(B_PUB_Gross_Sq_Ft)*'Commercial Energy Coefficients'!$H$4+'Commercial Energy Coefficients'!$H$11+'Commercial Energy Coefficients'!$H$14+'Commercial Energy Coefficients'!$H$18*LN((B_Pub_Emp_Acre)*(B_Lot_Size/43560))+'Commercial Energy Coefficients'!$H$19*LN(40)+'Commercial Energy Coefficients'!$H$21+'Commercial Energy Coefficients'!$H$22*LN(Commercial_Energy_Cost)+'Commercial Energy Coefficients'!$H$23*IFERROR(LOOKUP(Metro_Select,Energy_Metro_Lookup,HDD),0)),0))/1000 -> 0 | CF12: =(IFERROR(EXP('Commercial Energy Coefficients'!$C$3+LN((B_RET_Gross_Sq_Ft))*'Commercial Energy Coefficients'!$C$4+'Commercial Energy Coefficients'!$C$11+'Commercial Energy Coefficients'!$C$14+'Commercial Energy Coefficients'!$C$18*LN((B_Ret_Emp_Acre)*(B_Lot_Size/43560))+'Commercial Energy Coefficients'!$C$19*LN(40)+'Commercial Energy Coefficients'!$C$21+'Commercial Energy Coefficients'!$C$22*LN(Commercial_Energy_Cost)+'Commercial Energy Coefficients'!$C$24*IFERROR(LOOKUP(Metro_Select,Energy_Metro_Lookup,CDD),0)),0)+IFERROR(EXP('Commercial Energy Coefficients'!$F$3+LN((B_OFF_Gross_Sq_Ft))*'Commercial Energy Coefficients'!$F$4+'Commercial Energy Coefficients'!$F$11+'Commercial Energy Coefficients'!$F$14+'Commercial Energy Coefficients'!$F$18*LN((B_OFF_Emp_Acre)*(B_Lot_Size/43560))+'Commercial Energy Coefficients'!$F$19*LN(40)+'Commercial Energy Coefficients'!$F$21+'Commercial Energy Coefficients'!$F$22*LN(Commercial_Energy_Cost)+'Commercial Energy Coefficients'!$F$24*IFERROR(LOOKUP(Metro_Select,Energy_Metro_Lookup,CDD),0)),0)+IFERROR(EXP('Commercial Energy Coefficients'!$I$3+LN((B_PUB_Gross_Sq_Ft))*'Commercial Energy Coefficients'!$I$4+'Commercial Energy Coefficients'!$I$11+'Commercial Energy Coefficients'!$I$14+'Commercial Energy Coefficients'!$I$18*LN((B_Pub_Emp_Acre)*(B_Lot_Size/43560))+'Commercial Energy Coefficients'!$I$19*LN(40)+'Commercial Energy Coefficients'!$I$21+'Commercial Energy Coefficients'!$I$22*LN(Commercial_Energy_Cost)+'Commercial Energy Coefficients'!$I$24*IFERROR(LOOKUP(Metro_Select,Energy_Metro_Lookup,CDD),0)),0))/1000 -> 0 | CG12: =(IFERROR(EXP('Commercial Energy Coefficients'!$D$3+LN((B_RET_Gross_Sq_Ft))*'Commercial Energy Coefficients'!$D$4+'Commercial Energy Coefficients'!$D$14+'Commercial Energy Coefficients'!$D$18*LN((B_Ret_Emp_Acre)*(B_Lot_Size/43560))+'Commercial Energy Coefficients'!$D$19*LN(40)+'Commercial Energy Coefficients'!$D$21+'Commercial Energy Coefficients'!$D$22*LN(Commercial_Energy_Cost)),0)+IFERROR(EXP('Commercial Energy Coefficients'!$G$3+LN((B_OFF_Gross_Sq_Ft))*'Commercial Energy Coefficients'!$G$4+'Commercial Energy Coefficients'!$G$14+'Commercial Energy Coefficients'!$G$18*LN((B_OFF_Emp_Acre)*(B_Lot_Size/43560))+'Commercial Energy Coefficients'!$G$19*LN(40)+'Commercial Energy Coefficients'!$G$21+'Commercial Energy Coefficients'!$G$22*LN(Commercial_Energy_Cost)),0)+IFERROR(EXP('Commercial Energy Coefficients'!$J$3+LN((B_PUB_Gross_Sq_Ft))*'Commercial Energy Coefficients'!$J$4+'Commercial Energy Coefficients'!$J$14+'Commercial Energy Coefficients'!$J$18*LN((B_Pub_Emp_Acre)*(B_Lot_Size/43560))+'Commercial Energy Coefficients'!$J$19*LN(40)+'Commercial Energy Coefficients'!$J$21+'Commercial Energy Coefficients'!$J$22*LN(Commercial_Energy_Cost)),0))/1000 -> 0 | CH12: 0 | CI12: 0 | CJ12: 0 | CK12: 565.2994586 | CL12: 59.98749268 | CM12: 5.595626663 | CN12: 0 | CO12: 52.73107079 | CP12: 9.075311943 | CQ12: 85.52230971 | CR12: 35 | CS12: 78.94736842 | CT12: 0 | CU12: 329.8267717 | CV12: 60 | CW12: 135.3383459 | CX12: 0 | CY12: 565.4173228 | CZ12: =IF(B_Housing_Type="",0,IF(B_Housing_Type="MF",'Project Info'!$B$154,IF(B_Housing_Type="TH",'Project Info'!$B$155,IF(AND(B_Housing_Type="SF",B_Net_Sq_Ft_per_Unit>0,B_Net_Sq_Ft_per_Unit<3000),'Project Info'!$B$156,IF(AND(B_Housing_Type="SF",B_Net_Sq_Ft_per_Unit>=3000),'Project Info'!$B$157))))) -> 1.5 | DA12: 3.383458647 | DB12: 0 | DC12: 14.13543307 | DD12: =[9]!LandCost -> 15 | DE12: 150000 | DF12: 653400 | DG12: =[9]!ProjectValue -> 1407217.295 | DH12: 6129838.536 | DI12: =[9]!Subsidy -> 0 | DJ12: 0 | DK12: 0 | DL12: 5488.147449 | DM12: 582.381957 | DN12: 23906.37029 | DO12: 0 | DP12: 0 | DQ12: 0.1187851519
B13: 10 | C13: =[10]!name -> Townhome | D13: =[10]!lot_size -> 6000 | E13: =[10]!Building_Lot_Coverage -> 0.3070175439 | F13: =[10]!Landscaping_Coverage -> 0.3392982456 | G13: =[10]!Parking_Coverage -> 0.3536842105 | H13: =[10]!Height -> 2 | I13: =[10]!FAR -> 0.5526315789 | J13: 3315.789474 | K13: =[10]!ResPct -> 1 | L13: 0 | M13: 1 | N13: 0 | O13: 0 | P13: 0 | Q13: 0 | R13: 0 | S13: 0 | T13: =[10]!RetPct -> 0 | U13: =[10]!OffPct -> 0 | V13: =[10]!IndPct -> 0 | W13: =[10]!PubPct -> 0 | X13: =[10]!EduPct -> 0 | Y13: =[10]!HotelPct -> 0 | Z13: =[10]!ParkingPct -> 0 | AA13: 3315.789474 | AB13: =[10]!NetUnitSize -> 1250 | AC13: =[10]!UnitSize -> 1250 | AD13: 2.652631579 | AE13: 19.25810526 | AF13: =[10]!HousingType -> TH | AG13: =[10]!RentalPct -> 0 | AH13: 1 | AI13: =[10]!Rent -> 0 | AJ13: 0 | AK13: =[10]!Sales_Price -> 200 | AL13: 250000 | AM13: 1498.876313 | AN13: 0.06 | AO13: 18.10261895 | AP13: 2.50501002 | AQ13: 1.503006012 | AR13: 0.1951 | AS13: 69178.90675 | AT13: 0 | AU13: 0 | AV13: 0 | AW13: 0 | AX13: 0 | AY13: =[10]!RetSpace -> 650 | AZ13: 0 | BA13: 0 | BB13: =[10]!OffSpace -> 350 | BC13: 0 | BD13: 0 | BE13: =[10]!IndSpace -> 700 | BF13: 0 | BG13: 0 | BH13: =[10]!PubSpace -> 350 | BI13: 0 | BJ13: 0 | BK13: =[10]!EduSpace -> 800 | BL13: 0 | BM13: 0 | BN13: =[10]!HotelSpaceEmp -> 1000 | BO13: 0 | BP13: =[10]!HotelRoomNet -> 0 | BQ13: =[10]!HotelRoomGross -> 0 | BR13: 0 | BS13: 0 | BT13: 0 | BU13: =[10]!ParkingSpace -> 20000 | BV13: 0 | BW13: =[10]!ParkingSpaces -> 5.305263158 | BX13: =[10]!ParkingArea -> 2122.105263 | BY13: =[10]!ParkingCost -> 15915.78947 | BZ13: 0.03028407057 | CA13: =IFERROR(IF(B_Housing_Type="SF",EXP('Residential Energy Coefficients'!$B$3+'Residential Energy Coefficients'!$B$4*LN(B_Net_Sq_Ft_per_Unit)+'Residential Energy Coefficients'!$B$9+'Residential Energy Coefficients'!$B$10*LN(B_HH_Income)+'Residential Energy Coefficients'!$B$16*LN(Residential_Energy_Cost)+'Residential Energy Coefficients'!$B$20+'Residential Energy Coefficients'!$B$24*IFERROR(LOOKUP(Metro_Select,Energy_Metro_Lookup,HDD),0)),IF(B_Housing_Type="TH",EXP('Residential Energy Coefficients'!$E$3+'Residential Energy Coefficients'!$E$4*LN(B_Net_Sq_Ft_per_Unit)+'Residential Energy Coefficients'!$E$9+'Residential Energy Coefficients'!$E$16*LN(Residential_Energy_Cost)+'Residential Energy Coefficients'!$E$19+'Residential Energy Coefficients'!$E$20+'Residential Energy Coefficients'!$E$24*IFERROR(LOOKUP(Metro_Select,Energy_Metro_Lookup,HDD),0)),IF(B_Housing_Type="MF",EXP('Residential Energy Coefficients'!$H$3+'Residential Energy Coefficients'!$H$4*LN(B_Net_Sq_Ft_per_Unit)+'Residential Energy Coefficients'!$H$9+IF(B_Pct_Owner=1,'Residential Energy Coefficients'!$H$12,0)+'Residential Energy Coefficients'!$H$16*LN(Residential_Energy_Cost)+'Residential Energy Coefficients'!$H$20+'Residential Energy Coefficients'!$H$24*IFERROR(LOOKUP(Metro_Select,Energy_Metro_Lookup,HDD),0)),IF(B_Hotel_Room_Acre>0,EXP('Residential Energy Coefficients'!$H$3+'Residential Energy Coefficients'!$H$4*LN(B_Hotel_Room_Net)+'Residential Energy Coefficients'!$H$9+'Residential Energy Coefficients'!$H$16*LN(Residential_Energy_Cost)+'Residential Energy Coefficients'!$H$20+'Residential Energy Coefficients'!$H$24*IFERROR(LOOKUP(Metro_Select,Energy_Metro_Lookup,HDD),0)),IF(B_Housing_Type="MH",EXP('Residential Energy Coefficients'!$K$3+'Residential Energy Coefficients'!$K$16*LN(Residential_Energy_Cost)+'Residential Energy Coefficients'!$K$24*IFERROR(LOOKUP(Metro_Select,Energy_Metro_Lookup,HDD),0)),0)))))/1000,0) -> 29.32322504 | CB13: =IFERROR(IF(B_Housing_Type="SF",EXP('Residential Energy Coefficients'!$C$3+'Residential Energy Coefficients'!$C$4*LN(B_Net_Sq_Ft_per_Unit)+'Residential Energy Coefficients'!$C$10*LN(B_HH_Income)+'Residential Energy Coefficients'!$C$11*B_HH_Size+'Residential Energy Coefficients'!$C$16*LN(Residential_Energy_Cost)+'Residential Energy Coefficients'!$C$19+'Residential Energy Coefficients'!$C$22+'Residential Energy Coefficients'!$C$25*IFERROR(LOOKUP(Metro_Select,Energy_Metro_Lookup,CDD),0)),IF(B_Housing_Type="TH",EXP('Residential Energy Coefficients'!$F$3+'Residential Energy Coefficients'!$F$4*LN(B_Net_Sq_Ft_per_Unit)+'Residential Energy Coefficients'!$F$10*LN(B_HH_Income)+'Residential Energy Coefficients'!$F$11*B_HH_Size+IF(B_Pct_Owner=1,'Residential Energy Coefficients'!$F$12,0)+'Residential Energy Coefficients'!$F$16*LN(Residential_Energy_Cost)+'Residential Energy Coefficients'!$F$22+'Residential Energy Coefficients'!$F$25*IFERROR(LOOKUP(Metro_Select,Energy_Metro_Lookup,CDD),0)),IF(B_Housing_Type="MF",EXP('Residential Energy Coefficients'!$I$3+'Residential Energy Coefficients'!$I$4*LN(B_Net_Sq_Ft_per_Unit)+'Residential Energy Coefficients'!$I$9+'Residential Energy Coefficients'!$I$11*B_HH_Size+'Residential Energy Coefficients'!$I$16*LN(Residential_Energy_Cost)+'Residential Energy Coefficients'!$I$22+'Residential Energy Coefficients'!$I$25*IFERROR(LOOKUP(Metro_Select,Energy_Metro_Lookup,CDD),0)),IF(B_Hotel_Room_Acre>0,EXP('Residential Energy Coefficients'!$I$3+'Residential Energy Coefficients'!$I$4*LN(B_Hotel_Room_Net)+'Residential Energy Coefficients'!$I$9+'Residential Energy Coefficients'!$I$11*1.25+'Residential Energy Coefficients'!$I$16*LN(Residential_Energy_Cost)+'Residential Energy Coefficients'!$I$22+'Residential Energy Coefficients'!$I$25*IFERROR(LOOKUP(Metro_Select,Energy_Metro_Lookup,CDD),0)),IF(B_Housing_Type="MH",EXP('Residential Energy Coefficients'!$L$3+'Residential Energy Coefficients'!$L$11*B_HH_Size+'Residential Energy Coefficients'!$L$16*LN(Residential_Energy_Cost)+'Residential Energy Coefficients'!$L$22+'Residential Energy Coefficients'!$L$25*IFERROR(LOOKUP(Metro_Select,Energy_Metro_Lookup,CDD),0)),0)))))/1000,0) -> 7.096599967 | CC13: =IFERROR(IF(B_Housing_Type="SF",EXP('Residential Energy Coefficients'!$D$3+'Residential Energy Coefficients'!$D$4*LN(B_Net_Sq_Ft_per_Unit)+'Residential Energy Coefficients'!$D$9+'Residential Energy Coefficients'!$D$10*LN(B_HH_Income)+'Residential Energy Coefficients'!$D$11*B_HH_Size+IF(B_Pct_Owner=1,'Residential Energy Coefficients'!$D$12,0)+'Residential Energy Coefficients'!$D$16*LN(Residential_Energy_Cost)),IF(B_Housing_Type="TH",EXP('Residential Energy Coefficients'!$G$3+'Residential Energy Coefficients'!$G$4*LN(B_Net_Sq_Ft_per_Unit)+'Residential Energy Coefficients'!$G$10*LN(B_HH_Income)+'Residential Energy Coefficients'!$G$11*B_HH_Size+'Residential Energy Coefficients'!$G$16*LN(Residential_Energy_Cost)),IF(B_Housing_Type="MF",EXP('Residential Energy Coefficients'!$J$3+'Residential Energy Coefficients'!$J$4*LN(B_Net_Sq_Ft_per_Unit)+'Residential Energy Coefficients'!$J$10*LN(B_HH_Income)+'Residential Energy Coefficients'!$J$11*B_HH_Size+IF(B_Pct_Owner=1,'Residential Energy Coefficients'!$J$12,0)+'Residential Energy Coefficients'!$J$16*LN(Residential_Energy_Cost)+'Residential Energy Coefficients'!$J$19),IF(B_Hotel_Room_Acre>0,EXP('Residential Energy Coefficients'!$J$3+'Residential Energy Coefficients'!$J$4*LN(B_Hotel_Room_Net)+'Residential Energy Coefficients'!$J$16*LN(Residential_Energy_Cost)+'Residential Energy Coefficients'!$J$19),IF(B_Housing_Type="MH",EXP('Residential Energy Coefficients'!$M$3+'Residential Energy Coefficients'!$M$4*LN(B_Net_Sq_Ft_per_Unit)+'Residential Energy Coefficients'!$M$11*B_HH_Size+'Residential Energy Coefficients'!$M$16*LN(Residential_Energy_Cost)+'Residential Energy Coefficients'!$M$19),0)))))/1000,0) -> 46.23722023 | CD13: 82.65704524 | CE13: =(IFERROR(EXP('Commercial Energy Coefficients'!$B$3+LN(B_RET_Gross_Sq_Ft)*'Commercial Energy Coefficients'!$B$4+'Commercial Energy Coefficients'!$B$11+'Commercial Energy Coefficients'!$B$14+'Commercial Energy Coefficients'!$B$18*LN((B_Ret_Emp_Acre)*(B_Lot_Size/43560))+'Commercial Energy Coefficients'!$B$19*LN(40)+'Commercial Energy Coefficients'!$B$21+'Commercial Energy Coefficients'!$B$22*LN(Commercial_Energy_Cost)+'Commercial Energy Coefficients'!$B$23*IFERROR(LOOKUP(Metro_Select,Energy_Metro_Lookup,HDD),0)),0)+IFERROR(EXP('Commercial Energy Coefficients'!$E$3+LN(B_OFF_Gross_Sq_Ft)*'Commercial Energy Coefficients'!$E$4+'Commercial Energy Coefficients'!$E$11+'Commercial Energy Coefficients'!$E$14+'Commercial Energy Coefficients'!$E$18*LN((B_OFF_Emp_Acre)*(B_Lot_Size/43560))+'Commercial Energy Coefficients'!$E$19*LN(40)+'Commercial Energy Coefficients'!$E$21+'Commercial Energy Coefficients'!$E$22*LN(Commercial_Energy_Cost)+'Commercial Energy Coefficients'!$E$23*IFERROR(LOOKUP(Metro_Select,Energy_Metro_Lookup,HDD),0)),0)+IFERROR(EXP('Commercial Energy Coefficients'!$H$3+LN(B_PUB_Gross_Sq_Ft)*'Commercial Energy Coefficients'!$H$4+'Commercial Energy Coefficients'!$H$11+'Commercial Energy Coefficients'!$H$14+'Commercial Energy Coefficients'!$H$18*LN((B_Pub_Emp_Acre)*(B_Lot_Size/43560))+'Commercial Energy Coefficients'!$H$19*LN(40)+'Commercial Energy Coefficients'!$H$21+'Commercial Energy Coefficients'!$H$22*LN(Commercial_Energy_Cost)+'Commercial Energy Coefficients'!$H$23*IFERROR(LOOKUP(Metro_Select,Energy_Metro_Lookup,HDD),0)),0))/1000 -> 0 | CF13: =(IFERROR(EXP('Commercial Energy Coefficients'!$C$3+LN((B_RET_Gross_Sq_Ft))*'Commercial Energy Coefficients'!$C$4+'Commercial Energy Coefficients'!$C$11+'Commercial Energy Coefficients'!$C$14+'Commercial Energy Coefficients'!$C$18*LN((B_Ret_Emp_Acre)*(B_Lot_Size/43560))+'Commercial Energy Coefficients'!$C$19*LN(40)+'Commercial Energy Coefficients'!$C$21+'Commercial Energy Coefficients'!$C$22*LN(Commercial_Energy_Cost)+'Commercial Energy Coefficients'!$C$24*IFERROR(LOOKUP(Metro_Select,Energy_Metro_Lookup,CDD),0)),0)+IFERROR(EXP('Commercial Energy Coefficients'!$F$3+LN((B_OFF_Gross_Sq_Ft))*'Commercial Energy Coefficients'!$F$4+'Commercial Energy Coefficients'!$F$11+'Commercial Energy Coefficients'!$F$14+'Commercial Energy Coefficients'!$F$18*LN((B_OFF_Emp_Acre)*(B_Lot_Size/43560))+'Commercial Energy Coefficients'!$F$19*LN(40)+'Commercial Energy Coefficients'!$F$21+'Commercial Energy Coefficients'!$F$22*LN(Commercial_Energy_Cost)+'Commercial Energy Coefficients'!$F$24*IFERROR(LOOKUP(Metro_Select,Energy_Metro_Lookup,CDD),0)),0)+IFERROR(EXP('Commercial Energy Coefficients'!$I$3+LN((B_PUB_Gross_Sq_Ft))*'Commercial Energy Coefficients'!$I$4+'Commercial Energy Coefficients'!$I$11+'Commercial Energy Coefficients'!$I$14+'Commercial Energy Coefficients'!$I$18*LN((B_Pub_Emp_Acre)*(B_Lot_Size/43560))+'Commercial Energy Coefficients'!$I$19*LN(40)+'Commercial Energy Coefficients'!$I$21+'Commercial Energy Coefficients'!$I$22*LN(Commercial_Energy_Cost)+'Commercial Energy Coefficients'!$I$24*IFERROR(LOOKUP(Metro_Select,Energy_Metro_Lookup,CDD),0)),0))/1000 -> 0 | CG13: =(IFERROR(EXP('Commercial Energy Coefficients'!$D$3+LN((B_RET_Gross_Sq_Ft))*'Commercial Energy Coefficients'!$D$4+'Commercial Energy Coefficients'!$D$14+'Commercial Energy Coefficients'!$D$18*LN((B_Ret_Emp_Acre)*(B_Lot_Size/43560))+'Commercial Energy Coefficients'!$D$19*LN(40)+'Commercial Energy Coefficients'!$D$21+'Commercial Energy Coefficients'!$D$22*LN(Commercial_Energy_Cost)),0)+IFERROR(EXP('Commercial Energy Coefficients'!$G$3+LN((B_OFF_Gross_Sq_Ft))*'Commercial Energy Coefficients'!$G$4+'Commercial Energy Coefficients'!$G$14+'Commercial Energy Coefficients'!$G$18*LN((B_OFF_Emp_Acre)*(B_Lot_Size/43560))+'Commercial Energy Coefficients'!$G$19*LN(40)+'Commercial Energy Coefficients'!$G$21+'Commercial Energy Coefficients'!$G$22*LN(Commercial_Energy_Cost)),0)+IFERROR(EXP('Commercial Energy Coefficients'!$J$3+LN((B_PUB_Gross_Sq_Ft))*'Commercial Energy Coefficients'!$J$4+'Commercial Energy Coefficients'!$J$14+'Commercial Energy Coefficients'!$J$18*LN((B_Pub_Emp_Acre)*(B_Lot_Size/43560))+'Commercial Energy Coefficients'!$J$19*LN(40)+'Commercial Energy Coefficients'!$J$21+'Commercial Energy Coefficients'!$J$22*LN(Commercial_Energy_Cost)),0))/1000 -> 0 | CH13: 0 | CI13: 0 | CJ13: 0 | CK13: 219.2586884 | CL13: 82.65704524 | CM13: 7.710240011 | CN13: 0 | CO13: 20.45242613 | CP13: 38.37301587 | CQ13: 101.7894737 | CR13: 50 | CS13: 125.250501 | CT13: 0 | CU13: 132.6315789 | CV13: 80 | CW13: 200.4008016 | CX13: 0 | CY13: 212.2105263 | CZ13: =IF(B_Housing_Type="",0,IF(B_Housing_Type="MF",'Project Info'!$B$154,IF(B_Housing_Type="TH",'Project Info'!$B$155,IF(AND(B_Housing_Type="SF",B_Net_Sq_Ft_per_Unit>0,B_Net_Sq_Ft_per_Unit<3000),'Project Info'!$B$156,IF(AND(B_Housing_Type="SF",B_Net_Sq_Ft_per_Unit>=3000),'Project Info'!$B$157))))) -> 2 | DA13: 5.01002004 | DB13: 0 | DC13: 5.305263158 | DD13: =[10]!LandCost -> 16.66666667 | DE13: 100000 | DF13: 726000 | DG13: =[10]!ProjectValue -> 525549.8741 | DH13: 3815492.086 | DI13: =[10]!Subsidy -> 0 | DJ13: 0 | DK13: 0 | DL13: 2049.644509 | DM13: 772.6834459 | DN13: 14880.41914 | DO13: 0 | DP13: 0 | DQ13: 0.06578947368
B14: 11 | C14: =[11]!name -> Compact Single Family | D14: =[11]!lot_size -> 5000 | E14: =[11]!Building_Lot_Coverage -> 0.3152854031 | F14: =[11]!Landscaping_Coverage -> 0.5712118519 | G14: =[11]!Parking_Coverage -> 0.1135027451 | H14: =[11]!Height -> 2 | I14: =[11]!FAR -> 0.4256352941 | J14: 2128.176471 | K14: =[11]!ResPct -> 1 | L14: 0 | M14: 0 | N14: 1 | O14: 1 | P14: 0 | Q14: 0 | R14: 0 | S14: =SUM(T14:Z14) -> 0 | T14: =[11]!RetPct -> 0 | U14: =[11]!OffPct -> 0 | V14: =[11]!IndPct -> 0 | W14: =[11]!PubPct -> 0 | X14: =[11]!EduPct -> 0 | Y14: =[11]!HotelPct -> 0 | Z14: =[11]!ParkingPct -> 0 | AA14: 2128.176471 | AB14: =[11]!NetUnitSize -> 2000 | AC14: =[11]!UnitSize -> 2000 | AD14: 1.064088235 | AE14: 9.270336706 | AF14: =[11]!HousingType -> SF | AG14: =[11]!RentalPct -> 0 | AH14: 1 | AI14: =[11]!Rent -> 0 | AJ14: 0 | AK14: =[11]!Sales_Price -> 178.967822 | AL14: 357935.644 | AM14: 2146.005033 | AN14: 0.08 | AO14: 8.528709769 | AP14: 3 | AQ14: 1.8 | AR14: 0.2582 | AS14: 99046.38614 | AT14: 0 | AU14: 0 | AV14: 0 | AW14: 0 | AX14: 0 | AY14: =[11]!RetSpace -> 650 | AZ14: 0 | BA14: 0 | BB14: =[11]!OffSpace -> 350 | BC14: 0 | BD14: 0 | BE14: =[11]!IndSpace -> 700 | BF14: 0 | BG14: 0 | BH14: =[11]!PubSpace -> 350 | BI14: 0 | BJ14: 0 | BK14: =[11]!EduSpace -> 800 | BL14: 0 | BM14: 0 | BN14: =[11]!HotelSpaceEmp -> 1000 | BO14: 0 | BP14: =[11]!HotelRoomNet -> 0 | BQ14: =[11]!HotelRoomGross -> 0 | BR14: 0 | BS14: 0 | BT14: 0 | BU14: =[11]!ParkingSpace -> 20000 | BV14: 0 | BW14: =[11]!ParkingSpaces -> 3.192264706 | BX14: =[11]!ParkingArea -> 1276.905882 | BY14: =[11]!ParkingCost -> 39725.96078 | BZ14: 0.1303772548 | CA14: =IFERROR(IF(B_Housing_Type="SF",EXP('Residential Energy Coefficients'!$B$3+'Residential Energy Coefficients'!$B$4*LN(B_Net_Sq_Ft_per_Unit)+'Residential Energy Coefficients'!$B$9+'Residential Energy Coefficients'!$B$10*LN(B_HH_Income)+'Residential Energy Coefficients'!$B$16*LN(Residential_Energy_Cost)+'Residential Energy Coefficients'!$B$20+'Residential Energy Coefficients'!$B$24*IFERROR(LOOKUP(Metro_Select,Energy_Metro_Lookup,HDD),0)),IF(B_Housing_Type="TH",EXP('Residential Energy Coefficients'!$E$3+'Residential Energy Coefficients'!$E$4*LN(B_Net_Sq_Ft_per_Unit)+'Residential Energy Coefficients'!$E$9+'Residential Energy Coefficients'!$E$16*LN(Residential_Energy_Cost)+'Residential Energy Coefficients'!$E$19+'Residential Energy Coefficients'!$E$20+'Residential Energy Coefficients'!$E$24*IFERROR(LOOKUP(Metro_Select,Energy_Metro_Lookup,HDD),0)),IF(B_Housing_Type="MF",EXP('Residential Energy Coefficients'!$H$3+'Residential Energy Coefficients'!$H$4*LN(B_Net_Sq_Ft_per_Unit)+'Residential Energy Coefficients'!$H$9+IF(B_Pct_Owner=1,'Residential Energy Coefficients'!$H$12,0)+'Residential Energy Coefficients'!$H$16*LN(Residential_Energy_Cost)+'Residential Energy Coefficients'!$H$20+'Residential Energy Coefficients'!$H$24*IFERROR(LOOKUP(Metro_Select,Energy_Metro_Lookup,HDD),0)),IF(B_Hotel_Room_Acre>0,EXP('Residential Energy Coefficients'!$H$3+'Residential Energy Coefficients'!$H$4*LN(B_Hotel_Room_Net)+'Residential Energy Coefficients'!$H$9+'Residential Energy Coefficients'!$H$16*LN(Residential_Energy_Cost)+'Residential Energy Coefficients'!$H$20+'Residential Energy Coefficients'!$H$24*IFERROR(LOOKUP(Metro_Select,Energy_Metro_Lookup,HDD),0)),IF(B_Housing_Type="MH",EXP('Residential Energy Coefficients'!$K$3+'Residential Energy Coefficients'!$K$16*LN(Residential_Energy_Cost)+'Residential Energy Coefficients'!$K$24*IFERROR(LOOKUP(Metro_Select,Energy_Metro_Lookup,HDD),0)),0)))))/1000,0) -> 43.07645173 | CB14: =IFERROR(IF(B_Housing_Type="SF",EXP('Residential Energy Coefficients'!$C$3+'Residential Energy Coefficients'!$C$4*LN(B_Net_Sq_Ft_per_Unit)+'Residential Energy Coefficients'!$C$10*LN(B_HH_Income)+'Residential Energy Coefficients'!$C$11*B_HH_Size+'Residential Energy Coefficients'!$C$16*LN(Residential_Energy_Cost)+'Residential Energy Coefficients'!$C$19+'Residential Energy Coefficients'!$C$22+'Residential Energy Coefficients'!$C$25*IFERROR(LOOKUP(Metro_Select,Energy_Metro_Lookup,CDD),0)),IF(B_Housing_Type="TH",EXP('Residential Energy Coefficients'!$F$3+'Residential Energy Coefficients'!$F$4*LN(B_Net_Sq_Ft_per_Unit)+'Residential Energy Coefficients'!$F$10*LN(B_HH_Income)+'Residential Energy Coefficients'!$F$11*B_HH_Size+IF(B_Pct_Owner=1,'Residential Energy Coefficients'!$F$12,0)+'Residential Energy Coefficients'!$F$16*LN(Residential_Energy_Cost)+'Residential Energy Coefficients'!$F$22+'Residential Energy Coefficients'!$F$25*IFERROR(LOOKUP(Metro_Select,Energy_Metro_Lookup,CDD),0)),IF(B_Housing_Type="MF",EXP('Residential Energy Coefficients'!$I$3+'Residential Energy Coefficients'!$I$4*LN(B_Net_Sq_Ft_per_Unit)+'Residential Energy Coefficients'!$I$9+'Residential Energy Coefficients'!$I$11*B_HH_Size+'Residential Energy Coefficients'!$I$16*LN(Residential_Energy_Cost)+'Residential Energy Coefficients'!$I$22+'Residential Energy Coefficients'!$I$25*IFERROR(LOOKUP(Metro_Select,Energy_Metro_Lookup,CDD),0)),IF(B_Hotel_Room_Acre>0,EXP('Residential Energy Coefficients'!$I$3+'Residential Energy Coefficients'!$I$4*LN(B_Hotel_Room_Net)+'Residential Energy Coefficients'!$I$9+'Residential Energy Coefficients'!$I$11*1.25+'Residential Energy Coefficients'!$I$16*LN(Residential_Energy_Cost)+'Residential Energy Coefficients'!$I$22+'Residential Energy Coefficients'!$I$25*IFERROR(LOOKUP(Metro_Select,Energy_Metro_Lookup,CDD),0)),IF(B_Housing_Type="MH",EXP('Residential Energy Coefficients'!$L$3+'Residential Energy Coefficients'!$L$11*B_HH_Size+'Residential Energy Coefficients'!$L$16*LN(Residential_Energy_Cost)+'Residential Energy Coefficients'!$L$22+'Residential Energy Coefficients'!$L$25*IFERROR(LOOKUP(Metro_Select,Energy_Metro_Lookup,CDD),0)),0)))))/1000,0) -> 16.20558243 | CC14: =IFERROR(IF(B_Housing_Type="SF",EXP('Residential Energy Coefficients'!$D$3+'Residential Energy Coefficients'!$D$4*LN(B_Net_Sq_Ft_per_Unit)+'Residential Energy Coefficients'!$D$9+'Residential Energy Coefficients'!$D$10*LN(B_HH_Income)+'Residential Energy Coefficients'!$D$11*B_HH_Size+IF(B_Pct_Owner=1,'Residential Energy Coefficients'!$D$12,0)+'Residential Energy Coefficients'!$D$16*LN(Residential_Energy_Cost)),IF(B_Housing_Type="TH",EXP('Residential Energy Coefficients'!$G$3+'Residential Energy Coefficients'!$G$4*LN(B_Net_Sq_Ft_per_Unit)+'Residential Energy Coefficients'!$G$10*LN(B_HH_Income)+'Residential Energy Coefficients'!$G$11*B_HH_Size+'Residential Energy Coefficients'!$G$16*LN(Residential_Energy_Cost)),IF(B_Housing_Type="MF",EXP('Residential Energy Coefficients'!$J$3+'Residential Energy Coefficients'!$J$4*LN(B_Net_Sq_Ft_per_Unit)+'Residential Energy Coefficients'!$J$10*LN(B_HH_Income)+'Residential Energy Coefficients'!$J$11*B_HH_Size+IF(B_Pct_Owner=1,'Residential Energy Coefficients'!$J$12,0)+'Residential Energy Coefficients'!$J$16*LN(Residential_Energy_Cost)+'Residential Energy Coefficients'!$J$19),IF(B_Hotel_Room_Acre>0,EXP('Residential Energy Coefficients'!$J$3+'Residential Energy Coefficients'!$J$4*LN(B_Hotel_Room_Net)+'Residential Energy Coefficients'!$J$16*LN(Residential_Energy_Cost)+'Residential Energy Coefficients'!$J$19),IF(B_Housing_Type="MH",EXP('Residential Energy Coefficients'!$M$3+'Residential Energy Coefficients'!$M$4*LN(B_Net_Sq_Ft_per_Unit)+'Residential Energy Coefficients'!$M$11*B_HH_Size+'Residential Energy Coefficients'!$M$16*LN(Residential_Energy_Cost)+'Residential Energy Coefficients'!$M$19),0)))))/1000,0) -> 62.93397789 | CD14: =SUM(CA14:CC14) -> 122.2160121 | CE14: =(IFERROR(EXP('Commercial Energy Coefficients'!$B$3+LN(B_RET_Gross_Sq_Ft)*'Commercial Energy Coefficients'!$B$4+'Commercial Energy Coefficients'!$B$11+'Commercial Energy Coefficients'!$B$14+'Commercial Energy Coefficients'!$B$18*LN((B_Ret_Emp_Acre)*(B_Lot_Size/43560))+'Commercial Energy Coefficients'!$B$19*LN(40)+'Commercial Energy Coefficients'!$B$21+'Commercial Energy Coefficients'!$B$22*LN(Commercial_Energy_Cost)+'Commercial Energy Coefficients'!$B$23*IFERROR(LOOKUP(Metro_Select,Energy_Metro_Lookup,HDD),0)),0)+IFERROR(EXP('Commercial Energy Coefficients'!$E$3+LN(B_OFF_Gross_Sq_Ft)*'Commercial Energy Coefficients'!$E$4+'Commercial Energy Coefficients'!$E$11+'Commercial Energy Coefficients'!$E$14+'Commercial Energy Coefficients'!$E$18*LN((B_OFF_Emp_Acre)*(B_Lot_Size/43560))+'Commercial Energy Coefficients'!$E$19*LN(40)+'Commercial Energy Coefficients'!$E$21+'Commercial Energy Coefficients'!$E$22*LN(Commercial_Energy_Cost)+'Commercial Energy Coefficients'!$E$23*IFERROR(LOOKUP(Metro_Select,Energy_Metro_Lookup,HDD),0)),0)+IFERROR(EXP('Commercial Energy Coefficients'!$H$3+LN(B_PUB_Gross_Sq_Ft)*'Commercial Energy Coefficients'!$H$4+'Commercial Energy Coefficients'!$H$11+'Commercial Energy Coefficients'!$H$14+'Commercial Energy Coefficients'!$H$18*LN((B_Pub_Emp_Acre)*(B_Lot_Size/43560))+'Commercial Energy Coefficients'!$H$19*LN(40)+'Commercial Energy Coefficients'!$H$21+'Commercial Energy Coefficients'!$H$22*LN(Commercial_Energy_Cost)+'Commercial Energy Coefficients'!$H$23*IFERROR(LOOKUP(Metro_Select,Energy_Metro_Lookup,HDD),0)),0))/1000 -> 0 | CF14: =(IFERROR(EXP('Commercial Energy Coefficients'!$C$3+LN((B_RET_Gross_Sq_Ft))*'Commercial Energy Coefficients'!$C$4+'Commercial Energy Coefficients'!$C$11+'Commercial Energy Coefficients'!$C$14+'Commercial Energy Coefficients'!$C$18*LN((B_Ret_Emp_Acre)*(B_Lot_Size/43560))+'Commercial Energy Coefficients'!$C$19*LN(40)+'Commercial Energy Coefficients'!$C$21+'Commercial Energy Coefficients'!$C$22*LN(Commercial_Energy_Cost)+'Commercial Energy Coefficients'!$C$24*IFERROR(LOOKUP(Metro_Select,Energy_Metro_Lookup,CDD),0)),0)+IFERROR(EXP('Commercial Energy Coefficients'!$F$3+LN((B_OFF_Gross_Sq_Ft))*'Commercial Energy Coefficients'!$F$4+'Commercial Energy Coefficients'!$F$11+'Commercial Energy Coefficients'!$F$14+'Commercial Energy Coefficients'!$F$18*LN((B_OFF_Emp_Acre)*(B_Lot_Size/43560))+'Commercial Energy Coefficients'!$F$19*LN(40)+'Commercial Energy Coefficients'!$F$21+'Commercial Energy Coefficients'!$F$22*LN(Commercial_Energy_Cost)+'Commercial Energy Coefficients'!$F$24*IFERROR(LOOKUP(Metro_Select,Energy_Metro_Lookup,CDD),0)),0)+IFERROR(EXP('Commercial Energy Coefficients'!$I$3+LN((B_PUB_Gross_Sq_Ft))*'Commercial Energy Coefficients'!$I$4+'Commercial Energy Coefficients'!$I$11+'Commercial Energy Coefficients'!$I$14+'Commercial Energy Coefficients'!$I$18*LN((B_Pub_Emp_Acre)*(B_Lot_Size/43560))+'Commercial Energy Coefficients'!$I$19*LN(40)+'Commercial Energy Coefficients'!$I$21+'Commercial Energy Coefficients'!$I$22*LN(Commercial_Energy_Cost)+'Commercial Energy Coefficients'!$I$24*IFERROR(LOOKUP(Metro_Select,Energy_Metro_Lookup,CDD),0)),0))/1000 -> 0 | CG14: =(IFERROR(EXP('Commercial Energy Coefficients'!$D$3+LN((B_RET_Gross_Sq_Ft))*'Commercial Energy Coefficients'!$D$4+'Commercial Energy Coefficients'!$D$14+'Commercial Energy Coefficients'!$D$18*LN((B_Ret_Emp_Acre)*(B_Lot_Size/43560))+'Commercial Energy Coefficients'!$D$19*LN(40)+'Commercial Energy Coefficients'!$D$21+'Commercial Energy Coefficients'!$D$22*LN(Commercial_Energy_Cost)),0)+IFERROR(EXP('Commercial Energy Coefficients'!$G$3+LN((B_OFF_Gross_Sq_Ft))*'Commercial Energy Coefficients'!$G$4+'Commercial Energy Coefficients'!$G$14+'Commercial Energy Coefficients'!$G$18*LN((B_OFF_Emp_Acre)*(B_Lot_Size/43560))+'Commercial Energy Coefficients'!$G$19*LN(40)+'Commercial Energy Coefficients'!$G$21+'Commercial Energy Coefficients'!$G$22*LN(Commercial_Energy_Cost)),0)+IFERROR(EXP('Commercial Energy Coefficients'!$J$3+LN((B_PUB_Gross_Sq_Ft))*'Commercial Energy Coefficients'!$J$4+'Commercial Energy Coefficients'!$J$14+'Commercial Energy Coefficients'!$J$18*LN((B_Pub_Emp_Acre)*(B_Lot_Size/43560))+'Commercial Energy Coefficients'!$J$19*LN(40)+'Commercial Energy Coefficients'!$J$21+'Commercial Energy Coefficients'!$J$22*LN(Commercial_Energy_Cost)),0))/1000 -> 0 | CH14: =SUM(CE14:CG14) -> 0 | CI14: 0 | CJ14: 0 | CK14: 130.0486206 | CL14: 122.2160121 | CM14: 11.40029605 | CN14: 0 | CO14: 12.1309209 | CP14: 134.2021819 | CQ14: 142.802963 | CR14: 70 | CS14: 210 | CT14: 0 | CU14: 74.48617647 | CV14: 100 | CW14: 300 | CX14: 0 | CY14: 106.4088235 | CZ14: =IF(B_Housing_Type="",0,IF(B_Housing_Type="MF",'Project Info'!$B$154,IF(B_Housing_Type="TH",'Project Info'!$B$155,IF(AND(B_Housing_Type="SF",B_Net_Sq_Ft_per_Unit>0,B_Net_Sq_Ft_per_Unit<3000),'Project Info'!$B$156,IF(AND(B_Housing_Type="SF",B_Net_Sq_Ft_per_Unit>=3000),'Project Info'!$B$157))))) -> 3 | DA14: 9 | DB14: 0 | DC14: 3.192264706 | DD14: =[11]!LandCost -> 10 | DE14: 50000 | DF14: 435600 | DG14: =[11]!ProjectValue -> 304700.0862 | DH14: 2654547.151 | DI14: =[11]!Subsidy -> 0 | DJ14: 0 | DK14: 0 | DL14: 1188.330336 | DM14: 1116.759209 | DN14: 10352.73389 | DO14: 0 | DP14: 0 | DQ14: 0.05067086835
B15: 12 | C15: =[12]!name -> Mixed Use Office 15 Story | D15: =[12]!lot_size -> 30000 | E15: =[12]!Building_Lot_Coverage -> 1 | F15: =[12]!Landscaping_Coverage -> 0 | G15: =[12]!Parking_Coverage -> 0 | H15: =[12]!Height -> 15 | I15: =[12]!FAR -> 7.7 | J15: 231000 | K15: =[12]!ResPct -> 0 | L15: 0 | M15: 0 | N15: 0 | O15: 0 | P15: 0 | Q15: 0 | R15: 0 | S15: 1 | T15: =[12]!RetPct -> 0.05 | U15: =[12]!OffPct -> 0.95 | V15: =[12]!IndPct -> 0 | W15: =[12]!PubPct -> 0 | X15: =[12]!EduPct -> 0 | Y15: =[12]!HotelPct -> 0 | Z15: =[12]!ParkingPct -> 0 | AA15: 0 | AB15: =[12]!NetUnitSize -> 0 | AC15: =[12]!UnitSize -> 0 | AD15: 0 | AE15: 0 | AF15: =[12]!HousingType ->  | AG15: =[12]!RentalPct -> 1 | AH15: 0 | AI15: =[12]!Rent -> 1.75 | AJ15: 0 | AK15: =[12]!Sales_Price -> 0 | AL15: 0 | AM15: 0 | AN15: 0 | AO15: 0 | AP15: 0 | AQ15: 0 | AR15: 0 | AS15: 0 | AT15: 0 | AU15: 231000 | AV15: 644.7692308 | AW15: 936.2049231 | AX15: 11550 | AY15: =[12]!RetSpace -> 650 | AZ15: 25.80092308 | BA15: 219450 | BB15: =[12]!OffSpace -> 350 | BC15: 910.404 | BD15: 0 | BE15: =[12]!IndSpace -> 700 | BF15: 0 | BG15: 0 | BH15: =[12]!PubSpace -> 350 | BI15: 0 | BJ15: 0 | BK15: =[12]!EduSpace -> 800 | BL15: 0 | BM15: 0 | BN15: =[12]!HotelSpaceEmp -> 1000 | BO15: 0 | BP15: =[12]!HotelRoomNet -> 0 | BQ15: =[12]!HotelRoomGross -> 0 | BR15: 0 | BS15: 0 | BT15: 0 | BU15: =[12]!ParkingSpace -> 20000 | BV15: 0 | BW15: =[12]!ParkingSpaces -> 462 | BX15: =[12]!ParkingArea -> 150150 | BY15: =[12]!ParkingCost -> 16363846.15 | BZ15: 0.2186398541 | CA15: =IFERROR(IF(B_Housing_Type="SF",EXP('Residential Energy Coefficients'!$B$3+'Residential Energy Coefficients'!$B$4*LN(B_Net_Sq_Ft_per_Unit)+'Residential Energy Coefficients'!$B$9+'Residential Energy Coefficients'!$B$10*LN(B_HH_Income)+'Residential Energy Coefficients'!$B$16*LN(Residential_Energy_Cost)+'Residential Energy Coefficients'!$B$20+'Residential Energy Coefficients'!$B$24*IFERROR(LOOKUP(Metro_Select,Energy_Metro_Lookup,HDD),0)),IF(B_Housing_Type="TH",EXP('Residential Energy Coefficients'!$E$3+'Residential Energy Coefficients'!$E$4*LN(B_Net_Sq_Ft_per_Unit)+'Residential Energy Coefficients'!$E$9+'Residential Energy Coefficients'!$E$16*LN(Residential_Energy_Cost)+'Residential Energy Coefficients'!$E$19+'Residential Energy Coefficients'!$E$20+'Residential Energy Coefficients'!$E$24*IFERROR(LOOKUP(Metro_Select,Energy_Metro_Lookup,HDD),0)),IF(B_Housing_Type="MF",EXP('Residential Energy Coefficients'!$H$3+'Residential Energy Coefficients'!$H$4*LN(B_Net_Sq_Ft_per_Unit)+'Residential Energy Coefficients'!$H$9+IF(B_Pct_Owner=1,'Residential Energy Coefficients'!$H$12,0)+'Residential Energy Coefficients'!$H$16*LN(Residential_Energy_Cost)+'Residential Energy Coefficients'!$H$20+'Residential Energy Coefficients'!$H$24*IFERROR(LOOKUP(Metro_Select,Energy_Metro_Lookup,HDD),0)),IF(B_Hotel_Room_Acre>0,EXP('Residential Energy Coefficients'!$H$3+'Residential Energy Coefficients'!$H$4*LN(B_Hotel_Room_Net)+'Residential Energy Coefficients'!$H$9+'Residential Energy Coefficients'!$H$16*LN(Residential_Energy_Cost)+'Residential Energy Coefficients'!$H$20+'Residential Energy Coefficients'!$H$24*IFERROR(LOOKUP(Metro_Select,Energy_Metro_Lookup,HDD),0)),IF(B_Housing_Type="MH",EXP('Residential Energy Coefficients'!$K$3+'Residential Energy Coefficients'!$K$16*LN(Residential_Energy_Cost)+'Residential Energy Coefficients'!$K$24*IFERROR(LOOKUP(Metro_Select,Energy_Metro_Lookup,HDD),0)),0)))))/1000,0) -> 0 | CB15: =IFERROR(IF(B_Housing_Type="SF",EXP('Residential Energy Coefficients'!$C$3+'Residential Energy Coefficients'!$C$4*LN(B_Net_Sq_Ft_per_Unit)+'Residential Energy Coefficients'!$C$10*LN(B_HH_Income)+'Residential Energy Coefficients'!$C$11*B_HH_Size+'Residential Energy Coefficients'!$C$16*LN(Residential_Energy_Cost)+'Residential Energy Coefficients'!$C$19+'Residential Energy Coefficients'!$C$22+'Residential Energy Coefficients'!$C$25*IFERROR(LOOKUP(Metro_Select,Energy_Metro_Lookup,CDD),0)),IF(B_Housing_Type="TH",EXP('Residential Energy Coefficients'!$F$3+'Residential Energy Coefficients'!$F$4*LN(B_Net_Sq_Ft_per_Unit)+'Residential Energy Coefficients'!$F$10*LN(B_HH_Income)+'Residential Energy Coefficients'!$F$11*B_HH_Size+IF(B_Pct_Owner=1,'Residential Energy Coefficients'!$F$12,0)+'Residential Energy Coefficients'!$F$16*LN(Residential_Energy_Cost)+'Residential Energy Coefficients'!$F$22+'Residential Energy Coefficients'!$F$25*IFERROR(LOOKUP(Metro_Select,Energy_Metro_Lookup,CDD),0)),IF(B_Housing_Type="MF",EXP('Residential Energy Coefficients'!$I$3+'Residential Energy Coefficients'!$I$4*LN(B_Net_Sq_Ft_per_Unit)+'Residential Energy Coefficients'!$I$9+'Residential Energy Coefficients'!$I$11*B_HH_Size+'Residential Energy Coefficients'!$I$16*LN(Residential_Energy_Cost)+'Residential Energy Coefficients'!$I$22+'Residential Energy Coefficients'!$I$25*IFERROR(LOOKUP(Metro_Select,Energy_Metro_Lookup,CDD),0)),IF(B_Hotel_Room_Acre>0,EXP('Residential Energy Coefficients'!$I$3+'Residential Energy Coefficients'!$I$4*LN(B_Hotel_Room_Net)+'Residential Energy Coefficients'!$I$9+'Residential Energy Coefficients'!$I$11*1.25+'Residential Energy Coefficients'!$I$16*LN(Residential_Energy_Cost)+'Residential Energy Coefficients'!$I$22+'Residential Energy Coefficients'!$I$25*IFERROR(LOOKUP(Metro_Select,Energy_Metro_Lookup,CDD),0)),IF(B_Housing_Type="MH",EXP('Residential Energy Coefficients'!$L$3+'Residential Energy Coefficients'!$L$11*B_HH_Size+'Residential Energy Coefficients'!$L$16*LN(Residential_Energy_Cost)+'Residential Energy Coefficients'!$L$22+'Residential Energy Coefficients'!$L$25*IFERROR(LOOKUP(Metro_Select,Energy_Metro_Lookup,CDD),0)),0)))))/1000,0) -> 0 | CC15: =IFERROR(IF(B_Housing_Type="SF",EXP('Residential Energy Coefficients'!$D$3+'Residential Energy Coefficients'!$D$4*LN(B_Net_Sq_Ft_per_Unit)+'Residential Energy Coefficients'!$D$9+'Residential Energy Coefficients'!$D$10*LN(B_HH_Income)+'Residential Energy Coefficients'!$D$11*B_HH_Size+IF(B_Pct_Owner=1,'Residential Energy Coefficients'!$D$12,0)+'Residential Energy Coefficients'!$D$16*LN(Residential_Energy_Cost)),IF(B_Housing_Type="TH",EXP('Residential Energy Coefficients'!$G$3+'Residential Energy Coefficients'!$G$4*LN(B_Net_Sq_Ft_per_Unit)+'Residential Energy Coefficients'!$G$10*LN(B_HH_Income)+'Residential Energy Coefficients'!$G$11*B_HH_Size+'Residential Energy Coefficients'!$G$16*LN(Residential_Energy_Cost)),IF(B_Housing_Type="MF",EXP('Residential Energy Coefficients'!$J$3+'Residential Energy Coefficients'!$J$4*LN(B_Net_Sq_Ft_per_Unit)+'Residential Energy Coefficients'!$J$10*LN(B_HH_Income)+'Residential Energy Coefficients'!$J$11*B_HH_Size+IF(B_Pct_Owner=1,'Residential Energy Coefficients'!$J$12,0)+'Residential Energy Coefficients'!$J$16*LN(Residential_Energy_Cost)+'Residential Energy Coefficients'!$J$19),IF(B_Hotel_Room_Acre>0,EXP('Residential Energy Coefficients'!$J$3+'Residential Energy Coefficients'!$J$4*LN(B_Hotel_Room_Net)+'Residential Energy Coefficients'!$J$16*LN(Residential_Energy_Cost)+'Residential Energy Coefficients'!$J$19),IF(B_Housing_Type="MH",EXP('Residential Energy Coefficients'!$M$3+'Residential Energy Coefficients'!$M$4*LN(B_Net_Sq_Ft_per_Unit)+'Residential Energy Coefficients'!$M$11*B_HH_Size+'Residential Energy Coefficients'!$M$16*LN(Residential_Energy_Cost)+'Residential Energy Coefficients'!$M$19),0)))))/1000,0) -> 0 | CD15: 0 | CE15: =(IFERROR(EXP('Commercial Energy Coefficients'!$B$3+LN(B_RET_Gross_Sq_Ft)*'Commercial Energy Coefficients'!$B$4+'Commercial Energy Coefficients'!$B$11+'Commercial Energy Coefficients'!$B$14+'Commercial Energy Coefficients'!$B$18*LN((B_Ret_Emp_Acre)*(B_Lot_Size/43560))+'Commercial Energy Coefficients'!$B$19*LN(40)+'Commercial Energy Coefficients'!$B$21+'Commercial Energy Coefficients'!$B$22*LN(Commercial_Energy_Cost)+'Commercial Energy Coefficients'!$B$23*IFERROR(LOOKUP(Metro_Select,Energy_Metro_Lookup,HDD),0)),0)+IFERROR(EXP('Commercial Energy Coefficients'!$E$3+LN(B_OFF_Gross_Sq_Ft)*'Commercial Energy Coefficients'!$E$4+'Commercial Energy Coefficients'!$E$11+'Commercial Energy Coefficients'!$E$14+'Commercial Energy Coefficients'!$E$18*LN((B_OFF_Emp_Acre)*(B_Lot_Size/43560))+'Commercial Energy Coefficients'!$E$19*LN(40)+'Commercial Energy Coefficients'!$E$21+'Commercial Energy Coefficients'!$E$22*LN(Commercial_Energy_Cost)+'Commercial Energy Coefficients'!$E$23*IFERROR(LOOKUP(Metro_Select,Energy_Metro_Lookup,HDD),0)),0)+IFERROR(EXP('Commercial Energy Coefficients'!$H$3+LN(B_PUB_Gross_Sq_Ft)*'Commercial Energy Coefficients'!$H$4+'Commercial Energy Coefficients'!$H$11+'Commercial Energy Coefficients'!$H$14+'Commercial Energy Coefficients'!$H$18*LN((B_Pub_Emp_Acre)*(B_Lot_Size/43560))+'Commercial Energy Coefficients'!$H$19*LN(40)+'Commercial Energy Coefficients'!$H$21+'Commercial Energy Coefficients'!$H$22*LN(Commercial_Energy_Cost)+'Commercial Energy Coefficients'!$H$23*IFERROR(LOOKUP(Metro_Select,Energy_Metro_Lookup,HDD),0)),0))/1000 -> 3323.490889 | CF15: =(IFERROR(EXP('Commercial Energy Coefficients'!$C$3+LN((B_RET_Gross_Sq_Ft))*'Commercial Energy Coefficients'!$C$4+'Commercial Energy Coefficients'!$C$11+'Commercial Energy Coefficients'!$C$14+'Commercial Energy Coefficients'!$C$18*LN((B_Ret_Emp_Acre)*(B_Lot_Size/43560))+'Commercial Energy Coefficients'!$C$19*LN(40)+'Commercial Energy Coefficients'!$C$21+'Commercial Energy Coefficients'!$C$22*LN(Commercial_Energy_Cost)+'Commercial Energy Coefficients'!$C$24*IFERROR(LOOKUP(Metro_Select,Energy_Metro_Lookup,CDD),0)),0)+IFERROR(EXP('Commercial Energy Coefficients'!$F$3+LN((B_OFF_Gross_Sq_Ft))*'Commercial Energy Coefficients'!$F$4+'Commercial Energy Coefficients'!$F$11+'Commercial Energy Coefficients'!$F$14+'Commercial Energy Coefficients'!$F$18*LN((B_OFF_Emp_Acre)*(B_Lot_Size/43560))+'Commercial Energy Coefficients'!$F$19*LN(40)+'Commercial Energy Coefficients'!$F$21+'Commercial Energy Coefficients'!$F$22*LN(Commercial_Energy_Cost)+'Commercial Energy Coefficients'!$F$24*IFERROR(LOOKUP(Metro_Select,Energy_Metro_Lookup,CDD),0)),0)+IFERROR(EXP('Commercial Energy Coefficients'!$I$3+LN((B_PUB_Gross_Sq_Ft))*'Commercial Energy Coefficients'!$I$4+'Commercial Energy Coefficients'!$I$11+'Commercial Energy Coefficients'!$I$14+'Commercial Energy Coefficients'!$I$18*LN((B_Pub_Emp_Acre)*(B_Lot_Size/43560))+'Commercial Energy Coefficients'!$I$19*LN(40)+'Commercial Energy Coefficients'!$I$21+'Commercial Energy Coefficients'!$I$22*LN(Commercial_Energy_Cost)+'Commercial Energy Coefficients'!$I$24*IFERROR(LOOKUP(Metro_Select,Energy_Metro_Lookup,CDD),0)),0))/1000 -> 711.7329295 | CG15: =(IFERROR(EXP('Commercial Energy Coefficients'!$D$3+LN((B_RET_Gross_Sq_Ft))*'Commercial Energy Coefficients'!$D$4+'Commercial Energy Coefficients'!$D$14+'Commercial Energy Coefficients'!$D$18*LN((B_Ret_Emp_Acre)*(B_Lot_Size/43560))+'Commercial Energy Coefficients'!$D$19*LN(40)+'Commercial Energy Coefficients'!$D$21+'Commercial Energy Coefficients'!$D$22*LN(Commercial_Energy_Cost)),0)+IFERROR(EXP('Commercial Energy Coefficients'!$G$3+LN((B_OFF_Gross_Sq_Ft))*'Commercial Energy Coefficients'!$G$4+'Commercial Energy Coefficients'!$G$14+'Commercial Energy Coefficients'!$G$18*LN((B_OFF_Emp_Acre)*(B_Lot_Size/43560))+'Commercial Energy Coefficients'!$G$19*LN(40)+'Commercial Energy Coefficients'!$G$21+'Commercial Energy Coefficients'!$G$22*LN(Commercial_Energy_Cost)),0)+IFERROR(EXP('Commercial Energy Coefficients'!$J$3+LN((B_PUB_Gross_Sq_Ft))*'Commercial Energy Coefficients'!$J$4+'Commercial Energy Coefficients'!$J$14+'Commercial Energy Coefficients'!$J$18*LN((B_Pub_Emp_Acre)*(B_Lot_Size/43560))+'Commercial Energy Coefficients'!$J$19*LN(40)+'Commercial Energy Coefficients'!$J$21+'Commercial Energy Coefficients'!$J$22*LN(Commercial_Energy_Cost)),0))/1000 -> 7161.300649 | CH15: 11196.52447 | CI15: 17.3651656 | CJ15: 0.04846980289 | CK15: 11196.52447 | CL15: 0 | CM15: 0 | CN15: 1.619820721 | CO15: 1044.41056 | CP15: 0 | CQ15: 0 | CR15: 0 | CS15: 0 | CT15: 104.9527559 | CU15: 67670.30769 | CV15: 0 | CW15: 0 | CX15: 48.69685039 | CY15: 31398.23077 | CZ15: =IF(B_Housing_Type="",0,IF(B_Housing_Type="MF",'Project Info'!$B$154,IF(B_Housing_Type="TH",'Project Info'!$B$155,IF(AND(B_Housing_Type="SF",B_Net_Sq_Ft_per_Unit>0,B_Net_Sq_Ft_per_Unit<3000),'Project Info'!$B$156,IF(AND(B_Housing_Type="SF",B_Net_Sq_Ft_per_Unit>=3000),'Project Info'!$B$157))))) -> 0 | DA15: 0 | DB15: 3.541338583 | DC15: 2283.346154 | DD15: =[12]!LandCost -> 33.33333333 | DE15: 1000000 | DF15: 1452000 | DG15: =[12]!ProjectValue -> 74843839.52 | DH15: 108673255 | DI15: =[12]!Subsidy -> 21503758.6 | DJ15: 0 | DK15: 31223457.49 | DL15: 404156.7334 | DM15: 0 | DN15: 586835.5769 | DO15: 197793.75 | DP15: 287196.525 | DQ15: 0.9166666667
B16: 13 | C16: =[13]!name -> Mixed Use Office 5 Story | D16: =[13]!lot_size -> 30000 | E16: =[13]!Building_Lot_Coverage -> 0.5555555556 | F16: =[13]!Landscaping_Coverage -> 0.1333333333 | G16: =[13]!Parking_Coverage -> 0.3111111111 | H16: =[13]!Height -> 5 | I16: =[13]!FAR -> 1.555555556 | J16: 46666.66667 | K16: =[13]!ResPct -> 0 | L16: 0 | M16: 0 | N16: 0 | O16: 0 | P16: 0 | Q16: 0 | R16: 0 | S16: 1 | T16: =[13]!RetPct -> 0.2 | U16: =[13]!OffPct -> 0.8 | V16: =[13]!IndPct -> 0 | W16: =[13]!PubPct -> 0 | X16: =[13]!EduPct -> 0 | Y16: =[13]!HotelPct -> 0 | Z16: =[13]!ParkingPct -> 0 | AA16: 0 | AB16: =[13]!NetUnitSize -> 0 | AC16: =[13]!UnitSize -> 0 | AD16: 0 | AE16: 0 | AF16: =[13]!HousingType ->  | AG16: =[13]!RentalPct -> 1 | AH16: 0 | AI16: =[13]!Rent -> 1.4 | AJ16: 0 | AK16: =[13]!Sales_Price -> 0 | AL16: 0 | AM16: 0 | AN16: 0 | AO16: 0 | AP16: 0 | AQ16: 0 | AR16: 0 | AS16: 0 | AT16: 0 | AU16: 46666.66667 | AV16: 121.025641 | AW16: 175.7292308 | AX16: 9333.333333 | AY16: =[13]!RetSpace -> 650 | AZ16: 20.84923077 | BA16: 37333.33333 | BB16: =[13]!OffSpace -> 350 | BC16: 154.88 | BD16: 0 | BE16: =[13]!IndSpace -> 700 | BF16: 0 | BG16: 0 | BH16: =[13]!PubSpace -> 350 | BI16: 0 | BJ16: 0 | BK16: =[13]!EduSpace -> 800 | BL16: 0 | BM16: 0 | BN16: =[13]!HotelSpaceEmp -> 1000 | BO16: 0 | BP16: =[13]!HotelRoomNet -> 0 | BQ16: =[13]!HotelRoomGross -> 0 | BR16: 0 | BS16: 0 | BT16: 0 | BU16: =[13]!ParkingSpace -> 20000 | BV16: 0 | BW16: =[13]!ParkingSpaces -> 93.33333333 | BX16: =[13]!ParkingArea -> 30333.33333 | BY16: =[13]!ParkingCost -> 1866666.667 | BZ16: 0.1588352655 | CA16: =IFERROR(IF(B_Housing_Type="SF",EXP('Residential Energy Coefficients'!$B$3+'Residential Energy Coefficients'!$B$4*LN(B_Net_Sq_Ft_per_Unit)+'Residential Energy Coefficients'!$B$9+'Residential Energy Coefficients'!$B$10*LN(B_HH_Income)+'Residential Energy Coefficients'!$B$16*LN(Residential_Energy_Cost)+'Residential Energy Coefficients'!$B$20+'Residential Energy Coefficients'!$B$24*IFERROR(LOOKUP(Metro_Select,Energy_Metro_Lookup,HDD),0)),IF(B_Housing_Type="TH",EXP('Residential Energy Coefficients'!$E$3+'Residential Energy Coefficients'!$E$4*LN(B_Net_Sq_Ft_per_Unit)+'Residential Energy Coefficients'!$E$9+'Residential Energy Coefficients'!$E$16*LN(Residential_Energy_Cost)+'Residential Energy Coefficients'!$E$19+'Residential Energy Coefficients'!$E$20+'Residential Energy Coefficients'!$E$24*IFERROR(LOOKUP(Metro_Select,Energy_Metro_Lookup,HDD),0)),IF(B_Housing_Type="MF",EXP('Residential Energy Coefficients'!$H$3+'Residential Energy Coefficients'!$H$4*LN(B_Net_Sq_Ft_per_Unit)+'Residential Energy Coefficients'!$H$9+IF(B_Pct_Owner=1,'Residential Energy Coefficients'!$H$12,0)+'Residential Energy Coefficients'!$H$16*LN(Residential_Energy_Cost)+'Residential Energy Coefficients'!$H$20+'Residential Energy Coefficients'!$H$24*IFERROR(LOOKUP(Metro_Select,Energy_Metro_Lookup,HDD),0)),IF(B_Hotel_Room_Acre>0,EXP('Residential Energy Coefficients'!$H$3+'Residential Energy Coefficients'!$H$4*LN(B_Hotel_Room_Net)+'Residential Energy Coefficients'!$H$9+'Residential Energy Coefficients'!$H$16*LN(Residential_Energy_Cost)+'Residential Energy Coefficients'!$H$20+'Residential Energy Coefficients'!$H$24*IFERROR(LOOKUP(Metro_Select,Energy_Metro_Lookup,HDD),0)),IF(B_Housing_Type="MH",EXP('Residential Energy Coefficients'!$K$3+'Residential Energy Coefficients'!$K$16*LN(Residential_Energy_Cost)+'Residential Energy Coefficients'!$K$24*IFERROR(LOOKUP(Metro_Select,Energy_Metro_Lookup,HDD),0)),0)))))/1000,0) -> 0 | CB16: =IFERROR(IF(B_Housing_Type="SF",EXP('Residential Energy Coefficients'!$C$3+'Residential Energy Coefficients'!$C$4*LN(B_Net_Sq_Ft_per_Unit)+'Residential Energy Coefficients'!$C$10*LN(B_HH_Income)+'Residential Energy Coefficients'!$C$11*B_HH_Size+'Residential Energy Coefficients'!$C$16*LN(Residential_Energy_Cost)+'Residential Energy Coefficients'!$C$19+'Residential Energy Coefficients'!$C$22+'Residential Energy Coefficients'!$C$25*IFERROR(LOOKUP(Metro_Select,Energy_Metro_Lookup,CDD),0)),IF(B_Housing_Type="TH",EXP('Residential Energy Coefficients'!$F$3+'Residential Energy Coefficients'!$F$4*LN(B_Net_Sq_Ft_per_Unit)+'Residential Energy Coefficients'!$F$10*LN(B_HH_Income)+'Residential Energy Coefficients'!$F$11*B_HH_Size+IF(B_Pct_Owner=1,'Residential Energy Coefficients'!$F$12,0)+'Residential Energy Coefficients'!$F$16*LN(Residential_Energy_Cost)+'Residential Energy Coefficients'!$F$22+'Residential Energy Coefficients'!$F$25*IFERROR(LOOKUP(Metro_Select,Energy_Metro_Lookup,CDD),0)),IF(B_Housing_Type="MF",EXP('Residential Energy Coefficients'!$I$3+'Residential Energy Coefficients'!$I$4*LN(B_Net_Sq_Ft_per_Unit)+'Residential Energy Coefficients'!$I$9+'Residential Energy Coefficients'!$I$11*B_HH_Size+'Residential Energy Coefficients'!$I$16*LN(Residential_Energy_Cost)+'Residential Energy Coefficients'!$I$22+'Residential Energy Coefficients'!$I$25*IFERROR(LOOKUP(Metro_Select,Energy_Metro_Lookup,CDD),0)),IF(B_Hotel_Room_Acre>0,EXP('Residential Energy Coefficients'!$I$3+'Residential Energy Coefficients'!$I$4*LN(B_Hotel_Room_Net)+'Residential Energy Coefficients'!$I$9+'Residential Energy Coefficients'!$I$11*1.25+'Residential Energy Coefficients'!$I$16*LN(Residential_Energy_Cost)+'Residential Energy Coefficients'!$I$22+'Residential Energy Coefficients'!$I$25*IFERROR(LOOKUP(Metro_Select,Energy_Metro_Lookup,CDD),0)),IF(B_Housing_Type="MH",EXP('Residential Energy Coefficients'!$L$3+'Residential Energy Coefficients'!$L$11*B_HH_Size+'Residential Energy Coefficients'!$L$16*LN(Residential_Energy_Cost)+'Residential Energy Coefficients'!$L$22+'Residential Energy Coefficients'!$L$25*IFERROR(LOOKUP(Metro_Select,Energy_Metro_Lookup,CDD),0)),0)))))/1000,0) -> 0 | CC16: =IFERROR(IF(B_Housing_Type="SF",EXP('Residential Energy Coefficients'!$D$3+'Residential Energy Coefficients'!$D$4*LN(B_Net_Sq_Ft_per_Unit)+'Residential Energy Coefficients'!$D$9+'Residential Energy Coefficients'!$D$10*LN(B_HH_Income)+'Residential Energy Coefficients'!$D$11*B_HH_Size+IF(B_Pct_Owner=1,'Residential Energy Coefficients'!$D$12,0)+'Residential Energy Coefficients'!$D$16*LN(Residential_Energy_Cost)),IF(B_Housing_Type="TH",EXP('Residential Energy Coefficients'!$G$3+'Residential Energy Coefficients'!$G$4*LN(B_Net_Sq_Ft_per_Unit)+'Residential Energy Coefficients'!$G$10*LN(B_HH_Income)+'Residential Energy Coefficients'!$G$11*B_HH_Size+'Residential Energy Coefficients'!$G$16*LN(Residential_Energy_Cost)),IF(B_Housing_Type="MF",EXP('Residential Energy Coefficients'!$J$3+'Residential Energy Coefficients'!$J$4*LN(B_Net_Sq_Ft_per_Unit)+'Residential Energy Coefficients'!$J$10*LN(B_HH_Income)+'Residential Energy Coefficients'!$J$11*B_HH_Size+IF(B_Pct_Owner=1,'Residential Energy Coefficients'!$J$12,0)+'Residential Energy Coefficients'!$J$16*LN(Residential_Energy_Cost)+'Residential Energy Coefficients'!$J$19),IF(B_Hotel_Room_Acre>0,EXP('Residential Energy Coefficients'!$J$3+'Residential Energy Coefficients'!$J$4*LN(B_Hotel_Room_Net)+'Residential Energy Coefficients'!$J$16*LN(Residential_Energy_Cost)+'Residential Energy Coefficients'!$J$19),IF(B_Housing_Type="MH",EXP('Residential Energy Coefficients'!$M$3+'Residential Energy Coefficients'!$M$4*LN(B_Net_Sq_Ft_per_Unit)+'Residential Energy Coefficients'!$M$11*B_HH_Size+'Residential Energy Coefficients'!$M$16*LN(Residential_Energy_Cost)+'Residential Energy Coefficients'!$M$19),0)))))/1000,0) -> 0 | CD16: 0 | CE16: =(IFERROR(EXP('Commercial Energy Coefficients'!$B$3+LN(B_RET_Gross_Sq_Ft)*'Commercial Energy Coefficients'!$B$4+'Commercial Energy Coefficients'!$B$11+'Commercial Energy Coefficients'!$B$14+'Commercial Energy Coefficients'!$B$18*LN((B_Ret_Emp_Acre)*(B_Lot_Size/43560))+'Commercial Energy Coefficients'!$B$19*LN(40)+'Commercial Energy Coefficients'!$B$21+'Commercial Energy Coefficients'!$B$22*LN(Commercial_Energy_Cost)+'Commercial Energy Coefficients'!$B$23*IFERROR(LOOKUP(Metro_Select,Energy_Metro_Lookup,HDD),0)),0)+IFERROR(EXP('Commercial Energy Coefficients'!$E$3+LN(B_OFF_Gross_Sq_Ft)*'Commercial Energy Coefficients'!$E$4+'Commercial Energy Coefficients'!$E$11+'Commercial Energy Coefficients'!$E$14+'Commercial Energy Coefficients'!$E$18*LN((B_OFF_Emp_Acre)*(B_Lot_Size/43560))+'Commercial Energy Coefficients'!$E$19*LN(40)+'Commercial Energy Coefficients'!$E$21+'Commercial Energy Coefficients'!$E$22*LN(Commercial_Energy_Cost)+'Commercial Energy Coefficients'!$E$23*IFERROR(LOOKUP(Metro_Select,Energy_Metro_Lookup,HDD),0)),0)+IFERROR(EXP('Commercial Energy Coefficients'!$H$3+LN(B_PUB_Gross_Sq_Ft)*'Commercial Energy Coefficients'!$H$4+'Commercial Energy Coefficients'!$H$11+'Commercial Energy Coefficients'!$H$14+'Commercial Energy Coefficients'!$H$18*LN((B_Pub_Emp_Acre)*(B_Lot_Size/43560))+'Commercial Energy Coefficients'!$H$19*LN(40)+'Commercial Energy Coefficients'!$H$21+'Commercial Energy Coefficients'!$H$22*LN(Commercial_Energy_Cost)+'Commercial Energy Coefficients'!$H$23*IFERROR(LOOKUP(Metro_Select,Energy_Metro_Lookup,HDD),0)),0))/1000 -> 852.5348094 | CF16: =(IFERROR(EXP('Commercial Energy Coefficients'!$C$3+LN((B_RET_Gross_Sq_Ft))*'Commercial Energy Coefficients'!$C$4+'Commercial Energy Coefficients'!$C$11+'Commercial Energy Coefficients'!$C$14+'Commercial Energy Coefficients'!$C$18*LN((B_Ret_Emp_Acre)*(B_Lot_Size/43560))+'Commercial Energy Coefficients'!$C$19*LN(40)+'Commercial Energy Coefficients'!$C$21+'Commercial Energy Coefficients'!$C$22*LN(Commercial_Energy_Cost)+'Commercial Energy Coefficients'!$C$24*IFERROR(LOOKUP(Metro_Select,Energy_Metro_Lookup,CDD),0)),0)+IFERROR(EXP('Commercial Energy Coefficients'!$F$3+LN((B_OFF_Gross_Sq_Ft))*'Commercial Energy Coefficients'!$F$4+'Commercial Energy Coefficients'!$F$11+'Commercial Energy Coefficients'!$F$14+'Commercial Energy Coefficients'!$F$18*LN((B_OFF_Emp_Acre)*(B_Lot_Size/43560))+'Commercial Energy Coefficients'!$F$19*LN(40)+'Commercial Energy Coefficients'!$F$21+'Commercial Energy Coefficients'!$F$22*LN(Commercial_Energy_Cost)+'Commercial Energy Coefficients'!$F$24*IFERROR(LOOKUP(Metro_Select,Energy_Metro_Lookup,CDD),0)),0)+IFERROR(EXP('Commercial Energy Coefficients'!$I$3+LN((B_PUB_Gross_Sq_Ft))*'Commercial Energy Coefficients'!$I$4+'Commercial Energy Coefficients'!$I$11+'Commercial Energy Coefficients'!$I$14+'Commercial Energy Coefficients'!$I$18*LN((B_Pub_Emp_Acre)*(B_Lot_Size/43560))+'Commercial Energy Coefficients'!$I$19*LN(40)+'Commercial Energy Coefficients'!$I$21+'Commercial Energy Coefficients'!$I$22*LN(Commercial_Energy_Cost)+'Commercial Energy Coefficients'!$I$24*IFERROR(LOOKUP(Metro_Select,Energy_Metro_Lookup,CDD),0)),0))/1000 -> 243.3255457 | CG16: =(IFERROR(EXP('Commercial Energy Coefficients'!$D$3+LN((B_RET_Gross_Sq_Ft))*'Commercial Energy Coefficients'!$D$4+'Commercial Energy Coefficients'!$D$14+'Commercial Energy Coefficients'!$D$18*LN((B_Ret_Emp_Acre)*(B_Lot_Size/43560))+'Commercial Energy Coefficients'!$D$19*LN(40)+'Commercial Energy Coefficients'!$D$21+'Commercial Energy Coefficients'!$D$22*LN(Commercial_Energy_Cost)),0)+IFERROR(EXP('Commercial Energy Coefficients'!$G$3+LN((B_OFF_Gross_Sq_Ft))*'Commercial Energy Coefficients'!$G$4+'Commercial Energy Coefficients'!$G$14+'Commercial Energy Coefficients'!$G$18*LN((B_OFF_Emp_Acre)*(B_Lot_Size/43560))+'Commercial Energy Coefficients'!$G$19*LN(40)+'Commercial Energy Coefficients'!$G$21+'Commercial Energy Coefficients'!$G$22*LN(Commercial_Energy_Cost)),0)+IFERROR(EXP('Commercial Energy Coefficients'!$J$3+LN((B_PUB_Gross_Sq_Ft))*'Commercial Energy Coefficients'!$J$4+'Commercial Energy Coefficients'!$J$14+'Commercial Energy Coefficients'!$J$18*LN((B_Pub_Emp_Acre)*(B_Lot_Size/43560))+'Commercial Energy Coefficients'!$J$19*LN(40)+'Commercial Energy Coefficients'!$J$21+'Commercial Energy Coefficients'!$J$22*LN(Commercial_Energy_Cost)),0))/1000 -> 1610.812639 | CH16: 2706.672994 | CI16: 22.36445906 | CJ16: 0.05800013558 | CK16: 2706.672994 | CL16: 0 | CM16: 0 | CN16: 2.08615426 | CO16: 252.4781566 | CP16: 0 | CQ16: 200 | CR16: 0 | CS16: 0 | CT16: 101.4915254 | CU16: 12283.07692 | CV16: 0 | CW16: 0 | CX16: 47.69491525 | CY16: 5772.307692 | CZ16: =IF(B_Housing_Type="",0,IF(B_Housing_Type="MF",'Project Info'!$B$154,IF(B_Housing_Type="TH",'Project Info'!$B$155,IF(AND(B_Housing_Type="SF",B_Net_Sq_Ft_per_Unit>0,B_Net_Sq_Ft_per_Unit<3000),'Project Info'!$B$156,IF(AND(B_Housing_Type="SF",B_Net_Sq_Ft_per_Unit>=3000),'Project Info'!$B$157))))) -> 0 | DA16: 0 | DB16: 3.677966102 | DC16: 445.1282051 | DD16: =[13]!LandCost -> 25 | DE16: 750000 | DF16: 1089000 | DG16: =[13]!ProjectValue -> 11752218 | DH16: 17064220.54 | DI16: =[13]!Subsidy -> 1854360.692 | DJ16: 0 | DK16: 2692531.725 | DL16: 63461.9772 | DM16: 0 | DN16: 92146.79089 | DO16: 159833.3333 | DP16: 232078 | DQ16: 0.1851851852
B17: 14 | C17: =[14]!name -> Office 3 Story | D17: =[14]!lot_size -> 20000 | E17: =[14]!Building_Lot_Coverage -> 0.4235294118 | F17: =[14]!Landscaping_Coverage -> 0.1714705882 | G17: =[14]!Parking_Coverage -> 0.405 | H17: =[14]!Height -> 3 | I17: =[14]!FAR -> 0.9 | J17: 18000 | K17: =[14]!ResPct -> 0 | L17: 0 | M17: 0 | N17: 0 | O17: 0 | P17: 0 | Q17: 0 | R17: 0 | S17: 1 | T17: =[14]!RetPct -> 0 | U17: =[14]!OffPct -> 1 | V17: =[14]!IndPct -> 0 | W17: =[14]!PubPct -> 0 | X17: =[14]!EduPct -> 0 | Y17: =[14]!HotelPct -> 0 | Z17: =[14]!ParkingPct -> 0 | AA17: 0 | AB17: =[14]!NetUnitSize -> 0 | AC17: =[14]!UnitSize -> 0 | AD17: 0 | AE17: 0 | AF17: =[14]!HousingType ->  | AG17: =[14]!RentalPct -> 1 | AH17: 0 | AI17: =[14]!Rent -> 1.4 | AJ17: 0 | AK17: =[14]!Sales_Price -> 0 | AL17: 0 | AM17: 0 | AN17: 0 | AO17: 0 | AP17: 0 | AQ17: 0 | AR17: 0 | AS17: 0 | AT17: 0 | AU17: 18000 | AV17: 51.42857143 | AW17: 112.0114286 | AX17: 0 | AY17: =[14]!RetSpace -> 650 | AZ17: 0 | BA17: 18000 | BB17: =[14]!OffSpace -> 350 | BC17: 112.0114286 | BD17: 0 | BE17: =[14]!IndSpace -> 700 | BF17: 0 | BG17: 0 | BH17: =[14]!PubSpace -> 350 | BI17: 0 | BJ17: 0 | BK17: =[14]!EduSpace -> 800 | BL17: 0 | BM17: 0 | BN17: =[14]!HotelSpaceEmp -> 1000 | BO17: 0 | BP17: =[14]!HotelRoomNet -> 0 | BQ17: =[14]!HotelRoomGross -> 0 | BR17: 0 | BS17: 0 | BT17: 0 | BU17: =[14]!ParkingSpace -> 20000 | BV17: 0 | BW17: =[14]!ParkingSpaces -> 36 | BX17: =[14]!ParkingArea -> 11700 | BY17: =[14]!ParkingCost -> 296307.6923 | BZ17: 0.1000911332 | CA17: =IFERROR(IF(B_Housing_Type="SF",EXP('Residential Energy Coefficients'!$B$3+'Residential Energy Coefficients'!$B$4*LN(B_Net_Sq_Ft_per_Unit)+'Residential Energy Coefficients'!$B$9+'Residential Energy Coefficients'!$B$10*LN(B_HH_Income)+'Residential Energy Coefficients'!$B$16*LN(Residential_Energy_Cost)+'Residential Energy Coefficients'!$B$20+'Residential Energy Coefficients'!$B$24*IFERROR(LOOKUP(Metro_Select,Energy_Metro_Lookup,HDD),0)),IF(B_Housing_Type="TH",EXP('Residential Energy Coefficients'!$E$3+'Residential Energy Coefficients'!$E$4*LN(B_Net_Sq_Ft_per_Unit)+'Residential Energy Coefficients'!$E$9+'Residential Energy Coefficients'!$E$16*LN(Residential_Energy_Cost)+'Residential Energy Coefficients'!$E$19+'Residential Energy Coefficients'!$E$20+'Residential Energy Coefficients'!$E$24*IFERROR(LOOKUP(Metro_Select,Energy_Metro_Lookup,HDD),0)),IF(B_Housing_Type="MF",EXP('Residential Energy Coefficients'!$H$3+'Residential Energy Coefficients'!$H$4*LN(B_Net_Sq_Ft_per_Unit)+'Residential Energy Coefficients'!$H$9+IF(B_Pct_Owner=1,'Residential Energy Coefficients'!$H$12,0)+'Residential Energy Coefficients'!$H$16*LN(Residential_Energy_Cost)+'Residential Energy Coefficients'!$H$20+'Residential Energy Coefficients'!$H$24*IFERROR(LOOKUP(Metro_Select,Energy_Metro_Lookup,HDD),0)),IF(B_Hotel_Room_Acre>0,EXP('Residential Energy Coefficients'!$H$3+'Residential Energy Coefficients'!$H$4*LN(B_Hotel_Room_Net)+'Residential Energy Coefficients'!$H$9+'Residential Energy Coefficients'!$H$16*LN(Residential_Energy_Cost)+'Residential Energy Coefficients'!$H$20+'Residential Energy Coefficients'!$H$24*IFERROR(LOOKUP(Metro_Select,Energy_Metro_Lookup,HDD),0)),IF(B_Housing_Type="MH",EXP('Residential Energy Coefficients'!$K$3+'Residential Energy Coefficients'!$K$16*LN(Residential_Energy_Cost)+'Residential Energy Coefficients'!$K$24*IFERROR(LOOKUP(Metro_Select,Energy_Metro_Lookup,HDD),0)),0)))))/1000,0) -> 0 | CB17: =IFERROR(IF(B_Housing_Type="SF",EXP('Residential Energy Coefficients'!$C$3+'Residential Energy Coefficients'!$C$4*LN(B_Net_Sq_Ft_per_Unit)+'Residential Energy Coefficients'!$C$10*LN(B_HH_Income)+'Residential Energy Coefficients'!$C$11*B_HH_Size+'Residential Energy Coefficients'!$C$16*LN(Residential_Energy_Cost)+'Residential Energy Coefficients'!$C$19+'Residential Energy Coefficients'!$C$22+'Residential Energy Coefficients'!$C$25*IFERROR(LOOKUP(Metro_Select,Energy_Metro_Lookup,CDD),0)),IF(B_Housing_Type="TH",EXP('Residential Energy Coefficients'!$F$3+'Residential Energy Coefficients'!$F$4*LN(B_Net_Sq_Ft_per_Unit)+'Residential Energy Coefficients'!$F$10*LN(B_HH_Income)+'Residential Energy Coefficients'!$F$11*B_HH_Size+IF(B_Pct_Owner=1,'Residential Energy Coefficients'!$F$12,0)+'Residential Energy Coefficients'!$F$16*LN(Residential_Energy_Cost)+'Residential Energy Coefficients'!$F$22+'Residential Energy Coefficients'!$F$25*IFERROR(LOOKUP(Metro_Select,Energy_Metro_Lookup,CDD),0)),IF(B_Housing_Type="MF",EXP('Residential Energy Coefficients'!$I$3+'Residential Energy Coefficients'!$I$4*LN(B_Net_Sq_Ft_per_Unit)+'Residential Energy Coefficients'!$I$9+'Residential Energy Coefficients'!$I$11*B_HH_Size+'Residential Energy Coefficients'!$I$16*LN(Residential_Energy_Cost)+'Residential Energy Coefficients'!$I$22+'Residential Energy Coefficients'!$I$25*IFERROR(LOOKUP(Metro_Select,Energy_Metro_Lookup,CDD),0)),IF(B_Hotel_Room_Acre>0,EXP('Residential Energy Coefficients'!$I$3+'Residential Energy Coefficients'!$I$4*LN(B_Hotel_Room_Net)+'Residential Energy Coefficients'!$I$9+'Residential Energy Coefficients'!$I$11*1.25+'Residential Energy Coefficients'!$I$16*LN(Residential_Energy_Cost)+'Residential Energy Coefficients'!$I$22+'Residential Energy Coefficients'!$I$25*IFERROR(LOOKUP(Metro_Select,Energy_Metro_Lookup,CDD),0)),IF(B_Housing_Type="MH",EXP('Residential Energy Coefficients'!$L$3+'Residential Energy Coefficients'!$L$11*B_HH_Size+'Residential Energy Coefficients'!$L$16*LN(Residential_Energy_Cost)+'Residential Energy Coefficients'!$L$22+'Residential Energy Coefficients'!$L$25*IFERROR(LOOKUP(Metro_Select,Energy_Metro_Lookup,CDD),0)),0)))))/1000,0) -> 0 | CC17: =IFERROR(IF(B_Housing_Type="SF",EXP('Residential Energy Coefficients'!$D$3+'Residential Energy Coefficients'!$D$4*LN(B_Net_Sq_Ft_per_Unit)+'Residential Energy Coefficients'!$D$9+'Residential Energy Coefficients'!$D$10*LN(B_HH_Income)+'Residential Energy Coefficients'!$D$11*B_HH_Size+IF(B_Pct_Owner=1,'Residential Energy Coefficients'!$D$12,0)+'Residential Energy Coefficients'!$D$16*LN(Residential_Energy_Cost)),IF(B_Housing_Type="TH",EXP('Residential Energy Coefficients'!$G$3+'Residential Energy Coefficients'!$G$4*LN(B_Net_Sq_Ft_per_Unit)+'Residential Energy Coefficients'!$G$10*LN(B_HH_Income)+'Residential Energy Coefficients'!$G$11*B_HH_Size+'Residential Energy Coefficients'!$G$16*LN(Residential_Energy_Cost)),IF(B_Housing_Type="MF",EXP('Residential Energy Coefficients'!$J$3+'Residential Energy Coefficients'!$J$4*LN(B_Net_Sq_Ft_per_Unit)+'Residential Energy Coefficients'!$J$10*LN(B_HH_Income)+'Residential Energy Coefficients'!$J$11*B_HH_Size+IF(B_Pct_Owner=1,'Residential Energy Coefficients'!$J$12,0)+'Residential Energy Coefficients'!$J$16*LN(Residential_Energy_Cost)+'Residential Energy Coefficients'!$J$19),IF(B_Hotel_Room_Acre>0,EXP('Residential Energy Coefficients'!$J$3+'Residential Energy Coefficients'!$J$4*LN(B_Hotel_Room_Net)+'Residential Energy Coefficients'!$J$16*LN(Residential_Energy_Cost)+'Residential Energy Coefficients'!$J$19),IF(B_Housing_Type="MH",EXP('Residential Energy Coefficients'!$M$3+'Residential Energy Coefficients'!$M$4*LN(B_Net_Sq_Ft_per_Unit)+'Residential Energy Coefficients'!$M$11*B_HH_Size+'Residential Energy Coefficients'!$M$16*LN(Residential_Energy_Cost)+'Residential Energy Coefficients'!$M$19),0)))))/1000,0) -> 0 | CD17: 0 | CE17: =(IFERROR(EXP('Commercial Energy Coefficients'!$B$3+LN(B_RET_Gross_Sq_Ft)*'Commercial Energy Coefficients'!$B$4+'Commercial Energy Coefficients'!$B$11+'Commercial Energy Coefficients'!$B$14+'Commercial Energy Coefficients'!$B$18*LN((B_Ret_Emp_Acre)*(B_Lot_Size/43560))+'Commercial Energy Coefficients'!$B$19*LN(40)+'Commercial Energy Coefficients'!$B$21+'Commercial Energy Coefficients'!$B$22*LN(Commercial_Energy_Cost)+'Commercial Energy Coefficients'!$B$23*IFERROR(LOOKUP(Metro_Select,Energy_Metro_Lookup,HDD),0)),0)+IFERROR(EXP('Commercial Energy Coefficients'!$E$3+LN(B_OFF_Gross_Sq_Ft)*'Commercial Energy Coefficients'!$E$4+'Commercial Energy Coefficients'!$E$11+'Commercial Energy Coefficients'!$E$14+'Commercial Energy Coefficients'!$E$18*LN((B_OFF_Emp_Acre)*(B_Lot_Size/43560))+'Commercial Energy Coefficients'!$E$19*LN(40)+'Commercial Energy Coefficients'!$E$21+'Commercial Energy Coefficients'!$E$22*LN(Commercial_Energy_Cost)+'Commercial Energy Coefficients'!$E$23*IFERROR(LOOKUP(Metro_Select,Energy_Metro_Lookup,HDD),0)),0)+IFERROR(EXP('Commercial Energy Coefficients'!$H$3+LN(B_PUB_Gross_Sq_Ft)*'Commercial Energy Coefficients'!$H$4+'Commercial Energy Coefficients'!$H$11+'Commercial Energy Coefficients'!$H$14+'Commercial Energy Coefficients'!$H$18*LN((B_Pub_Emp_Acre)*(B_Lot_Size/43560))+'Commercial Energy Coefficients'!$H$19*LN(40)+'Commercial Energy Coefficients'!$H$21+'Commercial Energy Coefficients'!$H$22*LN(Commercial_Energy_Cost)+'Commercial Energy Coefficients'!$H$23*IFERROR(LOOKUP(Metro_Select,Energy_Metro_Lookup,HDD),0)),0))/1000 -> 482.27959 | CF17: =(IFERROR(EXP('Commercial Energy Coefficients'!$C$3+LN((B_RET_Gross_Sq_Ft))*'Commercial Energy Coefficients'!$C$4+'Commercial Energy Coefficients'!$C$11+'Commercial Energy Coefficients'!$C$14+'Commercial Energy Coefficients'!$C$18*LN((B_Ret_Emp_Acre)*(B_Lot_Size/43560))+'Commercial Energy Coefficients'!$C$19*LN(40)+'Commercial Energy Coefficients'!$C$21+'Commercial Energy Coefficients'!$C$22*LN(Commercial_Energy_Cost)+'Commercial Energy Coefficients'!$C$24*IFERROR(LOOKUP(Metro_Select,Energy_Metro_Lookup,CDD),0)),0)+IFERROR(EXP('Commercial Energy Coefficients'!$F$3+LN((B_OFF_Gross_Sq_Ft))*'Commercial Energy Coefficients'!$F$4+'Commercial Energy Coefficients'!$F$11+'Commercial Energy Coefficients'!$F$14+'Commercial Energy Coefficients'!$F$18*LN((B_OFF_Emp_Acre)*(B_Lot_Size/43560))+'Commercial Energy Coefficients'!$F$19*LN(40)+'Commercial Energy Coefficients'!$F$21+'Commercial Energy Coefficients'!$F$22*LN(Commercial_Energy_Cost)+'Commercial Energy Coefficients'!$F$24*IFERROR(LOOKUP(Metro_Select,Energy_Metro_Lookup,CDD),0)),0)+IFERROR(EXP('Commercial Energy Coefficients'!$I$3+LN((B_PUB_Gross_Sq_Ft))*'Commercial Energy Coefficients'!$I$4+'Commercial Energy Coefficients'!$I$11+'Commercial Energy Coefficients'!$I$14+'Commercial Energy Coefficients'!$I$18*LN((B_Pub_Emp_Acre)*(B_Lot_Size/43560))+'Commercial Energy Coefficients'!$I$19*LN(40)+'Commercial Energy Coefficients'!$I$21+'Commercial Energy Coefficients'!$I$22*LN(Commercial_Energy_Cost)+'Commercial Energy Coefficients'!$I$24*IFERROR(LOOKUP(Metro_Select,Energy_Metro_Lookup,CDD),0)),0))/1000 -> 62.22281396 | CG17: =(IFERROR(EXP('Commercial Energy Coefficients'!$D$3+LN((B_RET_Gross_Sq_Ft))*'Commercial Energy Coefficients'!$D$4+'Commercial Energy Coefficients'!$D$14+'Commercial Energy Coefficients'!$D$18*LN((B_Ret_Emp_Acre)*(B_Lot_Size/43560))+'Commercial Energy Coefficients'!$D$19*LN(40)+'Commercial Energy Coefficients'!$D$21+'Commercial Energy Coefficients'!$D$22*LN(Commercial_Energy_Cost)),0)+IFERROR(EXP('Commercial Energy Coefficients'!$G$3+LN((B_OFF_Gross_Sq_Ft))*'Commercial Energy Coefficients'!$G$4+'Commercial Energy Coefficients'!$G$14+'Commercial Energy Coefficients'!$G$18*LN((B_OFF_Emp_Acre)*(B_Lot_Size/43560))+'Commercial Energy Coefficients'!$G$19*LN(40)+'Commercial Energy Coefficients'!$G$21+'Commercial Energy Coefficients'!$G$22*LN(Commercial_Energy_Cost)),0)+IFERROR(EXP('Commercial Energy Coefficients'!$J$3+LN((B_PUB_Gross_Sq_Ft))*'Commercial Energy Coefficients'!$J$4+'Commercial Energy Coefficients'!$J$14+'Commercial Energy Coefficients'!$J$18*LN((B_Pub_Emp_Acre)*(B_Lot_Size/43560))+'Commercial Energy Coefficients'!$J$19*LN(40)+'Commercial Energy Coefficients'!$J$21+'Commercial Energy Coefficients'!$J$22*LN(Commercial_Energy_Cost)),0))/1000 -> 581.919916 | CH17: 1126.42232 | CI17: 21.90265622 | CJ17: 0.06257901777 | CK17: 1126.42232 | CL17: 0 | CM17: 0 | CN17: 2.043077343 | CO17: 105.072549 | CP17: 0 | CQ17: 171.4705882 | CR17: 0 | CS17: 0 | CT17: 106 | CU17: 5451.428571 | CV17: 0 | CW17: 0 | CX17: 49 | CY17: 2520 | CZ17: =IF(B_Housing_Type="",0,IF(B_Housing_Type="MF",'Project Info'!$B$154,IF(B_Housing_Type="TH",'Project Info'!$B$155,IF(AND(B_Housing_Type="SF",B_Net_Sq_Ft_per_Unit>0,B_Net_Sq_Ft_per_Unit<3000),'Project Info'!$B$156,IF(AND(B_Housing_Type="SF",B_Net_Sq_Ft_per_Unit>=3000),'Project Info'!$B$157))))) -> 0 | DA17: 0 | DB17: 3.5 | DC17: 180 | DD17: =[14]!LandCost -> 25 | DE17: 500000 | DF17: 1089000 | DG17: =[14]!ProjectValue -> 2960379.034 | DH17: 6447705.536 | DI17: =[14]!Subsidy -> 0 | DJ17: 0 | DK17: 0 | DL17: 15986.04678 | DM17: 0 | DN17: 34817.60989 | DO17: 0 | DP17: 0 | DQ17: 0.1071428571
B18: 15 | C18: =[15]!name -> Main Street Retail | D18: =[15]!lot_size -> 10000 | E18: =[15]!Building_Lot_Coverage -> 0.7547169811 | F18: =[15]!Landscaping_Coverage -> 0.02452830189 | G18: =[15]!Parking_Coverage -> 0.220754717 | H18: =[15]!Height -> 1 | I18: =[15]!FAR -> 0.679245283 | J18: 6792.45283 | K18: =[15]!ResPct -> 0 | L18: 0 | M18: 0 | N18: 0 | O18: 0 | P18: 0 | Q18: 0 | R18: 0 | S18: 1 | T18: =[15]!RetPct -> 1 | U18: =[15]!OffPct -> 0 | V18: =[15]!IndPct -> 0 | W18: =[15]!PubPct -> 0 | X18: =[15]!EduPct -> 0 | Y18: =[15]!HotelPct -> 0 | Z18: =[15]!ParkingPct -> 0 | AA18: 0 | AB18: =[15]!NetUnitSize -> 0 | AC18: =[15]!UnitSize -> 0 | AD18: 0 | AE18: 0 | AF18: =[15]!HousingType ->  | AG18: =[15]!RentalPct -> 1 | AH18: 0 | AI18: =[15]!Rent -> 1.4 | AJ18: 0 | AK18: =[15]!Sales_Price -> 0 | AL18: 0 | AM18: 0 | AN18: 0 | AO18: 0 | AP18: 0 | AQ18: 0 | AR18: 0 | AS18: 0 | AT18: 0 | AU18: 6792.45283 | AV18: 10.44992743 | AW18: 45.51988389 | AX18: 6792.45283 | AY18: =[15]!RetSpace -> 650 | AZ18: 45.51988389 | BA18: 0 | BB18: =[15]!OffSpace -> 350 | BC18: 0 | BD18: 0 | BE18: =[15]!IndSpace -> 700 | BF18: 0 | BG18: 0 | BH18: =[15]!PubSpace -> 350 | BI18: 0 | BJ18: 0 | BK18: =[15]!EduSpace -> 800 | BL18: 0 | BM18: 0 | BN18: =[15]!HotelSpaceEmp -> 1000 | BO18: 0 | BP18: =[15]!HotelRoomNet -> 0 | BQ18: =[15]!HotelRoomGross -> 0 | BR18: 0 | BS18: 0 | BT18: 0 | BU18: =[15]!ParkingSpace -> 20000 | BV18: 0 | BW18: =[15]!ParkingSpaces -> 6.79245283 | BX18: =[15]!ParkingArea -> 2207.54717 | BY18: =[15]!ParkingCost -> 20377.35849 | BZ18: 0.01891193224 | CA18: =IFERROR(IF(B_Housing_Type="SF",EXP('Residential Energy Coefficients'!$B$3+'Residential Energy Coefficients'!$B$4*LN(B_Net_Sq_Ft_per_Unit)+'Residential Energy Coefficients'!$B$9+'Residential Energy Coefficients'!$B$10*LN(B_HH_Income)+'Residential Energy Coefficients'!$B$16*LN(Residential_Energy_Cost)+'Residential Energy Coefficients'!$B$20+'Residential Energy Coefficients'!$B$24*IFERROR(LOOKUP(Metro_Select,Energy_Metro_Lookup,HDD),0)),IF(B_Housing_Type="TH",EXP('Residential Energy Coefficients'!$E$3+'Residential Energy Coefficients'!$E$4*LN(B_Net_Sq_Ft_per_Unit)+'Residential Energy Coefficients'!$E$9+'Residential Energy Coefficients'!$E$16*LN(Residential_Energy_Cost)+'Residential Energy Coefficients'!$E$19+'Residential Energy Coefficients'!$E$20+'Residential Energy Coefficients'!$E$24*IFERROR(LOOKUP(Metro_Select,Energy_Metro_Lookup,HDD),0)),IF(B_Housing_Type="MF",EXP('Residential Energy Coefficients'!$H$3+'Residential Energy Coefficients'!$H$4*LN(B_Net_Sq_Ft_per_Unit)+'Residential Energy Coefficients'!$H$9+IF(B_Pct_Owner=1,'Residential Energy Coefficients'!$H$12,0)+'Residential Energy Coefficients'!$H$16*LN(Residential_Energy_Cost)+'Residential Energy Coefficients'!$H$20+'Residential Energy Coefficients'!$H$24*IFERROR(LOOKUP(Metro_Select,Energy_Metro_Lookup,HDD),0)),IF(B_Hotel_Room_Acre>0,EXP('Residential Energy Coefficients'!$H$3+'Residential Energy Coefficients'!$H$4*LN(B_Hotel_Room_Net)+'Residential Energy Coefficients'!$H$9+'Residential Energy Coefficients'!$H$16*LN(Residential_Energy_Cost)+'Residential Energy Coefficients'!$H$20+'Residential Energy Coefficients'!$H$24*IFERROR(LOOKUP(Metro_Select,Energy_Metro_Lookup,HDD),0)),IF(B_Housing_Type="MH",EXP('Residential Energy Coefficients'!$K$3+'Residential Energy Coefficients'!$K$16*LN(Residential_Energy_Cost)+'Residential Energy Coefficients'!$K$24*IFERROR(LOOKUP(Metro_Select,Energy_Metro_Lookup,HDD),0)),0)))))/1000,0) -> 0 | CB18: =IFERROR(IF(B_Housing_Type="SF",EXP('Residential Energy Coefficients'!$C$3+'Residential Energy Coefficients'!$C$4*LN(B_Net_Sq_Ft_per_Unit)+'Residential Energy Coefficients'!$C$10*LN(B_HH_Income)+'Residential Energy Coefficients'!$C$11*B_HH_Size+'Residential Energy Coefficients'!$C$16*LN(Residential_Energy_Cost)+'Residential Energy Coefficients'!$C$19+'Residential Energy Coefficients'!$C$22+'Residential Energy Coefficients'!$C$25*IFERROR(LOOKUP(Metro_Select,Energy_Metro_Lookup,CDD),0)),IF(B_Housing_Type="TH",EXP('Residential Energy Coefficients'!$F$3+'Residential Energy Coefficients'!$F$4*LN(B_Net_Sq_Ft_per_Unit)+'Residential Energy Coefficients'!$F$10*LN(B_HH_Income)+'Residential Energy Coefficients'!$F$11*B_HH_Size+IF(B_Pct_Owner=1,'Residential Energy Coefficients'!$F$12,0)+'Residential Energy Coefficients'!$F$16*LN(Residential_Energy_Cost)+'Residential Energy Coefficients'!$F$22+'Residential Energy Coefficients'!$F$25*IFERROR(LOOKUP(Metro_Select,Energy_Metro_Lookup,CDD),0)),IF(B_Housing_Type="MF",EXP('Residential Energy Coefficients'!$I$3+'Residential Energy Coefficients'!$I$4*LN(B_Net_Sq_Ft_per_Unit)+'Residential Energy Coefficients'!$I$9+'Residential Energy Coefficients'!$I$11*B_HH_Size+'Residential Energy Coefficients'!$I$16*LN(Residential_Energy_Cost)+'Residential Energy Coefficients'!$I$22+'Residential Energy Coefficients'!$I$25*IFERROR(LOOKUP(Metro_Select,Energy_Metro_Lookup,CDD),0)),IF(B_Hotel_Room_Acre>0,EXP('Residential Energy Coefficients'!$I$3+'Residential Energy Coefficients'!$I$4*LN(B_Hotel_Room_Net)+'Residential Energy Coefficients'!$I$9+'Residential Energy Coefficients'!$I$11*1.25+'Residential Energy Coefficients'!$I$16*LN(Residential_Energy_Cost)+'Residential Energy Coefficients'!$I$22+'Residential Energy Coefficients'!$I$25*IFERROR(LOOKUP(Metro_Select,Energy_Metro_Lookup,CDD),0)),IF(B_Housing_Type="MH",EXP('Residential Energy Coefficients'!$L$3+'Residential Energy Coefficients'!$L$11*B_HH_Size+'Residential Energy Coefficients'!$L$16*LN(Residential_Energy_Cost)+'Residential Energy Coefficients'!$L$22+'Residential Energy Coefficients'!$L$25*IFERROR(LOOKUP(Metro_Select,Energy_Metro_Lookup,CDD),0)),0)))))/1000,0) -> 0 | CC18: =IFERROR(IF(B_Housing_Type="SF",EXP('Residential Energy Coefficients'!$D$3+'Residential Energy Coefficients'!$D$4*LN(B_Net_Sq_Ft_per_Unit)+'Residential Energy Coefficients'!$D$9+'Residential Energy Coefficients'!$D$10*LN(B_HH_Income)+'Residential Energy Coefficients'!$D$11*B_HH_Size+IF(B_Pct_Owner=1,'Residential Energy Coefficients'!$D$12,0)+'Residential Energy Coefficients'!$D$16*LN(Residential_Energy_Cost)),IF(B_Housing_Type="TH",EXP('Residential Energy Coefficients'!$G$3+'Residential Energy Coefficients'!$G$4*LN(B_Net_Sq_Ft_per_Unit)+'Residential Energy Coefficients'!$G$10*LN(B_HH_Income)+'Residential Energy Coefficients'!$G$11*B_HH_Size+'Residential Energy Coefficients'!$G$16*LN(Residential_Energy_Cost)),IF(B_Housing_Type="MF",EXP('Residential Energy Coefficients'!$J$3+'Residential Energy Coefficients'!$J$4*LN(B_Net_Sq_Ft_per_Unit)+'Residential Energy Coefficients'!$J$10*LN(B_HH_Income)+'Residential Energy Coefficients'!$J$11*B_HH_Size+IF(B_Pct_Owner=1,'Residential Energy Coefficients'!$J$12,0)+'Residential Energy Coefficients'!$J$16*LN(Residential_Energy_Cost)+'Residential Energy Coefficients'!$J$19),IF(B_Hotel_Room_Acre>0,EXP('Residential Energy Coefficients'!$J$3+'Residential Energy Coefficients'!$J$4*LN(B_Hotel_Room_Net)+'Residential Energy Coefficients'!$J$16*LN(Residential_Energy_Cost)+'Residential Energy Coefficients'!$J$19),IF(B_Housing_Type="MH",EXP('Residential Energy Coefficients'!$M$3+'Residential Energy Coefficients'!$M$4*LN(B_Net_Sq_Ft_per_Unit)+'Residential Energy Coefficients'!$M$11*B_HH_Size+'Residential Energy Coefficients'!$M$16*LN(Residential_Energy_Cost)+'Residential Energy Coefficients'!$M$19),0)))))/1000,0) -> 0 | CD18: 0 | CE18: =(IFERROR(EXP('Commercial Energy Coefficients'!$B$3+LN(B_RET_Gross_Sq_Ft)*'Commercial Energy Coefficients'!$B$4+'Commercial Energy Coefficients'!$B$11+'Commercial Energy Coefficients'!$B$14+'Commercial Energy Coefficients'!$B$18*LN((B_Ret_Emp_Acre)*(B_Lot_Size/43560))+'Commercial Energy Coefficients'!$B$19*LN(40)+'Commercial Energy Coefficients'!$B$21+'Commercial Energy Coefficients'!$B$22*LN(Commercial_Energy_Cost)+'Commercial Energy Coefficients'!$B$23*IFERROR(LOOKUP(Metro_Select,Energy_Metro_Lookup,HDD),0)),0)+IFERROR(EXP('Commercial Energy Coefficients'!$E$3+LN(B_OFF_Gross_Sq_Ft)*'Commercial Energy Coefficients'!$E$4+'Commercial Energy Coefficients'!$E$11+'Commercial Energy Coefficients'!$E$14+'Commercial Energy Coefficients'!$E$18*LN((B_OFF_Emp_Acre)*(B_Lot_Size/43560))+'Commercial Energy Coefficients'!$E$19*LN(40)+'Commercial Energy Coefficients'!$E$21+'Commercial Energy Coefficients'!$E$22*LN(Commercial_Energy_Cost)+'Commercial Energy Coefficients'!$E$23*IFERROR(LOOKUP(Metro_Select,Energy_Metro_Lookup,HDD),0)),0)+IFERROR(EXP('Commercial Energy Coefficients'!$H$3+LN(B_PUB_Gross_Sq_Ft)*'Commercial Energy Coefficients'!$H$4+'Commercial Energy Coefficients'!$H$11+'Commercial Energy Coefficients'!$H$14+'Commercial Energy Coefficients'!$H$18*LN((B_Pub_Emp_Acre)*(B_Lot_Size/43560))+'Commercial Energy Coefficients'!$H$19*LN(40)+'Commercial Energy Coefficients'!$H$21+'Commercial Energy Coefficients'!$H$22*LN(Commercial_Energy_Cost)+'Commercial Energy Coefficients'!$H$23*IFERROR(LOOKUP(Metro_Select,Energy_Metro_Lookup,HDD),0)),0))/1000 -> 4.858893346 | CF18: =(IFERROR(EXP('Commercial Energy Coefficients'!$C$3+LN((B_RET_Gross_Sq_Ft))*'Commercial Energy Coefficients'!$C$4+'Commercial Energy Coefficients'!$C$11+'Commercial Energy Coefficients'!$C$14+'Commercial Energy Coefficients'!$C$18*LN((B_Ret_Emp_Acre)*(B_Lot_Size/43560))+'Commercial Energy Coefficients'!$C$19*LN(40)+'Commercial Energy Coefficients'!$C$21+'Commercial Energy Coefficients'!$C$22*LN(Commercial_Energy_Cost)+'Commercial Energy Coefficients'!$C$24*IFERROR(LOOKUP(Metro_Select,Energy_Metro_Lookup,CDD),0)),0)+IFERROR(EXP('Commercial Energy Coefficients'!$F$3+LN((B_OFF_Gross_Sq_Ft))*'Commercial Energy Coefficients'!$F$4+'Commercial Energy Coefficients'!$F$11+'Commercial Energy Coefficients'!$F$14+'Commercial Energy Coefficients'!$F$18*LN((B_OFF_Emp_Acre)*(B_Lot_Size/43560))+'Commercial Energy Coefficients'!$F$19*LN(40)+'Commercial Energy Coefficients'!$F$21+'Commercial Energy Coefficients'!$F$22*LN(Commercial_Energy_Cost)+'Commercial Energy Coefficients'!$F$24*IFERROR(LOOKUP(Metro_Select,Energy_Metro_Lookup,CDD),0)),0)+IFERROR(EXP('Commercial Energy Coefficients'!$I$3+LN((B_PUB_Gross_Sq_Ft))*'Commercial Energy Coefficients'!$I$4+'Commercial Energy Coefficients'!$I$11+'Commercial Energy Coefficients'!$I$14+'Commercial Energy Coefficients'!$I$18*LN((B_Pub_Emp_Acre)*(B_Lot_Size/43560))+'Commercial Energy Coefficients'!$I$19*LN(40)+'Commercial Energy Coefficients'!$I$21+'Commercial Energy Coefficients'!$I$22*LN(Commercial_Energy_Cost)+'Commercial Energy Coefficients'!$I$24*IFERROR(LOOKUP(Metro_Select,Energy_Metro_Lookup,CDD),0)),0))/1000 -> 95.60034307 | CG18: =(IFERROR(EXP('Commercial Energy Coefficients'!$D$3+LN((B_RET_Gross_Sq_Ft))*'Commercial Energy Coefficients'!$D$4+'Commercial Energy Coefficients'!$D$14+'Commercial Energy Coefficients'!$D$18*LN((B_Ret_Emp_Acre)*(B_Lot_Size/43560))+'Commercial Energy Coefficients'!$D$19*LN(40)+'Commercial Energy Coefficients'!$D$21+'Commercial Energy Coefficients'!$D$22*LN(Commercial_Energy_Cost)),0)+IFERROR(EXP('Commercial Energy Coefficients'!$G$3+LN((B_OFF_Gross_Sq_Ft))*'Commercial Energy Coefficients'!$G$4+'Commercial Energy Coefficients'!$G$14+'Commercial Energy Coefficients'!$G$18*LN((B_OFF_Emp_Acre)*(B_Lot_Size/43560))+'Commercial Energy Coefficients'!$G$19*LN(40)+'Commercial Energy Coefficients'!$G$21+'Commercial Energy Coefficients'!$G$22*LN(Commercial_Energy_Cost)),0)+IFERROR(EXP('Commercial Energy Coefficients'!$J$3+LN((B_PUB_Gross_Sq_Ft))*'Commercial Energy Coefficients'!$J$4+'Commercial Energy Coefficients'!$J$14+'Commercial Energy Coefficients'!$J$18*LN((B_Pub_Emp_Acre)*(B_Lot_Size/43560))+'Commercial Energy Coefficients'!$J$19*LN(40)+'Commercial Energy Coefficients'!$J$21+'Commercial Energy Coefficients'!$J$22*LN(Commercial_Energy_Cost)),0))/1000 -> 338.1926211 | CH18: 438.6518575 | CI18: 41.97654581 | CJ18: 0.06457930124 | CK18: 438.6518575 | CL18: 0 | CM18: 0 | CN18: 3.915567536 | CO18: 40.91739661 | CP18: 0 | CQ18: 12.26415094 | CR18: 0 | CS18: 0 | CT18: 68 | CU18: 710.5950653 | CV18: 0 | CW18: 0 | CX18: 38 | CY18: 397.0972424 | CZ18: =IF(B_Housing_Type="",0,IF(B_Housing_Type="MF",'Project Info'!$B$154,IF(B_Housing_Type="TH",'Project Info'!$B$155,IF(AND(B_Housing_Type="SF",B_Net_Sq_Ft_per_Unit>0,B_Net_Sq_Ft_per_Unit<3000),'Project Info'!$B$156,IF(AND(B_Housing_Type="SF",B_Net_Sq_Ft_per_Unit>=3000),'Project Info'!$B$157))))) -> 0 | DA18: 0 | DB18: 5 | DC18: 52.24963716 | DD18: =[15]!LandCost -> 25 | DE18: 250000 | DF18: 1089000 | DG18: =[15]!ProjectValue -> 1077486.86 | DH18: 4693532.764 | DI18: =[15]!Subsidy -> 0 | DJ18: 0 | DK18: 0 | DL18: 5818.429046 | DM18: 0 | DN18: 25345.07692 | DO18: 116320.7547 | DP18: 506693.2075 | DQ18: 0.08086253369
B19: 16 | C19: =[16]!name -> Strip Commercial | D19: =[16]!lot_size -> 50000 | E19: =[16]!Building_Lot_Coverage -> 0.3 | F19: =[16]!Landscaping_Coverage -> 0.16 | G19: =[16]!Parking_Coverage -> 0.54 | H19: =[16]!Height -> 1 | I19: =[16]!FAR -> 0.27 | J19: 13500 | K19: =[16]!ResPct -> 0 | L19: 0 | M19: 0 | N19: 0 | O19: 0 | P19: 0 | Q19: 0 | R19: 0 | S19: 1 | T19: =[16]!RetPct -> 1 | U19: =[16]!OffPct -> 0 | V19: =[16]!IndPct -> 0 | W19: =[16]!PubPct -> 0 | X19: =[16]!EduPct -> 0 | Y19: =[16]!HotelPct -> 0 | Z19: =[16]!ParkingPct -> 0 | AA19: 0 | AB19: =[16]!NetUnitSize -> 0 | AC19: =[16]!UnitSize -> 0 | AD19: 0 | AE19: 0 | AF19: =[16]!HousingType ->  | AG19: =[16]!RentalPct -> 1 | AH19: 0 | AI19: =[16]!Rent -> 1.4 | AJ19: 0 | AK19: =[16]!Sales_Price -> 0 | AL19: 0 | AM19: 0 | AN19: 0 | AO19: 0 | AP19: 0 | AQ19: 0 | AR19: 0 | AS19: 0 | AT19: 0 | AU19: 13500 | AV19: 20.76923077 | AW19: 18.09415385 | AX19: 13500 | AY19: =[16]!RetSpace -> 650 | AZ19: 18.09415385 | BA19: 0 | BB19: =[16]!OffSpace -> 350 | BC19: 0 | BD19: 0 | BE19: =[16]!IndSpace -> 700 | BF19: 0 | BG19: 0 | BH19: =[16]!PubSpace -> 350 | BI19: 0 | BJ19: 0 | BK19: =[16]!EduSpace -> 800 | BL19: 0 | BM19: 0 | BN19: =[16]!HotelSpaceEmp -> 1000 | BO19: 0 | BP19: =[16]!HotelRoomNet -> 0 | BQ19: =[16]!HotelRoomGross -> 0 | BR19: 0 | BS19: 0 | BT19: 0 | BU19: =[16]!ParkingSpace -> 20000 | BV19: 0 | BW19: =[16]!ParkingSpaces -> 67.5 | BX19: =[16]!ParkingArea -> 27000 | BY19: =[16]!ParkingCost -> 202500 | BZ19: 0.1007421688 | CA19: =IFERROR(IF(B_Housing_Type="SF",EXP('Residential Energy Coefficients'!$B$3+'Residential Energy Coefficients'!$B$4*LN(B_Net_Sq_Ft_per_Unit)+'Residential Energy Coefficients'!$B$9+'Residential Energy Coefficients'!$B$10*LN(B_HH_Income)+'Residential Energy Coefficients'!$B$16*LN(Residential_Energy_Cost)+'Residential Energy Coefficients'!$B$20+'Residential Energy Coefficients'!$B$24*IFERROR(LOOKUP(Metro_Select,Energy_Metro_Lookup,HDD),0)),IF(B_Housing_Type="TH",EXP('Residential Energy Coefficients'!$E$3+'Residential Energy Coefficients'!$E$4*LN(B_Net_Sq_Ft_per_Unit)+'Residential Energy Coefficients'!$E$9+'Residential Energy Coefficients'!$E$16*LN(Residential_Energy_Cost)+'Residential Energy Coefficients'!$E$19+'Residential Energy Coefficients'!$E$20+'Residential Energy Coefficients'!$E$24*IFERROR(LOOKUP(Metro_Select,Energy_Metro_Lookup,HDD),0)),IF(B_Housing_Type="MF",EXP('Residential Energy Coefficients'!$H$3+'Residential Energy Coefficients'!$H$4*LN(B_Net_Sq_Ft_per_Unit)+'Residential Energy Coefficients'!$H$9+IF(B_Pct_Owner=1,'Residential Energy Coefficients'!$H$12,0)+'Residential Energy Coefficients'!$H$16*LN(Residential_Energy_Cost)+'Residential Energy Coefficients'!$H$20+'Residential Energy Coefficients'!$H$24*IFERROR(LOOKUP(Metro_Select,Energy_Metro_Lookup,HDD),0)),IF(B_Hotel_Room_Acre>0,EXP('Residential Energy Coefficients'!$H$3+'Residential Energy Coefficients'!$H$4*LN(B_Hotel_Room_Net)+'Residential Energy Coefficients'!$H$9+'Residential Energy Coefficients'!$H$16*LN(Residential_Energy_Cost)+'Residential Energy Coefficients'!$H$20+'Residential Energy Coefficients'!$H$24*IFERROR(LOOKUP(Metro_Select,Energy_Metro_Lookup,HDD),0)),IF(B_Housing_Type="MH",EXP('Residential Energy Coefficients'!$K$3+'Residential Energy Coefficients'!$K$16*LN(Residential_Energy_Cost)+'Residential Energy Coefficients'!$K$24*IFERROR(LOOKUP(Metro_Select,Energy_Metro_Lookup,HDD),0)),0)))))/1000,0) -> 0 | CB19: =IFERROR(IF(B_Housing_Type="SF",EXP('Residential Energy Coefficients'!$C$3+'Residential Energy Coefficients'!$C$4*LN(B_Net_Sq_Ft_per_Unit)+'Residential Energy Coefficients'!$C$10*LN(B_HH_Income)+'Residential Energy Coefficients'!$C$11*B_HH_Size+'Residential Energy Coefficients'!$C$16*LN(Residential_Energy_Cost)+'Residential Energy Coefficients'!$C$19+'Residential Energy Coefficients'!$C$22+'Residential Energy Coefficients'!$C$25*IFERROR(LOOKUP(Metro_Select,Energy_Metro_Lookup,CDD),0)),IF(B_Housing_Type="TH",EXP('Residential Energy Coefficients'!$F$3+'Residential Energy Coefficients'!$F$4*LN(B_Net_Sq_Ft_per_Unit)+'Residential Energy Coefficients'!$F$10*LN(B_HH_Income)+'Residential Energy Coefficients'!$F$11*B_HH_Size+IF(B_Pct_Owner=1,'Residential Energy Coefficients'!$F$12,0)+'Residential Energy Coefficients'!$F$16*LN(Residential_Energy_Cost)+'Residential Energy Coefficients'!$F$22+'Residential Energy Coefficients'!$F$25*IFERROR(LOOKUP(Metro_Select,Energy_Metro_Lookup,CDD),0)),IF(B_Housing_Type="MF",EXP('Residential Energy Coefficients'!$I$3+'Residential Energy Coefficients'!$I$4*LN(B_Net_Sq_Ft_per_Unit)+'Residential Energy Coefficients'!$I$9+'Residential Energy Coefficients'!$I$11*B_HH_Size+'Residential Energy Coefficients'!$I$16*LN(Residential_Energy_Cost)+'Residential Energy Coefficients'!$I$22+'Residential Energy Coefficients'!$I$25*IFERROR(LOOKUP(Metro_Select,Energy_Metro_Lookup,CDD),0)),IF(B_Hotel_Room_Acre>0,EXP('Residential Energy Coefficients'!$I$3+'Residential Energy Coefficients'!$I$4*LN(B_Hotel_Room_Net)+'Residential Energy Coefficients'!$I$9+'Residential Energy Coefficients'!$I$11*1.25+'Residential Energy Coefficients'!$I$16*LN(Residential_Energy_Cost)+'Residential Energy Coefficients'!$I$22+'Residential Energy Coefficients'!$I$25*IFERROR(LOOKUP(Metro_Select,Energy_Metro_Lookup,CDD),0)),IF(B_Housing_Type="MH",EXP('Residential Energy Coefficients'!$L$3+'Residential Energy Coefficients'!$L$11*B_HH_Size+'Residential Energy Coefficients'!$L$16*LN(Residential_Energy_Cost)+'Residential Energy Coefficients'!$L$22+'Residential Energy Coefficients'!$L$25*IFERROR(LOOKUP(Metro_Select,Energy_Metro_Lookup,CDD),0)),0)))))/1000,0) -> 0 | CC19: =IFERROR(IF(B_Housing_Type="SF",EXP('Residential Energy Coefficients'!$D$3+'Residential Energy Coefficients'!$D$4*LN(B_Net_Sq_Ft_per_Unit)+'Residential Energy Coefficients'!$D$9+'Residential Energy Coefficients'!$D$10*LN(B_HH_Income)+'Residential Energy Coefficients'!$D$11*B_HH_Size+IF(B_Pct_Owner=1,'Residential Energy Coefficients'!$D$12,0)+'Residential Energy Coefficients'!$D$16*LN(Residential_Energy_Cost)),IF(B_Housing_Type="TH",EXP('Residential Energy Coefficients'!$G$3+'Residential Energy Coefficients'!$G$4*LN(B_Net_Sq_Ft_per_Unit)+'Residential Energy Coefficients'!$G$10*LN(B_HH_Income)+'Residential Energy Coefficients'!$G$11*B_HH_Size+'Residential Energy Coefficients'!$G$16*LN(Residential_Energy_Cost)),IF(B_Housing_Type="MF",EXP('Residential Energy Coefficients'!$J$3+'Residential Energy Coefficients'!$J$4*LN(B_Net_Sq_Ft_per_Unit)+'Residential Energy Coefficients'!$J$10*LN(B_HH_Income)+'Residential Energy Coefficients'!$J$11*B_HH_Size+IF(B_Pct_Owner=1,'Residential Energy Coefficients'!$J$12,0)+'Residential Energy Coefficients'!$J$16*LN(Residential_Energy_Cost)+'Residential Energy Coefficients'!$J$19),IF(B_Hotel_Room_Acre>0,EXP('Residential Energy Coefficients'!$J$3+'Residential Energy Coefficients'!$J$4*LN(B_Hotel_Room_Net)+'Residential Energy Coefficients'!$J$16*LN(Residential_Energy_Cost)+'Residential Energy Coefficients'!$J$19),IF(B_Housing_Type="MH",EXP('Residential Energy Coefficients'!$M$3+'Residential Energy Coefficients'!$M$4*LN(B_Net_Sq_Ft_per_Unit)+'Residential Energy Coefficients'!$M$11*B_HH_Size+'Residential Energy Coefficients'!$M$16*LN(Residential_Energy_Cost)+'Residential Energy Coefficients'!$M$19),0)))))/1000,0) -> 0 | CD19: 0 | CE19: =(IFERROR(EXP('Commercial Energy Coefficients'!$B$3+LN(B_RET_Gross_Sq_Ft)*'Commercial Energy Coefficients'!$B$4+'Commercial Energy Coefficients'!$B$11+'Commercial Energy Coefficients'!$B$14+'Commercial Energy Coefficients'!$B$18*LN((B_Ret_Emp_Acre)*(B_Lot_Size/43560))+'Commercial Energy Coefficients'!$B$19*LN(40)+'Commercial Energy Coefficients'!$B$21+'Commercial Energy Coefficients'!$B$22*LN(Commercial_Energy_Cost)+'Commercial Energy Coefficients'!$B$23*IFERROR(LOOKUP(Metro_Select,Energy_Metro_Lookup,HDD),0)),0)+IFERROR(EXP('Commercial Energy Coefficients'!$E$3+LN(B_OFF_Gross_Sq_Ft)*'Commercial Energy Coefficients'!$E$4+'Commercial Energy Coefficients'!$E$11+'Commercial Energy Coefficients'!$E$14+'Commercial Energy Coefficients'!$E$18*LN((B_OFF_Emp_Acre)*(B_Lot_Size/43560))+'Commercial Energy Coefficients'!$E$19*LN(40)+'Commercial Energy Coefficients'!$E$21+'Commercial Energy Coefficients'!$E$22*LN(Commercial_Energy_Cost)+'Commercial Energy Coefficients'!$E$23*IFERROR(LOOKUP(Metro_Select,Energy_Metro_Lookup,HDD),0)),0)+IFERROR(EXP('Commercial Energy Coefficients'!$H$3+LN(B_PUB_Gross_Sq_Ft)*'Commercial Energy Coefficients'!$H$4+'Commercial Energy Coefficients'!$H$11+'Commercial Energy Coefficients'!$H$14+'Commercial Energy Coefficients'!$H$18*LN((B_Pub_Emp_Acre)*(B_Lot_Size/43560))+'Commercial Energy Coefficients'!$H$19*LN(40)+'Commercial Energy Coefficients'!$H$21+'Commercial Energy Coefficients'!$H$22*LN(Commercial_Energy_Cost)+'Commercial Energy Coefficients'!$H$23*IFERROR(LOOKUP(Metro_Select,Energy_Metro_Lookup,HDD),0)),0))/1000 -> 8.072096418 | CF19: =(IFERROR(EXP('Commercial Energy Coefficients'!$C$3+LN((B_RET_Gross_Sq_Ft))*'Commercial Energy Coefficients'!$C$4+'Commercial Energy Coefficients'!$C$11+'Commercial Energy Coefficients'!$C$14+'Commercial Energy Coefficients'!$C$18*LN((B_Ret_Emp_Acre)*(B_Lot_Size/43560))+'Commercial Energy Coefficients'!$C$19*LN(40)+'Commercial Energy Coefficients'!$C$21+'Commercial Energy Coefficients'!$C$22*LN(Commercial_Energy_Cost)+'Commercial Energy Coefficients'!$C$24*IFERROR(LOOKUP(Metro_Select,Energy_Metro_Lookup,CDD),0)),0)+IFERROR(EXP('Commercial Energy Coefficients'!$F$3+LN((B_OFF_Gross_Sq_Ft))*'Commercial Energy Coefficients'!$F$4+'Commercial Energy Coefficients'!$F$11+'Commercial Energy Coefficients'!$F$14+'Commercial Energy Coefficients'!$F$18*LN((B_OFF_Emp_Acre)*(B_Lot_Size/43560))+'Commercial Energy Coefficients'!$F$19*LN(40)+'Commercial Energy Coefficients'!$F$21+'Commercial Energy Coefficients'!$F$22*LN(Commercial_Energy_Cost)+'Commercial Energy Coefficients'!$F$24*IFERROR(LOOKUP(Metro_Select,Energy_Metro_Lookup,CDD),0)),0)+IFERROR(EXP('Commercial Energy Coefficients'!$I$3+LN((B_PUB_Gross_Sq_Ft))*'Commercial Energy Coefficients'!$I$4+'Commercial Energy Coefficients'!$I$11+'Commercial Energy Coefficients'!$I$14+'Commercial Energy Coefficients'!$I$18*LN((B_Pub_Emp_Acre)*(B_Lot_Size/43560))+'Commercial Energy Coefficients'!$I$19*LN(40)+'Commercial Energy Coefficients'!$I$21+'Commercial Energy Coefficients'!$I$22*LN(Commercial_Energy_Cost)+'Commercial Energy Coefficients'!$I$24*IFERROR(LOOKUP(Metro_Select,Energy_Metro_Lookup,CDD),0)),0))/1000 -> 170.9335408 | CG19: =(IFERROR(EXP('Commercial Energy Coefficients'!$D$3+LN((B_RET_Gross_Sq_Ft))*'Commercial Energy Coefficients'!$D$4+'Commercial Energy Coefficients'!$D$14+'Commercial Energy Coefficients'!$D$18*LN((B_Ret_Emp_Acre)*(B_Lot_Size/43560))+'Commercial Energy Coefficients'!$D$19*LN(40)+'Commercial Energy Coefficients'!$D$21+'Commercial Energy Coefficients'!$D$22*LN(Commercial_Energy_Cost)),0)+IFERROR(EXP('Commercial Energy Coefficients'!$G$3+LN((B_OFF_Gross_Sq_Ft))*'Commercial Energy Coefficients'!$G$4+'Commercial Energy Coefficients'!$G$14+'Commercial Energy Coefficients'!$G$18*LN((B_OFF_Emp_Acre)*(B_Lot_Size/43560))+'Commercial Energy Coefficients'!$G$19*LN(40)+'Commercial Energy Coefficients'!$G$21+'Commercial Energy Coefficients'!$G$22*LN(Commercial_Energy_Cost)),0)+IFERROR(EXP('Commercial Energy Coefficients'!$J$3+LN((B_PUB_Gross_Sq_Ft))*'Commercial Energy Coefficients'!$J$4+'Commercial Energy Coefficients'!$J$14+'Commercial Energy Coefficients'!$J$18*LN((B_Pub_Emp_Acre)*(B_Lot_Size/43560))+'Commercial Energy Coefficients'!$J$19*LN(40)+'Commercial Energy Coefficients'!$J$21+'Commercial Energy Coefficients'!$J$22*LN(Commercial_Energy_Cost)),0))/1000 -> 556.0815616 | CH19: 735.0871988 | CI19: 35.39308735 | CJ19: 0.05445090362 | CK19: 735.0871988 | CL19: 0 | CM19: 0 | CN19: 3.301463262 | CO19: 68.56885236 | CP19: 0 | CQ19: 400 | CR19: 0 | CS19: 0 | CT19: 68 | CU19: 1412.307692 | CV19: 0 | CW19: 0 | CX19: 38 | CY19: 789.2307692 | CZ19: =IF(B_Housing_Type="",0,IF(B_Housing_Type="MF",'Project Info'!$B$154,IF(B_Housing_Type="TH",'Project Info'!$B$155,IF(AND(B_Housing_Type="SF",B_Net_Sq_Ft_per_Unit>0,B_Net_Sq_Ft_per_Unit<3000),'Project Info'!$B$156,IF(AND(B_Housing_Type="SF",B_Net_Sq_Ft_per_Unit>=3000),'Project Info'!$B$157))))) -> 0 | DA19: 0 | DB19: 5 | DC19: 103.8461538 | DD19: =[16]!LandCost -> 10 | DE19: 500000 | DF19: 435600 | DG19: =[16]!ProjectValue -> 2010081.8 | DH19: 1751183.264 | DI19: =[16]!Subsidy -> 0 | DJ19: 0 | DK19: 0 | DL19: 10854.44172 | DM19: 0 | DN19: 9456.389626 | DO19: 231187.5 | DP19: 201410.55 | DQ19: 0.03214285714
B20: 17 | C20: =[17]!name -> Shopping Mall | D20: =[17]!lot_size -> 200000 | E20: =[17]!Building_Lot_Coverage -> 0.2263157895 | F20: =[17]!Landscaping_Coverage -> 0.2984210526 | G20: =[17]!Parking_Coverage -> 0.4752631579 | H20: =[17]!Height -> 1 | I20: =[17]!FAR -> 0.1697368421 | J20: 33947.36842 | K20: =[17]!ResPct -> 0 | L20: 0 | M20: 0 | N20: 0 | O20: 0 | P20: 0 | Q20: 0 | R20: 0 | S20: 1 | T20: =[17]!RetPct -> 1 | U20: =[17]!OffPct -> 0 | V20: =[17]!IndPct -> 0 | W20: =[17]!PubPct -> 0 | X20: =[17]!EduPct -> 0 | Y20: =[17]!HotelPct -> 0 | Z20: =[17]!ParkingPct -> 0 | AA20: 0 | AB20: =[17]!NetUnitSize -> 0 | AC20: =[17]!UnitSize -> 0 | AD20: 0 | AE20: 0 | AF20: =[17]!HousingType ->  | AG20: =[17]!RentalPct -> 1 | AH20: 0 | AI20: =[17]!Rent -> 1.4 | AJ20: 0 | AK20: =[17]!Sales_Price -> 0 | AL20: 0 | AM20: 0 | AN20: 0 | AO20: 0 | AP20: 0 | AQ20: 0 | AR20: 0 | AS20: 0 | AT20: 0 | AU20: 33947.36842 | AV20: 52.22672065 | AW20: 11.37497976 | AX20: 33947.36842 | AY20: =[17]!RetSpace -> 650 | AZ20: 11.37497976 | BA20: 0 | BB20: =[17]!OffSpace -> 350 | BC20: 0 | BD20: 0 | BE20: =[17]!IndSpace -> 700 | BF20: 0 | BG20: 0 | BH20: =[17]!PubSpace -> 350 | BI20: 0 | BJ20: 0 | BK20: =[17]!EduSpace -> 800 | BL20: 0 | BM20: 0 | BN20: =[17]!HotelSpaceEmp -> 1000 | BO20: 0 | BP20: =[17]!HotelRoomNet -> 0 | BQ20: =[17]!HotelRoomGross -> 0 | BR20: 0 | BS20: 0 | BT20: 0 | BU20: =[17]!ParkingSpace -> 20000 | BV20: 0 | BW20: =[17]!ParkingSpaces -> 237.6315789 | BX20: =[17]!ParkingArea -> 95052.63158 | BY20: =[17]!ParkingCost -> 712894.7368 | BZ20: 0.1283055439 | CA20: =IFERROR(IF(B_Housing_Type="SF",EXP('Residential Energy Coefficients'!$B$3+'Residential Energy Coefficients'!$B$4*LN(B_Net_Sq_Ft_per_Unit)+'Residential Energy Coefficients'!$B$9+'Residential Energy Coefficients'!$B$10*LN(B_HH_Income)+'Residential Energy Coefficients'!$B$16*LN(Residential_Energy_Cost)+'Residential Energy Coefficients'!$B$20+'Residential Energy Coefficients'!$B$24*IFERROR(LOOKUP(Metro_Select,Energy_Metro_Lookup,HDD),0)),IF(B_Housing_Type="TH",EXP('Residential Energy Coefficients'!$E$3+'Residential Energy Coefficients'!$E$4*LN(B_Net_Sq_Ft_per_Unit)+'Residential Energy Coefficients'!$E$9+'Residential Energy Coefficients'!$E$16*LN(Residential_Energy_Cost)+'Residential Energy Coefficients'!$E$19+'Residential Energy Coefficients'!$E$20+'Residential Energy Coefficients'!$E$24*IFERROR(LOOKUP(Metro_Select,Energy_Metro_Lookup,HDD),0)),IF(B_Housing_Type="MF",EXP('Residential Energy Coefficients'!$H$3+'Residential Energy Coefficients'!$H$4*LN(B_Net_Sq_Ft_per_Unit)+'Residential Energy Coefficients'!$H$9+IF(B_Pct_Owner=1,'Residential Energy Coefficients'!$H$12,0)+'Residential Energy Coefficients'!$H$16*LN(Residential_Energy_Cost)+'Residential Energy Coefficients'!$H$20+'Residential Energy Coefficients'!$H$24*IFERROR(LOOKUP(Metro_Select,Energy_Metro_Lookup,HDD),0)),IF(B_Hotel_Room_Acre>0,EXP('Residential Energy Coefficients'!$H$3+'Residential Energy Coefficients'!$H$4*LN(B_Hotel_Room_Net)+'Residential Energy Coefficients'!$H$9+'Residential Energy Coefficients'!$H$16*LN(Residential_Energy_Cost)+'Residential Energy Coefficients'!$H$20+'Residential Energy Coefficients'!$H$24*IFERROR(LOOKUP(Metro_Select,Energy_Metro_Lookup,HDD),0)),IF(B_Housing_Type="MH",EXP('Residential Energy Coefficients'!$K$3+'Residential Energy Coefficients'!$K$16*LN(Residential_Energy_Cost)+'Residential Energy Coefficients'!$K$24*IFERROR(LOOKUP(Metro_Select,Energy_Metro_Lookup,HDD),0)),0)))))/1000,0) -> 0 | CB20: =IFERROR(IF(B_Housing_Type="SF",EXP('Residential Energy Coefficients'!$C$3+'Residential Energy Coefficients'!$C$4*LN(B_Net_Sq_Ft_per_Unit)+'Residential Energy Coefficients'!$C$10*LN(B_HH_Income)+'Residential Energy Coefficients'!$C$11*B_HH_Size+'Residential Energy Coefficients'!$C$16*LN(Residential_Energy_Cost)+'Residential Energy Coefficients'!$C$19+'Residential Energy Coefficients'!$C$22+'Residential Energy Coefficients'!$C$25*IFERROR(LOOKUP(Metro_Select,Energy_Metro_Lookup,CDD),0)),IF(B_Housing_Type="TH",EXP('Residential Energy Coefficients'!$F$3+'Residential Energy Coefficients'!$F$4*LN(B_Net_Sq_Ft_per_Unit)+'Residential Energy Coefficients'!$F$10*LN(B_HH_Income)+'Residential Energy Coefficients'!$F$11*B_HH_Size+IF(B_Pct_Owner=1,'Residential Energy Coefficients'!$F$12,0)+'Residential Energy Coefficients'!$F$16*LN(Residential_Energy_Cost)+'Residential Energy Coefficients'!$F$22+'Residential Energy Coefficients'!$F$25*IFERROR(LOOKUP(Metro_Select,Energy_Metro_Lookup,CDD),0)),IF(B_Housing_Type="MF",EXP('Residential Energy Coefficients'!$I$3+'Residential Energy Coefficients'!$I$4*LN(B_Net_Sq_Ft_per_Unit)+'Residential Energy Coefficients'!$I$9+'Residential Energy Coefficients'!$I$11*B_HH_Size+'Residential Energy Coefficients'!$I$16*LN(Residential_Energy_Cost)+'Residential Energy Coefficients'!$I$22+'Residential Energy Coefficients'!$I$25*IFERROR(LOOKUP(Metro_Select,Energy_Metro_Lookup,CDD),0)),IF(B_Hotel_Room_Acre>0,EXP('Residential Energy Coefficients'!$I$3+'Residential Energy Coefficients'!$I$4*LN(B_Hotel_Room_Net)+'Residential Energy Coefficients'!$I$9+'Residential Energy Coefficients'!$I$11*1.25+'Residential Energy Coefficients'!$I$16*LN(Residential_Energy_Cost)+'Residential Energy Coefficients'!$I$22+'Residential Energy Coefficients'!$I$25*IFERROR(LOOKUP(Metro_Select,Energy_Metro_Lookup,CDD),0)),IF(B_Housing_Type="MH",EXP('Residential Energy Coefficients'!$L$3+'Residential Energy Coefficients'!$L$11*B_HH_Size+'Residential Energy Coefficients'!$L$16*LN(Residential_Energy_Cost)+'Residential Energy Coefficients'!$L$22+'Residential Energy Coefficients'!$L$25*IFERROR(LOOKUP(Metro_Select,Energy_Metro_Lookup,CDD),0)),0)))))/1000,0) -> 0 | CC20: =IFERROR(IF(B_Housing_Type="SF",EXP('Residential Energy Coefficients'!$D$3+'Residential Energy Coefficients'!$D$4*LN(B_Net_Sq_Ft_per_Unit)+'Residential Energy Coefficients'!$D$9+'Residential Energy Coefficients'!$D$10*LN(B_HH_Income)+'Residential Energy Coefficients'!$D$11*B_HH_Size+IF(B_Pct_Owner=1,'Residential Energy Coefficients'!$D$12,0)+'Residential Energy Coefficients'!$D$16*LN(Residential_Energy_Cost)),IF(B_Housing_Type="TH",EXP('Residential Energy Coefficients'!$G$3+'Residential Energy Coefficients'!$G$4*LN(B_Net_Sq_Ft_per_Unit)+'Residential Energy Coefficients'!$G$10*LN(B_HH_Income)+'Residential Energy Coefficients'!$G$11*B_HH_Size+'Residential Energy Coefficients'!$G$16*LN(Residential_Energy_Cost)),IF(B_Housing_Type="MF",EXP('Residential Energy Coefficients'!$J$3+'Residential Energy Coefficients'!$J$4*LN(B_Net_Sq_Ft_per_Unit)+'Residential Energy Coefficients'!$J$10*LN(B_HH_Income)+'Residential Energy Coefficients'!$J$11*B_HH_Size+IF(B_Pct_Owner=1,'Residential Energy Coefficients'!$J$12,0)+'Residential Energy Coefficients'!$J$16*LN(Residential_Energy_Cost)+'Residential Energy Coefficients'!$J$19),IF(B_Hotel_Room_Acre>0,EXP('Residential Energy Coefficients'!$J$3+'Residential Energy Coefficients'!$J$4*LN(B_Hotel_Room_Net)+'Residential Energy Coefficients'!$J$16*LN(Residential_Energy_Cost)+'Residential Energy Coefficients'!$J$19),IF(B_Housing_Type="MH",EXP('Residential Energy Coefficients'!$M$3+'Residential Energy Coefficients'!$M$4*LN(B_Net_Sq_Ft_per_Unit)+'Residential Energy Coefficients'!$M$11*B_HH_Size+'Residential Energy Coefficients'!$M$16*LN(Residential_Energy_Cost)+'Residential Energy Coefficients'!$M$19),0)))))/1000,0) -> 0 | CD20: 0 | CE20: =(IFERROR(EXP('Commercial Energy Coefficients'!$B$3+LN(B_RET_Gross_Sq_Ft)*'Commercial Energy Coefficients'!$B$4+'Commercial Energy Coefficients'!$B$11+'Commercial Energy Coefficients'!$B$14+'Commercial Energy Coefficients'!$B$18*LN((B_Ret_Emp_Acre)*(B_Lot_Size/43560))+'Commercial Energy Coefficients'!$B$19*LN(40)+'Commercial Energy Coefficients'!$B$21+'Commercial Energy Coefficients'!$B$22*LN(Commercial_Energy_Cost)+'Commercial Energy Coefficients'!$B$23*IFERROR(LOOKUP(Metro_Select,Energy_Metro_Lookup,HDD),0)),0)+IFERROR(EXP('Commercial Energy Coefficients'!$E$3+LN(B_OFF_Gross_Sq_Ft)*'Commercial Energy Coefficients'!$E$4+'Commercial Energy Coefficients'!$E$11+'Commercial Energy Coefficients'!$E$14+'Commercial Energy Coefficients'!$E$18*LN((B_OFF_Emp_Acre)*(B_Lot_Size/43560))+'Commercial Energy Coefficients'!$E$19*LN(40)+'Commercial Energy Coefficients'!$E$21+'Commercial Energy Coefficients'!$E$22*LN(Commercial_Energy_Cost)+'Commercial Energy Coefficients'!$E$23*IFERROR(LOOKUP(Metro_Select,Energy_Metro_Lookup,HDD),0)),0)+IFERROR(EXP('Commercial Energy Coefficients'!$H$3+LN(B_PUB_Gross_Sq_Ft)*'Commercial Energy Coefficients'!$H$4+'Commercial Energy Coefficients'!$H$11+'Commercial Energy Coefficients'!$H$14+'Commercial Energy Coefficients'!$H$18*LN((B_Pub_Emp_Acre)*(B_Lot_Size/43560))+'Commercial Energy Coefficients'!$H$19*LN(40)+'Commercial Energy Coefficients'!$H$21+'Commercial Energy Coefficients'!$H$22*LN(Commercial_Energy_Cost)+'Commercial Energy Coefficients'!$H$23*IFERROR(LOOKUP(Metro_Select,Energy_Metro_Lookup,HDD),0)),0))/1000 -> 15.95641797 | CF20: =(IFERROR(EXP('Commercial Energy Coefficients'!$C$3+LN((B_RET_Gross_Sq_Ft))*'Commercial Energy Coefficients'!$C$4+'Commercial Energy Coefficients'!$C$11+'Commercial Energy Coefficients'!$C$14+'Commercial Energy Coefficients'!$C$18*LN((B_Ret_Emp_Acre)*(B_Lot_Size/43560))+'Commercial Energy Coefficients'!$C$19*LN(40)+'Commercial Energy Coefficients'!$C$21+'Commercial Energy Coefficients'!$C$22*LN(Commercial_Energy_Cost)+'Commercial Energy Coefficients'!$C$24*IFERROR(LOOKUP(Metro_Select,Energy_Metro_Lookup,CDD),0)),0)+IFERROR(EXP('Commercial Energy Coefficients'!$F$3+LN((B_OFF_Gross_Sq_Ft))*'Commercial Energy Coefficients'!$F$4+'Commercial Energy Coefficients'!$F$11+'Commercial Energy Coefficients'!$F$14+'Commercial Energy Coefficients'!$F$18*LN((B_OFF_Emp_Acre)*(B_Lot_Size/43560))+'Commercial Energy Coefficients'!$F$19*LN(40)+'Commercial Energy Coefficients'!$F$21+'Commercial Energy Coefficients'!$F$22*LN(Commercial_Energy_Cost)+'Commercial Energy Coefficients'!$F$24*IFERROR(LOOKUP(Metro_Select,Energy_Metro_Lookup,CDD),0)),0)+IFERROR(EXP('Commercial Energy Coefficients'!$I$3+LN((B_PUB_Gross_Sq_Ft))*'Commercial Energy Coefficients'!$I$4+'Commercial Energy Coefficients'!$I$11+'Commercial Energy Coefficients'!$I$14+'Commercial Energy Coefficients'!$I$18*LN((B_Pub_Emp_Acre)*(B_Lot_Size/43560))+'Commercial Energy Coefficients'!$I$19*LN(40)+'Commercial Energy Coefficients'!$I$21+'Commercial Energy Coefficients'!$I$22*LN(Commercial_Energy_Cost)+'Commercial Energy Coefficients'!$I$24*IFERROR(LOOKUP(Metro_Select,Energy_Metro_Lookup,CDD),0)),0))/1000 -> 372.9296323 | CG20: =(IFERROR(EXP('Commercial Energy Coefficients'!$D$3+LN((B_RET_Gross_Sq_Ft))*'Commercial Energy Coefficients'!$D$4+'Commercial Energy Coefficients'!$D$14+'Commercial Energy Coefficients'!$D$18*LN((B_Ret_Emp_Acre)*(B_Lot_Size/43560))+'Commercial Energy Coefficients'!$D$19*LN(40)+'Commercial Energy Coefficients'!$D$21+'Commercial Energy Coefficients'!$D$22*LN(Commercial_Energy_Cost)),0)+IFERROR(EXP('Commercial Energy Coefficients'!$G$3+LN((B_OFF_Gross_Sq_Ft))*'Commercial Energy Coefficients'!$G$4+'Commercial Energy Coefficients'!$G$14+'Commercial Energy Coefficients'!$G$18*LN((B_OFF_Emp_Acre)*(B_Lot_Size/43560))+'Commercial Energy Coefficients'!$G$19*LN(40)+'Commercial Energy Coefficients'!$G$21+'Commercial Energy Coefficients'!$G$22*LN(Commercial_Energy_Cost)),0)+IFERROR(EXP('Commercial Energy Coefficients'!$J$3+LN((B_PUB_Gross_Sq_Ft))*'Commercial Energy Coefficients'!$J$4+'Commercial Energy Coefficients'!$J$14+'Commercial Energy Coefficients'!$J$18*LN((B_Pub_Emp_Acre)*(B_Lot_Size/43560))+'Commercial Energy Coefficients'!$J$19*LN(40)+'Commercial Energy Coefficients'!$J$21+'Commercial Energy Coefficients'!$J$22*LN(Commercial_Energy_Cost)),0))/1000 -> 1084.12778 | CH20: 1473.01383 | CI20: 28.2042183 | CJ20: 0.04339110507 | CK20: 1473.01383 | CL20: 0 | CM20: 0 | CN20: 2.630886354 | CO20: 137.4025667 | CP20: 0 | CQ20: 544.5 | CR20: 0 | CS20: 0 | CT20: 68 | CU20: 3551.417004 | CV20: 0 | CW20: 0 | CX20: 38 | CY20: 1984.615385 | CZ20: =IF(B_Housing_Type="",0,IF(B_Housing_Type="MF",'Project Info'!$B$154,IF(B_Housing_Type="TH",'Project Info'!$B$155,IF(AND(B_Housing_Type="SF",B_Net_Sq_Ft_per_Unit>0,B_Net_Sq_Ft_per_Unit<3000),'Project Info'!$B$156,IF(AND(B_Housing_Type="SF",B_Net_Sq_Ft_per_Unit>=3000),'Project Info'!$B$157))))) -> 0 | DA20: 0 | DB20: 5 | DC20: 261.1336032 | DD20: =[17]!LandCost -> 7.5 | DE20: 1500000 | DF20: 326700 | DG20: =[17]!ProjectValue -> 5556227.074 | DH20: 1210146.257 | DI20: =[17]!Subsidy -> 0 | DJ20: 0 | DK20: 0 | DL20: 30003.6262 | DM20: 0 | DN20: 6534.789786 | DO20: 581348.6842 | DP20: 126617.7434 | DQ20: 0.02020676692
B21: 18 | C21: =[18]!name -> Hotel 4 Story | D21: =[18]!lot_size -> 20000 | E21: =[18]!Building_Lot_Coverage -> 0.4189944134 | F21: =[18]!Landscaping_Coverage -> 0.05810055866 | G21: =[18]!Parking_Coverage -> 0.5229050279 | H21: =[18]!Height -> 4 | I21: =[18]!FAR -> 1.508379888 | J21: 30167.59777 | K21: =[18]!ResPct -> 0 | L21: 0 | M21: 0 | N21: 0 | O21: 0 | P21: 0 | Q21: 0 | R21: 0 | S21: 1 | T21: =[18]!RetPct -> 0.2 | U21: =[18]!OffPct -> 0 | V21: =[18]!IndPct -> 0 | W21: =[18]!PubPct -> 0 | X21: =[18]!EduPct -> 0 | Y21: =[18]!HotelPct -> 0.8 | Z21: =[18]!ParkingPct -> 0 | AA21: 0 | AB21: =[18]!NetUnitSize -> 0 | AC21: =[18]!UnitSize -> 0 | AD21: 0 | AE21: 0 | AF21: =[18]!HousingType ->  | AG21: =[18]!RentalPct -> 1 | AH21: 0 | AI21: =[18]!Rent -> 1.4 | AJ21: 0 | AK21: =[18]!Sales_Price -> 0 | AL21: 0 | AM21: 0 | AN21: 0 | AO21: 0 | AP21: 0 | AQ21: 0 | AR21: 0 | AS21: 0 | AT21: 0 | AU21: 30167.59777 | AV21: 33.41641599 | AW21: 72.78095402 | AX21: 6033.519553 | AY21: =[18]!RetSpace -> 650 | AZ21: 20.21693167 | BA21: 0 | BB21: =[18]!OffSpace -> 350 | BC21: 0 | BD21: 0 | BE21: =[18]!IndSpace -> 700 | BF21: 0 | BG21: 0 | BH21: =[18]!PubSpace -> 350 | BI21: 0 | BJ21: 0 | BK21: =[18]!EduSpace -> 800 | BL21: 0 | BM21: 24134.07821 | BN21: =[18]!HotelSpaceEmp -> 1000 | BO21: 52.56402235 | BP21: =[18]!HotelRoomNet -> 600 | BQ21: =[18]!HotelRoomGross -> 705.8823529 | BR21: 34.18994413 | BS21: 74.46569832 | BT21: 0 | BU21: =[18]!ParkingSpace -> 20000 | BV21: 0 | BW21: =[18]!ParkingSpaces -> 80.44692737 | BX21: =[18]!ParkingArea -> 20916.20112 | BY21: =[18]!ParkingCost -> 1608938.547 | BZ21: 0.2332041729 | CA21: =IFERROR(IF(B_Housing_Type="SF",EXP('Residential Energy Coefficients'!$B$3+'Residential Energy Coefficients'!$B$4*LN(B_Net_Sq_Ft_per_Unit)+'Residential Energy Coefficients'!$B$9+'Residential Energy Coefficients'!$B$10*LN(B_HH_Income)+'Residential Energy Coefficients'!$B$16*LN(Residential_Energy_Cost)+'Residential Energy Coefficients'!$B$20+'Residential Energy Coefficients'!$B$24*IFERROR(LOOKUP(Metro_Select,Energy_Metro_Lookup,HDD),0)),IF(B_Housing_Type="TH",EXP('Residential Energy Coefficients'!$E$3+'Residential Energy Coefficients'!$E$4*LN(B_Net_Sq_Ft_per_Unit)+'Residential Energy Coefficients'!$E$9+'Residential Energy Coefficients'!$E$16*LN(Residential_Energy_Cost)+'Residential Energy Coefficients'!$E$19+'Residential Energy Coefficients'!$E$20+'Residential Energy Coefficients'!$E$24*IFERROR(LOOKUP(Metro_Select,Energy_Metro_Lookup,HDD),0)),IF(B_Housing_Type="MF",EXP('Residential Energy Coefficients'!$H$3+'Residential Energy Coefficients'!$H$4*LN(B_Net_Sq_Ft_per_Unit)+'Residential Energy Coefficients'!$H$9+IF(B_Pct_Owner=1,'Residential Energy Coefficients'!$H$12,0)+'Residential Energy Coefficients'!$H$16*LN(Residential_Energy_Cost)+'Residential Energy Coefficients'!$H$20+'Residential Energy Coefficients'!$H$24*IFERROR(LOOKUP(Metro_Select,Energy_Metro_Lookup,HDD),0)),IF(B_Hotel_Room_Acre>0,EXP('Residential Energy Coefficients'!$H$3+'Residential Energy Coefficients'!$H$4*LN(B_Hotel_Room_Net)+'Residential Energy Coefficients'!$H$9+'Residential Energy Coefficients'!$H$16*LN(Residential_Energy_Cost)+'Residential Energy Coefficients'!$H$20+'Residential Energy Coefficients'!$H$24*IFERROR(LOOKUP(Metro_Select,Energy_Metro_Lookup,HDD),0)),IF(B_Housing_Type="MH",EXP('Residential Energy Coefficients'!$K$3+'Residential Energy Coefficients'!$K$16*LN(Residential_Energy_Cost)+'Residential Energy Coefficients'!$K$24*IFERROR(LOOKUP(Metro_Select,Energy_Metro_Lookup,HDD),0)),0)))))/1000,0) -> 19.47555896 | CB21: =IFERROR(IF(B_Housing_Type="SF",EXP('Residential Energy Coefficients'!$C$3+'Residential Energy Coefficients'!$C$4*LN(B_Net_Sq_Ft_per_Unit)+'Residential Energy Coefficients'!$C$10*LN(B_HH_Income)+'Residential Energy Coefficients'!$C$11*B_HH_Size+'Residential Energy Coefficients'!$C$16*LN(Residential_Energy_Cost)+'Residential Energy Coefficients'!$C$19+'Residential Energy Coefficients'!$C$22+'Residential Energy Coefficients'!$C$25*IFERROR(LOOKUP(Metro_Select,Energy_Metro_Lookup,CDD),0)),IF(B_Housing_Type="TH",EXP('Residential Energy Coefficients'!$F$3+'Residential Energy Coefficients'!$F$4*LN(B_Net_Sq_Ft_per_Unit)+'Residential Energy Coefficients'!$F$10*LN(B_HH_Income)+'Residential Energy Coefficients'!$F$11*B_HH_Size+IF(B_Pct_Owner=1,'Residential Energy Coefficients'!$F$12,0)+'Residential Energy Coefficients'!$F$16*LN(Residential_Energy_Cost)+'Residential Energy Coefficients'!$F$22+'Residential Energy Coefficients'!$F$25*IFERROR(LOOKUP(Metro_Select,Energy_Metro_Lookup,CDD),0)),IF(B_Housing_Type="MF",EXP('Residential Energy Coefficients'!$I$3+'Residential Energy Coefficients'!$I$4*LN(B_Net_Sq_Ft_per_Unit)+'Residential Energy Coefficients'!$I$9+'Residential Energy Coefficients'!$I$11*B_HH_Size+'Residential Energy Coefficients'!$I$16*LN(Residential_Energy_Cost)+'Residential Energy Coefficients'!$I$22+'Residential Energy Coefficients'!$I$25*IFERROR(LOOKUP(Metro_Select,Energy_Metro_Lookup,CDD),0)),IF(B_Hotel_Room_Acre>0,EXP('Residential Energy Coefficients'!$I$3+'Residential Energy Coefficients'!$I$4*LN(B_Hotel_Room_Net)+'Residential Energy Coefficients'!$I$9+'Residential Energy Coefficients'!$I$11*1.25+'Residential Energy Coefficients'!$I$16*LN(Residential_Energy_Cost)+'Residential Energy Coefficients'!$I$22+'Residential Energy Coefficients'!$I$25*IFERROR(LOOKUP(Metro_Select,Energy_Metro_Lookup,CDD),0)),IF(B_Housing_Type="MH",EXP('Residential Energy Coefficients'!$L$3+'Residential Energy Coefficients'!$L$11*B_HH_Size+'Residential Energy Coefficients'!$L$16*LN(Residential_Energy_Cost)+'Residential Energy Coefficients'!$L$22+'Residential Energy Coefficients'!$L$25*IFERROR(LOOKUP(Metro_Select,Energy_Metro_Lookup,CDD),0)),0)))))/1000,0) -> 8.246816017 | CC21: =IFERROR(IF(B_Housing_Type="SF",EXP('Residential Energy Coefficients'!$D$3+'Residential Energy Coefficients'!$D$4*LN(B_Net_Sq_Ft_per_Unit)+'Residential Energy Coefficients'!$D$9+'Residential Energy Coefficients'!$D$10*LN(B_HH_Income)+'Residential Energy Coefficients'!$D$11*B_HH_Size+IF(B_Pct_Owner=1,'Residential Energy Coefficients'!$D$12,0)+'Residential Energy Coefficients'!$D$16*LN(Residential_Energy_Cost)),IF(B_Housing_Type="TH",EXP('Residential Energy Coefficients'!$G$3+'Residential Energy Coefficients'!$G$4*LN(B_Net_Sq_Ft_per_Unit)+'Residential Energy Coefficients'!$G$10*LN(B_HH_Income)+'Residential Energy Coefficients'!$G$11*B_HH_Size+'Residential Energy Coefficients'!$G$16*LN(Residential_Energy_Cost)),IF(B_Housing_Type="MF",EXP('Residential Energy Coefficients'!$J$3+'Residential Energy Coefficients'!$J$4*LN(B_Net_Sq_Ft_per_Unit)+'Residential Energy Coefficients'!$J$10*LN(B_HH_Income)+'Residential Energy Coefficients'!$J$11*B_HH_Size+IF(B_Pct_Owner=1,'Residential Energy Coefficients'!$J$12,0)+'Residential Energy Coefficients'!$J$16*LN(Residential_Energy_Cost)+'Residential Energy Coefficients'!$J$19),IF(B_Hotel_Room_Acre>0,EXP('Residential Energy Coefficients'!$J$3+'Residential Energy Coefficients'!$J$4*LN(B_Hotel_Room_Net)+'Residential Energy Coefficients'!$J$16*LN(Residential_Energy_Cost)+'Residential Energy Coefficients'!$J$19),IF(B_Housing_Type="MH",EXP('Residential Energy Coefficients'!$M$3+'Residential Energy Coefficients'!$M$4*LN(B_Net_Sq_Ft_per_Unit)+'Residential Energy Coefficients'!$M$11*B_HH_Size+'Residential Energy Coefficients'!$M$16*LN(Residential_Energy_Cost)+'Residential Energy Coefficients'!$M$19),0)))))/1000,0) -> 6.208227693 | CD21: 33.93060267 | CE21: =(IFERROR(EXP('Commercial Energy Coefficients'!$B$3+LN(B_RET_Gross_Sq_Ft)*'Commercial Energy Coefficients'!$B$4+'Commercial Energy Coefficients'!$B$11+'Commercial Energy Coefficients'!$B$14+'Commercial Energy Coefficients'!$B$18*LN((B_Ret_Emp_Acre)*(B_Lot_Size/43560))+'Commercial Energy Coefficients'!$B$19*LN(40)+'Commercial Energy Coefficients'!$B$21+'Commercial Energy Coefficients'!$B$22*LN(Commercial_Energy_Cost)+'Commercial Energy Coefficients'!$B$23*IFERROR(LOOKUP(Metro_Select,Energy_Metro_Lookup,HDD),0)),0)+IFERROR(EXP('Commercial Energy Coefficients'!$E$3+LN(B_OFF_Gross_Sq_Ft)*'Commercial Energy Coefficients'!$E$4+'Commercial Energy Coefficients'!$E$11+'Commercial Energy Coefficients'!$E$14+'Commercial Energy Coefficients'!$E$18*LN((B_OFF_Emp_Acre)*(B_Lot_Size/43560))+'Commercial Energy Coefficients'!$E$19*LN(40)+'Commercial Energy Coefficients'!$E$21+'Commercial Energy Coefficients'!$E$22*LN(Commercial_Energy_Cost)+'Commercial Energy Coefficients'!$E$23*IFERROR(LOOKUP(Metro_Select,Energy_Metro_Lookup,HDD),0)),0)+IFERROR(EXP('Commercial Energy Coefficients'!$H$3+LN(B_PUB_Gross_Sq_Ft)*'Commercial Energy Coefficients'!$H$4+'Commercial Energy Coefficients'!$H$11+'Commercial Energy Coefficients'!$H$14+'Commercial Energy Coefficients'!$H$18*LN((B_Pub_Emp_Acre)*(B_Lot_Size/43560))+'Commercial Energy Coefficients'!$H$19*LN(40)+'Commercial Energy Coefficients'!$H$21+'Commercial Energy Coefficients'!$H$22*LN(Commercial_Energy_Cost)+'Commercial Energy Coefficients'!$H$23*IFERROR(LOOKUP(Metro_Select,Energy_Metro_Lookup,HDD),0)),0))/1000 -> 4.451552004 | CF21: =(IFERROR(EXP('Commercial Energy Coefficients'!$C$3+LN((B_RET_Gross_Sq_Ft))*'Commercial Energy Coefficients'!$C$4+'Commercial Energy Coefficients'!$C$11+'Commercial Energy Coefficients'!$C$14+'Commercial Energy Coefficients'!$C$18*LN((B_Ret_Emp_Acre)*(B_Lot_Size/43560))+'Commercial Energy Coefficients'!$C$19*LN(40)+'Commercial Energy Coefficients'!$C$21+'Commercial Energy Coefficients'!$C$22*LN(Commercial_Energy_Cost)+'Commercial Energy Coefficients'!$C$24*IFERROR(LOOKUP(Metro_Select,Energy_Metro_Lookup,CDD),0)),0)+IFERROR(EXP('Commercial Energy Coefficients'!$F$3+LN((B_OFF_Gross_Sq_Ft))*'Commercial Energy Coefficients'!$F$4+'Commercial Energy Coefficients'!$F$11+'Commercial Energy Coefficients'!$F$14+'Commercial Energy Coefficients'!$F$18*LN((B_OFF_Emp_Acre)*(B_Lot_Size/43560))+'Commercial Energy Coefficients'!$F$19*LN(40)+'Commercial Energy Coefficients'!$F$21+'Commercial Energy Coefficients'!$F$22*LN(Commercial_Energy_Cost)+'Commercial Energy Coefficients'!$F$24*IFERROR(LOOKUP(Metro_Select,Energy_Metro_Lookup,CDD),0)),0)+IFERROR(EXP('Commercial Energy Coefficients'!$I$3+LN((B_PUB_Gross_Sq_Ft))*'Commercial Energy Coefficients'!$I$4+'Commercial Energy Coefficients'!$I$11+'Commercial Energy Coefficients'!$I$14+'Commercial Energy Coefficients'!$I$18*LN((B_Pub_Emp_Acre)*(B_Lot_Size/43560))+'Commercial Energy Coefficients'!$I$19*LN(40)+'Commercial Energy Coefficients'!$I$21+'Commercial Energy Coefficients'!$I$22*LN(Commercial_Energy_Cost)+'Commercial Energy Coefficients'!$I$24*IFERROR(LOOKUP(Metro_Select,Energy_Metro_Lookup,CDD),0)),0))/1000 -> 86.48240407 | CG21: =(IFERROR(EXP('Commercial Energy Coefficients'!$D$3+LN((B_RET_Gross_Sq_Ft))*'Commercial Energy Coefficients'!$D$4+'Commercial Energy Coefficients'!$D$14+'Commercial Energy Coefficients'!$D$18*LN((B_Ret_Emp_Acre)*(B_Lot_Size/43560))+'Commercial Energy Coefficients'!$D$19*LN(40)+'Commercial Energy Coefficients'!$D$21+'Commercial Energy Coefficients'!$D$22*LN(Commercial_Energy_Cost)),0)+IFERROR(EXP('Commercial Energy Coefficients'!$G$3+LN((B_OFF_Gross_Sq_Ft))*'Commercial Energy Coefficients'!$G$4+'Commercial Energy Coefficients'!$G$14+'Commercial Energy Coefficients'!$G$18*LN((B_OFF_Emp_Acre)*(B_Lot_Size/43560))+'Commercial Energy Coefficients'!$G$19*LN(40)+'Commercial Energy Coefficients'!$G$21+'Commercial Energy Coefficients'!$G$22*LN(Commercial_Energy_Cost)),0)+IFERROR(EXP('Commercial Energy Coefficients'!$J$3+LN((B_PUB_Gross_Sq_Ft))*'Commercial Energy Coefficients'!$J$4+'Commercial Energy Coefficients'!$J$14+'Commercial Energy Coefficients'!$J$18*LN((B_Pub_Emp_Acre)*(B_Lot_Size/43560))+'Commercial Energy Coefficients'!$J$19*LN(40)+'Commercial Energy Coefficients'!$J$21+'Commercial Energy Coefficients'!$J$22*LN(Commercial_Energy_Cost)),0))/1000 -> 310.3916655 | CH21: 401.3256215 | CI21: 12.00983438 | CJ21: 0.01330320116 | CK21: 1561.411031 | CL21: 33.93060267 | CM21: 3.165042853 | CN21: 1.120276019 | CO21: 145.6482478 | CP21: 0 | CQ21: 58.10055866 | CR21: 35 | CS21: 0 | CT21: 18.88888889 | CU21: 631.1989686 | CV21: 0 | CW21: 0 | CX21: 10.55555556 | CY21: 352.7288354 | CZ21: =IF(B_Housing_Type="",0,IF(B_Housing_Type="MF",'Project Info'!$B$154,IF(B_Housing_Type="TH",'Project Info'!$B$155,IF(AND(B_Housing_Type="SF",B_Net_Sq_Ft_per_Unit>0,B_Net_Sq_Ft_per_Unit<3000),'Project Info'!$B$156,IF(AND(B_Housing_Type="SF",B_Net_Sq_Ft_per_Unit>=3000),'Project Info'!$B$157))))) -> 0 | DA21: 0 | DB21: 1.388888889 | DC21: 46.41168887 | DD21: =[18]!LandCost -> 20 | DE21: 400000 | DF21: 871200 | DG21: =[18]!ProjectValue -> 6899269.971 | DH21: 15026610 | DI21: =[18]!Subsidy -> 0 | DJ21: 0 | DK21: 0 | DL21: 37256.05784 | DM21: 0 | DN21: 81143.69398 | DO21: 103324.0223 | DP21: 225039.7207 | DQ21: 0.1795690343
B22: 19 | J22: 0 | L22: 0 | M22: 0 | N22: 0 | O22: 0 | P22: 0 | Q22: 0 | R22: 0 | S22: 0 | AA22: 0 | AD22: 0 | AE22: 0 | AH22: 0 | AJ22: 0 | AL22: 0 | AM22: 0 | AN22: 0 | AO22: 0 | AP22: 0 | AQ22: 0 | AR22: 0 | AS22: 0 | AT22: 0 | AU22: 0 | AV22: 0 | AW22: 0 | AX22: 0 | AZ22: 0 | BA22: 0 | BC22: 0 | BD22: 0 | BF22: 0 | BG22: 0 | BI22: 0 | BJ22: 0 | BL22: 0 | BM22: 0 | BO22: 0 | BR22: 0 | BS22: 0 | BT22: 0 | BV22: 0 | BZ22: 0 | CA22: =IFERROR(IF(B_Housing_Type="SF",EXP('Residential Energy Coefficients'!$B$3+'Residential Energy Coefficients'!$B$4*LN(B_Net_Sq_Ft_per_Unit)+'Residential Energy Coefficients'!$B$9+'Residential Energy Coefficients'!$B$10*LN(B_HH_Income)+'Residential Energy Coefficients'!$B$16*LN(Residential_Energy_Cost)+'Residential Energy Coefficients'!$B$20+'Residential Energy Coefficients'!$B$24*IFERROR(LOOKUP(Metro_Select,Energy_Metro_Lookup,HDD),0)),IF(B_Housing_Type="TH",EXP('Residential Energy Coefficients'!$E$3+'Residential Energy Coefficients'!$E$4*LN(B_Net_Sq_Ft_per_Unit)+'Residential Energy Coefficients'!$E$9+'Residential Energy Coefficients'!$E$16*LN(Residential_Energy_Cost)+'Residential Energy Coefficients'!$E$19+'Residential Energy Coefficients'!$E$20+'Residential Energy Coefficients'!$E$24*IFERROR(LOOKUP(Metro_Select,Energy_Metro_Lookup,HDD),0)),IF(B_Housing_Type="MF",EXP('Residential Energy Coefficients'!$H$3+'Residential Energy Coefficients'!$H$4*LN(B_Net_Sq_Ft_per_Unit)+'Residential Energy Coefficients'!$H$9+IF(B_Pct_Owner=1,'Residential Energy Coefficients'!$H$12,0)+'Residential Energy Coefficients'!$H$16*LN(Residential_Energy_Cost)+'Residential Energy Coefficients'!$H$20+'Residential Energy Coefficients'!$H$24*IFERROR(LOOKUP(Metro_Select,Energy_Metro_Lookup,HDD),0)),IF(B_Hotel_Room_Acre>0,EXP('Residential Energy Coefficients'!$H$3+'Residential Energy Coefficients'!$H$4*LN(B_Hotel_Room_Net)+'Residential Energy Coefficients'!$H$9+'Residential Energy Coefficients'!$H$16*LN(Residential_Energy_Cost)+'Residential Energy Coefficients'!$H$20+'Residential Energy Coefficients'!$H$24*IFERROR(LOOKUP(Metro_Select,Energy_Metro_Lookup,HDD),0)),IF(B_Housing_Type="MH",EXP('Residential Energy Coefficients'!$K$3+'Residential Energy Coefficients'!$K$16*LN(Residential_Energy_Cost)+'Residential Energy Coefficients'!$K$24*IFERROR(LOOKUP(Metro_Select,Energy_Metro_Lookup,HDD),0)),0)))))/1000,0) -> 0 | CB22: =IFERROR(IF(B_Housing_Type="SF",EXP('Residential Energy Coefficients'!$C$3+'Residential Energy Coefficients'!$C$4*LN(B_Net_Sq_Ft_per_Unit)+'Residential Energy Coefficients'!$C$10*LN(B_HH_Income)+'Residential Energy Coefficients'!$C$11*B_HH_Size+'Residential Energy Coefficients'!$C$16*LN(Residential_Energy_Cost)+'Residential Energy Coefficients'!$C$19+'Residential Energy Coefficients'!$C$22+'Residential Energy Coefficients'!$C$25*IFERROR(LOOKUP(Metro_Select,Energy_Metro_Lookup,CDD),0)),IF(B_Housing_Type="TH",EXP('Residential Energy Coefficients'!$F$3+'Residential Energy Coefficients'!$F$4*LN(B_Net_Sq_Ft_per_Unit)+'Residential Energy Coefficients'!$F$10*LN(B_HH_Income)+'Residential Energy Coefficients'!$F$11*B_HH_Size+IF(B_Pct_Owner=1,'Residential Energy Coefficients'!$F$12,0)+'Residential Energy Coefficients'!$F$16*LN(Residential_Energy_Cost)+'Residential Energy Coefficients'!$F$22+'Residential Energy Coefficients'!$F$25*IFERROR(LOOKUP(Metro_Select,Energy_Metro_Lookup,CDD),0)),IF(B_Housing_Type="MF",EXP('Residential Energy Coefficients'!$I$3+'Residential Energy Coefficients'!$I$4*LN(B_Net_Sq_Ft_per_Unit)+'Residential Energy Coefficients'!$I$9+'Residential Energy Coefficients'!$I$11*B_HH_Size+'Residential Energy Coefficients'!$I$16*LN(Residential_Energy_Cost)+'Residential Energy Coefficients'!$I$22+'Residential Energy Coefficients'!$I$25*IFERROR(LOOKUP(Metro_Select,Energy_Metro_Lookup,CDD),0)),IF(B_Hotel_Room_Acre>0,EXP('Residential Energy Coefficients'!$I$3+'Residential Energy Coefficients'!$I$4*LN(B_Hotel_Room_Net)+'Residential Energy Coefficients'!$I$9+'Residential Energy Coefficients'!$I$11*1.25+'Residential Energy Coefficients'!$I$16*LN(Residential_Energy_Cost)+'Residential Energy Coefficients'!$I$22+'Residential Energy Coefficients'!$I$25*IFERROR(LOOKUP(Metro_Select,Energy_Metro_Lookup,CDD),0)),IF(B_Housing_Type="MH",EXP('Residential Energy Coefficients'!$L$3+'Residential Energy Coefficients'!$L$11*B_HH_Size+'Residential Energy Coefficients'!$L$16*LN(Residential_Energy_Cost)+'Residential Energy Coefficients'!$L$22+'Residential Energy Coefficients'!$L$25*IFERROR(LOOKUP(Metro_Select,Energy_Metro_Lookup,CDD),0)),0)))))/1000,0) -> 0 | CC22: =IFERROR(IF(B_Housing_Type="SF",EXP('Residential Energy Coefficients'!$D$3+'Residential Energy Coefficients'!$D$4*LN(B_Net_Sq_Ft_per_Unit)+'Residential Energy Coefficients'!$D$9+'Residential Energy Coefficients'!$D$10*LN(B_HH_Income)+'Residential Energy Coefficients'!$D$11*B_HH_Size+IF(B_Pct_Owner=1,'Residential Energy Coefficients'!$D$12,0)+'Residential Energy Coefficients'!$D$16*LN(Residential_Energy_Cost)),IF(B_Housing_Type="TH",EXP('Residential Energy Coefficients'!$G$3+'Residential Energy Coefficients'!$G$4*LN(B_Net_Sq_Ft_per_Unit)+'Residential Energy Coefficients'!$G$10*LN(B_HH_Income)+'Residential Energy Coefficients'!$G$11*B_HH_Size+'Residential Energy Coefficients'!$G$16*LN(Residential_Energy_Cost)),IF(B_Housing_Type="MF",EXP('Residential Energy Coefficients'!$J$3+'Residential Energy Coefficients'!$J$4*LN(B_Net_Sq_Ft_per_Unit)+'Residential Energy Coefficients'!$J$10*LN(B_HH_Income)+'Residential Energy Coefficients'!$J$11*B_HH_Size+IF(B_Pct_Owner=1,'Residential Energy Coefficients'!$J$12,0)+'Residential Energy Coefficients'!$J$16*LN(Residential_Energy_Cost)+'Residential Energy Coefficients'!$J$19),IF(B_Hotel_Room_Acre>0,EXP('Residential Energy Coefficients'!$J$3+'Residential Energy Coefficients'!$J$4*LN(B_Hotel_Room_Net)+'Residential Energy Coefficients'!$J$16*LN(Residential_Energy_Cost)+'Residential Energy Coefficients'!$J$19),IF(B_Housing_Type="MH",EXP('Residential Energy Coefficients'!$M$3+'Residential Energy Coefficients'!$M$4*LN(B_Net_Sq_Ft_per_Unit)+'Residential Energy Coefficients'!$M$11*B_HH_Size+'Residential Energy Coefficients'!$M$16*LN(Residential_Energy_Cost)+'Residential Energy Coefficients'!$M$19),0)))))/1000,0) -> 0 | CD22: 0 | CE22: =(IFERROR(EXP('Commercial Energy Coefficients'!$B$3+LN(B_RET_Gross_Sq_Ft)*'Commercial Energy Coefficients'!$B$4+'Commercial Energy Coefficients'!$B$11+'Commercial Energy Coefficients'!$B$14+'Commercial Energy Coefficients'!$B$18*LN((B_Ret_Emp_Acre)*(B_Lot_Size/43560))+'Commercial Energy Coefficients'!$B$19*LN(40)+'Commercial Energy Coefficients'!$B$21+'Commercial Energy Coefficients'!$B$22*LN(Commercial_Energy_Cost)+'Commercial Energy Coefficients'!$B$23*IFERROR(LOOKUP(Metro_Select,Energy_Metro_Lookup,HDD),0)),0)+IFERROR(EXP('Commercial Energy Coefficients'!$E$3+LN(B_OFF_Gross_Sq_Ft)*'Commercial Energy Coefficients'!$E$4+'Commercial Energy Coefficients'!$E$11+'Commercial Energy Coefficients'!$E$14+'Commercial Energy Coefficients'!$E$18*LN((B_OFF_Emp_Acre)*(B_Lot_Size/43560))+'Commercial Energy Coefficients'!$E$19*LN(40)+'Commercial Energy Coefficients'!$E$21+'Commercial Energy Coefficients'!$E$22*LN(Commercial_Energy_Cost)+'Commercial Energy Coefficients'!$E$23*IFERROR(LOOKUP(Metro_Select,Energy_Metro_Lookup,HDD),0)),0)+IFERROR(EXP('Commercial Energy Coefficients'!$H$3+LN(B_PUB_Gross_Sq_Ft)*'Commercial Energy Coefficients'!$H$4+'Commercial Energy Coefficients'!$H$11+'Commercial Energy Coefficients'!$H$14+'Commercial Energy Coefficients'!$H$18*LN((B_Pub_Emp_Acre)*(B_Lot_Size/43560))+'Commercial Energy Coefficients'!$H$19*LN(40)+'Commercial Energy Coefficients'!$H$21+'Commercial Energy Coefficients'!$H$22*LN(Commercial_Energy_Cost)+'Commercial Energy Coefficients'!$H$23*IFERROR(LOOKUP(Metro_Select,Energy_Metro_Lookup,HDD),0)),0))/1000 -> 0 | CF22: =(IFERROR(EXP('Commercial Energy Coefficients'!$C$3+LN((B_RET_Gross_Sq_Ft))*'Commercial Energy Coefficients'!$C$4+'Commercial Energy Coefficients'!$C$11+'Commercial Energy Coefficients'!$C$14+'Commercial Energy Coefficients'!$C$18*LN((B_Ret_Emp_Acre)*(B_Lot_Size/43560))+'Commercial Energy Coefficients'!$C$19*LN(40)+'Commercial Energy Coefficients'!$C$21+'Commercial Energy Coefficients'!$C$22*LN(Commercial_Energy_Cost)+'Commercial Energy Coefficients'!$C$24*IFERROR(LOOKUP(Metro_Select,Energy_Metro_Lookup,CDD),0)),0)+IFERROR(EXP('Commercial Energy Coefficients'!$F$3+LN((B_OFF_Gross_Sq_Ft))*'Commercial Energy Coefficients'!$F$4+'Commercial Energy Coefficients'!$F$11+'Commercial Energy Coefficients'!$F$14+'Commercial Energy Coefficients'!$F$18*LN((B_OFF_Emp_Acre)*(B_Lot_Size/43560))+'Commercial Energy Coefficients'!$F$19*LN(40)+'Commercial Energy Coefficients'!$F$21+'Commercial Energy Coefficients'!$F$22*LN(Commercial_Energy_Cost)+'Commercial Energy Coefficients'!$F$24*IFERROR(LOOKUP(Metro_Select,Energy_Metro_Lookup,CDD),0)),0)+IFERROR(EXP('Commercial Energy Coefficients'!$I$3+LN((B_PUB_Gross_Sq_Ft))*'Commercial Energy Coefficients'!$I$4+'Commercial Energy Coefficients'!$I$11+'Commercial Energy Coefficients'!$I$14+'Commercial Energy Coefficients'!$I$18*LN((B_Pub_Emp_Acre)*(B_Lot_Size/43560))+'Commercial Energy Coefficients'!$I$19*LN(40)+'Commercial Energy Coefficients'!$I$21+'Commercial Energy Coefficients'!$I$22*LN(Commercial_Energy_Cost)+'Commercial Energy Coefficients'!$I$24*IFERROR(LOOKUP(Metro_Select,Energy_Metro_Lookup,CDD),0)),0))/1000 -> 0 | CG22: =(IFERROR(EXP('Commercial Energy Coefficients'!$D$3+LN((B_RET_Gross_Sq_Ft))*'Commercial Energy Coefficients'!$D$4+'Commercial Energy Coefficients'!$D$14+'Commercial Energy Coefficients'!$D$18*LN((B_Ret_Emp_Acre)*(B_Lot_Size/43560))+'Commercial Energy Coefficients'!$D$19*LN(40)+'Commercial Energy Coefficients'!$D$21+'Commercial Energy Coefficients'!$D$22*LN(Commercial_Energy_Cost)),0)+IFERROR(EXP('Commercial Energy Coefficients'!$G$3+LN((B_OFF_Gross_Sq_Ft))*'Commercial Energy Coefficients'!$G$4+'Commercial Energy Coefficients'!$G$14+'Commercial Energy Coefficients'!$G$18*LN((B_OFF_Emp_Acre)*(B_Lot_Size/43560))+'Commercial Energy Coefficients'!$G$19*LN(40)+'Commercial Energy Coefficients'!$G$21+'Commercial Energy Coefficients'!$G$22*LN(Commercial_Energy_Cost)),0)+IFERROR(EXP('Commercial Energy Coefficients'!$J$3+LN((B_PUB_Gross_Sq_Ft))*'Commercial Energy Coefficients'!$J$4+'Commercial Energy Coefficients'!$J$14+'Commercial Energy Coefficients'!$J$18*LN((B_Pub_Emp_Acre)*(B_Lot_Size/43560))+'Commercial Energy Coefficients'!$J$19*LN(40)+'Commercial Energy Coefficients'!$J$21+'Commercial Energy Coefficients'!$J$22*LN(Commercial_Energy_Cost)),0))/1000 -> 0 | CH22: 0 | CI22: 0 | CJ22: 0 | CK22: 0 | CL22: 0 | CM22: 0 | CN22: 0 | CO22: 0 | CP22: 0 | CQ22: 0 | CR22: 0 | CS22: 0 | CT22: 0 | CU22: 0 | CV22: 0 | CW22: 0 | CX22: 0 | CY22: 0 | CZ22: =IF(B_Housing_Type="",0,IF(B_Housing_Type="MF",'Project Info'!$B$154,IF(B_Housing_Type="TH",'Project Info'!$B$155,IF(AND(B_Housing_Type="SF",B_Net_Sq_Ft_per_Unit>0,B_Net_Sq_Ft_per_Unit<3000),'Project Info'!$B$156,IF(AND(B_Housing_Type="SF",B_Net_Sq_Ft_per_Unit>=3000),'Project Info'!$B$157))))) -> 0 | DA22: 0 | DB22: 0 | DC22: 0 | DE22: 0 | DF22: 0 | DH22: 0 | DJ22: 0 | DK22: 0 | DL22: 0 | DM22: 0 | DN22: 0 | DO22: 0 | DP22: 0 | DQ22: 0
B23: 20 | J23: 0 | L23: 0 | M23: 0 | N23: 0 | O23: 0 | P23: 0 | Q23: 0 | R23: 0 | S23: 0 | AA23: 0 | AD23: 0 | AE23: 0 | AH23: 0 | AJ23: 0 | AL23: 0 | AM23: 0 | AN23: 0 | AO23: 0 | AP23: 0 | AQ23: 0 | AR23: 0 | AS23: 0 | AT23: 0 | AU23: 0 | AV23: 0 | AW23: 0 | AX23: 0 | AZ23: 0 | BA23: 0 | BC23: 0 | BD23: 0 | BF23: 0 | BG23: 0 | BI23: 0 | BJ23: 0 | BL23: 0 | BM23: 0 | BO23: 0 | BR23: 0 | BS23: 0 | BT23: 0 | BV23: 0 | BZ23: 0 | CA23: =IFERROR(IF(B_Housing_Type="SF",EXP('Residential Energy Coefficients'!$B$3+'Residential Energy Coefficients'!$B$4*LN(B_Net_Sq_Ft_per_Unit)+'Residential Energy Coefficients'!$B$9+'Residential Energy Coefficients'!$B$10*LN(B_HH_Income)+'Residential Energy Coefficients'!$B$16*LN(Residential_Energy_Cost)+'Residential Energy Coefficients'!$B$20+'Residential Energy Coefficients'!$B$24*IFERROR(LOOKUP(Metro_Select,Energy_Metro_Lookup,HDD),0)),IF(B_Housing_Type="TH",EXP('Residential Energy Coefficients'!$E$3+'Residential Energy Coefficients'!$E$4*LN(B_Net_Sq_Ft_per_Unit)+'Residential Energy Coefficients'!$E$9+'Residential Energy Coefficients'!$E$16*LN(Residential_Energy_Cost)+'Residential Energy Coefficients'!$E$19+'Residential Energy Coefficients'!$E$20+'Residential Energy Coefficients'!$E$24*IFERROR(LOOKUP(Metro_Select,Energy_Metro_Lookup,HDD),0)),IF(B_Housing_Type="MF",EXP('Residential Energy Coefficients'!$H$3+'Residential Energy Coefficients'!$H$4*LN(B_Net_Sq_Ft_per_Unit)+'Residential Energy Coefficients'!$H$9+IF(B_Pct_Owner=1,'Residential Energy Coefficients'!$H$12,0)+'Residential Energy Coefficients'!$H$16*LN(Residential_Energy_Cost)+'Residential Energy Coefficients'!$H$20+'Residential Energy Coefficients'!$H$24*IFERROR(LOOKUP(Metro_Select,Energy_Metro_Lookup,HDD),0)),IF(B_Hotel_Room_Acre>0,EXP('Residential Energy Coefficients'!$H$3+'Residential Energy Coefficients'!$H$4*LN(B_Hotel_Room_Net)+'Residential Energy Coefficients'!$H$9+'Residential Energy Coefficients'!$H$16*LN(Residential_Energy_Cost)+'Residential Energy Coefficients'!$H$20+'Residential Energy Coefficients'!$H$24*IFERROR(LOOKUP(Metro_Select,Energy_Metro_Lookup,HDD),0)),IF(B_Housing_Type="MH",EXP('Residential Energy Coefficients'!$K$3+'Residential Energy Coefficients'!$K$16*LN(Residential_Energy_Cost)+'Residential Energy Coefficients'!$K$24*IFERROR(LOOKUP(Metro_Select,Energy_Metro_Lookup,HDD),0)),0)))))/1000,0) -> 0 | CB23: =IFERROR(IF(B_Housing_Type="SF",EXP('Residential Energy Coefficients'!$C$3+'Residential Energy Coefficients'!$C$4*LN(B_Net_Sq_Ft_per_Unit)+'Residential Energy Coefficients'!$C$10*LN(B_HH_Income)+'Residential Energy Coefficients'!$C$11*B_HH_Size+'Residential Energy Coefficients'!$C$16*LN(Residential_Energy_Cost)+'Residential Energy Coefficients'!$C$19+'Residential Energy Coefficients'!$C$22+'Residential Energy Coefficients'!$C$25*IFERROR(LOOKUP(Metro_Select,Energy_Metro_Lookup,CDD),0)),IF(B_Housing_Type="TH",EXP('Residential Energy Coefficients'!$F$3+'Residential Energy Coefficients'!$F$4*LN(B_Net_Sq_Ft_per_Unit)+'Residential Energy Coefficients'!$F$10*LN(B_HH_Income)+'Residential Energy Coefficients'!$F$11*B_HH_Size+IF(B_Pct_Owner=1,'Residential Energy Coefficients'!$F$12,0)+'Residential Energy Coefficients'!$F$16*LN(Residential_Energy_Cost)+'Residential Energy Coefficients'!$F$22+'Residential Energy Coefficients'!$F$25*IFERROR(LOOKUP(Metro_Select,Energy_Metro_Lookup,CDD),0)),IF(B_Housing_Type="MF",EXP('Residential Energy Coefficients'!$I$3+'Residential Energy Coefficients'!$I$4*LN(B_Net_Sq_Ft_per_Unit)+'Residential Energy Coefficients'!$I$9+'Residential Energy Coefficients'!$I$11*B_HH_Size+'Residential Energy Coefficients'!$I$16*LN(Residential_Energy_Cost)+'Residential Energy Coefficients'!$I$22+'Residential Energy Coefficients'!$I$25*IFERROR(LOOKUP(Metro_Select,Energy_Metro_Lookup,CDD),0)),IF(B_Hotel_Room_Acre>0,EXP('Residential Energy Coefficients'!$I$3+'Residential Energy Coefficients'!$I$4*LN(B_Hotel_Room_Net)+'Residential Energy Coefficients'!$I$9+'Residential Energy Coefficients'!$I$11*1.25+'Residential Energy Coefficients'!$I$16*LN(Residential_Energy_Cost)+'Residential Energy Coefficients'!$I$22+'Residential Energy Coefficients'!$I$25*IFERROR(LOOKUP(Metro_Select,Energy_Metro_Lookup,CDD),0)),IF(B_Housing_Type="MH",EXP('Residential Energy Coefficients'!$L$3+'Residential Energy Coefficients'!$L$11*B_HH_Size+'Residential Energy Coefficients'!$L$16*LN(Residential_Energy_Cost)+'Residential Energy Coefficients'!$L$22+'Residential Energy Coefficients'!$L$25*IFERROR(LOOKUP(Metro_Select,Energy_Metro_Lookup,CDD),0)),0)))))/1000,0) -> 0 | CC23: =IFERROR(IF(B_Housing_Type="SF",EXP('Residential Energy Coefficients'!$D$3+'Residential Energy Coefficients'!$D$4*LN(B_Net_Sq_Ft_per_Unit)+'Residential Energy Coefficients'!$D$9+'Residential Energy Coefficients'!$D$10*LN(B_HH_Income)+'Residential Energy Coefficients'!$D$11*B_HH_Size+IF(B_Pct_Owner=1,'Residential Energy Coefficients'!$D$12,0)+'Residential Energy Coefficients'!$D$16*LN(Residential_Energy_Cost)),IF(B_Housing_Type="TH",EXP('Residential Energy Coefficients'!$G$3+'Residential Energy Coefficients'!$G$4*LN(B_Net_Sq_Ft_per_Unit)+'Residential Energy Coefficients'!$G$10*LN(B_HH_Income)+'Residential Energy Coefficients'!$G$11*B_HH_Size+'Residential Energy Coefficients'!$G$16*LN(Residential_Energy_Cost)),IF(B_Housing_Type="MF",EXP('Residential Energy Coefficients'!$J$3+'Residential Energy Coefficients'!$J$4*LN(B_Net_Sq_Ft_per_Unit)+'Residential Energy Coefficients'!$J$10*LN(B_HH_Income)+'Residential Energy Coefficients'!$J$11*B_HH_Size+IF(B_Pct_Owner=1,'Residential Energy Coefficients'!$J$12,0)+'Residential Energy Coefficients'!$J$16*LN(Residential_Energy_Cost)+'Residential Energy Coefficients'!$J$19),IF(B_Hotel_Room_Acre>0,EXP('Residential Energy Coefficients'!$J$3+'Residential Energy Coefficients'!$J$4*LN(B_Hotel_Room_Net)+'Residential Energy Coefficients'!$J$16*LN(Residential_Energy_Cost)+'Residential Energy Coefficients'!$J$19),IF(B_Housing_Type="MH",EXP('Residential Energy Coefficients'!$M$3+'Residential Energy Coefficients'!$M$4*LN(B_Net_Sq_Ft_per_Unit)+'Residential Energy Coefficients'!$M$11*B_HH_Size+'Residential Energy Coefficients'!$M$16*LN(Residential_Energy_Cost)+'Residential Energy Coefficients'!$M$19),0)))))/1000,0) -> 0 | CD23: 0 | CE23: =(IFERROR(EXP('Commercial Energy Coefficients'!$B$3+LN(B_RET_Gross_Sq_Ft)*'Commercial Energy Coefficients'!$B$4+'Commercial Energy Coefficients'!$B$11+'Commercial Energy Coefficients'!$B$14+'Commercial Energy Coefficients'!$B$18*LN((B_Ret_Emp_Acre)*(B_Lot_Size/43560))+'Commercial Energy Coefficients'!$B$19*LN(40)+'Commercial Energy Coefficients'!$B$21+'Commercial Energy Coefficients'!$B$22*LN(Commercial_Energy_Cost)+'Commercial Energy Coefficients'!$B$23*IFERROR(LOOKUP(Metro_Select,Energy_Metro_Lookup,HDD),0)),0)+IFERROR(EXP('Commercial Energy Coefficients'!$E$3+LN(B_OFF_Gross_Sq_Ft)*'Commercial Energy Coefficients'!$E$4+'Commercial Energy Coefficients'!$E$11+'Commercial Energy Coefficients'!$E$14+'Commercial Energy Coefficients'!$E$18*LN((B_OFF_Emp_Acre)*(B_Lot_Size/43560))+'Commercial Energy Coefficients'!$E$19*LN(40)+'Commercial Energy Coefficients'!$E$21+'Commercial Energy Coefficients'!$E$22*LN(Commercial_Energy_Cost)+'Commercial Energy Coefficients'!$E$23*IFERROR(LOOKUP(Metro_Select,Energy_Metro_Lookup,HDD),0)),0)+IFERROR(EXP('Commercial Energy Coefficients'!$H$3+LN(B_PUB_Gross_Sq_Ft)*'Commercial Energy Coefficients'!$H$4+'Commercial Energy Coefficients'!$H$11+'Commercial Energy Coefficients'!$H$14+'Commercial Energy Coefficients'!$H$18*LN((B_Pub_Emp_Acre)*(B_Lot_Size/43560))+'Commercial Energy Coefficients'!$H$19*LN(40)+'Commercial Energy Coefficients'!$H$21+'Commercial Energy Coefficients'!$H$22*LN(Commercial_Energy_Cost)+'Commercial Energy Coefficients'!$H$23*IFERROR(LOOKUP(Metro_Select,Energy_Metro_Lookup,HDD),0)),0))/1000 -> 0 | CF23: =(IFERROR(EXP('Commercial Energy Coefficients'!$C$3+LN((B_RET_Gross_Sq_Ft))*'Commercial Energy Coefficients'!$C$4+'Commercial Energy Coefficients'!$C$11+'Commercial Energy Coefficients'!$C$14+'Commercial Energy Coefficients'!$C$18*LN((B_Ret_Emp_Acre)*(B_Lot_Size/43560))+'Commercial Energy Coefficients'!$C$19*LN(40)+'Commercial Energy Coefficients'!$C$21+'Commercial Energy Coefficients'!$C$22*LN(Commercial_Energy_Cost)+'Commercial Energy Coefficients'!$C$24*IFERROR(LOOKUP(Metro_Select,Energy_Metro_Lookup,CDD),0)),0)+IFERROR(EXP('Commercial Energy Coefficients'!$F$3+LN((B_OFF_Gross_Sq_Ft))*'Commercial Energy Coefficients'!$F$4+'Commercial Energy Coefficients'!$F$11+'Commercial Energy Coefficients'!$F$14+'Commercial Energy Coefficients'!$F$18*LN((B_OFF_Emp_Acre)*(B_Lot_Size/43560))+'Commercial Energy Coefficients'!$F$19*LN(40)+'Commercial Energy Coefficients'!$F$21+'Commercial Energy Coefficients'!$F$22*LN(Commercial_Energy_Cost)+'Commercial Energy Coefficients'!$F$24*IFERROR(LOOKUP(Metro_Select,Energy_Metro_Lookup,CDD),0)),0)+IFERROR(EXP('Commercial Energy Coefficients'!$I$3+LN((B_PUB_Gross_Sq_Ft))*'Commercial Energy Coefficients'!$I$4+'Commercial Energy Coefficients'!$I$11+'Commercial Energy Coefficients'!$I$14+'Commercial Energy Coefficients'!$I$18*LN((B_Pub_Emp_Acre)*(B_Lot_Size/43560))+'Commercial Energy Coefficients'!$I$19*LN(40)+'Commercial Energy Coefficients'!$I$21+'Commercial Energy Coefficients'!$I$22*LN(Commercial_Energy_Cost)+'Commercial Energy Coefficients'!$I$24*IFERROR(LOOKUP(Metro_Select,Energy_Metro_Lookup,CDD),0)),0))/1000 -> 0 | CG23: =(IFERROR(EXP('Commercial Energy Coefficients'!$D$3+LN((B_RET_Gross_Sq_Ft))*'Commercial Energy Coefficients'!$D$4+'Commercial Energy Coefficients'!$D$14+'Commercial Energy Coefficients'!$D$18*LN((B_Ret_Emp_Acre)*(B_Lot_Size/43560))+'Commercial Energy Coefficients'!$D$19*LN(40)+'Commercial Energy Coefficients'!$D$21+'Commercial Energy Coefficients'!$D$22*LN(Commercial_Energy_Cost)),0)+IFERROR(EXP('Commercial Energy Coefficients'!$G$3+LN((B_OFF_Gross_Sq_Ft))*'Commercial Energy Coefficients'!$G$4+'Commercial Energy Coefficients'!$G$14+'Commercial Energy Coefficients'!$G$18*LN((B_OFF_Emp_Acre)*(B_Lot_Size/43560))+'Commercial Energy Coefficients'!$G$19*LN(40)+'Commercial Energy Coefficients'!$G$21+'Commercial Energy Coefficients'!$G$22*LN(Commercial_Energy_Cost)),0)+IFERROR(EXP('Commercial Energy Coefficients'!$J$3+LN((B_PUB_Gross_Sq_Ft))*'Commercial Energy Coefficients'!$J$4+'Commercial Energy Coefficients'!$J$14+'Commercial Energy Coefficients'!$J$18*LN((B_Pub_Emp_Acre)*(B_Lot_Size/43560))+'Commercial Energy Coefficients'!$J$19*LN(40)+'Commercial Energy Coefficients'!$J$21+'Commercial Energy Coefficients'!$J$22*LN(Commercial_Energy_Cost)),0))/1000 -> 0 | CH23: 0 | CI23: 0 | CJ23: 0 | CK23: 0 | CL23: 0 | CM23: 0 | CN23: 0 | CO23: 0 | CP23: 0 | CQ23: 0 | CR23: 0 | CS23: 0 | CT23: 0 | CU23: 0 | CV23: 0 | CW23: 0 | CX23: 0 | CY23: 0 | CZ23: =IF(B_Housing_Type="",0,IF(B_Housing_Type="MF",'Project Info'!$B$154,IF(B_Housing_Type="TH",'Project Info'!$B$155,IF(AND(B_Housing_Type="SF",B_Net_Sq_Ft_per_Unit>0,B_Net_Sq_Ft_per_Unit<3000),'Project Info'!$B$156,IF(AND(B_Housing_Type="SF",B_Net_Sq_Ft_per_Unit>=3000),'Project Info'!$B$157))))) -> 0 | DA23: 0 | DB23: 0 | DC23: 0 | DE23: 0 | DF23: 0 | DH23: 0 | DJ23: 0 | DK23: 0 | DL23: 0 | DM23: 0 | DN23: 0 | DO23: 0 | DP23: 0 | DQ23: 0
B24: 21 | J24: 0 | L24: 0 | M24: 0 | N24: 0 | O24: 0 | P24: 0 | Q24: 0 | R24: 0 | S24: 0 | AA24: 0 | AD24: 0 | AE24: 0 | AH24: 0 | AJ24: 0 | AL24: 0 | AM24: 0 | AN24: 0 | AO24: 0 | AP24: 0 | AQ24: 0 | AR24: 0 | AS24: 0 | AT24: 0 | AU24: 0 | AV24: 0 | AW24: 0 | AX24: 0 | AZ24: 0 | BA24: 0 | BC24: 0 | BD24: 0 | BF24: 0 | BG24: 0 | BI24: 0 | BJ24: 0 | BL24: 0 | BM24: 0 | BO24: 0 | BR24: 0 | BS24: 0 | BT24: 0 | BV24: 0 | BZ24: 0 | CA24: =IFERROR(IF(B_Housing_Type="SF",EXP('Residential Energy Coefficients'!$B$3+'Residential Energy Coefficients'!$B$4*LN(B_Net_Sq_Ft_per_Unit)+'Residential Energy Coefficients'!$B$9+'Residential Energy Coefficients'!$B$10*LN(B_HH_Income)+'Residential Energy Coefficients'!$B$16*LN(Residential_Energy_Cost)+'Residential Energy Coefficients'!$B$20+'Residential Energy Coefficients'!$B$24*IFERROR(LOOKUP(Metro_Select,Energy_Metro_Lookup,HDD),0)),IF(B_Housing_Type="TH",EXP('Residential Energy Coefficients'!$E$3+'Residential Energy Coefficients'!$E$4*LN(B_Net_Sq_Ft_per_Unit)+'Residential Energy Coefficients'!$E$9+'Residential Energy Coefficients'!$E$16*LN(Residential_Energy_Cost)+'Residential Energy Coefficients'!$E$19+'Residential Energy Coefficients'!$E$20+'Residential Energy Coefficients'!$E$24*IFERROR(LOOKUP(Metro_Select,Energy_Metro_Lookup,HDD),0)),IF(B_Housing_Type="MF",EXP('Residential Energy Coefficients'!$H$3+'Residential Energy Coefficients'!$H$4*LN(B_Net_Sq_Ft_per_Unit)+'Residential Energy Coefficients'!$H$9+IF(B_Pct_Owner=1,'Residential Energy Coefficients'!$H$12,0)+'Residential Energy Coefficients'!$H$16*LN(Residential_Energy_Cost)+'Residential Energy Coefficients'!$H$20+'Residential Energy Coefficients'!$H$24*IFERROR(LOOKUP(Metro_Select,Energy_Metro_Lookup,HDD),0)),IF(B_Hotel_Room_Acre>0,EXP('Residential Energy Coefficients'!$H$3+'Residential Energy Coefficients'!$H$4*LN(B_Hotel_Room_Net)+'Residential Energy Coefficients'!$H$9+'Residential Energy Coefficients'!$H$16*LN(Residential_Energy_Cost)+'Residential Energy Coefficients'!$H$20+'Residential Energy Coefficients'!$H$24*IFERROR(LOOKUP(Metro_Select,Energy_Metro_Lookup,HDD),0)),IF(B_Housing_Type="MH",EXP('Residential Energy Coefficients'!$K$3+'Residential Energy Coefficients'!$K$16*LN(Residential_Energy_Cost)+'Residential Energy Coefficients'!$K$24*IFERROR(LOOKUP(Metro_Select,Energy_Metro_Lookup,HDD),0)),0)))))/1000,0) -> 0 | CB24: =IFERROR(IF(B_Housing_Type="SF",EXP('Residential Energy Coefficients'!$C$3+'Residential Energy Coefficients'!$C$4*LN(B_Net_Sq_Ft_per_Unit)+'Residential Energy Coefficients'!$C$10*LN(B_HH_Income)+'Residential Energy Coefficients'!$C$11*B_HH_Size+'Residential Energy Coefficients'!$C$16*LN(Residential_Energy_Cost)+'Residential Energy Coefficients'!$C$19+'Residential Energy Coefficients'!$C$22+'Residential Energy Coefficients'!$C$25*IFERROR(LOOKUP(Metro_Select,Energy_Metro_Lookup,CDD),0)),IF(B_Housing_Type="TH",EXP('Residential Energy Coefficients'!$F$3+'Residential Energy Coefficients'!$F$4*LN(B_Net_Sq_Ft_per_Unit)+'Residential Energy Coefficients'!$F$10*LN(B_HH_Income)+'Residential Energy Coefficients'!$F$11*B_HH_Size+IF(B_Pct_Owner=1,'Residential Energy Coefficients'!$F$12,0)+'Residential Energy Coefficients'!$F$16*LN(Residential_Energy_Cost)+'Residential Energy Coefficients'!$F$22+'Residential Energy Coefficients'!$F$25*IFERROR(LOOKUP(Metro_Select,Energy_Metro_Lookup,CDD),0)),IF(B_Housing_Type="MF",EXP('Residential Energy Coefficients'!$I$3+'Residential Energy Coefficients'!$I$4*LN(B_Net_Sq_Ft_per_Unit)+'Residential Energy Coefficients'!$I$9+'Residential Energy Coefficients'!$I$11*B_HH_Size+'Residential Energy Coefficients'!$I$16*LN(Residential_Energy_Cost)+'Residential Energy Coefficients'!$I$22+'Residential Energy Coefficients'!$I$25*IFERROR(LOOKUP(Metro_Select,Energy_Metro_Lookup,CDD),0)),IF(B_Hotel_Room_Acre>0,EXP('Residential Energy Coefficients'!$I$3+'Residential Energy Coefficients'!$I$4*LN(B_Hotel_Room_Net)+'Residential Energy Coefficients'!$I$9+'Residential Energy Coefficients'!$I$11*1.25+'Residential Energy Coefficients'!$I$16*LN(Residential_Energy_Cost)+'Residential Energy Coefficients'!$I$22+'Residential Energy Coefficients'!$I$25*IFERROR(LOOKUP(Metro_Select,Energy_Metro_Lookup,CDD),0)),IF(B_Housing_Type="MH",EXP('Residential Energy Coefficients'!$L$3+'Residential Energy Coefficients'!$L$11*B_HH_Size+'Residential Energy Coefficients'!$L$16*LN(Residential_Energy_Cost)+'Residential Energy Coefficients'!$L$22+'Residential Energy Coefficients'!$L$25*IFERROR(LOOKUP(Metro_Select,Energy_Metro_Lookup,CDD),0)),0)))))/1000,0) -> 0 | CC24: =IFERROR(IF(B_Housing_Type="SF",EXP('Residential Energy Coefficients'!$D$3+'Residential Energy Coefficients'!$D$4*LN(B_Net_Sq_Ft_per_Unit)+'Residential Energy Coefficients'!$D$9+'Residential Energy Coefficients'!$D$10*LN(B_HH_Income)+'Residential Energy Coefficients'!$D$11*B_HH_Size+IF(B_Pct_Owner=1,'Residential Energy Coefficients'!$D$12,0)+'Residential Energy Coefficients'!$D$16*LN(Residential_Energy_Cost)),IF(B_Housing_Type="TH",EXP('Residential Energy Coefficients'!$G$3+'Residential Energy Coefficients'!$G$4*LN(B_Net_Sq_Ft_per_Unit)+'Residential Energy Coefficients'!$G$10*LN(B_HH_Income)+'Residential Energy Coefficients'!$G$11*B_HH_Size+'Residential Energy Coefficients'!$G$16*LN(Residential_Energy_Cost)),IF(B_Housing_Type="MF",EXP('Residential Energy Coefficients'!$J$3+'Residential Energy Coefficients'!$J$4*LN(B_Net_Sq_Ft_per_Unit)+'Residential Energy Coefficients'!$J$10*LN(B_HH_Income)+'Residential Energy Coefficients'!$J$11*B_HH_Size+IF(B_Pct_Owner=1,'Residential Energy Coefficients'!$J$12,0)+'Residential Energy Coefficients'!$J$16*LN(Residential_Energy_Cost)+'Residential Energy Coefficients'!$J$19),IF(B_Hotel_Room_Acre>0,EXP('Residential Energy Coefficients'!$J$3+'Residential Energy Coefficients'!$J$4*LN(B_Hotel_Room_Net)+'Residential Energy Coefficients'!$J$16*LN(Residential_Energy_Cost)+'Residential Energy Coefficients'!$J$19),IF(B_Housing_Type="MH",EXP('Residential Energy Coefficients'!$M$3+'Residential Energy Coefficients'!$M$4*LN(B_Net_Sq_Ft_per_Unit)+'Residential Energy Coefficients'!$M$11*B_HH_Size+'Residential Energy Coefficients'!$M$16*LN(Residential_Energy_Cost)+'Residential Energy Coefficients'!$M$19),0)))))/1000,0) -> 0 | CD24: 0 | CE24: =(IFERROR(EXP('Commercial Energy Coefficients'!$B$3+LN(B_RET_Gross_Sq_Ft)*'Commercial Energy Coefficients'!$B$4+'Commercial Energy Coefficients'!$B$11+'Commercial Energy Coefficients'!$B$14+'Commercial Energy Coefficients'!$B$18*LN((B_Ret_Emp_Acre)*(B_Lot_Size/43560))+'Commercial Energy Coefficients'!$B$19*LN(40)+'Commercial Energy Coefficients'!$B$21+'Commercial Energy Coefficients'!$B$22*LN(Commercial_Energy_Cost)+'Commercial Energy Coefficients'!$B$23*IFERROR(LOOKUP(Metro_Select,Energy_Metro_Lookup,HDD),0)),0)+IFERROR(EXP('Commercial Energy Coefficients'!$E$3+LN(B_OFF_Gross_Sq_Ft)*'Commercial Energy Coefficients'!$E$4+'Commercial Energy Coefficients'!$E$11+'Commercial Energy Coefficients'!$E$14+'Commercial Energy Coefficients'!$E$18*LN((B_OFF_Emp_Acre)*(B_Lot_Size/43560))+'Commercial Energy Coefficients'!$E$19*LN(40)+'Commercial Energy Coefficients'!$E$21+'Commercial Energy Coefficients'!$E$22*LN(Commercial_Energy_Cost)+'Commercial Energy Coefficients'!$E$23*IFERROR(LOOKUP(Metro_Select,Energy_Metro_Lookup,HDD),0)),0)+IFERROR(EXP('Commercial Energy Coefficients'!$H$3+LN(B_PUB_Gross_Sq_Ft)*'Commercial Energy Coefficients'!$H$4+'Commercial Energy Coefficients'!$H$11+'Commercial Energy Coefficients'!$H$14+'Commercial Energy Coefficients'!$H$18*LN((B_Pub_Emp_Acre)*(B_Lot_Size/43560))+'Commercial Energy Coefficients'!$H$19*LN(40)+'Commercial Energy Coefficients'!$H$21+'Commercial Energy Coefficients'!$H$22*LN(Commercial_Energy_Cost)+'Commercial Energy Coefficients'!$H$23*IFERROR(LOOKUP(Metro_Select,Energy_Metro_Lookup,HDD),0)),0))/1000 -> 0 | CF24: =(IFERROR(EXP('Commercial Energy Coefficients'!$C$3+LN((B_RET_Gross_Sq_Ft))*'Commercial Energy Coefficients'!$C$4+'Commercial Energy Coefficients'!$C$11+'Commercial Energy Coefficients'!$C$14+'Commercial Energy Coefficients'!$C$18*LN((B_Ret_Emp_Acre)*(B_Lot_Size/43560))+'Commercial Energy Coefficients'!$C$19*LN(40)+'Commercial Energy Coefficients'!$C$21+'Commercial Energy Coefficients'!$C$22*LN(Commercial_Energy_Cost)+'Commercial Energy Coefficients'!$C$24*IFERROR(LOOKUP(Metro_Select,Energy_Metro_Lookup,CDD),0)),0)+IFERROR(EXP('Commercial Energy Coefficients'!$F$3+LN((B_OFF_Gross_Sq_Ft))*'Commercial Energy Coefficients'!$F$4+'Commercial Energy Coefficients'!$F$11+'Commercial Energy Coefficients'!$F$14+'Commercial Energy Coefficients'!$F$18*LN((B_OFF_Emp_Acre)*(B_Lot_Size/43560))+'Commercial Energy Coefficients'!$F$19*LN(40)+'Commercial Energy Coefficients'!$F$21+'Commercial Energy Coefficients'!$F$22*LN(Commercial_Energy_Cost)+'Commercial Energy Coefficients'!$F$24*IFERROR(LOOKUP(Metro_Select,Energy_Metro_Lookup,CDD),0)),0)+IFERROR(EXP('Commercial Energy Coefficients'!$I$3+LN((B_PUB_Gross_Sq_Ft))*'Commercial Energy Coefficients'!$I$4+'Commercial Energy Coefficients'!$I$11+'Commercial Energy Coefficients'!$I$14+'Commercial Energy Coefficients'!$I$18*LN((B_Pub_Emp_Acre)*(B_Lot_Size/43560))+'Commercial Energy Coefficients'!$I$19*LN(40)+'Commercial Energy Coefficients'!$I$21+'Commercial Energy Coefficients'!$I$22*LN(Commercial_Energy_Cost)+'Commercial Energy Coefficients'!$I$24*IFERROR(LOOKUP(Metro_Select,Energy_Metro_Lookup,CDD),0)),0))/1000 -> 0 | CG24: =(IFERROR(EXP('Commercial Energy Coefficients'!$D$3+LN((B_RET_Gross_Sq_Ft))*'Commercial Energy Coefficients'!$D$4+'Commercial Energy Coefficients'!$D$14+'Commercial Energy Coefficients'!$D$18*LN((B_Ret_Emp_Acre)*(B_Lot_Size/43560))+'Commercial Energy Coefficients'!$D$19*LN(40)+'Commercial Energy Coefficients'!$D$21+'Commercial Energy Coefficients'!$D$22*LN(Commercial_Energy_Cost)),0)+IFERROR(EXP('Commercial Energy Coefficients'!$G$3+LN((B_OFF_Gross_Sq_Ft))*'Commercial Energy Coefficients'!$G$4+'Commercial Energy Coefficients'!$G$14+'Commercial Energy Coefficients'!$G$18*LN((B_OFF_Emp_Acre)*(B_Lot_Size/43560))+'Commercial Energy Coefficients'!$G$19*LN(40)+'Commercial Energy Coefficients'!$G$21+'Commercial Energy Coefficients'!$G$22*LN(Commercial_Energy_Cost)),0)+IFERROR(EXP('Commercial Energy Coefficients'!$J$3+LN((B_PUB_Gross_Sq_Ft))*'Commercial Energy Coefficients'!$J$4+'Commercial Energy Coefficients'!$J$14+'Commercial Energy Coefficients'!$J$18*LN((B_Pub_Emp_Acre)*(B_Lot_Size/43560))+'Commercial Energy Coefficients'!$J$19*LN(40)+'Commercial Energy Coefficients'!$J$21+'Commercial Energy Coefficients'!$J$22*LN(Commercial_Energy_Cost)),0))/1000 -> 0 | CH24: 0 | CI24: 0 | CJ24: 0 | CK24: 0 | CL24: 0 | CM24: 0 | CN24: 0 | CO24: 0 | CP24: 0 | CQ24: 0 | CR24: 0 | CS24: 0 | CT24: 0 | CU24: 0 | CV24: 0 | CW24: 0 | CX24: 0 | CY24: 0 | CZ24: =IF(B_Housing_Type="",0,IF(B_Housing_Type="MF",'Project Info'!$B$154,IF(B_Housing_Type="TH",'Project Info'!$B$155,IF(AND(B_Housing_Type="SF",B_Net_Sq_Ft_per_Unit>0,B_Net_Sq_Ft_per_Unit<3000),'Project Info'!$B$156,IF(AND(B_Housing_Type="SF",B_Net_Sq_Ft_per_Unit>=3000),'Project Info'!$B$157))))) -> 0 | DA24: 0 | DB24: 0 | DC24: 0 | DE24: 0 | DF24: 0 | DH24: 0 | DJ24: 0 | DK24: 0 | DL24: 0 | DM24: 0 | DN24: 0 | DO24: 0 | DP24: 0 | DQ24: 0
B25: 22 | J25: 0 | L25: 0 | M25: 0 | N25: 0 | O25: 0 | P25: 0 | Q25: 0 | R25: 0 | S25: 0 | AA25: 0 | AD25: 0 | AE25: 0 | AH25: 0 | AJ25: 0 | AL25: 0 | AM25: 0 | AN25: 0 | AO25: 0 | AP25: 0 | AQ25: 0 | AR25: 0 | AS25: 0 | AT25: 0 | AU25: 0 | AV25: 0 | AW25: 0 | AX25: 0 | AZ25: 0 | BA25: 0 | BC25: 0 | BD25: 0 | BF25: 0 | BG25: 0 | BI25: 0 | BJ25: 0 | BL25: 0 | BM25: 0 | BO25: 0 | BR25: 0 | BS25: 0 | BT25: 0 | BV25: 0 | BZ25: 0 | CA25: =IFERROR(IF(B_Housing_Type="SF",EXP('Residential Energy Coefficients'!$B$3+'Residential Energy Coefficients'!$B$4*LN(B_Net_Sq_Ft_per_Unit)+'Residential Energy Coefficients'!$B$9+'Residential Energy Coefficients'!$B$10*LN(B_HH_Income)+'Residential Energy Coefficients'!$B$16*LN(Residential_Energy_Cost)+'Residential Energy Coefficients'!$B$20+'Residential Energy Coefficients'!$B$24*IFERROR(LOOKUP(Metro_Select,Energy_Metro_Lookup,HDD),0)),IF(B_Housing_Type="TH",EXP('Residential Energy Coefficients'!$E$3+'Residential Energy Coefficients'!$E$4*LN(B_Net_Sq_Ft_per_Unit)+'Residential Energy Coefficients'!$E$9+'Residential Energy Coefficients'!$E$16*LN(Residential_Energy_Cost)+'Residential Energy Coefficients'!$E$19+'Residential Energy Coefficients'!$E$20+'Residential Energy Coefficients'!$E$24*IFERROR(LOOKUP(Metro_Select,Energy_Metro_Lookup,HDD),0)),IF(B_Housing_Type="MF",EXP('Residential Energy Coefficients'!$H$3+'Residential Energy Coefficients'!$H$4*LN(B_Net_Sq_Ft_per_Unit)+'Residential Energy Coefficients'!$H$9+IF(B_Pct_Owner=1,'Residential Energy Coefficients'!$H$12,0)+'Residential Energy Coefficients'!$H$16*LN(Residential_Energy_Cost)+'Residential Energy Coefficients'!$H$20+'Residential Energy Coefficients'!$H$24*IFERROR(LOOKUP(Metro_Select,Energy_Metro_Lookup,HDD),0)),IF(B_Hotel_Room_Acre>0,EXP('Residential Energy Coefficients'!$H$3+'Residential Energy Coefficients'!$H$4*LN(B_Hotel_Room_Net)+'Residential Energy Coefficients'!$H$9+'Residential Energy Coefficients'!$H$16*LN(Residential_Energy_Cost)+'Residential Energy Coefficients'!$H$20+'Residential Energy Coefficients'!$H$24*IFERROR(LOOKUP(Metro_Select,Energy_Metro_Lookup,HDD),0)),IF(B_Housing_Type="MH",EXP('Residential Energy Coefficients'!$K$3+'Residential Energy Coefficients'!$K$16*LN(Residential_Energy_Cost)+'Residential Energy Coefficients'!$K$24*IFERROR(LOOKUP(Metro_Select,Energy_Metro_Lookup,HDD),0)),0)))))/1000,0) -> 0 | CB25: =IFERROR(IF(B_Housing_Type="SF",EXP('Residential Energy Coefficients'!$C$3+'Residential Energy Coefficients'!$C$4*LN(B_Net_Sq_Ft_per_Unit)+'Residential Energy Coefficients'!$C$10*LN(B_HH_Income)+'Residential Energy Coefficients'!$C$11*B_HH_Size+'Residential Energy Coefficients'!$C$16*LN(Residential_Energy_Cost)+'Residential Energy Coefficients'!$C$19+'Residential Energy Coefficients'!$C$22+'Residential Energy Coefficients'!$C$25*IFERROR(LOOKUP(Metro_Select,Energy_Metro_Lookup,CDD),0)),IF(B_Housing_Type="TH",EXP('Residential Energy Coefficients'!$F$3+'Residential Energy Coefficients'!$F$4*LN(B_Net_Sq_Ft_per_Unit)+'Residential Energy Coefficients'!$F$10*LN(B_HH_Income)+'Residential Energy Coefficients'!$F$11*B_HH_Size+IF(B_Pct_Owner=1,'Residential Energy Coefficients'!$F$12,0)+'Residential Energy Coefficients'!$F$16*LN(Residential_Energy_Cost)+'Residential Energy Coefficients'!$F$22+'Residential Energy Coefficients'!$F$25*IFERROR(LOOKUP(Metro_Select,Energy_Metro_Lookup,CDD),0)),IF(B_Housing_Type="MF",EXP('Residential Energy Coefficients'!$I$3+'Residential Energy Coefficients'!$I$4*LN(B_Net_Sq_Ft_per_Unit)+'Residential Energy Coefficients'!$I$9+'Residential Energy Coefficients'!$I$11*B_HH_Size+'Residential Energy Coefficients'!$I$16*LN(Residential_Energy_Cost)+'Residential Energy Coefficients'!$I$22+'Residential Energy Coefficients'!$I$25*IFERROR(LOOKUP(Metro_Select,Energy_Metro_Lookup,CDD),0)),IF(B_Hotel_Room_Acre>0,EXP('Residential Energy Coefficients'!$I$3+'Residential Energy Coefficients'!$I$4*LN(B_Hotel_Room_Net)+'Residential Energy Coefficients'!$I$9+'Residential Energy Coefficients'!$I$11*1.25+'Residential Energy Coefficients'!$I$16*LN(Residential_Energy_Cost)+'Residential Energy Coefficients'!$I$22+'Residential Energy Coefficients'!$I$25*IFERROR(LOOKUP(Metro_Select,Energy_Metro_Lookup,CDD),0)),IF(B_Housing_Type="MH",EXP('Residential Energy Coefficients'!$L$3+'Residential Energy Coefficients'!$L$11*B_HH_Size+'Residential Energy Coefficients'!$L$16*LN(Residential_Energy_Cost)+'Residential Energy Coefficients'!$L$22+'Residential Energy Coefficients'!$L$25*IFERROR(LOOKUP(Metro_Select,Energy_Metro_Lookup,CDD),0)),0)))))/1000,0) -> 0 | CC25: =IFERROR(IF(B_Housing_Type="SF",EXP('Residential Energy Coefficients'!$D$3+'Residential Energy Coefficients'!$D$4*LN(B_Net_Sq_Ft_per_Unit)+'Residential Energy Coefficients'!$D$9+'Residential Energy Coefficients'!$D$10*LN(B_HH_Income)+'Residential Energy Coefficients'!$D$11*B_HH_Size+IF(B_Pct_Owner=1,'Residential Energy Coefficients'!$D$12,0)+'Residential Energy Coefficients'!$D$16*LN(Residential_Energy_Cost)),IF(B_Housing_Type="TH",EXP('Residential Energy Coefficients'!$G$3+'Residential Energy Coefficients'!$G$4*LN(B_Net_Sq_Ft_per_Unit)+'Residential Energy Coefficients'!$G$10*LN(B_HH_Income)+'Residential Energy Coefficients'!$G$11*B_HH_Size+'Residential Energy Coefficients'!$G$16*LN(Residential_Energy_Cost)),IF(B_Housing_Type="MF",EXP('Residential Energy Coefficients'!$J$3+'Residential Energy Coefficients'!$J$4*LN(B_Net_Sq_Ft_per_Unit)+'Residential Energy Coefficients'!$J$10*LN(B_HH_Income)+'Residential Energy Coefficients'!$J$11*B_HH_Size+IF(B_Pct_Owner=1,'Residential Energy Coefficients'!$J$12,0)+'Residential Energy Coefficients'!$J$16*LN(Residential_Energy_Cost)+'Residential Energy Coefficients'!$J$19),IF(B_Hotel_Room_Acre>0,EXP('Residential Energy Coefficients'!$J$3+'Residential Energy Coefficients'!$J$4*LN(B_Hotel_Room_Net)+'Residential Energy Coefficients'!$J$16*LN(Residential_Energy_Cost)+'Residential Energy Coefficients'!$J$19),IF(B_Housing_Type="MH",EXP('Residential Energy Coefficients'!$M$3+'Residential Energy Coefficients'!$M$4*LN(B_Net_Sq_Ft_per_Unit)+'Residential Energy Coefficients'!$M$11*B_HH_Size+'Residential Energy Coefficients'!$M$16*LN(Residential_Energy_Cost)+'Residential Energy Coefficients'!$M$19),0)))))/1000,0) -> 0 | CD25: 0 | CE25: =(IFERROR(EXP('Commercial Energy Coefficients'!$B$3+LN(B_RET_Gross_Sq_Ft)*'Commercial Energy Coefficients'!$B$4+'Commercial Energy Coefficients'!$B$11+'Commercial Energy Coefficients'!$B$14+'Commercial Energy Coefficients'!$B$18*LN((B_Ret_Emp_Acre)*(B_Lot_Size/43560))+'Commercial Energy Coefficients'!$B$19*LN(40)+'Commercial Energy Coefficients'!$B$21+'Commercial Energy Coefficients'!$B$22*LN(Commercial_Energy_Cost)+'Commercial Energy Coefficients'!$B$23*IFERROR(LOOKUP(Metro_Select,Energy_Metro_Lookup,HDD),0)),0)+IFERROR(EXP('Commercial Energy Coefficients'!$E$3+LN(B_OFF_Gross_Sq_Ft)*'Commercial Energy Coefficients'!$E$4+'Commercial Energy Coefficients'!$E$11+'Commercial Energy Coefficients'!$E$14+'Commercial Energy Coefficients'!$E$18*LN((B_OFF_Emp_Acre)*(B_Lot_Size/43560))+'Commercial Energy Coefficients'!$E$19*LN(40)+'Commercial Energy Coefficients'!$E$21+'Commercial Energy Coefficients'!$E$22*LN(Commercial_Energy_Cost)+'Commercial Energy Coefficients'!$E$23*IFERROR(LOOKUP(Metro_Select,Energy_Metro_Lookup,HDD),0)),0)+IFERROR(EXP('Commercial Energy Coefficients'!$H$3+LN(B_PUB_Gross_Sq_Ft)*'Commercial Energy Coefficients'!$H$4+'Commercial Energy Coefficients'!$H$11+'Commercial Energy Coefficients'!$H$14+'Commercial Energy Coefficients'!$H$18*LN((B_Pub_Emp_Acre)*(B_Lot_Size/43560))+'Commercial Energy Coefficients'!$H$19*LN(40)+'Commercial Energy Coefficients'!$H$21+'Commercial Energy Coefficients'!$H$22*LN(Commercial_Energy_Cost)+'Commercial Energy Coefficients'!$H$23*IFERROR(LOOKUP(Metro_Select,Energy_Metro_Lookup,HDD),0)),0))/1000 -> 0 | CF25: =(IFERROR(EXP('Commercial Energy Coefficients'!$C$3+LN((B_RET_Gross_Sq_Ft))*'Commercial Energy Coefficients'!$C$4+'Commercial Energy Coefficients'!$C$11+'Commercial Energy Coefficients'!$C$14+'Commercial Energy Coefficients'!$C$18*LN((B_Ret_Emp_Acre)*(B_Lot_Size/43560))+'Commercial Energy Coefficients'!$C$19*LN(40)+'Commercial Energy Coefficients'!$C$21+'Commercial Energy Coefficients'!$C$22*LN(Commercial_Energy_Cost)+'Commercial Energy Coefficients'!$C$24*IFERROR(LOOKUP(Metro_Select,Energy_Metro_Lookup,CDD),0)),0)+IFERROR(EXP('Commercial Energy Coefficients'!$F$3+LN((B_OFF_Gross_Sq_Ft))*'Commercial Energy Coefficients'!$F$4+'Commercial Energy Coefficients'!$F$11+'Commercial Energy Coefficients'!$F$14+'Commercial Energy Coefficients'!$F$18*LN((B_OFF_Emp_Acre)*(B_Lot_Size/43560))+'Commercial Energy Coefficients'!$F$19*LN(40)+'Commercial Energy Coefficients'!$F$21+'Commercial Energy Coefficients'!$F$22*LN(Commercial_Energy_Cost)+'Commercial Energy Coefficients'!$F$24*IFERROR(LOOKUP(Metro_Select,Energy_Metro_Lookup,CDD),0)),0)+IFERROR(EXP('Commercial Energy Coefficients'!$I$3+LN((B_PUB_Gross_Sq_Ft))*'Commercial Energy Coefficients'!$I$4+'Commercial Energy Coefficients'!$I$11+'Commercial Energy Coefficients'!$I$14+'Commercial Energy Coefficients'!$I$18*LN((B_Pub_Emp_Acre)*(B_Lot_Size/43560))+'Commercial Energy Coefficients'!$I$19*LN(40)+'Commercial Energy Coefficients'!$I$21+'Commercial Energy Coefficients'!$I$22*LN(Commercial_Energy_Cost)+'Commercial Energy Coefficients'!$I$24*IFERROR(LOOKUP(Metro_Select,Energy_Metro_Lookup,CDD),0)),0))/1000 -> 0 | CG25: =(IFERROR(EXP('Commercial Energy Coefficients'!$D$3+LN((B_RET_Gross_Sq_Ft))*'Commercial Energy Coefficients'!$D$4+'Commercial Energy Coefficients'!$D$14+'Commercial Energy Coefficients'!$D$18*LN((B_Ret_Emp_Acre)*(B_Lot_Size/43560))+'Commercial Energy Coefficients'!$D$19*LN(40)+'Commercial Energy Coefficients'!$D$21+'Commercial Energy Coefficients'!$D$22*LN(Commercial_Energy_Cost)),0)+IFERROR(EXP('Commercial Energy Coefficients'!$G$3+LN((B_OFF_Gross_Sq_Ft))*'Commercial Energy Coefficients'!$G$4+'Commercial Energy Coefficients'!$G$14+'Commercial Energy Coefficients'!$G$18*LN((B_OFF_Emp_Acre)*(B_Lot_Size/43560))+'Commercial Energy Coefficients'!$G$19*LN(40)+'Commercial Energy Coefficients'!$G$21+'Commercial Energy Coefficients'!$G$22*LN(Commercial_Energy_Cost)),0)+IFERROR(EXP('Commercial Energy Coefficients'!$J$3+LN((B_PUB_Gross_Sq_Ft))*'Commercial Energy Coefficients'!$J$4+'Commercial Energy Coefficients'!$J$14+'Commercial Energy Coefficients'!$J$18*LN((B_Pub_Emp_Acre)*(B_Lot_Size/43560))+'Commercial Energy Coefficients'!$J$19*LN(40)+'Commercial Energy Coefficients'!$J$21+'Commercial Energy Coefficients'!$J$22*LN(Commercial_Energy_Cost)),0))/1000 -> 0 | CH25: 0 | CI25: 0 | CJ25: 0 | CK25: 0 | CL25: 0 | CM25: 0 | CN25: 0 | CO25: 0 | CP25: 0 | CQ25: 0 | CR25: 0 | CS25: 0 | CT25: 0 | CU25: 0 | CV25: 0 | CW25: 0 | CX25: 0 | CY25: 0 | CZ25: =IF(B_Housing_Type="",0,IF(B_Housing_Type="MF",'Project Info'!$B$154,IF(B_Housing_Type="TH",'Project Info'!$B$155,IF(AND(B_Housing_Type="SF",B_Net_Sq_Ft_per_Unit>0,B_Net_Sq_Ft_per_Unit<3000),'Project Info'!$B$156,IF(AND(B_Housing_Type="SF",B_Net_Sq_Ft_per_Unit>=3000),'Project Info'!$B$157))))) -> 0 | DA25: 0 | DB25: 0 | DC25: 0 | DE25: 0 | DF25: 0 | DH25: 0 | DJ25: 0 | DK25: 0 | DL25: 0 | DM25: 0 | DN25: 0 | DO25: 0 | DP25: 0 | DQ25: 0
